Workbook

Sheet __snloffice (hidden)

Sheet Company List (hidden)
B1: Source: SNL 7/28/2015
A2: =COUNTA(B9:B1048576) -> 158 | B2: Operating US and Canadian Energy Companies trading on NASDAQ or NYSE
A3: NOTE: AFTER REFRESHING QUERY CHECK THAT COL a CONTAINS FORMULA FOR EACH ROW OF RETURNED TABLE
B5: Institution Name | C5: SNL Institution Key
D6: 131166 | E6: 139474 | F6: 131165 | G6: 131160 | H6: 131159 | I6: 131263 | J6: 131264
A9: =D9 -> AEIS | B9: Advanced Energy Industries, Inc. | C9: 4306705 | D9: AEIS | E9: AEIS-US | F9: NASDAQGS | G9: Advanced Energy Industries, | H9: Advanced Energy In
A10: =D10 -> AQN | B10: Algonquin Power & Utilities Corp. | C10: 4142273 | D10: AQN | E10: AQN-TSX | F10: TSX | G10: Algonquin Power & Utilities | H10: Algonquin Power
A11: ALE | B11: ALLETE, Inc. | C11: 4022309 | D11: ALE | E11: ALE-US | F11: NYSE | G11: ALLETE Inc. | H11: ALLETE Inc
A12: ARLP | B12: Alliance Resource Partners, L.P. | C12: 4098794 | D12: ARLP | E12: ARLP-US | F12: NASDAQGS | G12: Alliance Resource Partners LP | H12: Alliance Resource
A13: LNT | B13: Alliant Energy Corporation | C13: 4057038 | D13: LNT | E13: LNT-US | F13: NASDAQGS | G13: Alliant Energy | H13: Alliant Energy
A14: AMR | B14: Alpha Metallurgical Resources, Inc. | C14: 4774297 | D14: AMR | E14: AMR-US | F14: NYSE | G14: Alpha Metallurgical Resources | H14: Alpha Metallurgica
A15: ALA | B15: AltaGas Ltd. | C15: 4135391 | D15: ALA | E15: ALA-TSX | F15: TSX | G15: AltaGas | H15: AltaGas
A16: AEE | B16: Ameren Corporation | C16: 4007308 | D16: AEE | E16: AEE-US | F16: NYSE | G16: Ameren Corp. | H16: Ameren Corp
A17: AEP | B17: American Electric Power Company, Inc. | C17: 4006321 | D17: AEP | E17: AEP-US | F17: NASDAQGS | G17: American Electric Power Co. | H17: AEP
A18: AMSC | B18: American Superconductor Corporation | C18: 4991374 | D18: AMSC | E18: AMSC-US | F18: NASDAQGS | G18: American Superconductor Corp. | H18: American Supercond
A19: ASYS | B19: Amtech Systems, Inc. | C19: 4963960 | D19: ASYS | E19: ASYS-US | F19: NASDAQGS | G19: Amtech Systems Inc | H19: Amtech Systems
A20: AM | B20: Antero Midstream Corporation | C20: 4909522 | D20: AM | E20: AM-US | F20: NYSE | G20: Antero Midstream Corp. | H20: Antero Midstream
A21: ARCH | B21: Arch Resources, Inc. | C21: 4098789 | D21: ARCH | E21: ARCH-US | F21: NYSE | G21: Arch Resources Inc. | H21: Arch Rsrc Inc
A22: AROC | B22: Archrock, Inc. | C22: 4121009 | D22: AROC | E22: AROC-US | F22: NYSE | G22: Archrock Inc | H22: Archrock Inc
A23: ACO.X | B23: ATCO Ltd. | C23: 4086899 | D23: ACO.X | E23: ACO.X-TSX | F23: TSX | G23: ATCO Ltd. | H23: ATCO Ltd
A24: ATO | B24: Atmos Energy Corporation | C24: 4057157 | D24: ATO | E24: ATO-US | F24: NYSE | G24: Atmos Energy Corp. | H24: Atmos Energy Corp
A25: AGR | B25: Avangrid, Inc. | C25: 4057045 | D25: AGR | E25: AGR-US | F25: NYSE | G25: Avangrid Inc. | H25: Avangrid | I25: Iberdrola, S.A. | J25: Iberdrola, S.A.
A26: AVA | B26: Avista Corporation | C26: 4057075 | D26: AVA | E26: AVA-US | F26: NYSE | G26: Avista Corp. | H26: Avista Corp
A27: BKH | B27: Black Hills Corporation | C27: 4010420 | D27: BKH | E27: BKH-US | F27: NYSE | G27: Black Hills Corp | H27: Black Hills Corp
A28: BKEP | B28: Blueknight Energy Partners, L.P. | C28: 4155779 | D28: BKEP | E28: BKEP-US | F28: NASDAQGM | G28: Blueknight Energy Partners LP | H28: Blueknight Energy
A29: BLX | B29: Boralex Inc. | C29: 4082886 | D29: BLX | E29: BLX-TSX | F29: TSX | G29: Boralex Inc. | H29: Boralex Inc
A30: BPMP | B30: BP Midstream Partners LP | C30: 8235766 | D30: BPMP | E30: BPMP-US | F30: NYSE | G30: BP Midstream Partners LP | H30: BP Midstream Ptnrs | I30: BP Midstream Partners Holdings LLC | J30: BP p.l.c.
A31: BWEN | B31: Broadwind, Inc. | C31: 4235589 | D31: BWEN | E31: BWEN-US | F31: NASDAQCM | G31: Broadwind Inc. | H31: Broadwind
A32: BEP.UN | B32: Brookfield Renewable Partners L.P. | C32: 4304864 | D32: BEP.UN | E32: BEP.UN-TSX | F32: TSX | G32: Brookfield Renewable | H32: Brookfield Renewab
A33: CLMT | B33: Calumet Specialty Products Partners, L.P. | C33: 4109349 | D33: CLMT | E33: CLMT-US | F33: NASDAQGS | G33: Calumet Specialty Products | H33: Calumet Specialty
A34: CSIQ | B34: Canadian Solar Inc. | C34: 4246977 | D34: CSIQ | E34: CSIQ-US | F34: NASDAQGS | G34: Canadian Solar Inc | H34: Canadian Solar
A35: CU | B35: Canadian Utilities Limited | C35: 4142320 | D35: CU | E35: CU-TSX | F35: TSX | G35: Canadian Utilities Ltd. | H35: Canadian Utilities | I35: ATCO Ltd. | J35: ATCO Ltd.
A36: CPX | B36: Capital Power Corporation | C36: 4237697 | D36: CPX | E36: CPX-TSX | F36: TSX | G36: Capital Power Corp. | H36: Capital Power
A37: CGRN | B37: Capstone Green Energy Corporation | C37: 4103085 | D37: CGRN | E37: CGRN-US | F37: NASDAQCM | G37: Capstone Green Energy Corp. | H37: Capstone Green Ene
A38: CNP | B38: CenterPoint Energy, Inc. | C38: 4074390 | D38: CNP | E38: CNP-US | F38: NYSE | G38: CenterPoint Energy Inc. | H38: CenterPoint Energy
A39: CPK | B39: Chesapeake Utilities Corporation | C39: 4057113 | D39: CPK | E39: CPK-US | F39: NYSE | G39: Chesapeake Utilities Corp. | H39: Chespk Utilities
A40: CWEN.A | B40: Clearway Energy, Inc. | C40: 4393379 | D40: CWEN.A | E40: CWEN.A-US | F40: NYSE | G40: Clearway Energy Inc. | H40: Clearway Energy | I40: Clearway Energy Group LLC | J40: Clearway Energy Group LLC
A41: CMS | B41: CMS Energy Corporation | C41: 4004172 | D41: CMS | E41: CMS-US | F41: NYSE | G41: CMS Energy Corp. | H41: CMS Energy Corp
A42: CEIX | B42: CONSOL Energy Inc. | C42: 8743250 | D42: CEIX | E42: CEIX-US | F42: NYSE | G42: CONSOL Energy Inc | H42: CONSOL Energy
A43: ED | B43: Consolidated Edison, Inc. | C43: 4057041 | D43: ED | E43: ED-US | F43: NYSE | G43: Consolidated Edison Inc. | H43: Consolidated Ed
A44: CVA | B44: Covanta Holding Corporation | C44: 103347 | D44: CVA | E44: CVA-US | F44: NYSE | G44: Covanta Holding Corp. | H44: Covanta Holding
A45: CEQP | B45: Crestwood Equity Partners LP | C45: 4101945 | D45: CEQP | E45: CEQP-US | F45: NYSE | G45: Crestwood Equity Partners LP | H45: Crestwood Equity
A46: DCP | B46: DCP Midstream, LP | C46: 4105307 | D46: DCP | E46: DCP-US | F46: NYSE | G46: DCP Midstream LP | H46: DCP Midstream
A47: D | B47: Dominion Energy, Inc. | C47: 4001616 | D47: D | E47: D-US | F47: NYSE | G47: Dominion Energy | H47: Dominion Energy
A48: DMLP | B48: Dorchester Minerals, L.P. | C48: 4166546 | D48: DMLP | E48: DMLP-US | F48: NASDAQGS | G48: Dorchester Minerals L.P. | H48: Dorchester Mineral
A49: DTM | B49: DT Midstream, Inc. | C49: 28660777 | D49: DTM | E49: DTM-US | F49: NYSE | G49: DT Midstream Inc. | H49: DT Midstream Inc
A50: DTE | B50: DTE Energy Company | C50: 4057044 | D50: DTE | E50: DTE-US | F50: NYSE | G50: DTE Energy Co. | H50: DTE Energy Co
A51: DUK | B51: Duke Energy Corporation | C51: 4121470 | D51: DUK | E51: DUK-US | F51: NYSE | G51: Duke Energy Corp | H51: DukeEnergyCorp
A52: EIX | B52: Edison International | C52: 4056943 | D52: EIX | E52: EIX-US | F52: NYSE | G52: Edison International | H52: Edison Intl
A53: EMA | B53: Emera Incorporated | C53: 4072693 | D53: EMA | E53: EMA-TSX | F53: TSX | G53: Emera Inc. | H53: Emera Inc
A54: ENBL | B54: Enable Midstream Partners, LP | C54: 4082898 | D54: ENBL | E54: ENBL-US | F54: NYSE | G54: Enable Midstream Partners | H54: Enable Midstream | I54: CenterPoint Energy, Inc. | J54: CenterPoint Energy, Inc.
A55: ENB | B55: Enbridge Inc. | C55: 4089108 | D55: ENB | E55: ENB-TSX | F55: TSX | G55: Enbridge Inc. | H55: Enbridge Inc
A56: ET | B56: Energy Transfer LP | C56: 4111501 | D56: ET | E56: ET-US | F56: NYSE | G56: Energy Transfer LP | H56: Energy Transfer LP
A57: ENLC | B57: EnLink Midstream, LLC | C57: 4435696 | D57: ENLC | E57: ENLC-US | F57: NYSE | G57: EnLink Midstream LLC | H57: EnLink Midstream
A58: ENPH | B58: Enphase Energy, Inc. | C58: 4990825 | D58: ENPH | E58: ENPH-US | F58: NASDAQGM | G58: Enphase Energy Inc | H58: Enphase Energy
A59: ETR | B59: Entergy Corporation | C59: 4007889 | D59: ETR | E59: ETR-US | F59: NYSE | G59: Entergy Corp. | H59: Entergy Corp
A60: EPD | B60: Enterprise Products Partners L.P. | C60: 4059899 | D60: EPD | E60: EPD-US | F60: NYSE | G60: Enterprise Products Partners | H60: EnterpriseProducts
A61: EQT | B61: EQT Corporation | C61: 4004341 | D61: EQT | E61: EQT-US | F61: NYSE | G61: EQT Corp. | H61: EQT Corp
A62: EVRG | B62: Evergy, Inc. | C62: 8603803 | D62: EVRG | E62: EVRG-US | F62: NYSE | G62: Evergy, Inc. | H62: Evergy, Inc.
A63: ES | B63: Eversource Energy | C63: 4057052 | D63: ES | E63: ES-US | F63: NYSE | G63: Eversource Energy | H63: Eversource Energy
A64: EXC | B64: Exelon Corporation | C64: 4057056 | D64: EXC | E64: EXC-US | F64: NASDAQGS | G64: Exelon Corp. | H64: Exelon Corp
A65: FSLR | B65: First Solar, Inc. | C65: 4211343 | D65: FSLR | E65: FSLR-US | F65: NASDAQGS | G65: First Solar Inc. | H65: First Solar
A66: FE | B66: FirstEnergy Corp. | C66: 4056944 | D66: FE | E66: FE-US | F66: NYSE | G66: FirstEnergy Corp. | H66: FirstEnergy Corp
A67: FTS | B67: Fortis Inc. | C67: 4082871 | D67: FTS | E67: FTS-TSX | F67: TSX | G67: Fortis Inc. | H67: Fortis Inc.
A68: GEL | B68: Genesis Energy, L.P. | C68: 4104850 | D68: GEL | E68: GEL-US | F68: NYSE | G68: Genesis Energy LP | H68: Genesis Energy LP
A69: GLP | B69: Global Partners LP | C69: 4166549 | D69: GLP | E69: GLP-US | F69: NYSE | G69: Global Partners LP | H69: Global Partners LP
A70: GPP | B70: Green Plains Partners LP | C70: 4589646 | D70: GPP | E70: GPP-US | F70: NASDAQGM | G70: Green Plains Partners LP | H70: Green Plains | I70: Green Plains Inc. | J70: Green Plains Inc.
A71: HNRG | B71: Hallador Energy Company | C71: 4187964 | D71: HNRG | E71: HNRG-US | F71: NASDAQCM | G71: Hallador Energy Co | H71: Hallador Energy
A72: HE | B72: Hawaiian Electric Industries, Inc. | C72: 1031123 | D72: HE | E72: HE-US | F72: NYSE | G72: Hawaiian Electric Industries | H72: Hawaiian Electric
A73: HESM | B73: Hess Midstream LP | C73: 4561493 | D73: HESM | E73: HESM-US | F73: NYSE | G73: Hess Midstream LP | H73: Hess Midstream
A74: =D74 -> HEP | B74: Holly Energy Partners, L.P. | C74: 4102285 | D74: HEP | E74: HEP-US | F74: NYSE | G74: Holly Energy Partners LP | H74: Holly Energy Ptnr | I74: HollyFrontier Corporation | J74: HollyFrontier Corporation
A75: H | B75: Hydro One Limited | C75: 4643434 | D75: H | E75: H-TSX | F75: TSX | G75: Hydro One Ltd | H75: Hydro One Ltd | I75: Province of Ontario | J75: Province of Ontario
A76: IDA | B76: IDACORP, Inc. | C76: 4056949 | D76: IDA | E76: IDA-US | F76: NYSE | G76: IDACORP Inc. | H76: IDACORP Inc
A77: INE | B77: Innergex Renewable Energy Inc. | C77: 4215345 | D77: INE | E77: INE-TSX | F77: TSX | G77: Innergex Renewable Energy Inc
A78: ITRI | B78: Itron, Inc. | C78: 4092673 | D78: ITRI | E78: ITRI-US | F78: NASDAQGS | G78: Itron Inc | H78: Itron
A79: KEY | B79: Keyera Corp. | C79: 4096390 | D79: KEY | E79: KEY-TSX | F79: TSX | G79: Keyera Corp. | H79: Keyera Corp.
A80: KMI | B80: Kinder Morgan, Inc. | C80: 4275772 | D80: KMI | E80: KMI-US | F80: NYSE | G80: Kinder Morgan Inc
A81: MIC | B81: Macquarie Infrastructure Holdings, LLC | C81: 4824125 | D81: MIC | E81: MIC-US | F81: NYSE | G81: Macquarie Infrastructure Hldgs | H81: Macquarie Infrastr
A82: MMP | B82: Magellan Midstream Partners, L.P. | C82: 4093937 | D82: MMP | E82: MMP-US | F82: NYSE | G82: Magellan Midstream Partners LP | H82: Magellan Midstream
A83: MMLP | B83: Martin Midstream Partners L.P. | C83: 4141978 | D83: MMLP | E83: MMLP-US | F83: NASDAQGS | G83: Martin Midstream Partners LP | H83: Martin Midstream
A84: MXG | B84: Maxim Power Corp. | C84: 4100090 | D84: MXG | E84: MXG-TSX | F84: TSX | G84: Maxim Power Corp | H84: MaximPowerCorp
A85: MDU | B85: MDU Resources Group, Inc. | C85: 4010692 | D85: MDU | E85: MDU-US | F85: NYSE | G85: MDU Resources Group | H85: MDU Resources Grp
A86: MGEE | B86: MGE Energy, Inc. | C86: 4072883 | D86: MGEE | E86: MGEE-US | F86: NASDAQGS | G86: MGE Energy Inc | H86: MGE Energy Inc
A87: MPLX | B87: MPLX LP | C87: 4334372 | D87: MPLX | E87: MPLX-US | F87: NYSE | G87: MPLX LP | H87: MPLX LP | I87: Marathon Petroleum Corporation | J87: Marathon Petroleum Corporation
A88: MYRG | B88: MYR Group Inc. | C88: 4120398 | D88: MYRG | E88: MYRG-US | F88: NASDAQGS | G88: MYR Group Inc | H88: MYR Group
A89: NFG | B89: National Fuel Gas Company | C89: 4010821 | D89: NFG | E89: NFG-US | F89: NYSE | G89: National Fuel Gas Co. | H89: Natl Fuel Gas Co
A90: NRP | B90: Natural Resource Partners L.P. | C90: 4098968 | D90: NRP | E90: NRP-US | F90: NYSE | G90: Natural Resource Partners LP | H90: Natural Resource
A91: NJR | B91: New Jersey Resources Corporation | C91: 4057128 | D91: NJR | E91: NJR-US | F91: NYSE | G91: New Jersey Resources Corp. | H91: NJ Resources Corp
A92: NEP | B92: NextEra Energy Partners, LP | C92: 4550347 | D92: NEP | E92: NEP-US | F92: NYSE | G92: NextEra Energy Partners | H92: NextEra Energy
A93: NEE | B93: NextEra Energy, Inc. | C93: 3010401 | D93: NEE | E93: NEE-US | F93: NYSE | G93: NextEra Energy Inc. | H93: NextEra Energy Inc
A94: NGL | B94: NGL Energy Partners LP | C94: 4288485 | D94: NGL | E94: NGL-US | F94: NYSE | G94: NGL Energy Partners LP | H94: NGL Energy
A95: NI | B95: NiSource Inc. | C95: 4057051 | D95: NI | E95: NI-US | F95: NYSE | G95: NiSource Inc. | H95: NiSource Inc
A96: NPI | B96: Northland Power Inc. | C96: 4156778 | D96: NPI | E96: NPI-TSX | F96: TSX | G96: Northland Power Inc | H96: Northland Power
A97: NWN | B97: Northwest Natural Holding Company | C97: 4057132 | D97: NWN | E97: NWN-US | F97: NYSE | G97: Northwest Natural Holding Co. | H97: NW Natural Holding
A98: NWE | B98: NorthWestern Corporation | C98: 4057053 | D98: NWE | E98: NWE-US | F98: NASDAQGS | G98: NorthWestern Corp. | H98: NorthWestern Corp
A99: NRG | B99: NRG Energy, Inc. | C99: 4057436 | D99: NRG | E99: NRG-US | F99: NYSE | G99: NRG Energy Inc. | H99: NRG Energy Inc
A100: NS | B100: NuStar Energy L.P. | C100: 4096167 | D100: NS | E100: NS-US | F100: NYSE | G100: NuStar Energy LP | H100: NuStar Energy LP
A101: OMP | B101: Oasis Midstream Partners LP | C101: 6522821 | D101: OMP | E101: OMP-US | F101: NASDAQGS | G101: Oasis Midstream Partners LP | H101: Oasis Midstream | I101: OMS Holdings LLC | J101: Oasis Petroleum Inc.
A102: OGE | B102: OGE Energy Corp. | C102: 4057055 | D102: OGE | E102: OGE-US | F102: NYSE | G102: OGE Energy Corp. | H102: OGE Energy Corp.
A103: OGS | B103: ONE Gas, Inc. | C103: 4427129 | D103: OGS | E103: OGS-US | F103: NYSE | G103: ONE Gas Inc | H103: ONE Gas Inc
A104: OKE | B104: ONEOK, Inc. | C104: 4010846 | D104: OKE | E104: OKE-US | F104: NYSE | G104: ONEOK Inc. | H104: ONEOK Inc
A105: ORA | B105: Ormat Technologies, Inc. | C105: 4087066 | D105: ORA | E105: ORA-US | F105: NYSE | G105: Ormat Technologies Inc. | H105: Ormat Technologies
A106: OTTR | B106: Otter Tail Corporation | C106: 4057017 | D106: OTTR | E106: OTTR-US | F106: NASDAQGS | G106: Otter Tail Corp. | H106: Otter Tail Corp
A107: PBFX | B107: PBF Logistics LP | C107: 4546827 | D107: PBFX | E107: PBFX-US | F107: NYSE | G107: PBF Logistics | H107: PBF Logistics
A108: BTU | B108: Peabody Energy Corporation | C108: 4065857 | D108: BTU | E108: BTU-US | F108: NYSE | G108: Peabody Energy Corp. | H108: Peabody Energy
A109: PPL | B109: PPL Corporation | C109: 4057058 | D109: PPL | E109: PPL-US | F109: NYSE | G109: PPL Corp. | H109: PPL Corp
A110: PCG | B110: PG&E Corporation | C110: 4057057 | D110: PCG | E110: PCG-US | F110: NYSE | G110: PG&E Corp. | H110: PG&E Corp
A111: PSXP | B111: Phillips 66 Partners LP | C111: 4404795 | D111: PSXP | E111: PSXP-US | F111: NYSE | G111: Phillips 66 Partners LP | H111: Phillips 66 | I111: Phillips 66 Company | J111: Phillips 66
A112: PNW | B112: Pinnacle West Capital Corporation | C112: 4056951 | D112: PNW | E112: PNW-US | F112: NYSE | G112: Pinnacle West Capital Corp. | H112: Pinnacle West Cap
A113: PAA | B113: Plains All American Pipeline, L.P. | C113: 4095757 | D113: PAA | E113: PAA-US | F113: NASDAQGS | G113: Plains All American Pipeline | H113: Plains All America | I113: Plains GP Holdings, L.P. | J113: Plains GP Holdings, L.P.
A114: PAGP | B114: Plains GP Holdings, L.P. | C114: 4217494 | D114: PAGP | E114: PAGP-US | F114: NASDAQGS | G114: Plains GP Holdings LP | H114: Plains GP Holdings
A115: TXNM | B115: TXNM Energy | C115: 4006880 | D115: PNM | E115: PNM-US | F115: NYSE | G115: PNM Resources Inc.
A116: POR | B116: Portland General Electric Company | C116: 4057019 | D116: POR | E116: POR-US | F116: NYSE | G116: Portland General Electric Co. | H116: Portland Genl Elec
A117: PPL | B117: PPL Corporation | C117: 4057058 | D117: PPL | E117: PPL-US | F117: NYSE | G117: PPL Corp. | H117: PPL Corp
A118: PEG | B118: Public Service Enterprise Group Incorporated | C118: 4050911 | D118: PEG | E118: PEG-US | F118: NYSE | G118: Public Svc Enterprise Group | H118: Public Svc Entrprs
A119: PWR | B119: Quanta Services, Inc. | C119: 4097102 | D119: PWR | E119: PWR-US | F119: NYSE | G119: Quanta Services Inc | H119: Quanta Services
A120: METC | B120: Ramaco Resources, Inc. | C120: 4885921 | D120: METC | E120: METC-US | F120: NASDAQGS | G120: Ramaco Resources, Inc. | H120: Ramaco Resources
A121: SOL | B121: ReneSola Ltd | C121: 4400408 | D121: SOL | E121: SOL-US | F121: NYSE | G121: ReneSola Ltd | H121: ReneSola
A122: RGCO | B122: RGC Resources, Inc. | C122: 4057142 | D122: RGCO | E122: RGCO-US | F122: NASDAQGM | G122: RGC Resources Inc. | H122: RGC Resources Inc
A123: SRE | B123: Sempra | C123: 4057062 | D123: SRE | E123: SRE-US | F123: NYSE | G123: Sempra | H123: Sempra
A124: SHLX | B124: Shell Midstream Partners, L.P. | C124: 4545164 | D124: SHLX | E124: SHLX-US | F124: NYSE | G124: Shell Midstream Partners LP | H124: Shell Midstream | I124: Shell Pipeline Company LP | J124: Royal Dutch Shell plc
A125: SJI | B125: South Jersey Industries, Inc. | C125: 4057145 | D125: SJI | E125: SJI-US | F125: NYSE | G125: South Jersey Industries Inc. | H125: S Jersey Indstrs
A126: SWX | B126: Southwest Gas Holdings, Inc. | C126: 4884928 | D126: SWX | E126: SWX-US | F126: NYSE | G126: Southwest Gas Holdings Inc. | H126: Southwest Gas Hldg
A127: SWN | B127: Southwestern Energy Company | C127: 4011062 | D127: SWN | E127: SWN-US | F127: NYSE | G127: Southwestern Energy Co. | H127: Sthwstrn Energy Co
A128: SR | B128: Spire Inc. | C128: 4002506 | D128: SR | E128: SR-US | F128: NYSE | G128: Spire Inc. | H128: Spire Inc.
A129: SRLP | B129: Sprague Resources LP | C129: 4426437 | D129: SRLP | E129: SRLP-US | F129: NYSE | G129: Sprague Resources LP | H129: Sprague Resources | I129: Hartree Partners, LP | J129: Brookfield Asset Management Inc.
A130: SGU | B130: Star Group, L.P. | C130: 4101099 | D130: SGU | E130: SGU-US | F130: NYSE | G130: Star Group L.P. | H130: STAR GROUP LP
A131: SPH | B131: Suburban Propane Partners, L.P. | C131: 4084137 | D131: SPH | E131: SPH-US | F131: NYSE | G131: Suburban Propane | H131: Suburban Propane
A132: SMLP | B132: Summit Midstream Partners, LP | C132: 4333951 | D132: SMLP | E132: SMLP-US | F132: NYSE | G132: Summit Midstream Partners LP | H132: Summit Midstream
A133: SUN | B133: Sunoco LP | C133: 4561611 | D133: SUN | E133: SUN-US | F133: NYSE | G133: Sunoco LP | H133: Sunoco
A134: SPWR | B134: SunPower Corporation | C134: 4104856 | D134: SPWR | E134: SPWR-US | F134: NASDAQGS | G134: SunPower Corp. | H134: SunPower Corp | I134: Total Gas & Power USA, SAS | J134: TotalEnergies SE
A135: RUN | B135: Sunrun Inc. | C135: 4279137 | D135: RUN | E135: RUN-US | F135: NASDAQGS | G135: Sunrun Inc.
A136: SUNW | B136: Sunworks, Inc. | C136: 6225109 | D136: SUNW | E136: SUNW-US | F136: NASDAQCM | G136: Sunworks Inc | H136: Sunworks
A137: SXI | B137: Synex International Inc. | C137: 4154068 | D137: SXI | E137: SXI-TSX | F137: TSX | G137: Synex International Inc. | H137: Synex Internatnl
A138: =D138 -> TRGP | B138: Targa Resources Corp. | C138: 4276678 | D138: TRGP | E138: TRGP-US | F138: NYSE | G138: Targa Resources Corp. | H138: Targa Resources
A139: TRP | B139: TC Energy Corporation | C139: 4087757 | D139: TRP | E139: TRP-TSX | F139: TSX | G139: TC Energy Corp. | H139: TC Energy
B140: The AES Corporation | C140: 4055465 | D140: AES | E140: AES-US | F140: NYSE | G140: The AES Corp. | H140: The AES Corp
A141: SO | B141: The Southern Company | C141: 4004298 | D141: SO | E141: SO-US | F141: NYSE | G141: The Southern Co. | H141: Southern Co
B142: The Williams Companies, Inc. | C142: 4011165 | D142: WMB | E142: WMB-US | F142: NYSE | G142: The Williams Companies Inc. | H142: Williams Cos Inc
A143: TA | B143: TransAlta Corporation | C143: 4088101 | D143: TA | E143: TA-TSX | F143: TSX | G143: TransAlta Corp | H143: TransAlta
A144: RNW | B144: TransAlta Renewables Inc. | C144: 4396337 | D144: RNW | E144: RNW-TSX | F144: TSX | G144: TransAlta Renewables Inc. | H144: TransAlta | I144: TransAlta Corporation | J144: TransAlta Corporation
A145: UGI | B145: UGI Corporation | C145: 4057537 | D145: UGI | E145: UGI-US | F145: NYSE | G145: UGI Corp. | H145: UGI Corp
A146: UTL | B146: Unitil Corporation | C146: 4056953 | D146: UTL | E146: UTL-US | F146: NYSE | G146: Unitil Corp. | H146: Unitil Corp
A147: USAC | B147: USA Compression Partners, LP | C147: 4290950 | D147: USAC | E147: USAC-US | F147: NYSE | G147: USA Compression Partners LP | H147: USA Compression Pt
A148: USDP | B148: USD Partners LP | C148: 4557633 | D148: USDP | E148: USDP-US | F148: NYSE | G148: USD Partners LP | H148: USD Partners
A149: VIA | B149: Via Renewables, Inc. | C149: 4065816 | D149: VIA | E149: VIA-US | F149: NASDAQGS | G149: Via Renewables Inc. | H149: Via Renewables Inc | I149: NuDevco Partners, LLC | J149: NuDevco Partners, LLC
A150: VNOM | B150: Viper Energy Partners LP | C150: 4897155 | D150: VNOM | E150: VNOM-US | F150: NASDAQGS | G150: Viper Energy Partners LP | H150: Viper Energy Ptnrs | I150: Diamondback Energy, Inc. | J150: Diamondback Energy, Inc.
A151: VST | B151: Vistra Corp. | C151: 4085953 | D151: VST | E151: VST-US | F151: NYSE | G151: Vistra Corp
A152: WEC | B152: WEC Energy Group, Inc. | C152: 4009725 | D152: WEC | E152: WEC-US | F152: NYSE | G152: WEC Energy Group | H152: WEC Energy Group
A153: WES | B153: Western Midstream Partners, LP | C153: 4344540 | D153: WES | E153: WES-US | F153: NYSE | G153: Western Midstream Partners LP | H153: Western Midstream
A154: XEL | B154: Xcel Energy Inc. | C154: 4025308 | D154: XEL | E154: XEL-US | F154: NASDAQGS | G154: Xcel Energy Inc. | H154: Xcel Energy Inc
A155: AWR | B155: American States Water Company
A156: AWK | B156: American Water Works Company, Inc.
A157: WTR | B157: Aqua America, Inc.
A158: ARTNA | B158: Artesian Resources Corp.
A159: CWT | B159: California Water Service Group
A160: CTWS | B160: Connecticut Water Service, Inc.
A161: CWCO | B161: Consolidated Water Co. Ltd.
A162: MSEX | B162: Middlesex Water Company
A163: SJW | B163: SJW Group
A164: YORW | B164: York Water Company (The)
A165: WTRG | B165: Essential Utilities, Inc.
A166: GWRS | B166: Global Water Resources

Sheet Proxy Group
B1: Kentucky Utilities Company / Louisville Gas & Electric Company | D1: Study Date: | E1: 2025-07-18
B3: =COUNTA(B7:B56) -> 22 | C3: Utilities in original Proxy Group
B4: =COUNT(A7:A56) -> 21 | C4: Utilities in ROE Study proxy Group
B6: Ticker | C6: Company | D6: Number of disqualifying conditions | E6: condition 1 | F6: condition 2 | G6: condition 3 | H6: condition 4 | I6: condition 5 | J6: condition 6 | K6: condition 7 | L6: condition 8 | M6: condition 9 | N6: condition 10
A7: =IF(AND(ISTEXT(B7),D7=0),MAX(A$6:A6)+1,"") -> 1 | B7: ATO | C7: =IF(LEN(B7>0),VLOOKUP(B7,CompanyList,2,FALSE),"") -> Atmos Energy Corporation | D7: =COUNTA(E7:N7) -> 0
A8: =IF(AND(ISTEXT(B8),D8=0),MAX(A$6:A7)+1,"") -> 2 | B8: NJR | C8: New Jersey Resources Corporation | D8: =COUNTA(E8:N8) -> 0
A9: =IF(AND(ISTEXT(B9),D9=0),MAX(A$6:A8)+1,"") -> 3 | B9: NI | C9: NiSource Inc. | D9: 0
A10: =IF(AND(ISTEXT(B10),D10=0),MAX(A$6:A9)+1,"") -> 4 | B10: NWN | C10: Northwest Natural Holding Company | D10: 0
A11: =IF(AND(ISTEXT(B11),D11=0),MAX(A$6:A10)+1,"") -> 5 | B11: OGS | C11: ONE Gas, Inc. | D11: 0
A12: =IF(AND(ISTEXT(B12),D12=0),MAX(A$6:A11)+1,"") -> 6 | B12: SWX | C12: Southwest Gas Holdings, Inc. | D12: 0
A13: =IF(AND(ISTEXT(B13),D13=0),MAX(A$6:A12)+1,"") -> 7 | B13: SR | C13: Spire Inc. | D13: =COUNTA(E13:N13) -> 0
A14: =IF(AND(ISTEXT(B14),D14=0),MAX(A$6:A13)+1,"") -> 8 | B14: LNT | C14: Alliant Energy Corporation | D14: 0
A15: =IF(AND(ISTEXT(B15),D15=0),MAX(A$6:A14)+1,"") -> 9 | B15: AEE | C15: Ameren Corporation | D15: 0
A16: =IF(AND(ISTEXT(B16),D16=0),MAX(A$6:A15)+1,"") -> 10 | B16: AEP | C16: American Electric Power Company, Inc. | D16: 0
A17: =IF(AND(ISTEXT(B17),D17=0),MAX(A$6:A16)+1,"") -> 11 | B17: DUK | C17: Duke Energy Corporation | D17: 0
A18: =IF(AND(ISTEXT(B18),D18=0),MAX(A$6:A17)+1,"") -> 12 | B18: EIX | C18: Edison International | D18: 0
A19: =IF(AND(ISTEXT(B19),D19=0),MAX(A$6:A18)+1,"") -> 13 | B19: ETR | C19: Entergy Corporation | D19: =COUNTA(E19:N19) -> 0
A20: =IF(AND(ISTEXT(B20),D20=0),MAX(A$6:A19)+1,"") -> 14 | B20: EVRG | C20: Evergy, Inc. | D20: 0
A21: =IF(AND(ISTEXT(B21),D21=0),MAX(A$6:A20)+1,"") -> 15 | B21: IDA | C21: IDACORP, Inc. | D21: 0
A22: =IF(AND(ISTEXT(B22),D22=0),MAX(A$6:A21)+1,"") -> 16 | B22: NWE | C22: NorthWestern Corporation | D22: 0
A23: =IF(AND(ISTEXT(B23),D23=0),MAX(A$6:A22)+1,"") -> 17 | B23: OGE | C23: OGE Energy Corp. | D23: 0
A24: =IF(AND(ISTEXT(B24),D24=0),MAX(A$6:A23)+1,"") -> 18 | B24: PNW | C24: Pinnacle West Capital Corporation | D24: 0
A25: =IF(AND(ISTEXT(B25),D25=0),MAX(A$6:A24)+1,"") -> 19 | B25: POR | C25: Portland General Electric Company | D25: 0
A26: =IF(AND(ISTEXT(B26),D26=0),MAX(A$6:A25)+1,"") -> 20 | B26: SO | C26: The Southern Company | D26: 0
A27: =IF(AND(ISTEXT(B27),D27=0),MAX(A$6:A26)+1,"") ->  | B27: TXNM | C27: TXNM Energy | D27: 1 | E27: Being acquired by Blackstone.
A28: =IF(AND(ISTEXT(B28),D28=0),MAX(A$6:A27)+1,"") -> 21 | B28: XEL | C28: Xcel Energy Inc. | D28: 0
A29: =IF(AND(ISTEXT(B29),D29=0),MAX(A$6:A28)+1,"") ->  | D29: 0
A30: =IF(AND(ISTEXT(B30),D30=0),MAX(A$6:A29)+1,"") ->  | D30: 0
A31: =IF(AND(ISTEXT(B31),D31=0),MAX(A$6:A30)+1,"") ->  | D31: 0
A32: =IF(AND(ISTEXT(B32),D32=0),MAX(A$6:A31)+1,"") ->  | D32: 0
A33: =IF(AND(ISTEXT(B33),D33=0),MAX(A$6:A32)+1,"") ->  | D33: 0
A34: =IF(AND(ISTEXT(B34),D34=0),MAX(A$6:A33)+1,"") ->  | D34: 0
A35: =IF(AND(ISTEXT(B35),D35=0),MAX(A$6:A34)+1,"") ->  | D35: 0
A36: =IF(AND(ISTEXT(B36),D36=0),MAX(A$6:A35)+1,"") ->  | D36: 0
A37: =IF(AND(ISTEXT(B37),D37=0),MAX(A$6:A36)+1,"") ->  | D37: 0
A38: =IF(AND(ISTEXT(B38),D38=0),MAX(A$6:A37)+1,"") ->  | D38: 0
A39: =IF(AND(ISTEXT(B39),D39=0),MAX(A$6:A38)+1,"") ->  | D39: 0
A40: =IF(AND(ISTEXT(B40),D40=0),MAX(A$6:A39)+1,"") ->  | D40: 0
A41: =IF(AND(ISTEXT(B41),D41=0),MAX(A$6:A40)+1,"") ->  | D41: 0
A42: =IF(AND(ISTEXT(B42),D42=0),MAX(A$6:A41)+1,"") ->  | D42: 0
A43: =IF(AND(ISTEXT(B43),D43=0),MAX(A$6:A42)+1,"") ->  | D43: 0
A44: =IF(AND(ISTEXT(B44),D44=0),MAX(A$6:A43)+1,"") ->  | D44: 0
A45: =IF(AND(ISTEXT(B45),D45=0),MAX(A$6:A44)+1,"") ->  | D45: 0
A46: =IF(AND(ISTEXT(B46),D46=0),MAX(A$6:A45)+1,"") ->  | D46: 0
A47: =IF(AND(ISTEXT(B47),D47=0),MAX(A$6:A46)+1,"") ->  | D47: 0
A48: =IF(AND(ISTEXT(B48),D48=0),MAX(A$6:A47)+1,"") ->  | D48: 0
A49: =IF(AND(ISTEXT(B49),D49=0),MAX(A$6:A48)+1,"") ->  | D49: 0
A50: =IF(AND(ISTEXT(B50),D50=0),MAX(A$6:A49)+1,"") ->  | D50: 0
A51: =IF(AND(ISTEXT(B51),D51=0),MAX(A$6:A50)+1,"") ->  | D51: 0
A52: =IF(AND(ISTEXT(B52),D52=0),MAX(A$6:A51)+1,"") ->  | D52: 0
A53: =IF(AND(ISTEXT(B53),D53=0),MAX(A$6:A52)+1,"") ->  | D53: 0
A54: =IF(AND(ISTEXT(B54),D54=0),MAX(A$6:A53)+1,"") -> 
A55: =IF(AND(ISTEXT(B55),D55=0),MAX(A$6:A54)+1,"") -> 
A56: =IF(AND(ISTEXT(B56),D56=0),MAX(A$6:A55)+1,"") -> 

Sheet MPG-3
A1: =Utility -> Kentucky Utilities Company / Louisville Gas & Electric Company
A5: Proxy Group
F9: Credit Ratings1 | I9: Common Equity Ratios
A10: Line | B10: =MAX('Proxy Group'!A6:A85) -> 21 | D10: Company | F10: S&P | G10: Moody's | I10: MI1 | J10: Value Line2 | P10: ='MI Data (WP)'!E1 -> 2025-07-18
F11: -1 | G11: -2 | I11: -3 | J11: -4
N12: S&P | O12: Moody's
A13: =IF(A12<$B$10,A12+1,"") -> 1 | B13: =IF($A13="","",VLOOKUP($A13,'Proxy Group'!$A$7:$C$57,2,0)) -> ATO | D13: =IF($A13="","",VLOOKUP($A13,'Proxy Group'!$A$7:$C$57,3,0)) -> Atmos Energy Corporation | F13: =IF($B13="","",VLOOKUP($B13,SNLLU,8,0)) -> A- | G13: =IF($B13="","",VLOOKUP($B13,SNLLU,9,0)) -> A2 | I13: =IF($B13="","",VLOOKUP($B13,SNLLU,7,0)/100) -> 0.5992872143 | J13: =IF($B13="","",VLOOKUP($B13,VLLU,6,FALSE)) -> 0.607 | N13: =IF(F13="","",IF(F13="N/A",F13,VLOOKUP(F13,'Credit Ratings (WP)'!$C$4:$D$24,2,))) -> 15 | O13: =IF(G13="","",IF(G13="N/A",G13,VLOOKUP(G13,'Credit Ratings (WP)'!$E$4:$F$24,2,))) -> 16
A14: =IF(A13<$B$10,A13+1,"") -> 2 | B14: =IF($A14="","",VLOOKUP($A14,'Proxy Group'!$A$7:$C$57,2,0)) -> NJR | D14: =IF($A14="","",VLOOKUP($A14,'Proxy Group'!$A$7:$C$57,3,0)) -> New Jersey Resources Corporation | F14: =IF($B14="","",VLOOKUP($B14,SNLLU,8,0)) -> N/A | G14: A1 | I14: 0.3843594742 | J14: 0.433 | N14: =IF(F14="","",IF(F14="N/A",F14,VLOOKUP(F14,'Credit Ratings (WP)'!$C$4:$D$24,2,))) -> N/A | O14: =IF(G14="","",IF(G14="N/A",G14,VLOOKUP(G14,'Credit Ratings (WP)'!$E$4:$F$24,2,))) -> 17
A15: =IF(A14<$B$10,A14+1,"") -> 3 | B15: =IF($A15="","",VLOOKUP($A15,'Proxy Group'!$A$7:$C$57,2,0)) -> NI | D15: =IF($A15="","",VLOOKUP($A15,'Proxy Group'!$A$7:$C$57,3,0)) -> NiSource Inc. | F15: BBB+ | G15: Baa2 | I15: 0.3522158996 | J15: 0.46 | N15: =IF(F15="","",IF(F15="N/A",F15,VLOOKUP(F15,'Credit Ratings (WP)'!$C$4:$D$24,2,))) -> 14 | O15: =IF(G15="","",IF(G15="N/A",G15,VLOOKUP(G15,'Credit Ratings (WP)'!$E$4:$F$24,2,))) -> 13
A16: =IF(A15<$B$10,A15+1,"") -> 4 | B16: =IF($A16="","",VLOOKUP($A16,'Proxy Group'!$A$7:$C$57,2,0)) -> NWN | D16: =IF($A16="","",VLOOKUP($A16,'Proxy Group'!$A$7:$C$57,3,0)) -> Northwest Natural Holding Company | F16: A- | G16: N/A | I16: 0.4143627835 | J16: 0.452 | N16: =IF(F16="","",IF(F16="N/A",F16,VLOOKUP(F16,'Credit Ratings (WP)'!$C$4:$D$24,2,))) -> 15 | O16: =IF(G16="","",IF(G16="N/A",G16,VLOOKUP(G16,'Credit Ratings (WP)'!$E$4:$F$24,2,))) -> N/A
A17: =IF(A16<$B$10,A16+1,"") -> 5 | B17: =IF($A17="","",VLOOKUP($A17,'Proxy Group'!$A$7:$C$57,2,0)) -> OGS | D17: =IF($A17="","",VLOOKUP($A17,'Proxy Group'!$A$7:$C$57,3,0)) -> ONE Gas, Inc. | F17: A- | G17: A3 | I17: 0.4813249728 | J17: 0.565 | N17: =IF(F17="","",IF(F17="N/A",F17,VLOOKUP(F17,'Credit Ratings (WP)'!$C$4:$D$24,2,))) -> 15 | O17: =IF(G17="","",IF(G17="N/A",G17,VLOOKUP(G17,'Credit Ratings (WP)'!$E$4:$F$24,2,))) -> 15
A18: 6 | B18: =IF($A18="","",VLOOKUP($A18,'Proxy Group'!$A$7:$C$57,2,0)) -> SWX | D18: =IF($A18="","",VLOOKUP($A18,'Proxy Group'!$A$7:$C$57,3,0)) -> Southwest Gas Holdings, Inc. | F18: BBB- | G18: Baa2 | I18: 0.3945172904 | J18: 0.459 | N18: =IF(F18="","",IF(F18="N/A",F18,VLOOKUP(F18,'Credit Ratings (WP)'!$C$4:$D$24,2,))) -> 12 | O18: =IF(G18="","",IF(G18="N/A",G18,VLOOKUP(G18,'Credit Ratings (WP)'!$E$4:$F$24,2,))) -> 13
A19: 7 | B19: =IF($A19="","",VLOOKUP($A19,'Proxy Group'!$A$7:$C$57,2,0)) -> SR | D19: =IF($A19="","",VLOOKUP($A19,'Proxy Group'!$A$7:$C$57,3,0)) -> Spire Inc. | F19: BBB+ | G19: Baa2 | I19: 0.3736506747 | J19: 0.431 | N19: =IF(F19="","",IF(F19="N/A",F19,VLOOKUP(F19,'Credit Ratings (WP)'!$C$4:$D$24,2,))) -> 14 | O19: =IF(G19="","",IF(G19="N/A",G19,VLOOKUP(G19,'Credit Ratings (WP)'!$E$4:$F$24,2,))) -> 13
A20: 8 | B20: =IF($A20="","",VLOOKUP($A20,'Proxy Group'!$A$7:$C$57,2,0)) -> LNT | D20: =IF($A20="","",VLOOKUP($A20,'Proxy Group'!$A$7:$C$57,3,0)) -> Alliant Energy Corporation | F20: BBB+ | G20: Baa2 | I20: 0.3974802792 | J20: 0.447 | N20: =IF(F20="","",IF(F20="N/A",F20,VLOOKUP(F20,'Credit Ratings (WP)'!$C$4:$D$24,2,))) -> 14 | O20: =IF(G20="","",IF(G20="N/A",G20,VLOOKUP(G20,'Credit Ratings (WP)'!$E$4:$F$24,2,))) -> 13
A21: 9 | B21: =IF($A21="","",VLOOKUP($A21,'Proxy Group'!$A$7:$C$57,2,0)) -> AEE | D21: =IF($A21="","",VLOOKUP($A21,'Proxy Group'!$A$7:$C$57,3,0)) -> Ameren Corporation | F21: BBB+ | G21: Baa1 | I21: 0.3903083417 | J21: 0.453 | N21: =IF(F21="","",IF(F21="N/A",F21,VLOOKUP(F21,'Credit Ratings (WP)'!$C$4:$D$24,2,))) -> 14 | O21: =IF(G21="","",IF(G21="N/A",G21,VLOOKUP(G21,'Credit Ratings (WP)'!$E$4:$F$24,2,))) -> 14
A22: 10 | B22: =IF($A22="","",VLOOKUP($A22,'Proxy Group'!$A$7:$C$57,2,0)) -> AEP | D22: =IF($A22="","",VLOOKUP($A22,'Proxy Group'!$A$7:$C$57,3,0)) -> American Electric Power Company, Inc. | F22: BBB+ | G22: Baa2 | I22: 0.3693446086 | J22: 0.424 | N22: =IF(F22="","",IF(F22="N/A",F22,VLOOKUP(F22,'Credit Ratings (WP)'!$C$4:$D$24,2,))) -> 14 | O22: =IF(G22="","",IF(G22="N/A",G22,VLOOKUP(G22,'Credit Ratings (WP)'!$E$4:$F$24,2,))) -> 13
A23: 11 | B23: =IF($A23="","",VLOOKUP($A23,'Proxy Group'!$A$7:$C$57,2,0)) -> DUK | D23: =IF($A23="","",VLOOKUP($A23,'Proxy Group'!$A$7:$C$57,3,0)) -> Duke Energy Corporation | F23: BBB+ | G23: Baa2 | I23: 0.3593939749 | J23: 0.389 | N23: =IF(F23="","",IF(F23="N/A",F23,VLOOKUP(F23,'Credit Ratings (WP)'!$C$4:$D$24,2,))) -> 14 | O23: =IF(G23="","",IF(G23="N/A",G23,VLOOKUP(G23,'Credit Ratings (WP)'!$E$4:$F$24,2,))) -> 13
A24: 12 | B24: =IF($A24="","",VLOOKUP($A24,'Proxy Group'!$A$7:$C$57,2,0)) -> EIX | D24: =IF($A24="","",VLOOKUP($A24,'Proxy Group'!$A$7:$C$57,3,0)) -> Edison International | F24: BBB | G24: Baa2 | I24: 0.2508062918 | J24: 0.271 | N24: =IF(F24="","",IF(F24="N/A",F24,VLOOKUP(F24,'Credit Ratings (WP)'!$C$4:$D$24,2,))) -> 13 | O24: =IF(G24="","",IF(G24="N/A",G24,VLOOKUP(G24,'Credit Ratings (WP)'!$E$4:$F$24,2,))) -> 13
A25: 13 | B25: =IF($A25="","",VLOOKUP($A25,'Proxy Group'!$A$7:$C$57,2,0)) -> ETR | D25: =IF($A25="","",VLOOKUP($A25,'Proxy Group'!$A$7:$C$57,3,0)) -> Entergy Corporation | F25: BBB+ | G25: Baa2 | I25: 0.3373324001 | J25: 0.36 | N25: =IF(F25="","",IF(F25="N/A",F25,VLOOKUP(F25,'Credit Ratings (WP)'!$C$4:$D$24,2,))) -> 14 | O25: =IF(G25="","",IF(G25="N/A",G25,VLOOKUP(G25,'Credit Ratings (WP)'!$E$4:$F$24,2,))) -> 13
A26: 14 | B26: =IF($A26="","",VLOOKUP($A26,'Proxy Group'!$A$7:$C$57,2,0)) -> EVRG | D26: =IF($A26="","",VLOOKUP($A26,'Proxy Group'!$A$7:$C$57,3,0)) -> Evergy, Inc. | F26: BBB+ | G26: Baa2 | I26: 0.4112837589 | J26: 0.485 | N26: =IF(F26="","",IF(F26="N/A",F26,VLOOKUP(F26,'Credit Ratings (WP)'!$C$4:$D$24,2,))) -> 14 | O26: =IF(G26="","",IF(G26="N/A",G26,VLOOKUP(G26,'Credit Ratings (WP)'!$E$4:$F$24,2,))) -> 13
A27: 15 | B27: =IF($A27="","",VLOOKUP($A27,'Proxy Group'!$A$7:$C$57,2,0)) -> IDA | D27: =IF($A27="","",VLOOKUP($A27,'Proxy Group'!$A$7:$C$57,3,0)) -> IDACORP, Inc. | F27: BBB | G27: Baa2 | I27: 0.5195185551 | J27: 0.522 | N27: =IF(F27="","",IF(F27="N/A",F27,VLOOKUP(F27,'Credit Ratings (WP)'!$C$4:$D$24,2,))) -> 13 | O27: =IF(G27="","",IF(G27="N/A",G27,VLOOKUP(G27,'Credit Ratings (WP)'!$E$4:$F$24,2,))) -> 13
A28: 16 | B28: =IF($A28="","",VLOOKUP($A28,'Proxy Group'!$A$7:$C$57,2,0)) -> NWE | D28: =IF($A28="","",VLOOKUP($A28,'Proxy Group'!$A$7:$C$57,3,0)) -> NorthWestern Corporation | F28: BBB | G28: Baa2 | I28: 0.4796042732 | J28: 0.514 | N28: =IF(F28="","",IF(F28="N/A",F28,VLOOKUP(F28,'Credit Ratings (WP)'!$C$4:$D$24,2,))) -> 13 | O28: =IF(G28="","",IF(G28="N/A",G28,VLOOKUP(G28,'Credit Ratings (WP)'!$E$4:$F$24,2,))) -> 13
A29: 17 | B29: =IF($A29="","",VLOOKUP($A29,'Proxy Group'!$A$7:$C$57,2,0)) -> OGE | D29: =IF($A29="","",VLOOKUP($A29,'Proxy Group'!$A$7:$C$57,3,0)) -> OGE Energy Corp. | F29: BBB+ | G29: Baa1 | I29: 0.4551597654 | J29: 0.492 | N29: =IF(F29="","",IF(F29="N/A",F29,VLOOKUP(F29,'Credit Ratings (WP)'!$C$4:$D$24,2,))) -> 14 | O29: =IF(G29="","",IF(G29="N/A",G29,VLOOKUP(G29,'Credit Ratings (WP)'!$E$4:$F$24,2,))) -> 14
A30: 18 | B30: =IF($A30="","",VLOOKUP($A30,'Proxy Group'!$A$7:$C$57,2,0)) -> PNW | D30: =IF($A30="","",VLOOKUP($A30,'Proxy Group'!$A$7:$C$57,3,0)) -> Pinnacle West Capital Corporation | F30: BBB+ | G30: Baa2 | I30: 0.3772131631 | J30: 0.456 | N30: =IF(F30="","",IF(F30="N/A",F30,VLOOKUP(F30,'Credit Ratings (WP)'!$C$4:$D$24,2,))) -> 14 | O30: =IF(G30="","",IF(G30="N/A",G30,VLOOKUP(G30,'Credit Ratings (WP)'!$E$4:$F$24,2,))) -> 13
A31: 19 | B31: =IF($A31="","",VLOOKUP($A31,'Proxy Group'!$A$7:$C$57,2,0)) -> POR | D31: =IF($A31="","",VLOOKUP($A31,'Proxy Group'!$A$7:$C$57,3,0)) -> Portland General Electric Company | F31: BBB+ | G31: A3 | I31: 0.4247173402 | J31: 0.45 | N31: =IF(F31="","",IF(F31="N/A",F31,VLOOKUP(F31,'Credit Ratings (WP)'!$C$4:$D$24,2,))) -> 14 | O31: =IF(G31="","",IF(G31="N/A",G31,VLOOKUP(G31,'Credit Ratings (WP)'!$E$4:$F$24,2,))) -> 15
A32: 20 | B32: =IF($A32="","",VLOOKUP($A32,'Proxy Group'!$A$7:$C$57,2,0)) -> SO | D32: =IF($A32="","",VLOOKUP($A32,'Proxy Group'!$A$7:$C$57,3,0)) -> The Southern Company | F32: A- | G32: Baa1 | I32: 0.3225612184 | J32: 0.368 | N32: =IF(F32="","",IF(F32="N/A",F32,VLOOKUP(F32,'Credit Ratings (WP)'!$C$4:$D$24,2,))) -> 15 | O32: =IF(G32="","",IF(G32="N/A",G32,VLOOKUP(G32,'Credit Ratings (WP)'!$E$4:$F$24,2,))) -> 14
A33: 21 | B33: =IF($A33="","",VLOOKUP($A33,'Proxy Group'!$A$7:$C$57,2,0)) -> XEL | D33: =IF($A33="","",VLOOKUP($A33,'Proxy Group'!$A$7:$C$57,3,0)) -> Xcel Energy Inc. | F33: BBB+ | G33: Baa1 | I33: 0.3920710154 | J33: 0.417 | N33: =IF(F33="","",IF(F33="N/A",F33,VLOOKUP(F33,'Credit Ratings (WP)'!$C$4:$D$24,2,))) -> 14 | O33: =IF(G33="","",IF(G33="N/A",G33,VLOOKUP(G33,'Credit Ratings (WP)'!$E$4:$F$24,2,))) -> 14
B34: =IF($A34="","",VLOOKUP($A34,'Proxy Group'!$A$7:$C$57,2,0)) ->  | D34: =IF($A34="","",VLOOKUP($A34,'Proxy Group'!$A$7:$C$57,3,0)) ->  | N34: =IF(F34="","",IF(F34="N/A",F34,VLOOKUP(F34,'Credit Ratings (WP)'!$C$4:$D$24,2,))) ->  | O34: =IF(G34="","",IF(G34="N/A",G34,VLOOKUP(G34,'Credit Ratings (WP)'!$E$4:$F$24,2,))) -> 
B35: =IF($A35="","",VLOOKUP($A35,'Proxy Group'!$A$7:$C$57,2,0)) ->  | D35: =IF($A35="","",VLOOKUP($A35,'Proxy Group'!$A$7:$C$57,3,0)) ->  | N35: =IF(F35="","",IF(F35="N/A",F35,VLOOKUP(F35,'Credit Ratings (WP)'!$C$4:$D$24,2,))) ->  | O35: =IF(G35="","",IF(G35="N/A",G35,VLOOKUP(G35,'Credit Ratings (WP)'!$E$4:$F$24,2,))) -> 
B36: =IF($A36="","",VLOOKUP($A36,'Proxy Group'!$A$7:$C$57,2,0)) ->  | D36: =IF($A36="","",VLOOKUP($A36,'Proxy Group'!$A$7:$C$57,3,0)) ->  | N36: =IF(F36="","",IF(F36="N/A",F36,VLOOKUP(F36,'Credit Ratings (WP)'!$C$4:$D$24,2,))) ->  | O36: =IF(G36="","",IF(G36="N/A",G36,VLOOKUP(G36,'Credit Ratings (WP)'!$E$4:$F$24,2,))) -> 
B37: =IF($A37="","",VLOOKUP($A37,'Proxy Group'!$A$7:$C$57,2,0)) ->  | D37: =IF($A37="","",VLOOKUP($A37,'Proxy Group'!$A$7:$C$57,3,0)) ->  | N37: =IF(F37="","",IF(F37="N/A",F37,VLOOKUP(F37,'Credit Ratings (WP)'!$C$4:$D$24,2,))) ->  | O37: =IF(G37="","",IF(G37="N/A",G37,VLOOKUP(G37,'Credit Ratings (WP)'!$E$4:$F$24,2,))) -> 
B38: =IF($A38="","",VLOOKUP($A38,'Proxy Group'!$A$7:$C$57,2,0)) ->  | D38: =IF($A38="","",VLOOKUP($A38,'Proxy Group'!$A$7:$C$57,3,0)) ->  | N38: =IF(F38="","",IF(F38="N/A",F38,VLOOKUP(F38,'Credit Ratings (WP)'!$C$4:$D$24,2,))) ->  | O38: =IF(G38="","",IF(G38="N/A",G38,VLOOKUP(G38,'Credit Ratings (WP)'!$E$4:$F$24,2,))) -> 
B39: =IF($A39="","",VLOOKUP($A39,'Proxy Group'!$A$7:$C$57,2,0)) ->  | D39: =IF($A39="","",VLOOKUP($A39,'Proxy Group'!$A$7:$C$57,3,0)) ->  | N39: =IF(F39="","",IF(F39="N/A",F39,VLOOKUP(F39,'Credit Ratings (WP)'!$C$4:$D$24,2,))) ->  | O39: =IF(G39="","",IF(G39="N/A",G39,VLOOKUP(G39,'Credit Ratings (WP)'!$E$4:$F$24,2,))) -> 
B40: =IF($A40="","",VLOOKUP($A40,'Proxy Group'!$A$7:$C$57,2,0)) ->  | D40: =IF($A40="","",VLOOKUP($A40,'Proxy Group'!$A$7:$C$57,3,0)) ->  | N40: =IF(F40="","",IF(F40="N/A",F40,VLOOKUP(F40,'Credit Ratings (WP)'!$C$4:$D$24,2,))) ->  | O40: =IF(G40="","",IF(G40="N/A",G40,VLOOKUP(G40,'Credit Ratings (WP)'!$E$4:$F$24,2,))) -> 
B41: =IF($A41="","",VLOOKUP($A41,'Proxy Group'!$A$7:$C$57,2,0)) ->  | D41: =IF($A41="","",VLOOKUP($A41,'Proxy Group'!$A$7:$C$57,3,0)) ->  | N41: =IF(F41="","",IF(F41="N/A",F41,VLOOKUP(F41,'Credit Ratings (WP)'!$C$4:$D$24,2,))) ->  | O41: =IF(G41="","",IF(G41="N/A",G41,VLOOKUP(G41,'Credit Ratings (WP)'!$E$4:$F$24,2,))) -> 
B42: =IF($A42="","",VLOOKUP($A42,'Proxy Group'!$A$7:$C$57,2,0)) ->  | D42: =IF($A42="","",VLOOKUP($A42,'Proxy Group'!$A$7:$C$57,3,0)) ->  | N42: =IF(F42="","",IF(F42="N/A",F42,VLOOKUP(F42,'Credit Ratings (WP)'!$C$4:$D$24,2,))) ->  | O42: =IF(G42="","",IF(G42="N/A",G42,VLOOKUP(G42,'Credit Ratings (WP)'!$E$4:$F$24,2,))) -> 
B43: =IF($A43="","",VLOOKUP($A43,'Proxy Group'!$A$7:$C$57,2,0)) ->  | D43: =IF($A43="","",VLOOKUP($A43,'Proxy Group'!$A$7:$C$57,3,0)) ->  | N43: =IF(F43="","",IF(F43="N/A",F43,VLOOKUP(F43,'Credit Ratings (WP)'!$C$4:$D$24,2,))) ->  | O43: =IF(G43="","",IF(G43="N/A",G43,VLOOKUP(G43,'Credit Ratings (WP)'!$E$4:$F$24,2,))) -> 
B44: =IF($A44="","",VLOOKUP($A44,'Proxy Group'!$A$7:$C$57,2,0)) ->  | D44: =IF($A44="","",VLOOKUP($A44,'Proxy Group'!$A$7:$C$57,3,0)) ->  | N44: =IF(F44="","",IF(F44="N/A",F44,VLOOKUP(F44,'Credit Ratings (WP)'!$C$4:$D$24,2,))) ->  | O44: =IF(G44="","",IF(G44="N/A",G44,VLOOKUP(G44,'Credit Ratings (WP)'!$E$4:$F$24,2,))) -> 
B45: =IF($A45="","",VLOOKUP($A45,'Proxy Group'!$A$7:$C$57,2,0)) ->  | D45: =IF($A45="","",VLOOKUP($A45,'Proxy Group'!$A$7:$C$57,3,0)) ->  | F45: =IF($B45="","",VLOOKUP($B45,SNLLU,8,0)) ->  | G45: =IF($B45="","",VLOOKUP($B45,SNLLU,9,0)) ->  | I45: =IF($B45="","",VLOOKUP($B45,SNLLU,7,0)/100) ->  | J45: =IF($B45="","",VLOOKUP($B45,VLLU,6,FALSE)) ->  | N45: =IF(F45="","",IF(F45="N/A",F45,VLOOKUP(F45,'Credit Ratings (WP)'!$C$4:$D$24,2,))) ->  | O45: =IF(G45="","",IF(G45="N/A",G45,VLOOKUP(G45,'Credit Ratings (WP)'!$E$4:$F$24,2,))) -> 
B46: =IF($A46="","",VLOOKUP($A46,'Proxy Group'!$A$7:$C$57,2,0)) ->  | D46: =IF($A46="","",VLOOKUP($A46,'Proxy Group'!$A$7:$C$57,3,0)) ->  | N46: =IF(F46="","",IF(F46="N/A",F46,VLOOKUP(F46,'Credit Ratings (WP)'!$C$4:$D$24,2,))) ->  | O46: =IF(G46="","",IF(G46="N/A",G46,VLOOKUP(G46,'Credit Ratings (WP)'!$E$4:$F$24,2,))) -> 
B47: =IF($A47="","",VLOOKUP($A47,'Proxy Group'!$A$7:$C$57,2,0)) ->  | D47: =IF($A47="","",VLOOKUP($A47,'Proxy Group'!$A$7:$C$57,3,0)) -> 
B48: =IF($A48="","",VLOOKUP($A48,'Proxy Group'!$A$7:$C$57,2,0)) ->  | D48: =IF($A48="","",VLOOKUP($A48,'Proxy Group'!$A$7:$C$57,3,0)) -> 
B49: =IF($A49="","",VLOOKUP($A49,'Proxy Group'!$A$7:$C$57,2,0)) ->  | D49: =IF($A49="","",VLOOKUP($A49,'Proxy Group'!$A$7:$C$57,3,0)) -> 
B50: =IF($A50="","",VLOOKUP($A50,'Proxy Group'!$A$7:$C$57,2,0)) ->  | D50: =IF($A50="","",VLOOKUP($A50,'Proxy Group'!$A$7:$C$57,3,0)) -> 
B51: =IF($A51="","",VLOOKUP($A51,'Proxy Group'!$A$7:$C$57,2,0)) ->  | D51: =IF($A51="","",VLOOKUP($A51,'Proxy Group'!$A$7:$C$57,3,0)) -> 
B52: =IF($A52="","",VLOOKUP($A52,'Proxy Group'!$A$7:$C$57,2,0)) ->  | D52: =IF($A52="","",VLOOKUP($A52,'Proxy Group'!$A$7:$C$57,3,0)) -> 
B53: =IF($A53="","",VLOOKUP($A53,'Proxy Group'!$A$7:$C$57,2,0)) ->  | D53: =IF($A53="","",VLOOKUP($A53,'Proxy Group'!$A$7:$C$57,3,0)) -> 
B54: =IF($A54="","",VLOOKUP($A54,'Proxy Group'!$A$7:$C$57,2,0)) ->  | D54: =IF($A54="","",VLOOKUP($A54,'Proxy Group'!$A$7:$C$57,3,0)) -> 
B55: =IF($A55="","",VLOOKUP($A55,'Proxy Group'!$A$7:$C$57,2,0)) ->  | D55: =IF($A55="","",VLOOKUP($A55,'Proxy Group'!$A$7:$C$57,3,0)) -> 
B56: =IF($A56="","",VLOOKUP($A56,'Proxy Group'!$A$7:$C$57,2,0)) ->  | D56: =IF($A56="","",VLOOKUP($A56,'Proxy Group'!$A$7:$C$57,3,0)) -> 
B57: =IF($A57="","",VLOOKUP($A57,'Proxy Group'!$A$7:$C$57,2,0)) ->  | D57: =IF($A57="","",VLOOKUP($A57,'Proxy Group'!$A$7:$C$57,3,0)) -> 
B58: =IF($A58="","",VLOOKUP($A58,'Proxy Group'!$A$7:$C$57,2,0)) ->  | D58: =IF($A58="","",VLOOKUP($A58,'Proxy Group'!$A$7:$C$57,3,0)) -> 
B59: =IF($A59="","",VLOOKUP($A59,'Proxy Group'!$A$7:$C$57,2,0)) ->  | D59: =IF($A59="","",VLOOKUP($A59,'Proxy Group'!$A$7:$C$57,3,0)) -> 
A60: =IF(A59<$B$10,A59+1,"") ->  | B60: =IF($A60="","",VLOOKUP($A60,'Proxy Group'!$A$7:$C$57,2,0)) ->  | D60: =IF($A60="","",VLOOKUP($A60,'Proxy Group'!$A$7:$C$57,3,0)) -> 
A61: =IF(A60<$B$10,A60+1,"") ->  | B61: =IF($A61="","",VLOOKUP($A61,'Proxy Group'!$A$7:$C$57,2,0)) ->  | D61: =IF($A61="","",VLOOKUP($A61,'Proxy Group'!$A$7:$C$57,3,0)) -> 
A62: =IF(A61<$B$10,A61+1,"") ->  | B62: =IF($A62="","",VLOOKUP($A62,'Proxy Group'!$A$7:$C$57,2,0)) ->  | D62: =IF($A62="","",VLOOKUP($A62,'Proxy Group'!$A$7:$C$57,3,0)) -> 
A64: =MAX($A$13:$A63)+1 -> 22 | D64: Average Gas | F64: =VLOOKUP(N64,'Credit Ratings (WP)'!$B$4:$C$24,2,) -> BBB+ | G64: =VLOOKUP(O64,'Credit Ratings (WP)'!$D$4:$E$24,2,) -> A3 | I64: =AVERAGE(I13:I19) -> 0.4285311871 | J64: =AVERAGE(J13:J19) -> 0.4867142857 | N64: =ROUND(AVERAGEIF(N13:N19,">0"),0) -> 14 | O64: =ROUND(AVERAGEIF(O13:O19,">0"),0) -> 15
A66: =MAX($A$13:$A65)+1 -> 23 | D66: Average Electric | F66: =VLOOKUP(N66,'Credit Ratings (WP)'!$B$4:$C$24,2,) -> BBB+ | G66: =VLOOKUP(O66,'Credit Ratings (WP)'!$D$4:$E$24,2,) -> Baa2 | I66: =AVERAGE(I20:I61) -> 0.3919139276 | J66: =AVERAGE(J20:J61) -> 0.432 | N66: =ROUND(AVERAGEIF(N20:N61,">0"),0) -> 14 | O66: =ROUND(AVERAGEIF(O20:O61,">0"),0) -> 13
A68: =MAX($A$13:$A67)+1 -> 24 | D68: Average Combined | F68: =VLOOKUP(N68,'Credit Ratings (WP)'!$B$4:$C$24,2,) -> BBB+ | G68: =VLOOKUP(O68,'Credit Ratings (WP)'!$D$4:$E$24,2,) -> Baa1 | I68: =AVERAGE(I13:I63) -> 0.4041196807 | J68: =AVERAGE(J13:J63) -> 0.4502380952 | N68: =ROUND(AVERAGEIF(N13:N63,">0"),0) -> 14 | O68: =ROUND(AVERAGEIF(O13:O63,">0"),0) -> 14
A70: =IF(D70=0,"N/A",MAX($A$13:A69)+1) -> 25 | D70: KU/LG&E | F70: A-3 | G70: A33 | J70: 52.9%4
C73: Sources:
C74: =+A73+1 -> 1 | D74: ="S&P Global Market Intelligence, Downloaded on "& TEXT($P$10,"mmmm d, yyyy")&"." -> S&P Global Market Intelligence, Downloaded on July 18, 2025.
C75: =+C74+1 -> 2 | D75: The Value Line Investment Survey, May 9, June 6, and July 18, 2025.
C76: =+C75+1 -> 3 | D76: S&P Capital IQ.
C77: 4 | D77: Direct Testimony of Dylan W. D’Ascendis, page 16.

Sheet MPG-4
A1: =Utility -> Kentucky Utilities Company / Louisville Gas & Electric Company
A5: Consensus Analysts' Growth Rates
F8: Zacks | I8: MI | L8: I/B/E/S | O8: Average of
F9: Estimated | G9: Number of | I9: Estimated | J9: Number of | L9: Estimated | M9: Number of | O9: Growth
A10: Line | D10: Company | F10: Growth %1 | G10: Estimates | I10: Growth %2 | J10: Estimates | L10: Growth %3 | M10: Estimates | O10: Rates | T10: ='Growth Rate LU (WP)'!A1 -> 2025-07-18
F11: -1 | G11: -2 | I11: -3 | J11: -4 | L11: -5 | M11: -6 | O11: -7
S12: Zacks | T12: S&P | U12: I/B/ES
A13: ='MPG-3'!A13 -> 1 | B13: ='MPG-3'!B13 -> ATO | D13: ='MPG-3'!D13 -> Atmos Energy Corporation | F13: =IF($B13="","",VLOOKUP($B13,GRLU,5,FALSE)) -> 0.0719 | G13: =IF($A13="","","N/A") -> N/A | I13: =IF($B13="","",VLOOKUP($B13,GRLU,8,FALSE)) -> 0.0708385 | J13: =IF($B13="","",VLOOKUP($B13,GRLU,9,FALSE)) -> 2 | L13: =IF($B13="","",VLOOKUP($B13,GRLU,11,FALSE)) -> 0.073 | M13: =IF($A13="","","N/A") -> N/A | O13: =IF(B13="","",AVERAGEIF(S13:U13,">0")) -> 0.07191283333 | S13: =+F13 -> 0.0719 | T13: =+I13 -> 0.0708385 | U13: =+L13 -> 0.073
A14: ='MPG-3'!A14 -> 2 | B14: ='MPG-3'!B14 -> NJR | D14: ='MPG-3'!D14 -> New Jersey Resources Corporation | F14: N/A | G14: =IF($A14="","","N/A") -> N/A | I14: 0.079 | J14: 2 | L14: N/A | M14: =IF($A14="","","N/A") -> N/A | O14: =IF(B14="","",AVERAGEIF(S14:U14,">0")) -> 0.079 | S14: =+F14 -> N/A | T14: =+I14 -> 0.079 | U14: =+L14 -> N/A
A15: ='MPG-3'!A15 -> 3 | B15: ='MPG-3'!B15 -> NI | D15: ='MPG-3'!D15 -> NiSource Inc. | F15: 0.0788 | G15: N/A | I15: 0.0795843 | J15: 4 | L15: 0.077 | M15: N/A | O15: 0.07846143333 | S15: 0.0788 | T15: 0.0795843 | U15: 0.077
A16: ='MPG-3'!A16 -> 4 | B16: ='MPG-3'!B16 -> NWN | D16: ='MPG-3'!D16 -> Northwest Natural Holding Company | F16: N/A | G16: N/A | I16: 0.0575 | J16: 2 | L16: N/A | M16: N/A | O16: 0.0575 | S16: N/A | T16: 0.0575 | U16: N/A
A17: ='MPG-3'!A17 -> 5 | B17: ='MPG-3'!B17 -> OGS | D17: ='MPG-3'!D17 -> ONE Gas, Inc. | F17: 0.0556 | G17: N/A | I17: 0.0583841 | J17: 2 | L17: N/A | M17: N/A | O17: 0.05699205 | S17: 0.0556 | T17: 0.0583841 | U17: N/A
A18: ='MPG-3'!A18 -> 6 | B18: ='MPG-3'!B18 -> SWX | D18: ='MPG-3'!D18 -> Southwest Gas Holdings, Inc. | F18: 0.1051 | G18: N/A | I18: 0.1073557 | J18: 4 | L18: 0.137 | M18: N/A | O18: 0.1164852333 | S18: 0.1051 | T18: 0.1073557 | U18: 0.137
A19: ='MPG-3'!A19 -> 7 | B19: ='MPG-3'!B19 -> SR | D19: ='MPG-3'!D19 -> Spire Inc. | F19: 0.0654 | G19: N/A | I19: 0.0808047 | J19: 1 | L19: N/A | M19: N/A | O19: 0.07310235 | S19: 0.0654 | T19: 0.0808047 | U19: N/A
A20: ='MPG-3'!A20 -> 8 | B20: ='MPG-3'!B20 -> LNT | D20: ='MPG-3'!D20 -> Alliant Energy Corporation | F20: 0.0659 | G20: N/A | I20: 0.0667056 | J20: 4 | L20: 0.0645 | M20: N/A | O20: 0.06570186667 | S20: 0.0659 | T20: 0.0667056 | U20: 0.0645
A21: ='MPG-3'!A21 -> 9 | B21: ='MPG-3'!B21 -> AEE | D21: ='MPG-3'!D21 -> Ameren Corporation | F21: 0.0786 | G21: N/A | I21: 0.0759873 | J21: 6 | L21: 0.089 | M21: N/A | O21: 0.08119576667 | S21: 0.0786 | T21: 0.0759873 | U21: 0.089
A22: ='MPG-3'!A22 -> 10 | B22: ='MPG-3'!B22 -> AEP | D22: ='MPG-3'!D22 -> American Electric Power Company, Inc. | F22: 0.0643 | G22: N/A | I22: 0.068226 | J22: 4 | L22: 0.066 | M22: N/A | O22: 0.06617533333 | S22: 0.0643 | T22: 0.068226 | U22: 0.066
A23: ='MPG-3'!A23 -> 11 | B23: ='MPG-3'!B23 -> DUK | D23: ='MPG-3'!D23 -> Duke Energy Corporation | F23: 0.0633 | G23: N/A | I23: 0.0636042 | J23: 5 | L23: 0.064 | M23: N/A | O23: 0.06363473333 | S23: 0.0633 | T23: 0.0636042 | U23: 0.064
A24: ='MPG-3'!A24 -> 12 | B24: ='MPG-3'!B24 -> EIX | D24: ='MPG-3'!D24 -> Edison International | F24: 0.07 | G24: N/A | I24: 0.0889858 | J24: 2 | L24: 0.104 | M24: N/A | O24: 0.08766193333 | S24: 0.07 | T24: 0.0889858 | U24: 0.104
A25: ='MPG-3'!A25 -> 13 | B25: ='MPG-3'!B25 -> ETR | D25: ='MPG-3'!D25 -> Entergy Corporation | F25: 0.0946 | G25: N/A | I25: 0.08875 | J25: 2 | L25: 0.0965 | M25: N/A | O25: 0.09328333333 | S25: 0.0946 | T25: 0.08875 | U25: 0.0965
A26: ='MPG-3'!A26 -> 14 | B26: ='MPG-3'!B26 -> EVRG | D26: ='MPG-3'!D26 -> Evergy, Inc. | F26: 0.0573 | G26: N/A | I26: 0.0569666 | J26: 5 | L26: 0.06 | M26: N/A | O26: 0.05808886667 | S26: 0.0573 | T26: 0.0569666 | U26: 0.06
A27: ='MPG-3'!A27 -> 15 | B27: ='MPG-3'!B27 -> IDA | D27: ='MPG-3'!D27 -> IDACORP, Inc. | F27: 0.0812 | G27: N/A | I27: 0.0855072 | J27: 3 | L27: 0.079 | M27: N/A | O27: 0.0819024 | S27: 0.0812 | T27: 0.0855072 | U27: 0.079
A28: ='MPG-3'!A28 -> 16 | B28: ='MPG-3'!B28 -> NWE | D28: ='MPG-3'!D28 -> NorthWestern Corporation | F28: 0.0687 | G28: N/A | I28: 0.0573403 | J28: 5 | L28: 0.069 | M28: N/A | O28: 0.06501343333 | S28: 0.0687 | T28: 0.0573403 | U28: 0.069
A29: ='MPG-3'!A29 -> 17 | B29: ='MPG-3'!B29 -> OGE | D29: ='MPG-3'!D29 -> OGE Energy Corp. | F29: 0.0632 | G29: N/A | I29: 0.067378 | J29: 4 | L29: 0.056 | M29: N/A | O29: 0.06219266667 | S29: 0.0632 | T29: 0.067378 | U29: 0.056
A30: ='MPG-3'!A30 -> 18 | B30: ='MPG-3'!B30 -> PNW | D30: ='MPG-3'!D30 -> Pinnacle West Capital Corporation | F30: 0.0212 | G30: N/A | I30: 0.0525442 | J30: 4 | L30: 0.022 | M30: N/A | O30: 0.03191473333 | S30: 0.0212 | T30: 0.0525442 | U30: 0.022
A31: ='MPG-3'!A31 -> 19 | B31: ='MPG-3'!B31 -> POR | D31: ='MPG-3'!D31 -> Portland General Electric Company | F31: 0.0335 | G31: N/A | I31: 0.0494786 | J31: 6 | L31: 0.0345667 | M31: N/A | O31: 0.03918176667 | S31: 0.0335 | T31: 0.0494786 | U31: 0.0345667
A32: ='MPG-3'!A32 -> 20 | B32: ='MPG-3'!B32 -> SO | D32: ='MPG-3'!D32 -> The Southern Company | F32: 0.0677 | G32: N/A | I32: 0.069652 | J32: 3 | L32: 0.069 | M32: N/A | O32: 0.068784 | S32: 0.0677 | T32: 0.069652 | U32: 0.069
A33: ='MPG-3'!A33 -> 21 | B33: ='MPG-3'!B33 -> XEL | D33: ='MPG-3'!D33 -> Xcel Energy Inc. | F33: 0.0752 | G33: N/A | I33: 0.0795405 | J33: 7 | L33: 0.088 | M33: N/A | O33: 0.0809135 | S33: 0.0752 | T33: 0.0795405 | U33: 0.088
A34: ='MPG-3'!A34 ->  | B34: ='MPG-3'!B34 ->  | D34: ='MPG-3'!D34 -> 
A35: ='MPG-3'!A35 ->  | B35: ='MPG-3'!B35 ->  | D35: ='MPG-3'!D35 -> 
A36: ='MPG-3'!A36 ->  | B36: ='MPG-3'!B36 ->  | D36: ='MPG-3'!D36 -> 
A37: ='MPG-3'!A37 ->  | B37: ='MPG-3'!B37 ->  | D37: ='MPG-3'!D37 ->  | O37: =IF(B37="","",AVERAGEIF(S37:U37,">0")) ->  | S37: =+F37 ->  | T37: =+I37 ->  | U37: =+L37 -> 
A38: ='MPG-3'!A38 ->  | B38: ='MPG-3'!B38 ->  | D38: ='MPG-3'!D38 ->  | O38: =IF(B38="","",AVERAGEIF(S38:U38,">0")) ->  | S38: =+F38 ->  | T38: =+I38 ->  | U38: =+L38 -> 
A39: ='MPG-3'!A39 ->  | B39: ='MPG-3'!B39 ->  | D39: ='MPG-3'!D39 ->  | O39: =IF(B39="","",AVERAGEIF(S39:U39,">0")) ->  | S39: =+F39 ->  | T39: =+I39 ->  | U39: =+L39 -> 
A40: ='MPG-3'!A40 ->  | B40: ='MPG-3'!B40 ->  | D40: ='MPG-3'!D40 -> 
A41: ='MPG-3'!A41 ->  | B41: ='MPG-3'!B41 ->  | D41: ='MPG-3'!D41 -> 
A42: ='MPG-3'!A42 ->  | B42: ='MPG-3'!B42 ->  | D42: ='MPG-3'!D42 -> 
A43: ='MPG-3'!A43 ->  | B43: ='MPG-3'!B43 ->  | D43: ='MPG-3'!D43 -> 
A44: ='MPG-3'!A44 ->  | B44: ='MPG-3'!B44 ->  | D44: ='MPG-3'!D44 -> 
A45: ='MPG-3'!A45 ->  | B45: ='MPG-3'!B45 ->  | D45: ='MPG-3'!D45 ->  | F45: =IF($B45="","",VLOOKUP($B45,GRLU,5,FALSE)) ->  | I45: =IF($B45="","",VLOOKUP($B45,GRLU,8,FALSE)) ->  | J45: =IF($B45="","",VLOOKUP($B45,GRLU,9,FALSE)) ->  | L45: =IF($B45="","",VLOOKUP($B45,GRLU,11,FALSE)) -> 
A46: ='MPG-3'!A46 ->  | B46: ='MPG-3'!B46 ->  | D46: ='MPG-3'!D46 -> 
A47: ='MPG-3'!A47 ->  | B47: ='MPG-3'!B47 ->  | D47: ='MPG-3'!D47 -> 
A48: ='MPG-3'!A48 ->  | B48: ='MPG-3'!B48 ->  | D48: ='MPG-3'!D48 -> 
A49: ='MPG-3'!A49 ->  | B49: ='MPG-3'!B49 ->  | D49: ='MPG-3'!D49 -> 
A50: ='MPG-3'!A50 ->  | B50: ='MPG-3'!B50 ->  | D50: ='MPG-3'!D50 -> 
A51: ='MPG-3'!A51 ->  | B51: ='MPG-3'!B51 ->  | D51: ='MPG-3'!D51 -> 
A52: ='MPG-3'!A52 ->  | B52: ='MPG-3'!B52 ->  | D52: ='MPG-3'!D52 -> 
A53: ='MPG-3'!A53 ->  | B53: ='MPG-3'!B53 ->  | D53: ='MPG-3'!D53 -> 
A54: ='MPG-3'!A54 ->  | B54: ='MPG-3'!B54 ->  | D54: ='MPG-3'!D54 -> 
A55: ='MPG-3'!A55 ->  | B55: ='MPG-3'!B55 ->  | D55: ='MPG-3'!D55 -> 
A56: ='MPG-3'!A56 ->  | B56: ='MPG-3'!B56 ->  | D56: ='MPG-3'!D56 -> 
A57: ='MPG-3'!A57 ->  | B57: ='MPG-3'!B57 ->  | D57: ='MPG-3'!D57 -> 
A58: ='MPG-3'!A58 ->  | B58: ='MPG-3'!B58 ->  | D58: ='MPG-3'!D58 -> 
A59: ='MPG-3'!A59 ->  | B59: ='MPG-3'!B59 ->  | D59: ='MPG-3'!D59 -> 
A60: ='MPG-3'!A60 ->  | B60: ='MPG-3'!B60 ->  | D60: ='MPG-3'!D60 -> 
A61: ='MPG-3'!A61 ->  | B61: ='MPG-3'!B61 ->  | D61: ='MPG-3'!D61 -> 
A62: ='MPG-3'!A62 ->  | B62: ='MPG-3'!B62 ->  | D62: ='MPG-3'!D62 ->  | O62: =IF(B62="","",AVERAGEIF(S62:U62,">0")) ->  | S62: =+F62 ->  | T62: =+I62 ->  | U62: =+L62 -> 
A64: =MAX($A$13:$A63)+1 -> 22 | D64: Average Gas | F64: =AVERAGEIF(F13:F19,">0") -> 0.07536 | G64: N/A | I64: =AVERAGEIF(I13:I19,">0") -> 0.07620961429 | J64: =AVERAGEIF(J18:J59,">0") -> 4.0625 | L64: =AVERAGEIF(L13:L19,">0") -> 0.09566666667 | M64: N/A | O64: =AVERAGEIF(O13:O19,">0") -> 0.0762077
A66: =MAX($A$13:$A65)+1 -> 23 | D66: Average Electric | F66: =AVERAGEIF(F20:F61,">0") -> 0.06462142857 | G66: N/A | I66: =AVERAGEIF(I20:I61,">0") -> 0.06933330714 | J66: =AVERAGEIF(J20:J61,">0") -> 4.285714286 | L66: =AVERAGEIF(L20:L61,">0") -> 0.06868333571 | M66: N/A | O66: =AVERAGEIF(O20:O61,">0") -> 0.06754602381
A68: =MAX($A$13:$A67)+1 -> 24 | D68: Average Combined | F68: =AVERAGEIF(F13:F63,">0") -> 0.06744736842 | G68: N/A | I68: =AVERAGEIF(I13:I63,">0") -> 0.07162540952 | J68: =AVERAGEIF(J13:J63,">0") -> 3.666666667 | L68: =AVERAGEIF(L13:L63,">0") -> 0.0734451 | M68: N/A | O68: =AVERAGEIF(O13:O63,">0") -> 0.07043324921
C71: Sources:
C72: =A72+1 -> 1 | D72: ="Zacks, http://www.zacks.com/, downloaded on " & TEXT($T$10,"mmmm d, yyyy") &"." -> Zacks, http://www.zacks.com/, downloaded on July 18, 2025.
C73: =+C72+1 -> 2 | D73: ="S&P Global Market Intelligence, https://platform.mi.spglobal.com, downloaded on " & TEXT($T$10,"mmmm d, yyyy") & "." -> S&P Global Market Intelligence, https://platform.mi.spglobal.com, downloaded on July 18, 2025.
C74: =+C73+1 -> 3 | D74: ="LSEG Workspace, https://www.lseg.com/en/data-analytics/products/workspace, downloaded on "&TEXT('Growth Rate LU (WP)'!A1,"mmmm d, yyyy") -> LSEG Workspace, https://www.lseg.com/en/data-analytics/products/workspace, downloaded on July 18, 2025

Sheet MPG-5
A1: =Utility -> Kentucky Utilities Company / Louisville Gas & Electric Company
A5: Constant Growth DCF Model
A6: (Consensus Analysts' Growth Rates)
F9: 13-Week AVG | G9: Analysts' | H9: Annualized | I9: Nominal | J9: Adjusted | K9: Constant
A10: Line | D10: Company | F10: Stock Price1 | G10: Growth2 | H10: Dividend3 | I10: Yield | J10: Yield | K10: Growth DCF | N10: ='Stock Prices (WP)'!G2 -> 2025-07-18
F11: -1 | G11: -2 | H11: -3 | I11: -4 | J11: -5 | K11: -6
A13: ='MPG-3'!A13 -> 1 | B13: ='MPG-3'!B13 -> ATO | D13: ='MPG-3'!D13 -> Atmos Energy Corporation | F13: =IF(B13="","",VLOOKUP(B13,'Stock Prices (WP)'!$B$3:$D$61,3,0)) -> 155.3971615 | G13: =+'MPG-4'!O13 -> 0.07191283333 | H13: =IF(B13="","",VLOOKUP(B13,VLLU,4,0)*4) -> 3.48 | I13: =IF(B13="","",H13/F13) -> 0.02239423144 | J13: =IF(ISNUMBER(A13),IFERROR(H13*(1+G13)/F13,"N/A"),"") -> 0.02400466407 | K13: =IF(ISNUMBER(A13),IFERROR(G13+J13,"N/A"),"") -> 0.0959174974
A14: ='MPG-3'!A14 -> 2 | B14: ='MPG-3'!B14 -> NJR | D14: ='MPG-3'!D14 -> New Jersey Resources Corporation | F14: =IF(B14="","",VLOOKUP(B14,'Stock Prices (WP)'!$B$3:$D$61,3,0)) -> 46.21423077 | G14: =+'MPG-4'!O14 -> 0.079 | H14: 1.8 | I14: =IF(B14="","",H14/F14) -> 0.03894904167 | J14: =IF(ISNUMBER(A14),IFERROR(H14*(1+G14)/F14,"N/A"),"") -> 0.04202601596 | K14: =IF(ISNUMBER(A14),IFERROR(G14+J14,"N/A"),"") -> 0.121026016
A15: ='MPG-3'!A15 -> 3 | B15: ='MPG-3'!B15 -> NI | D15: ='MPG-3'!D15 -> NiSource Inc. | F15: =IF(B15="","",VLOOKUP(B15,'Stock Prices (WP)'!$B$3:$D$61,3,0)) -> 39.37201538 | G15: =+'MPG-4'!O15 -> 0.07846143333 | H15: 1.12 | I15: 0.02844660069 | J15: 0.03067856175 | K15: 0.1091399951
A16: ='MPG-3'!A16 -> 4 | B16: ='MPG-3'!B16 -> NWN | D16: ='MPG-3'!D16 -> Northwest Natural Holding Company | F16: =IF(B16="","",VLOOKUP(B16,'Stock Prices (WP)'!$B$3:$D$61,3,0)) -> 41.29269231 | G16: =+'MPG-4'!O16 -> 0.0575 | H16: 1.96 | I16: 0.04746602584 | J16: 0.05019532232 | K16: 0.1076953223
A17: ='MPG-3'!A17 -> 5 | B17: ='MPG-3'!B17 -> OGS | D17: ='MPG-3'!D17 -> ONE Gas, Inc. | F17: =IF(B17="","",VLOOKUP(B17,'Stock Prices (WP)'!$B$3:$D$61,3,0)) -> 74.46857308 | G17: =+'MPG-4'!O17 -> 0.05699205 | H17: 2.68 | I17: 0.03598833561 | J17: 0.03803938463 | K17: 0.09503143463
A18: ='MPG-3'!A18 -> 6 | B18: ='MPG-3'!B18 -> SWX | D18: ='MPG-3'!D18 -> Southwest Gas Holdings, Inc. | F18: =IF(B18="","",VLOOKUP(B18,'Stock Prices (WP)'!$B$3:$D$61,3,0)) -> 73.09840385 | G18: =+'MPG-4'!O18 -> 0.1164852333 | H18: 2.48 | I18: 0.03392686939 | J18: 0.03787884869 | K18: 0.154364082
A19: ='MPG-3'!A19 -> 7 | B19: ='MPG-3'!B19 -> SR | D19: ='MPG-3'!D19 -> Spire Inc. | F19: =IF(B19="","",VLOOKUP(B19,'Stock Prices (WP)'!$B$3:$D$61,3,0)) -> 74.28221538 | G19: =+'MPG-4'!O19 -> 0.07310235 | H19: 3.14 | I19: 0.04227122177 | J19: 0.04536134742 | K19: 0.1184636974
A20: ='MPG-3'!A20 -> 8 | B20: ='MPG-3'!B20 -> LNT | D20: ='MPG-3'!D20 -> Alliant Energy Corporation | F20: =IF(B20="","",VLOOKUP(B20,'Stock Prices (WP)'!$B$3:$D$61,3,0)) -> 61.26964615 | G20: =+'MPG-4'!O20 -> 0.06570186667 | H20: 1.92 | I20: 0.03133688736 | J20: 0.03339577935 | K20: 0.09909764602
A21: ='MPG-3'!A21 -> 9 | B21: ='MPG-3'!B21 -> AEE | D21: ='MPG-3'!D21 -> Ameren Corporation | F21: =IF(B21="","",VLOOKUP(B21,'Stock Prices (WP)'!$B$3:$D$61,3,0)) -> 96.45411538 | G21: =+'MPG-4'!O21 -> 0.08119576667 | H21: 2.84 | I21: 0.02944405211 | J21: 0.0318347845 | K21: 0.1130305512
A22: ='MPG-3'!A22 -> 10 | B22: ='MPG-3'!B22 -> AEP | D22: ='MPG-3'!D22 -> American Electric Power Company, Inc. | F22: =IF(B22="","",VLOOKUP(B22,'Stock Prices (WP)'!$B$3:$D$61,3,0)) -> 103.7285885 | G22: =+'MPG-4'!O22 -> 0.06617533333 | H22: 3.72 | I22: 0.03586282292 | J22: 0.03823605718 | K22: 0.1044113905
A23: ='MPG-3'!A23 -> 11 | B23: ='MPG-3'!B23 -> DUK | D23: ='MPG-3'!D23 -> Duke Energy Corporation | F23: =IF(B23="","",VLOOKUP(B23,'Stock Prices (WP)'!$B$3:$D$61,3,0)) -> 117.5577077 | G23: =+'MPG-4'!O23 -> 0.06363473333 | H23: 4.18 | I23: 0.035557005 | J23: 0.03781966553 | K23: 0.1014543989
A24: ='MPG-3'!A24 -> 12 | B24: ='MPG-3'!B24 -> EIX | D24: ='MPG-3'!D24 -> Edison International | F24: =IF(B24="","",VLOOKUP(B24,'Stock Prices (WP)'!$B$3:$D$61,3,0)) -> 53.62657692 | G24: =+'MPG-4'!O24 -> 0.08766193333 | H24: 3.31 | I24: 0.06172312666 | J24: 0.06713389528 | K24: 0.1547958286
A25: ='MPG-3'!A25 -> 13 | B25: ='MPG-3'!B25 -> ETR | D25: ='MPG-3'!D25 -> Entergy Corporation | F25: =IF(B25="","",VLOOKUP(B25,'Stock Prices (WP)'!$B$3:$D$61,3,0)) -> 82.5025 | G25: =+'MPG-4'!O25 -> 0.09328333333 | H25: 2.4 | I25: 0.02909002757 | J25: 0.03180364231 | K25: 0.1250869756
A26: ='MPG-3'!A26 -> 14 | B26: ='MPG-3'!B26 -> EVRG | D26: ='MPG-3'!D26 -> Evergy, Inc. | F26: =IF(B26="","",VLOOKUP(B26,'Stock Prices (WP)'!$B$3:$D$61,3,0)) -> 67.43373462 | G26: =+'MPG-4'!O26 -> 0.05808886667 | H26: 2.67 | I26: 0.03959442578 | J26: 0.0418944211 | K26: 0.09998328776
A27: ='MPG-3'!A27 -> 15 | B27: ='MPG-3'!B27 -> IDA | D27: ='MPG-3'!D27 -> IDACORP, Inc. | F27: =IF(B27="","",VLOOKUP(B27,'Stock Prices (WP)'!$B$3:$D$61,3,0)) -> 115.7440346 | G27: =+'MPG-4'!O27 -> 0.0819024 | H27: 3.44 | I27: 0.02972075417 | J27: 0.03215495527 | K27: 0.1140573553
A28: ='MPG-3'!A28 -> 16 | B28: ='MPG-3'!B28 -> NWE | D28: ='MPG-3'!D28 -> NorthWestern Corporation | F28: =IF(B28="","",VLOOKUP(B28,'Stock Prices (WP)'!$B$3:$D$61,3,0)) -> 54.16827308 | G28: =+'MPG-4'!O28 -> 0.06501343333 | H28: 2.64 | I28: 0.04873701615 | J28: 0.0519055769 | K28: 0.1169190102
A29: ='MPG-3'!A29 -> 17 | B29: ='MPG-3'!B29 -> OGE | D29: ='MPG-3'!D29 -> OGE Energy Corp. | F29: =IF(B29="","",VLOOKUP(B29,'Stock Prices (WP)'!$B$3:$D$61,3,0)) -> 44.30096154 | G29: =+'MPG-4'!O29 -> 0.06219266667 | H29: 1.6852 | I29: 0.03803980639 | J29: 0.04040560339 | K29: 0.1025982701
A30: ='MPG-3'!A30 -> 18 | B30: ='MPG-3'!B30 -> PNW | D30: ='MPG-3'!D30 -> Pinnacle West Capital Corporation | F30: =IF(B30="","",VLOOKUP(B30,'Stock Prices (WP)'!$B$3:$D$61,3,0)) -> 90.87253846 | G30: =+'MPG-4'!O30 -> 0.03191473333 | H30: 3.58 | I30: 0.03939584016 | J30: 0.04065314789 | K30: 0.07256788122
A31: ='MPG-3'!A31 -> 19 | B31: ='MPG-3'!B31 -> POR | D31: ='MPG-3'!D31 -> Portland General Electric Company | F31: =IF(B31="","",VLOOKUP(B31,'Stock Prices (WP)'!$B$3:$D$61,3,0)) -> 41.43103077 | G31: =+'MPG-4'!O31 -> 0.03918176667 | H31: 2.1 | I31: 0.05068664624 | J31: 0.05267263859 | K31: 0.09185440525
A32: ='MPG-3'!A32 -> 20 | B32: ='MPG-3'!B32 -> SO | D32: ='MPG-3'!D32 -> The Southern Company | F32: =IF(B32="","",VLOOKUP(B32,'Stock Prices (WP)'!$B$3:$D$61,3,0)) -> 90.21650385 | G32: =+'MPG-4'!O32 -> 0.068784 | H32: 2.96 | I32: 0.0328099613 | J32: 0.03506676168 | K32: 0.1038507617
A33: ='MPG-3'!A33 -> 21 | B33: ='MPG-3'!B33 -> XEL | D33: ='MPG-3'!D33 -> Xcel Energy Inc. | F33: =IF(B33="","",VLOOKUP(B33,'Stock Prices (WP)'!$B$3:$D$61,3,0)) -> 69.06134231 | G33: =+'MPG-4'!O33 -> 0.0809135 | H33: 2.28 | I33: 0.03301412808 | J33: 0.03568541673 | K33: 0.1165989167
A34: ='MPG-3'!A34 ->  | B34: ='MPG-3'!B34 ->  | D34: ='MPG-3'!D34 ->  | F34: =IF(B34="","",VLOOKUP(B34,'Stock Prices (WP)'!$B$3:$D$61,3,0)) ->  | G34: =+'MPG-4'!O34 -> 
A35: ='MPG-3'!A35 ->  | B35: ='MPG-3'!B35 ->  | D35: ='MPG-3'!D35 ->  | F35: =IF(B35="","",VLOOKUP(B35,'Stock Prices (WP)'!$B$3:$D$61,3,0)) ->  | G35: =+'MPG-4'!O35 -> 
A36: ='MPG-3'!A36 ->  | B36: ='MPG-3'!B36 ->  | D36: ='MPG-3'!D36 ->  | F36: =IF(B36="","",VLOOKUP(B36,'Stock Prices (WP)'!$B$3:$D$61,3,0)) ->  | G36: =+'MPG-4'!O36 -> 
A37: ='MPG-3'!A37 ->  | B37: ='MPG-3'!B37 ->  | D37: ='MPG-3'!D37 ->  | F37: =IF(B37="","",VLOOKUP(B37,'Stock Prices (WP)'!$B$3:$D$61,3,0)) ->  | G37: =+'MPG-4'!O37 -> 
A38: ='MPG-3'!A38 ->  | B38: ='MPG-3'!B38 ->  | D38: ='MPG-3'!D38 ->  | F38: =IF(B38="","",VLOOKUP(B38,'Stock Prices (WP)'!$B$3:$D$61,3,0)) ->  | G38: =+'MPG-4'!O38 -> 
A39: ='MPG-3'!A39 ->  | B39: ='MPG-3'!B39 ->  | D39: ='MPG-3'!D39 ->  | F39: =IF(B39="","",VLOOKUP(B39,'Stock Prices (WP)'!$B$3:$D$61,3,0)) ->  | G39: =+'MPG-4'!O39 -> 
A40: ='MPG-3'!A40 ->  | B40: ='MPG-3'!B40 ->  | D40: ='MPG-3'!D40 ->  | F40: =IF(B40="","",VLOOKUP(B40,'Stock Prices (WP)'!$B$3:$D$61,3,0)) ->  | G40: =+'MPG-4'!O40 -> 
A41: ='MPG-3'!A41 ->  | B41: ='MPG-3'!B41 ->  | D41: ='MPG-3'!D41 ->  | F41: =IF(B41="","",VLOOKUP(B41,'Stock Prices (WP)'!$B$3:$D$61,3,0)) ->  | G41: =+'MPG-4'!O41 -> 
A42: ='MPG-3'!A42 ->  | B42: ='MPG-3'!B42 ->  | D42: ='MPG-3'!D42 ->  | F42: =IF(B42="","",VLOOKUP(B42,'Stock Prices (WP)'!$B$3:$D$61,3,0)) ->  | G42: =+'MPG-4'!O42 -> 
A43: ='MPG-3'!A43 ->  | B43: ='MPG-3'!B43 ->  | D43: ='MPG-3'!D43 ->  | F43: =IF(B43="","",VLOOKUP(B43,'Stock Prices (WP)'!$B$3:$D$61,3,0)) ->  | G43: =+'MPG-4'!O43 -> 
A44: ='MPG-3'!A44 ->  | B44: ='MPG-3'!B44 ->  | D44: ='MPG-3'!D44 ->  | F44: =IF(B44="","",VLOOKUP(B44,'Stock Prices (WP)'!$B$3:$D$61,3,0)) ->  | G44: =+'MPG-4'!O44 -> 
A45: ='MPG-3'!A45 ->  | B45: ='MPG-3'!B45 ->  | D45: ='MPG-3'!D45 ->  | F45: =IF(B45="","",VLOOKUP(B45,'Stock Prices (WP)'!$B$3:$D$61,3,0)) ->  | G45: =+'MPG-4'!O45 ->  | H45: =IF(B45="","",VLOOKUP(B45,VLLU,4,0)*4) -> 
A46: ='MPG-3'!A46 ->  | B46: ='MPG-3'!B46 ->  | D46: ='MPG-3'!D46 ->  | F46: =IF(B46="","",VLOOKUP(B46,'Stock Prices (WP)'!$B$3:$D$61,3,0)) ->  | G46: =+'MPG-4'!O46 -> 
A47: ='MPG-3'!A47 ->  | B47: ='MPG-3'!B47 ->  | D47: ='MPG-3'!D47 ->  | F47: =IF(B47="","",VLOOKUP(B47,'Stock Prices (WP)'!$B$3:$D$61,3,0)) ->  | G47: =+'MPG-4'!O47 -> 
A48: ='MPG-3'!A48 ->  | B48: ='MPG-3'!B48 ->  | D48: ='MPG-3'!D48 ->  | F48: =IF(B48="","",VLOOKUP(B48,'Stock Prices (WP)'!$B$3:$D$61,3,0)) ->  | G48: =+'MPG-4'!O48 -> 
A49: ='MPG-3'!A49 ->  | B49: ='MPG-3'!B49 ->  | D49: ='MPG-3'!D49 ->  | F49: =IF(B49="","",VLOOKUP(B49,'Stock Prices (WP)'!$B$3:$D$61,3,0)) ->  | G49: =+'MPG-4'!O49 -> 
A50: ='MPG-3'!A50 ->  | B50: ='MPG-3'!B50 ->  | D50: ='MPG-3'!D50 ->  | F50: =IF(B50="","",VLOOKUP(B50,'Stock Prices (WP)'!$B$3:$D$61,3,0)) ->  | G50: =+'MPG-4'!O50 -> 
A51: ='MPG-3'!A51 ->  | B51: ='MPG-3'!B51 ->  | D51: ='MPG-3'!D51 ->  | F51: =IF(B51="","",VLOOKUP(B51,'Stock Prices (WP)'!$B$3:$D$61,3,0)) ->  | G51: =+'MPG-4'!O51 -> 
A52: ='MPG-3'!A52 ->  | B52: ='MPG-3'!B52 ->  | D52: ='MPG-3'!D52 ->  | F52: =IF(B52="","",VLOOKUP(B52,'Stock Prices (WP)'!$B$3:$D$61,3,0)) ->  | G52: =+'MPG-4'!O52 -> 
A53: ='MPG-3'!A53 ->  | B53: ='MPG-3'!B53 ->  | D53: ='MPG-3'!D53 ->  | F53: =IF(B53="","",VLOOKUP(B53,'Stock Prices (WP)'!$B$3:$D$61,3,0)) ->  | G53: =+'MPG-4'!O53 -> 
A54: ='MPG-3'!A54 ->  | B54: ='MPG-3'!B54 ->  | D54: ='MPG-3'!D54 ->  | F54: =IF(B54="","",VLOOKUP(B54,'Stock Prices (WP)'!$B$3:$D$61,3,0)) ->  | G54: =+'MPG-4'!O54 -> 
A55: ='MPG-3'!A55 ->  | B55: ='MPG-3'!B55 ->  | D55: ='MPG-3'!D55 ->  | F55: =IF(B55="","",VLOOKUP(B55,'Stock Prices (WP)'!$B$3:$D$61,3,0)) ->  | G55: =+'MPG-4'!O55 -> 
A56: ='MPG-3'!A56 ->  | B56: ='MPG-3'!B56 ->  | D56: ='MPG-3'!D56 ->  | F56: =IF(B56="","",VLOOKUP(B56,'Stock Prices (WP)'!$B$3:$D$61,3,0)) ->  | G56: =+'MPG-4'!O56 -> 
A57: ='MPG-3'!A57 ->  | B57: ='MPG-3'!B57 ->  | D57: ='MPG-3'!D57 ->  | F57: =IF(B57="","",VLOOKUP(B57,'Stock Prices (WP)'!$B$3:$D$61,3,0)) ->  | G57: =+'MPG-4'!O57 -> 
A58: ='MPG-3'!A58 ->  | B58: ='MPG-3'!B58 ->  | D58: ='MPG-3'!D58 ->  | F58: =IF(B58="","",VLOOKUP(B58,'Stock Prices (WP)'!$B$3:$D$61,3,0)) ->  | G58: =+'MPG-4'!O58 -> 
A59: ='MPG-3'!A59 ->  | B59: ='MPG-3'!B59 ->  | D59: ='MPG-3'!D59 ->  | F59: =IF(B59="","",VLOOKUP(B59,'Stock Prices (WP)'!$B$3:$D$61,3,0)) ->  | G59: =+'MPG-4'!O59 -> 
A60: ='MPG-3'!A60 ->  | B60: ='MPG-3'!B60 ->  | D60: ='MPG-3'!D60 ->  | F60: =IF(B60="","",VLOOKUP(B60,'Stock Prices (WP)'!$B$3:$D$61,3,0)) ->  | G60: =+'MPG-4'!O60 -> 
A61: ='MPG-3'!A61 ->  | B61: ='MPG-3'!B61 ->  | D61: ='MPG-3'!D61 ->  | F61: =IF(B61="","",VLOOKUP(B61,'Stock Prices (WP)'!$B$3:$D$61,3,0)) ->  | G61: =+'MPG-4'!O61 -> 
A62: ='MPG-3'!A62 ->  | B62: ='MPG-3'!B62 ->  | D62: ='MPG-3'!D62 ->  | F62: =IF(B62="","",VLOOKUP(B62,'Stock Prices (WP)'!$B$3:$D$61,3,0)) ->  | G62: =+'MPG-4'!O62 ->  | H62: =IF(B62="","",VLOOKUP(B62,VLLU,4,0)*4) ->  | I62: =IF(B62="","",H62/F62) ->  | J62: =IF(ISNUMBER(A62),IFERROR(H62*(1+G62)/F62,"N/A"),"") ->  | K62: =IF(ISNUMBER(A62),IFERROR(G62+J62,"N/A"),"") -> 
A64: =MAX($A$13:A63)+1 -> 22 | D64: Average Gas | F64: =AVERAGE(F13:F19) -> 72.0178989 | G64: =AVERAGE(G13:G19) -> 0.0762077 | H64: 2.38 | I64: 0.03563461806 | J64: 0.03831202069 | K64: 0.1145197207
A65: =MAX($A$13:A64)+1 -> 23 | D65: Median Gas | F65: =MEDIAN(F13:F19) -> 73.09840385 | G65: =MEDIAN(G13:G19) -> 0.07310235 | H65: 2.48 | I65: 0.03598833561 | J65: 0.03803938463 | K65: 0.1091399951
A67: =MAX($A$13:A66)+1 -> 24 | D67: Average Electric | F67: =AVERAGE(F20:F60) -> 77.74053956 | G67: =AVERAGE(G20:G60) -> 0.06754602381 | H67: 2.837514286 | I67: 0.03821517856 | J67: 0.04076159612 | K67: 0.1083076199
A68: =MAX($A$13:A67)+1 -> 25 | D68: Median Electric | F68: =MEDIAN(F20:F60) -> 75.78192115 | G68: =MEDIAN(G20:G60) -> 0.0659386 | H68: 2.755 | I68: 0.03570991396 | J68: 0.03802786136 | K68: 0.1041310761
A70: =MAX($A$13:A69)+1 -> 26 | D70: Average Combined | F70: =AVERAGE(F13:F63) -> 75.83299267 | G70: 0.07043324921 | H70: 2.685009524 | I70: 0.03735499173 | J70: 0.03994507098 | K70: 0.1103783202
A71: =MAX($A$13:A70)+1 -> 27 | D71: Median Combined | F71: =MEDIAN(F13:F63) -> 73.09840385 | G71: 0.068784 | H71: 2.67 | I71: 0.03586282292 | J71: 0.03803938463 | K71: 0.1076953223
C74: Sources:
C75: =+A75+1 -> 1 | D75: ="S&P Global Intelligence, Downloaded on "& TEXT($N$10,"mmmm d, yyyy.") -> S&P Global Intelligence, Downloaded on July 18, 2025.
C76: =+C75+1 -> 2 | D76: Exhibit MPG-4.
C77: =+C76+1 -> 3 | D77: The Value Line Investment Survey, May 9, June 6, and July 18, 2025.

Sheet MPG-6
A1: =Utility -> Kentucky Utilities Company / Louisville Gas & Electric Company
A5: Payout Ratios
F9: Dividends Per Share | I9: Earnings Per Share | L9: Payout Ratio
A10: Line | D10: Company | F10: ='VL Data (WP)'!G6 -> 2024 | G10: Projected | I10: =F10 -> 2024 | J10: Projected | L10: =I10 -> 2024 | M10: Projected
F11: -1 | G11: -2 | I11: -3 | J11: -4 | L11: -5 | M11: -6
A13: ='MPG-3'!A13 -> 1 | B13: ='MPG-3'!B13 -> ATO | D13: ='MPG-3'!D13 -> Atmos Energy Corporation | F13: =IF($B13="","",VLOOKUP($B13,VLLU,14,0)) -> 3.22 | G13: =IF($B13="","",VLOOKUP($B13,VLLU,15,0)) -> 4.45 | I13: =IF($B13="","",VLOOKUP($B13,VLLU,17,0)) -> 6.83 | J13: =IF($B13="","",VLOOKUP($B13,VLLU,18,0)) -> 9.35 | L13: =IF($B13="","",IFERROR(F13/I13,"N/A")) -> 0.4714494876 | M13: =IF($B13="","",IFERROR(G13/J13,"N/A")) -> 0.4759358289
A14: ='MPG-3'!A14 -> 2 | B14: ='MPG-3'!B14 -> NJR | D14: ='MPG-3'!D14 -> New Jersey Resources Corporation | F14: 1.71 | G14: 2.2 | I14: 2.95 | J14: 3.9 | L14: =IF($B14="","",IFERROR(F14/I14,"N/A")) -> 0.5796610169 | M14: =IF($B14="","",IFERROR(G14/J14,"N/A")) -> 0.5641025641
A15: ='MPG-3'!A15 -> 3 | B15: ='MPG-3'!B15 -> NI | D15: ='MPG-3'!D15 -> NiSource Inc. | F15: 1.06 | G15: 1.44 | I15: 1.75 | J15: 2.55 | L15: 0.6057142857 | M15: 0.5647058824
A16: ='MPG-3'!A16 -> 4 | B16: ='MPG-3'!B16 -> NWN | D16: ='MPG-3'!D16 -> Northwest Natural Holding Company | F16: 1.95 | G16: 2 | I16: 2.33 | J16: 3.45 | L16: 0.8369098712 | M16: 0.5797101449
A17: ='MPG-3'!A17 -> 5 | B17: ='MPG-3'!B17 -> OGS | D17: ='MPG-3'!D17 -> ONE Gas, Inc. | F17: 2.64 | G17: 2.9 | I17: 3.91 | J17: 5.25 | L17: 0.6751918159 | M17: 0.5523809524
A18: ='MPG-3'!A18 -> 6 | B18: ='MPG-3'!B18 -> SWX | D18: ='MPG-3'!D18 -> Southwest Gas Holdings, Inc. | F18: 2.48 | G18: 3 | I18: 2.76 | J18: 5 | L18: 0.8985507246 | M18: 0.6
A19: ='MPG-3'!A19 -> 7 | B19: ='MPG-3'!B19 -> SR | D19: ='MPG-3'!D19 -> Spire Inc. | F19: 3.02 | G19: 3.7 | I19: 4.19 | J19: 5.25 | L19: 0.7207637232 | M19: 0.7047619048
A20: ='MPG-3'!A20 -> 8 | B20: ='MPG-3'!B20 -> LNT | D20: ='MPG-3'!D20 -> Alliant Energy Corporation | F20: 1.92 | G20: 2.43 | I20: 2.69 | J20: 4.25 | L20: 0.7137546468 | M20: 0.5717647059
A21: ='MPG-3'!A21 -> 9 | B21: ='MPG-3'!B21 -> AEE | D21: ='MPG-3'!D21 -> Ameren Corporation | F21: 2.68 | G21: 3.57 | I21: 4.59 | J21: 6.6 | L21: 0.5838779956 | M21: 0.5409090909
A22: ='MPG-3'!A22 -> 10 | B22: ='MPG-3'!B22 -> AEP | D22: ='MPG-3'!D22 -> American Electric Power Company, Inc. | F22: 3.57 | G22: 4.31 | I22: 5.61 | J22: 7.7 | L22: 0.6363636364 | M22: 0.5597402597
A23: ='MPG-3'!A23 -> 11 | B23: ='MPG-3'!B23 -> DUK | D23: ='MPG-3'!D23 -> Duke Energy Corporation | F23: 4.14 | G23: 5 | I23: 5.9 | J23: 8 | L23: 0.7016949153 | M23: 0.625
A24: ='MPG-3'!A24 -> 12 | B24: ='MPG-3'!B24 -> EIX | D24: ='MPG-3'!D24 -> Edison International | F24: 3.17 | G24: 4.15 | I24: 4.91 | J24: 7 | L24: 0.6456211813 | M24: 0.5928571429
A25: ='MPG-3'!A25 -> 13 | B25: ='MPG-3'!B25 -> ETR | D25: ='MPG-3'!D25 -> Entergy Corporation | F25: 2.3 | G25: 3 | I25: 2.45 | J25: 4.2 | L25: 0.9387755102 | M25: 0.7142857143
A26: ='MPG-3'!A26 -> 14 | B26: ='MPG-3'!B26 -> EVRG | D26: ='MPG-3'!D26 -> Evergy, Inc. | F26: 2.6 | G26: 3.25 | I26: 3.8 | J26: 5.05 | L26: 0.6842105263 | M26: 0.6435643564
A27: ='MPG-3'!A27 -> 15 | B27: ='MPG-3'!B27 -> IDA | D27: ='MPG-3'!D27 -> IDACORP, Inc. | F27: 3.35 | G27: 4.2 | I27: 5.5 | J27: 7.1 | L27: 0.6090909091 | M27: 0.5915492958
A28: ='MPG-3'!A28 -> 16 | B28: ='MPG-3'!B28 -> NWE | D28: ='MPG-3'!D28 -> NorthWestern Corporation | F28: 2.6 | G28: 2.8 | I28: 3.27 | J28: 4.35 | L28: 0.7951070336 | M28: 0.6436781609
A29: ='MPG-3'!A29 -> 17 | B29: ='MPG-3'!B29 -> OGE | D29: ='MPG-3'!D29 -> OGE Energy Corp. | F29: 1.68 | G29: 1.79 | I29: 2.19 | J29: 2.95 | L29: 0.7671232877 | M29: 0.606779661
A30: ='MPG-3'!A30 -> 18 | B30: ='MPG-3'!B30 -> PNW | D30: ='MPG-3'!D30 -> Pinnacle West Capital Corporation | F30: 3.55 | G30: 4 | I30: 5.24 | J30: 6.45 | L30: 0.677480916 | M30: 0.6201550388
A31: ='MPG-3'!A31 -> 19 | B31: ='MPG-3'!B31 -> POR | D31: ='MPG-3'!D31 -> Portland General Electric Company | F31: 1.98 | G31: 2.58 | I31: 3.14 | J31: 4 | L31: 0.6305732484 | M31: 0.645
A32: ='MPG-3'!A32 -> 20 | B32: ='MPG-3'!B32 -> SO | D32: ='MPG-3'!D32 -> The Southern Company | F32: 2.86 | G32: 3.1 | I32: 4.06 | J32: 5.6 | L32: 0.7044334975 | M32: 0.5535714286
A33: ='MPG-3'!A33 -> 21 | B33: ='MPG-3'!B33 -> XEL | D33: ='MPG-3'!D33 -> Xcel Energy Inc. | F33: 2.19 | G33: 3 | I33: 3.5 | J33: 5 | L33: 0.6257142857 | M33: 0.6
A34: ='MPG-3'!A34 ->  | B34: ='MPG-3'!B34 ->  | D34: ='MPG-3'!D34 -> 
A35: ='MPG-3'!A35 ->  | B35: ='MPG-3'!B35 ->  | D35: ='MPG-3'!D35 -> 
A36: ='MPG-3'!A36 ->  | B36: ='MPG-3'!B36 ->  | D36: ='MPG-3'!D36 -> 
A37: ='MPG-3'!A37 ->  | B37: ='MPG-3'!B37 ->  | D37: ='MPG-3'!D37 -> 
A38: ='MPG-3'!A38 ->  | B38: ='MPG-3'!B38 ->  | D38: ='MPG-3'!D38 -> 
A39: ='MPG-3'!A39 ->  | B39: ='MPG-3'!B39 ->  | D39: ='MPG-3'!D39 -> 
A40: ='MPG-3'!A40 ->  | B40: ='MPG-3'!B40 ->  | D40: ='MPG-3'!D40 -> 
A41: ='MPG-3'!A41 ->  | B41: ='MPG-3'!B41 ->  | D41: ='MPG-3'!D41 -> 
A42: ='MPG-3'!A42 ->  | B42: ='MPG-3'!B42 ->  | D42: ='MPG-3'!D42 -> 
A43: ='MPG-3'!A43 ->  | B43: ='MPG-3'!B43 ->  | D43: ='MPG-3'!D43 -> 
A44: ='MPG-3'!A44 ->  | B44: ='MPG-3'!B44 ->  | D44: ='MPG-3'!D44 -> 
A45: ='MPG-3'!A45 ->  | B45: ='MPG-3'!B45 ->  | D45: ='MPG-3'!D45 -> 
A46: ='MPG-3'!A46 ->  | B46: ='MPG-3'!B46 ->  | D46: ='MPG-3'!D46 -> 
A47: ='MPG-3'!A47 ->  | B47: ='MPG-3'!B47 ->  | D47: ='MPG-3'!D47 -> 
A48: ='MPG-3'!A48 ->  | B48: ='MPG-3'!B48 ->  | D48: ='MPG-3'!D48 -> 
A49: ='MPG-3'!A49 ->  | B49: ='MPG-3'!B49 ->  | D49: ='MPG-3'!D49 -> 
A50: ='MPG-3'!A50 ->  | B50: ='MPG-3'!B50 ->  | D50: ='MPG-3'!D50 -> 
A51: ='MPG-3'!A51 ->  | B51: ='MPG-3'!B51 ->  | D51: ='MPG-3'!D51 -> 
A52: ='MPG-3'!A52 ->  | B52: ='MPG-3'!B52 ->  | D52: ='MPG-3'!D52 -> 
A53: ='MPG-3'!A53 ->  | B53: ='MPG-3'!B53 ->  | D53: ='MPG-3'!D53 -> 
A54: ='MPG-3'!A54 ->  | B54: ='MPG-3'!B54 ->  | D54: ='MPG-3'!D54 -> 
A55: ='MPG-3'!A55 ->  | B55: ='MPG-3'!B55 ->  | D55: ='MPG-3'!D55 -> 
A56: ='MPG-3'!A56 ->  | B56: ='MPG-3'!B56 ->  | D56: ='MPG-3'!D56 -> 
A57: ='MPG-3'!A57 ->  | B57: ='MPG-3'!B57 ->  | D57: ='MPG-3'!D57 -> 
A58: ='MPG-3'!A58 ->  | B58: ='MPG-3'!B58 ->  | D58: ='MPG-3'!D58 -> 
A59: ='MPG-3'!A59 ->  | B59: ='MPG-3'!B59 ->  | D59: ='MPG-3'!D59 -> 
A60: ='MPG-3'!A60 ->  | B60: ='MPG-3'!B60 ->  | D60: ='MPG-3'!D60 -> 
A61: ='MPG-3'!A61 ->  | B61: ='MPG-3'!B61 ->  | D61: ='MPG-3'!D61 ->  | L61: =IF($B61="","",IFERROR(F61/I61,"N/A")) ->  | M61: =IF($B61="","",IFERROR(G61/J61,"N/A")) -> 
A62: ='MPG-3'!A62 ->  | B62: ='MPG-3'!B62 ->  | D62: ='MPG-3'!D62 ->  | L62: =IF($B62="","",IFERROR(F62/I62,"N/A")) ->  | M62: =IF($B62="","",IFERROR(G62/J62,"N/A")) -> 
A64: =MAX($A$13:A63)+1 -> 22 | D64: Average Gas | F64: =AVERAGE(F13:F19) -> 2.297142857 | G64: =AVERAGE(G13:G19) -> 2.812857143 | I64: 3.531428571 | J64: 4.964285714 | L64: 0.6840344179 | M64: 0.5773710396
A66: =MAX($A$13:A65)+1 -> 23 | D66: Average Electric | F66: =AVERAGE(F20:F61) -> 2.756428571 | G66: =AVERAGE(G20:G61) -> 3.37 | I66: 4.060714286 | J66: 5.589285714 | L66: 0.6938443993 | M66: 0.6077753468
A68: =MAX($A$13:A67)+1 -> 24 | D68: Average Combined | F68: =AVERAGE(F13:F63) -> 2.603333333 | G68: =AVERAGE(G13:G63) -> 3.184285714 | I68: =AVERAGE(I13:I63) -> 3.884285714 | J68: =AVERAGE(J13:J63) -> 5.380952381 | L68: =AVERAGE(L13:L63) -> 0.6905744055 | M68: =AVERAGE(M13:M63) -> 0.5976405777
D71: Source:
D72: The Value Line Investment Survey, May 9, June 6, and July 18, 2025.

Sheet MPG-7
A1: =Utility -> Kentucky Utilities Company / Louisville Gas & Electric Company | R1: =Utility -> Kentucky Utilities Company / Louisville Gas & Electric Company
A5: Sustainable Growth Rate | R5: =A5 -> Sustainable Growth Rate
AF6: Value Line Projection Years
G8: 3 to 5 Year Projections | Q8: Sustainable | V8: 13-Week | W8: ='VL Data (WP)'!G6 -> 2024 | X8: Market | Y8: Common Shares
G9: Dividends | H9: Earnings | I9: Book Value | J9: Book Value | L9: Adjustment | M9: Adjusted | N9: Payout | O9: Retention | P9: Internal | Q9: Growth | V9: Average | W9: Book Value | X9: to Book | Y9: Outstanding (in Millions)2
A10: Line | D10: Company | G10: Per Share | H10: Per Share | I10: Per Share | J10: Growth | K10: ROE | L10: Factor | M10: ROE | N10: Ratio | O10: Rate | P10: Growth Rate | Q10: Rate | R10: Line | T10: Company | V10: Stock Price1 | W10: Per Share2 | X10: Ratio | Y10: ='VL Data (WP)'!G6 -> 2024 | Z10: 3-5 Years | AA10: Growth | AB10: S Factor3 | AC10: V Factor4 | AD10: S * V | AF10: Start | AG10: End | AH10: Average
G11: -1 | H11: -2 | I11: -3 | J11: -4 | K11: -5 | L11: -6 | M11: -7 | N11: -8 | O11: -9 | P11: -10 | Q11: -11 | V11: -1 | W11: -2 | X11: -3 | Y11: -4 | Z11: -5 | AA11: -6 | AB11: -7 | AC11: -8 | AD11: -9
A13: ='MPG-3'!A13 -> 1 | B13: ='MPG-3'!B13 -> ATO | D13: ='MPG-3'!D13 -> Atmos Energy Corporation | G13: ='MPG-6'!G13 -> 4.45 | H13: ='MPG-6'!J13 -> 9.35 | I13: =IF(B13="","",VLOOKUP($B13,VLLU,12,0)) -> 97.3 | J13: =IF($B13="","",IFERROR((I13/W13)^(1/($AH13-$W$8))-1,"N/A")) -> 0.04438138712 | K13: =IF($B13="","",IFERROR(H13/I13,"N/A")) -> 0.09609455293 | L13: =IF($B13="","",IFERROR((2*(1+J13))/(2+J13),"N/A")) -> 1.021708957 | M13: =IF($B13="","",IFERROR(K13*L13,"N/A")) -> 0.09818066542 | N13: ='MPG-6'!M13 -> 0.4759358289 | O13: =IF($B13="","",IFERROR(1-N13,"N/A")) -> 0.5240641711 | P13: =IF($B13="","",IFERROR(O13*M13,"N/A")) -> 0.05145296905 | Q13: =IF($B13="","",IFERROR(IF(AD13<0,P13,P13+AD13),P13)) -> 0.08656839425 | R13: =A13 -> 1 | T13: =D13 -> Atmos Energy Corporation | V13: ='MPG-5'!F13 -> 155.3971615 | W13: =IF($B13="","",VLOOKUP($B13,VLLU,11,FALSE)) -> 78.31 | X13: =IF($B13="","",IFERROR(V13/W13,"N/A")) -> 1.984384645 | Y13: =IF($B13="","",VLOOKUP($B13,VLLU,8,FALSE)) -> 155.26 | Z13: =IF($B13="","",VLOOKUP($B13,VLLU,9,FALSE)) -> 185 | AA13: =IF($B13="","",IFERROR((Z13/Y13)^(1/($AH13-$Y$10))-1,"N/A")) -> 0.03567246339 | AB13: =IF($B13="","",IFERROR(AA13*X13,"N/A")) -> 0.07078788859 | AC13: =IF($B13="","",IFERROR(1-1/X13,"N/A")) -> 0.4960654414 | AD13: =IF($B13="","",AB13*AC13) -> 0.0351154252 | AF13: =IF($B13="","",2000+VLOOKUP(B13,VLLU,20,0)) -> 2028 | AG13: =IF($B13="","",2000+VLOOKUP(B13,VLLU,21,0)) -> 2030 | AH13: =IF(B13="","",AVERAGE(AF13:AG13)) -> 2029
A14: ='MPG-3'!A14 -> 2 | B14: ='MPG-3'!B14 -> NJR | D14: ='MPG-3'!D14 -> New Jersey Resources Corporation | G14: ='MPG-6'!G14 -> 2.2 | H14: ='MPG-6'!J14 -> 3.9 | I14: 27.65 | J14: =IF($B14="","",IFERROR((I14/W14)^(1/($AH14-$W$8))-1,"N/A")) -> 0.04563955259 | K14: =IF($B14="","",IFERROR(H14/I14,"N/A")) -> 0.1410488246 | L14: =IF($B14="","",IFERROR((2*(1+J14))/(2+J14),"N/A")) -> 1.022310652 | M14: =IF($B14="","",IFERROR(K14*L14,"N/A")) -> 0.1441957159 | N14: ='MPG-6'!M14 -> 0.5641025641 | O14: =IF($B14="","",IFERROR(1-N14,"N/A")) -> 0.4358974359 | P14: =IF($B14="","",IFERROR(O14*M14,"N/A")) -> 0.06285454281 | Q14: =IF($B14="","",IFERROR(IF(AD14<0,P14,P14+AD14),P14)) -> 0.07472730779 | R14: =A14 -> 2 | T14: =D14 -> New Jersey Resources Corporation | V14: ='MPG-5'!F14 -> 46.21423077 | W14: 22.12 | X14: =IF($B14="","",IFERROR(V14/W14,"N/A")) -> 2.089250939 | Y14: 99.46 | Z14: 105 | AA14: =IF($B14="","",IFERROR((Z14/Y14)^(1/($AH14-$Y$10))-1,"N/A")) -> 0.0108999355 | AB14: =IF($B14="","",IFERROR(AA14*X14,"N/A")) -> 0.02277270048 | AC14: =IF($B14="","",IFERROR(1-1/X14,"N/A")) -> 0.5213595546 | AD14: =IF($B14="","",AB14*AC14) -> 0.01187276498 | AF14: =IF($B14="","",2000+VLOOKUP(B14,VLLU,20,0)) -> 2028 | AG14: =IF($B14="","",2000+VLOOKUP(B14,VLLU,21,0)) -> 2030 | AH14: =IF(B14="","",AVERAGE(AF14:AG14)) -> 2029
A15: ='MPG-3'!A15 -> 3 | B15: ='MPG-3'!B15 -> NI | D15: ='MPG-3'!D15 -> NiSource Inc. | G15: ='MPG-6'!G15 -> 1.44 | H15: ='MPG-6'!J15 -> 2.55 | I15: 25.7 | J15: 0.02504562845 | K15: 0.09922178988 | L15: 1.012367933 | M15: 0.1004489583 | N15: ='MPG-6'!M15 -> 0.5647058824 | O15: 0.4352941176 | P15: 0.04372484068 | Q15: 0.06020211093 | R15: 3 | T15: NiSource Inc. | V15: ='MPG-5'!F15 -> 39.37201538 | W15: 22.71 | X15: 1.733686278 | Y15: 469.82 | Z15: 525 | AA15: 0.022458196 | AB15: 0.03893546625 | AC15: 0.4231943735 | AD15: 0.01647727025 | AF15: 2028 | AG15: 2030 | AH15: 2029
A16: ='MPG-3'!A16 -> 4 | B16: ='MPG-3'!B16 -> NWN | D16: ='MPG-3'!D16 -> Northwest Natural Holding Company | G16: ='MPG-6'!G16 -> 2 | H16: ='MPG-6'!J16 -> 3.45 | I16: 40.4 | J16: 0.03237725507 | K16: 0.0853960396 | L16: 1.015930731 | M16: 0.08675646093 | N16: ='MPG-6'!M16 -> 0.5797101449 | O16: 0.4202898551 | P16: 0.03646286039 | Q16: 0.0453003871 | R16: 4 | T16: Northwest Natural Holding Company | V16: ='MPG-5'!F16 -> 41.29269231 | W16: 34.45 | X16: 1.198626772 | Y16: 40.22 | Z16: 50 | AA16: 0.04449312951 | AB16: 0.05333065622 | AC16: 0.1657119438 | AD16: 0.008837526707 | AF16: 2028 | AG16: 2030 | AH16: 2029
A17: ='MPG-3'!A17 -> 5 | B17: ='MPG-3'!B17 -> OGS | D17: ='MPG-3'!D17 -> ONE Gas, Inc. | G17: ='MPG-6'!G17 -> 2.9 | H17: ='MPG-6'!J17 -> 5.25 | I17: 56.6 | J17: 0.01768537666 | K17: 0.09275618375 | L17: 1.008765181 | M17: 0.09356920845 | N17: ='MPG-6'!M17 -> 0.5523809524 | O17: 0.4476190476 | P17: 0.04188335997 | Q17: 0.05572205574 | R17: 5 | T17: ONE Gas, Inc. | V17: ='MPG-5'!F17 -> 74.46857308 | W17: 51.85 | X17: 1.436230918 | Y17: 59.88 | Z17: 70 | AA17: 0.03172332636 | AB17: 0.04556202212 | AC17: 0.3037331339 | AD17: 0.01383869577 | AF17: 2028 | AG17: 2030 | AH17: 2029
A18: ='MPG-3'!A18 -> 6 | B18: ='MPG-3'!B18 -> SWX | D18: ='MPG-3'!D18 -> Southwest Gas Holdings, Inc. | G18: ='MPG-6'!G18 -> 3 | H18: ='MPG-6'!J18 -> 5 | I18: 58.65 | J18: 0.02678113252 | K18: 0.0852514919 | L18: 1.013213628 | M18: 0.08637797343 | N18: ='MPG-6'!M18 -> 0.6 | O18: 0.4 | P18: 0.03455118937 | Q18: 0.03827489304 | R18: 6 | T18: Southwest Gas Holdings, Inc. | V18: ='MPG-5'!F18 -> 73.09840385 | W18: 51.39 | X18: 1.422424671 | Y18: 71.78 | Z18: 75 | AA18: 0.008815071478 | AB18: 0.01253877515 | AC18: 0.2969750734 | AD18: 0.00372370367 | AF18: 2028 | AG18: 2030 | AH18: 2029
A19: ='MPG-3'!A19 -> 7 | B19: ='MPG-3'!B19 -> SR | D19: ='MPG-3'!D19 -> Spire Inc. | G19: ='MPG-6'!G19 -> 3.7 | H19: ='MPG-6'!J19 -> 5.25 | I19: 57.8 | J19: 0.02204337145 | K19: 0.09083044983 | L19: 1.010901532 | M19: 0.09182064092 | N19: ='MPG-6'!M19 -> 0.7047619048 | O19: 0.2952380952 | P19: 0.02710895113 | Q19: 0.04672241506 | R19: 7 | T19: Spire Inc. | V19: ='MPG-5'!F19 -> 74.28221538 | W19: 51.83 | X19: 1.433189569 | Y19: 57.7 | Z19: 72 | AA19: 0.04527686102 | AB19: 0.06489032495 | AC19: 0.3022555974 | AD19: 0.01961346393 | AF19: 2028 | AG19: 2030 | AH19: 2029
A20: ='MPG-3'!A20 -> 8 | B20: ='MPG-3'!B20 -> LNT | D20: ='MPG-3'!D20 -> Alliant Energy Corporation | G20: ='MPG-6'!G20 -> 2.43 | H20: ='MPG-6'!J20 -> 4.25 | I20: 31.9 | J20: 0.03170949982 | K20: 0.1332288401 | L20: 1.0156073 | M20: 0.1353081826 | N20: ='MPG-6'!M20 -> 0.5717647059 | O20: 0.4282352941 | P20: 0.05794373938 | Q20: 0.05824433895 | R20: 8 | T20: Alliant Energy Corporation | V20: ='MPG-5'!F20 -> 61.26964615 | W20: 27.29 | X20: 2.245131776 | Y20: 256.69 | Z20: 257 | AA20: 0.0002414198884 | AB20: 0.0005420194627 | AC20: 0.5545918458 | AD20: 0.0003005995743 | AF20: 2028 | AG20: 2030 | AH20: 2029
A21: ='MPG-3'!A21 -> 9 | B21: ='MPG-3'!B21 -> AEE | D21: ='MPG-3'!D21 -> Ameren Corporation | G21: ='MPG-6'!G21 -> 3.57 | H21: ='MPG-6'!J21 -> 6.6 | I21: 52.65 | J21: 0.04239307865 | K21: 0.1253561254 | L21: 1.020756572 | M21: 0.1279580888 | N21: ='MPG-6'!M21 -> 0.5409090909 | O21: 0.4590909091 | P21: 0.0587443953 | Q21: 0.07528918895 | R21: 9 | T21: Ameren Corporation | V21: ='MPG-5'!F21 -> 96.45411538 | W21: 42.78 | X21: 2.254654404 | Y21: 266.93 | Z21: 285 | AA21: 0.01318673381 | AB21: 0.02973152746 | AC21: 0.556473046 | AD21: 0.01654479365 | AF21: 2028 | AG21: 2030 | AH21: 2029
A22: ='MPG-3'!A22 -> 10 | B22: ='MPG-3'!B22 -> AEP | D22: ='MPG-3'!D22 -> American Electric Power Company, Inc. | G22: ='MPG-6'!G22 -> 4.31 | H22: ='MPG-6'!J22 -> 7.7 | I22: 60.9 | J22: 0.03762845525 | K22: 0.1264367816 | L22: 1.018466789 | M22: 0.128771663 | N22: ='MPG-6'!M22 -> 0.5597402597 | O22: 0.4402597403 | P22: 0.05669297891 | Q22: 0.06333884088 | R22: 10 | T22: American Electric Power Company, Inc. | V22: ='MPG-5'!F22 -> 103.7285885 | W22: 50.63 | X22: 2.048757426 | Y22: 532.9 | Z22: 550 | AA22: 0.006336891461 | AB22: 0.01298275344 | AC22: 0.5118992676 | AD22: 0.006645861975 | AF22: 2028 | AG22: 2030 | AH22: 2029
A23: ='MPG-3'!A23 -> 11 | B23: ='MPG-3'!B23 -> DUK | D23: ='MPG-3'!D23 -> Duke Energy Corporation | G23: ='MPG-6'!G23 -> 5 | H23: ='MPG-6'!J23 -> 8 | I23: 76.5 | J23: 0.03847650484 | K23: 0.1045751634 | L23: 1.018875128 | M23: 0.106549033 | N23: ='MPG-6'!M23 -> 0.625 | O23: 0.375 | P23: 0.03995588737 | Q23: 0.04083652603 | R23: 11 | T23: Duke Energy Corporation | V23: ='MPG-5'!F23 -> 117.5577077 | W23: 63.34 | X23: 1.855978966 | Y23: 776 | Z23: 780 | AA23: 0.001028808761 | AB23: 0.00190944742 | AC23: 0.4612007903 | AD23: 0.0008806386593 | AF23: 2028 | AG23: 2030 | AH23: 2029
A24: ='MPG-3'!A24 -> 12 | B24: ='MPG-3'!B24 -> EIX | D24: ='MPG-3'!D24 -> Edison International | G24: ='MPG-6'!G24 -> 4.15 | H24: ='MPG-6'!J24 -> 7 | I24: 50 | J24: 0.0668424507 | K24: 0.14 | L24: 1.032340371 | M24: 0.1445276519 | N24: ='MPG-6'!M24 -> 0.5928571429 | O24: 0.4071428571 | P24: 0.05884340112 | Q24: 0.06137820457 | R24: 12 | T24: Edison International | V24: ='MPG-5'!F24 -> 53.62657692 | W24: 36.18 | X24: 1.482216056 | Y24: 384.78 | Z24: 395 | AA24: 0.005256572052 | AB24: 0.007791375497 | AC24: 0.3253345249 | AD24: 0.002534803445 | AF24: 2028 | AG24: 2030 | AH24: 2029
A25: ='MPG-3'!A25 -> 13 | B25: ='MPG-3'!B25 -> ETR | D25: ='MPG-3'!D25 -> Entergy Corporation | G25: ='MPG-6'!G25 -> 3 | H25: ='MPG-6'!J25 -> 4.2 | I25: 43.45 | J25: 0.04354646263 | K25: 0.09666283084 | L25: 1.02130926 | M25: 0.09872264422 | N25: ='MPG-6'!M25 -> 0.7142857143 | O25: 0.2857142857 | P25: 0.02820646978 | Q25: 0.04680407884 | R25: 13 | T25: Entergy Corporation | V25: ='MPG-5'!F25 -> 82.5025 | W25: 35.11 | X25: 2.349829109 | Y25: 429.58 | Z25: 460 | AA25: 0.01377775079 | AB25: 0.03237535985 | AC25: 0.5744371383 | AD25: 0.01859760906 | AF25: 2028 | AG25: 2030 | AH25: 2029
A26: ='MPG-3'!A26 -> 14 | B26: ='MPG-3'!B26 -> EVRG | D26: ='MPG-3'!D26 -> Evergy, Inc. | G26: ='MPG-6'!G26 -> 3.25 | H26: ='MPG-6'!J26 -> 5.05 | I26: 47.5 | J26: 0.01807730453 | K26: 0.1063157895 | L26: 1.008957687 | M26: 0.107268133 | N26: ='MPG-6'!M26 -> 0.6435643564 | O26: 0.3564356436 | P26: 0.03823418603 | Q26: 0.03824379869 | R26: 14 | T26: Evergy, Inc. | V26: ='MPG-5'!F26 -> 67.43373462 | W26: 43.43 | X26: 1.552699392 | Y26: 229.98 | Z26: 230 | AA26: 1.739221178e-05 | AB26: 2.700487666e-05 | AC26: 0.3559603328 | AD26: 9.612664884e-06 | AF26: 2028 | AG26: 2030 | AH26: 2029
A27: ='MPG-3'!A27 -> 15 | B27: ='MPG-3'!B27 -> IDA | D27: ='MPG-3'!D27 -> IDACORP, Inc. | G27: ='MPG-6'!G27 -> 4.2 | H27: ='MPG-6'!J27 -> 7.1 | I27: 72.25 | J27: 0.03197295273 | K27: 0.09826989619 | L27: 1.01573493 | M27: 0.09981616616 | N27: ='MPG-6'!M27 -> 0.5915492958 | O27: 0.4084507042 | P27: 0.04076998336 | Q27: 0.04728819125 | R27: 15 | T27: IDACORP, Inc. | V27: ='MPG-5'!F27 -> 115.7440346 | W27: 61.73 | X27: 1.875004611 | Y27: 53.96 | Z27: 56 | AA27: 0.007449341192 | AB27: 0.01396754908 | AC27: 0.4666679781 | AD27: 0.006518207889 | AF27: 2028 | AG27: 2030 | AH27: 2029
A28: ='MPG-3'!A28 -> 16 | B28: ='MPG-3'!B28 -> NWE | D28: ='MPG-3'!D28 -> NorthWestern Corporation | G28: ='MPG-6'!G28 -> 2.8 | H28: ='MPG-6'!J28 -> 4.35 | I28: 53.55 | J28: 0.02819316302 | K28: 0.081232493 | L28: 1.01390063 | M28: 0.08236167584 | N28: ='MPG-6'!M28 -> 0.6436781609 | O28: 0.3563218391 | P28: 0.0293472638 | Q28: 0.03074270199 | R28: 16 | T28: NorthWestern Corporation | V28: ='MPG-5'!F28 -> 54.16827308 | W28: 46.6 | X28: 1.162409293 | Y28: 61.32 | Z28: 64 | AA28: 0.008592107948 | AB28: 0.00998754613 | AC28: 0.1397178209 | AD28: 0.001395438182 | AF28: 2028 | AG28: 2030 | AH28: 2029
A29: ='MPG-3'!A29 -> 17 | B29: ='MPG-3'!B29 -> OGE | D29: ='MPG-3'!D29 -> OGE Energy Corp. | G29: ='MPG-6'!G29 -> 1.79 | H29: ='MPG-6'!J29 -> 2.95 | I29: 26.25 | J29: 0.02795150953 | K29: 0.1123809524 | L29: 1.013783125 | M29: 0.1139299131 | N29: ='MPG-6'!M29 -> 0.606779661 | O29: 0.393220339 | P29: 0.04479955906 | Q29: 0.04479955906 | R29: 17 | T29: OGE Energy Corp. | V29: ='MPG-5'!F29 -> 44.30096154 | W29: 22.87 | X29: 1.937077461 | Y29: 200.9 | Z29: 200.2 | AA29: -0.0006978373861 | AB29: -0.001351765072 | AC29: 0.4837583834 | AD29: -0.0006539276861 | AF29: 2028 | AG29: 2030 | AH29: 2029
A30: ='MPG-3'!A30 -> 18 | B30: ='MPG-3'!B30 -> PNW | D30: ='MPG-3'!D30 -> Pinnacle West Capital Corporation | G30: ='MPG-6'!G30 -> 4 | H30: ='MPG-6'!J30 -> 6.45 | I30: 70.2 | J30: 0.04360341834 | K30: 0.09188034188 | L30: 1.021336536 | M30: 0.09384075012 | N30: ='MPG-6'!M30 -> 0.6201550388 | O30: 0.3798449612 | P30: 0.03564493609 | Q30: 0.04149850616 | R30: 18 | T30: Pinnacle West Capital Corporation | V30: ='MPG-5'!F30 -> 90.87253846 | W30: 56.71 | X30: 1.602407661 | Y30: 119.1 | Z30: 125 | AA30: 0.009716958216 | AB30: 0.01557052829 | AC30: 0.3759390795 | AD30: 0.005853570072 | AF30: 2028 | AG30: 2030 | AH30: 2029
A31: ='MPG-3'!A31 -> 19 | B31: ='MPG-3'!B31 -> POR | D31: ='MPG-3'!D31 -> Portland General Electric Company | G31: ='MPG-6'!G31 -> 2.58 | H31: ='MPG-6'!J31 -> 4 | I31: 42.25 | J31: 0.04015832107 | K31: 0.09467455621 | L31: 1.019683924 | M31: 0.09653812297 | N31: ='MPG-6'!M31 -> 0.645 | O31: 0.355 | P31: 0.03427103365 | Q31: 0.03791394858 | R31: 19 | T31: Portland General Electric Company | V31: ='MPG-5'!F31 -> 41.43103077 | W31: 34.7 | X31: 1.193977832 | Y31: 109.34 | Z31: 120 | AA31: 0.01878005794 | AB31: 0.02242297286 | AC31: 0.1624635121 | AD31: 0.003642914923 | AF31: 2028 | AG31: =IF($B31="","",2000+VLOOKUP(B31,VLLU,21,0)) -> 2030 | AH31: 2029
A32: ='MPG-3'!A32 -> 20 | B32: ='MPG-3'!B32 -> SO | D32: ='MPG-3'!D32 -> The Southern Company | G32: ='MPG-6'!G32 -> 3.1 | H32: ='MPG-6'!J32 -> 5.6 | I32: 32.25 | J32: 0.01558686821 | K32: 0.1736434109 | L32: 1.007733166 | M32: 0.1749862242 | N32: ='MPG-6'!M32 -> 0.5535714286 | O32: 0.4464285714 | P32: 0.07811885009 | Q32: 0.08689918807 | R32: 20 | T32: The Southern Company | V32: ='MPG-5'!F32 -> 90.21650385 | W32: 29.85 | X32: 3.022328437 | Y32: 1096 | Z32: 1120 | AA32: 0.004341697332 | AB32: 0.01312203531 | AC32: 0.6691292754 | AD32: 0.008780337979 | AF32: 2028 | AG32: 2030 | AH32: 2029
A33: ='MPG-3'!A33 -> 21 | B33: ='MPG-3'!B33 -> XEL | D33: ='MPG-3'!D33 -> Xcel Energy Inc. | G33: ='MPG-6'!G33 -> 3 | H33: ='MPG-6'!J33 -> 5 | I33: 43.7 | J33: 0.05154062183 | K33: 0.114416476 | L33: 1.025122886 | M33: 0.1172909481 | N33: ='MPG-6'!M33 -> 0.6 | O33: 0.4 | P33: 0.04691637924 | Q33: 0.05422418475 | R33: 21 | T33: Xcel Energy Inc. | V33: ='MPG-5'!F33 -> 69.06134231 | W33: 33.99 | X33: 2.031813542 | Y33: 574.37 | Z33: 595 | AA33: 0.007082486528 | AB33: 0.01439029204 | AC33: 0.5078288538 | AD33: 0.007307805514 | AF33: 2028 | AG33: 2030 | AH33: 2029
A34: ='MPG-3'!A34 ->  | B34: ='MPG-3'!B34 ->  | D34: ='MPG-3'!D34 ->  | G34: ='MPG-6'!G34 ->  | H34: ='MPG-6'!J34 ->  | N34: ='MPG-6'!M34 ->  | V34: ='MPG-5'!F34 -> 
A35: ='MPG-3'!A35 ->  | B35: ='MPG-3'!B35 ->  | D35: ='MPG-3'!D35 ->  | G35: ='MPG-6'!G35 ->  | H35: ='MPG-6'!J35 ->  | N35: ='MPG-6'!M35 ->  | V35: ='MPG-5'!F35 -> 
A36: ='MPG-3'!A36 ->  | B36: ='MPG-3'!B36 ->  | D36: ='MPG-3'!D36 ->  | G36: ='MPG-6'!G36 ->  | H36: ='MPG-6'!J36 ->  | N36: ='MPG-6'!M36 ->  | V36: ='MPG-5'!F36 -> 
A37: ='MPG-3'!A37 ->  | B37: ='MPG-3'!B37 ->  | D37: ='MPG-3'!D37 ->  | G37: ='MPG-6'!G37 ->  | H37: ='MPG-6'!J37 ->  | N37: ='MPG-6'!M37 ->  | V37: ='MPG-5'!F37 -> 
A38: ='MPG-3'!A38 ->  | B38: ='MPG-3'!B38 ->  | D38: ='MPG-3'!D38 ->  | G38: ='MPG-6'!G38 ->  | H38: ='MPG-6'!J38 ->  | N38: ='MPG-6'!M38 ->  | V38: ='MPG-5'!F38 -> 
A39: ='MPG-3'!A39 ->  | B39: ='MPG-3'!B39 ->  | D39: ='MPG-3'!D39 ->  | G39: ='MPG-6'!G39 ->  | H39: ='MPG-6'!J39 ->  | N39: ='MPG-6'!M39 ->  | V39: ='MPG-5'!F39 -> 
A40: ='MPG-3'!A40 ->  | B40: ='MPG-3'!B40 ->  | D40: ='MPG-3'!D40 ->  | G40: ='MPG-6'!G40 ->  | H40: ='MPG-6'!J40 ->  | N40: ='MPG-6'!M40 ->  | V40: ='MPG-5'!F40 -> 
A41: ='MPG-3'!A41 ->  | B41: ='MPG-3'!B41 ->  | D41: ='MPG-3'!D41 ->  | G41: ='MPG-6'!G41 ->  | H41: ='MPG-6'!J41 ->  | N41: ='MPG-6'!M41 ->  | V41: ='MPG-5'!F41 -> 
A42: ='MPG-3'!A42 ->  | B42: ='MPG-3'!B42 ->  | D42: ='MPG-3'!D42 ->  | G42: ='MPG-6'!G42 ->  | H42: ='MPG-6'!J42 ->  | N42: ='MPG-6'!M42 ->  | V42: ='MPG-5'!F42 -> 
A43: ='MPG-3'!A43 ->  | B43: ='MPG-3'!B43 ->  | D43: ='MPG-3'!D43 ->  | G43: ='MPG-6'!G43 ->  | H43: ='MPG-6'!J43 ->  | N43: ='MPG-6'!M43 ->  | V43: ='MPG-5'!F43 -> 
A44: ='MPG-3'!A44 ->  | B44: ='MPG-3'!B44 ->  | D44: ='MPG-3'!D44 ->  | G44: ='MPG-6'!G44 ->  | H44: ='MPG-6'!J44 ->  | N44: ='MPG-6'!M44 ->  | V44: ='MPG-5'!F44 -> 
A45: ='MPG-3'!A45 ->  | B45: ='MPG-3'!B45 ->  | D45: ='MPG-3'!D45 ->  | G45: ='MPG-6'!G45 ->  | H45: ='MPG-6'!J45 ->  | I45: =IF(B45="","",VLOOKUP($B45,VLLU,12,0)) ->  | N45: ='MPG-6'!M45 ->  | V45: ='MPG-5'!F45 ->  | W45: =IF($B45="","",VLOOKUP($B45,VLLU,11,FALSE)) ->  | Y45: =IF($B45="","",VLOOKUP($B45,VLLU,8,FALSE)) ->  | Z45: =IF($B45="","",VLOOKUP($B45,VLLU,9,FALSE)) -> 
A46: ='MPG-3'!A46 ->  | B46: ='MPG-3'!B46 ->  | D46: ='MPG-3'!D46 ->  | G46: ='MPG-6'!G46 ->  | H46: ='MPG-6'!J46 ->  | N46: ='MPG-6'!M46 ->  | V46: ='MPG-5'!F46 -> 
A47: ='MPG-3'!A47 ->  | B47: ='MPG-3'!B47 ->  | D47: ='MPG-3'!D47 ->  | G47: ='MPG-6'!G47 ->  | H47: ='MPG-6'!J47 ->  | N47: ='MPG-6'!M47 ->  | V47: ='MPG-5'!F47 -> 
A48: ='MPG-3'!A48 ->  | B48: ='MPG-3'!B48 ->  | D48: ='MPG-3'!D48 ->  | G48: ='MPG-6'!G48 ->  | H48: ='MPG-6'!J48 ->  | N48: ='MPG-6'!M48 ->  | V48: ='MPG-5'!F48 -> 
A49: ='MPG-3'!A49 ->  | B49: ='MPG-3'!B49 ->  | D49: ='MPG-3'!D49 ->  | G49: ='MPG-6'!G49 ->  | H49: ='MPG-6'!J49 ->  | N49: ='MPG-6'!M49 ->  | V49: ='MPG-5'!F49 -> 
A50: ='MPG-3'!A50 ->  | B50: ='MPG-3'!B50 ->  | D50: ='MPG-3'!D50 ->  | G50: ='MPG-6'!G50 ->  | H50: ='MPG-6'!J50 ->  | N50: ='MPG-6'!M50 ->  | V50: ='MPG-5'!F50 -> 
A51: ='MPG-3'!A51 ->  | B51: ='MPG-3'!B51 ->  | D51: ='MPG-3'!D51 ->  | G51: ='MPG-6'!G51 ->  | H51: ='MPG-6'!J51 ->  | N51: ='MPG-6'!M51 ->  | V51: ='MPG-5'!F51 -> 
A52: ='MPG-3'!A52 ->  | B52: ='MPG-3'!B52 ->  | D52: ='MPG-3'!D52 ->  | G52: ='MPG-6'!G52 ->  | H52: ='MPG-6'!J52 ->  | N52: ='MPG-6'!M52 ->  | V52: ='MPG-5'!F52 -> 
A53: ='MPG-3'!A53 ->  | B53: ='MPG-3'!B53 ->  | D53: ='MPG-3'!D53 ->  | G53: ='MPG-6'!G53 ->  | H53: ='MPG-6'!J53 ->  | N53: ='MPG-6'!M53 ->  | V53: ='MPG-5'!F53 -> 
A54: ='MPG-3'!A54 ->  | B54: ='MPG-3'!B54 ->  | D54: ='MPG-3'!D54 ->  | G54: ='MPG-6'!G54 ->  | H54: ='MPG-6'!J54 ->  | N54: ='MPG-6'!M54 ->  | V54: ='MPG-5'!F54 -> 
A55: ='MPG-3'!A55 ->  | B55: ='MPG-3'!B55 ->  | D55: ='MPG-3'!D55 ->  | G55: ='MPG-6'!G55 ->  | H55: ='MPG-6'!J55 ->  | N55: ='MPG-6'!M55 ->  | V55: ='MPG-5'!F55 -> 
A56: ='MPG-3'!A56 ->  | B56: ='MPG-3'!B56 ->  | D56: ='MPG-3'!D56 ->  | G56: ='MPG-6'!G56 ->  | H56: ='MPG-6'!J56 ->  | N56: ='MPG-6'!M56 ->  | V56: ='MPG-5'!F56 -> 
A57: ='MPG-3'!A57 ->  | B57: ='MPG-3'!B57 ->  | D57: ='MPG-3'!D57 ->  | G57: ='MPG-6'!G57 ->  | H57: ='MPG-6'!J57 ->  | N57: ='MPG-6'!M57 ->  | V57: ='MPG-5'!F57 -> 
A58: ='MPG-3'!A58 ->  | B58: ='MPG-3'!B58 ->  | D58: ='MPG-3'!D58 ->  | G58: ='MPG-6'!G58 ->  | H58: ='MPG-6'!J58 ->  | N58: ='MPG-6'!M58 ->  | V58: ='MPG-5'!F58 -> 
A59: ='MPG-3'!A59 ->  | B59: ='MPG-3'!B59 ->  | D59: ='MPG-3'!D59 ->  | G59: ='MPG-6'!G59 ->  | H59: ='MPG-6'!J59 ->  | N59: ='MPG-6'!M59 ->  | V59: ='MPG-5'!F59 -> 
A60: ='MPG-3'!A60 ->  | B60: ='MPG-3'!B60 ->  | D60: ='MPG-3'!D60 ->  | G60: ='MPG-6'!G60 ->  | H60: ='MPG-6'!J60 ->  | N60: ='MPG-6'!M60 ->  | V60: ='MPG-5'!F60 -> 
A61: ='MPG-3'!A61 ->  | B61: ='MPG-3'!B61 ->  | D61: ='MPG-3'!D61 ->  | G61: ='MPG-6'!G61 ->  | H61: ='MPG-6'!J61 ->  | I61: =IF(B61="","",VLOOKUP($B61,VLLU,12,0)) ->  | J61: =IF($B61="","",IFERROR((I61/W61)^(1/($AH61-$W$8))-1,"N/A")) ->  | K61: =IF($B61="","",IFERROR(H61/I61,"N/A")) ->  | L61: =IF($B61="","",IFERROR((2*(1+J61))/(2+J61),"N/A")) ->  | M61: =IF($B61="","",IFERROR(K61*L61,"N/A")) ->  | N61: ='MPG-6'!M61 ->  | O61: =IF($B61="","",IFERROR(1-N61,"N/A")) ->  | P61: =IF($B61="","",IFERROR(O61*M61,"N/A")) ->  | Q61: =IF($B61="","",IFERROR(IF(AD61<0,P61,P61+AD61),P61)) ->  | R61: =A61 ->  | T61: =D61 ->  | V61: ='MPG-5'!F61 ->  | X61: =IF($B61="","",IFERROR(V61/W61,"N/A")) ->  | AA61: =IF($B61="","",IFERROR((Z61/Y61)^(1/($AH61-$Y$10))-1,"N/A")) ->  | AB61: =IF($B61="","",IFERROR(AA61*X61,"N/A")) ->  | AC61: =IF($B61="","",IFERROR(1-1/X61,"N/A")) ->  | AD61: =IF($B61="","",AB61*AC61) -> 
A62: ='MPG-3'!A62 ->  | B62: ='MPG-3'!B62 ->  | D62: ='MPG-3'!D62 ->  | G62: ='MPG-6'!G62 ->  | H62: ='MPG-6'!J62 ->  | N62: ='MPG-6'!M62 ->  | V62: ='MPG-5'!F62 -> 
A64: =MAX($A$13:A63)+1 -> 22 | D64: Average Gas | G64: =AVERAGE(G13:G19) -> 2.812857143 | H64: =AVERAGE(H13:H19) -> 4.964285714 | I64: 52.01428571 | J64: 0.03056481484 | K64: 0.0986570475 | L64: 1.015028373 | M64: 0.1001928033 | N64: 0.5773710396 | O64: 0.4226289604 | P64: 0.04257695906 | Q64: 0.05821679484 | R64: =MAX($R$13:R63)+1 -> 22 | T64: =D64 -> Average Gas | V64: =AVERAGE(V13:V19) -> 72.0178989 | W64: =AVERAGE(W13:W19) -> 44.66571429 | X64: 1.613970542 | Y64: 136.3028571 | Z64: 154.5714286 | AA64: 0.02847699761 | AB64: 0.04411683339 | AC64: 0.3584707311 | AD64: 0.01563983579
A66: =MAX($A$13:A65)+1 -> 23 | D66: Average Electric | G66: =AVERAGE(G20:G61) -> 3.37 | H66: =AVERAGE(H20:H61) -> 5.589285714 | I66: =AVERAGE(I20:I61) -> 50.23928571 | J66: 0.03697718651 | K66: 0.1142195469 | L66: 1.018114879 | M66: 0.1162763712 | N66: 0.6077753468 | O66: 0.3922246532 | P66: 0.04632064737 | Q66: 0.05196437548 | R66: =MAX($R$13:R65)+1 -> 23 | T66: =D66 -> Average Electric | V66: =AVERAGE(V20:V61) -> 77.74053956 | W66: =AVERAGE(W20:W61) -> 41.80071429 | X66: 1.901020426 | Y66: 363.7035714 | Z66: 374.0857143 | AA66: 0.006793598624 | AB66: 0.01239061762 | AC66: 0.4389572749 | AD66: 0.005597018993
A68: =MAX($A$13:A67)+1 -> 24 | D68: Average Combined | G68: =AVERAGE(G13:G63) -> 3.184285714 | H68: =AVERAGE(H13:H63) -> 5.380952381 | I68: 50.83095238 | J68: 0.03483972929 | K68: 0.1090320471 | L68: 1.017086044 | M68: 0.1109151819 | N68: 0.5976405777 | O68: 0.4023594223 | P68: 0.04507275127 | Q68: 0.05404851527 | R68: =MAX($R$13:R67)+1 -> 24 | T68: =D68 -> Average Combined | V68: =AVERAGE(V13:V63) -> 75.83299267 | W68: =AVERAGE(W13:W63) -> 42.75571429 | X68: 1.805337131 | Y68: 287.9033333 | Z68: 300.9142857 | AA68: 0.01402139829 | AB68: 0.02296602288 | AC68: =AVERAGE(AC13:AC63) -> 0.412128427 | AD68: =AVERAGE(AD13:AD58) -> 0.008944624591
D71: Sources and Notes: | S71: Sources and Notes:
D72: Cols. (1), (2) and (3): | E72: The Value Line Investment Survey, May 9, June 6, and July 18, 2025. | S72: =+R72+1 -> 1 | T72: =+'MPG-5'!D75 -> S&P Global Intelligence, Downloaded on July 18, 2025.
D73: Col. (4): [ Col. (3) / Page 2 Col. (2) ] ^ (1/number of years projected) - 1. | S73: =+S72+1 -> 2 | T73: The Value Line Investment Survey, May 9, June 6, and July 18, 2025.
D74: Col. (5): Col. (2) / Col. (3). | S74: =+S73+1 -> 3 | T74: Expected Growth in the Number of Shares, Column (3) * Column (6).
D75: Col. (6): [ 2 * (1 + Col. (4)) ] / (2 + Col. (4)). | S75: =+S74+1 -> 4 | T75: Expected Profit of Stock Investment, [ 1 - 1 / Column (3) ].
D76: Col. (7): Col. (6) * Col. (5).
D77: Col. (8): Col. (1) / Col. (2).
D78: Col. (9): 1 - Col. (8).
D79: Col. (10): Col. (9) * Col. (7).
D80: Col. (11): Col. (10) + Page 2 Col. (9).

Sheet MPG-8
A1: =Utility -> Kentucky Utilities Company / Louisville Gas & Electric Company
A5: ='MPG-5'!A5:K5 -> Constant Growth DCF Model
A6: (Sustainable Growth Rate)
F9: 13-Week AVG | H9: Sustainable | I9: Annualized | J9: Adjusted | K9: Constant
A10: Line | D10: Company | F10: Stock Price1 | H10: Growth2 | I10: Dividend3 | J10: Yield | K10: Growth DCF
F11: -1 | H11: -2 | I11: -3 | J11: -4 | K11: -5
A13: ='MPG-3'!A13 -> 1 | B13: ='MPG-3'!B13 -> ATO | D13: ='MPG-3'!D13 -> Atmos Energy Corporation | F13: ='MPG-5'!F13 -> 155.3971615 | H13: ='MPG-7'!Q13 -> 0.08656839425 | I13: ='MPG-5'!H13 -> 3.48 | J13: =IF($B13="","",IFERROR(I13*(1+H13)/F13,"N/A")) -> 0.02433286409 | K13: =IF($B13="","",IFERROR(H13+J13,"N/A")) -> 0.1109012583
A14: ='MPG-3'!A14 -> 2 | B14: ='MPG-3'!B14 -> NJR | D14: ='MPG-3'!D14 -> New Jersey Resources Corporation | F14: ='MPG-5'!F14 -> 46.21423077 | H14: ='MPG-7'!Q14 -> 0.07472730779 | I14: ='MPG-5'!H14 -> 1.8 | J14: =IF($B14="","",IFERROR(I14*(1+H14)/F14,"N/A")) -> 0.0418595987 | K14: =IF($B14="","",IFERROR(H14+J14,"N/A")) -> 0.1165869065
A15: ='MPG-3'!A15 -> 3 | B15: ='MPG-3'!B15 -> NI | D15: ='MPG-3'!D15 -> NiSource Inc. | F15: ='MPG-5'!F15 -> 39.37201538 | H15: ='MPG-7'!Q15 -> 0.06020211093 | I15: ='MPG-5'!H15 -> 1.12 | J15: 0.0301591461 | K15: 0.09036125703
A16: ='MPG-3'!A16 -> 4 | B16: ='MPG-3'!B16 -> NWN | D16: ='MPG-3'!D16 -> Northwest Natural Holding Company | F16: ='MPG-5'!F16 -> 41.29269231 | H16: ='MPG-7'!Q16 -> 0.0453003871 | I16: ='MPG-5'!H16 -> 1.96 | J16: 0.04961625518 | K16: 0.09491664228
A17: ='MPG-3'!A17 -> 5 | B17: ='MPG-3'!B17 -> OGS | D17: ='MPG-3'!D17 -> ONE Gas, Inc. | F17: ='MPG-5'!F17 -> 74.46857308 | H17: ='MPG-7'!Q17 -> 0.05572205574 | I17: ='MPG-5'!H17 -> 2.68 | J17: 0.03799367965 | K17: 0.09371573538
A18: ='MPG-3'!A18 -> 6 | B18: ='MPG-3'!B18 -> SWX | D18: ='MPG-3'!D18 -> Southwest Gas Holdings, Inc. | F18: ='MPG-5'!F18 -> 73.09840385 | H18: ='MPG-7'!Q18 -> 0.03827489304 | I18: ='MPG-5'!H18 -> 2.48 | J18: 0.03522541669 | K18: 0.07350030973
A19: ='MPG-3'!A19 -> 7 | B19: ='MPG-3'!B19 -> SR | D19: ='MPG-3'!D19 -> Spire Inc. | F19: ='MPG-5'!F19 -> 74.28221538 | H19: ='MPG-7'!Q19 -> 0.04672241506 | I19: ='MPG-5'!H19 -> 3.14 | J19: 0.04424623534 | K19: 0.0909686504
A20: ='MPG-3'!A20 -> 8 | B20: ='MPG-3'!B20 -> LNT | D20: ='MPG-3'!D20 -> Alliant Energy Corporation | F20: ='MPG-5'!F20 -> 61.26964615 | H20: ='MPG-7'!Q20 -> 0.05824433895 | I20: ='MPG-5'!H20 -> 1.92 | J20: 0.03316208365 | K20: 0.0914064226
A21: ='MPG-3'!A21 -> 9 | B21: ='MPG-3'!B21 -> AEE | D21: ='MPG-3'!D21 -> Ameren Corporation | F21: ='MPG-5'!F21 -> 96.45411538 | H21: ='MPG-7'!Q21 -> 0.07528918895 | I21: ='MPG-5'!H21 -> 2.84 | J21: 0.03166087092 | K21: 0.1069500599
A22: ='MPG-3'!A22 -> 10 | B22: ='MPG-3'!B22 -> AEP | D22: ='MPG-3'!D22 -> American Electric Power Company, Inc. | F22: ='MPG-5'!F22 -> 103.7285885 | H22: ='MPG-7'!Q22 -> 0.06333884088 | I22: ='MPG-5'!H22 -> 3.72 | J22: 0.03813433256 | K22: 0.1014731734
A23: ='MPG-3'!A23 -> 11 | B23: ='MPG-3'!B23 -> DUK | D23: ='MPG-3'!D23 -> Duke Energy Corporation | F23: ='MPG-5'!F23 -> 117.5577077 | H23: ='MPG-7'!Q23 -> 0.04083652603 | I23: ='MPG-5'!H23 -> 4.18 | J23: 0.03700902956 | K23: 0.07784555559
A24: ='MPG-3'!A24 -> 12 | B24: ='MPG-3'!B24 -> EIX | D24: ='MPG-3'!D24 -> Edison International | F24: ='MPG-5'!F24 -> 53.62657692 | H24: ='MPG-7'!Q24 -> 0.06137820457 | I24: ='MPG-5'!H24 -> 3.31 | J24: 0.06551158136 | K24: 0.1268897859
A25: ='MPG-3'!A25 -> 13 | B25: ='MPG-3'!B25 -> ETR | D25: ='MPG-3'!D25 -> Entergy Corporation | F25: ='MPG-5'!F25 -> 82.5025 | H25: ='MPG-7'!Q25 -> 0.04680407884 | I25: ='MPG-5'!H25 -> 2.4 | J25: 0.03045155952 | K25: 0.07725563836
A26: ='MPG-3'!A26 -> 14 | B26: ='MPG-3'!B26 -> EVRG | D26: ='MPG-3'!D26 -> Evergy, Inc. | F26: ='MPG-5'!F26 -> 67.43373462 | H26: ='MPG-7'!Q26 -> 0.03824379869 | I26: ='MPG-5'!H26 -> 2.67 | J26: 0.04110866702 | K26: 0.07935246572
A27: ='MPG-3'!A27 -> 15 | B27: ='MPG-3'!B27 -> IDA | D27: ='MPG-3'!D27 -> IDACORP, Inc. | F27: ='MPG-5'!F27 -> 115.7440346 | H27: ='MPG-7'!Q27 -> 0.04728819125 | I27: ='MPG-5'!H27 -> 3.44 | J27: 0.03112619488 | K27: 0.07841438613
A28: ='MPG-3'!A28 -> 16 | B28: ='MPG-3'!B28 -> NWE | D28: ='MPG-3'!D28 -> NorthWestern Corporation | F28: ='MPG-5'!F28 -> 54.16827308 | H28: ='MPG-7'!Q28 -> 0.03074270199 | I28: ='MPG-5'!H28 -> 2.64 | J28: 0.05023532372 | K28: 0.0809780257
A29: ='MPG-3'!A29 -> 17 | B29: ='MPG-3'!B29 -> OGE | D29: ='MPG-3'!D29 -> OGE Energy Corp. | F29: ='MPG-5'!F29 -> 44.30096154 | H29: ='MPG-7'!Q29 -> 0.04479955906 | I29: ='MPG-5'!H29 -> 1.6852 | J29: 0.03974397295 | K29: 0.084543532
A30: ='MPG-3'!A30 -> 18 | B30: ='MPG-3'!B30 -> PNW | D30: ='MPG-3'!D30 -> Pinnacle West Capital Corporation | F30: ='MPG-5'!F30 -> 90.87253846 | H30: ='MPG-7'!Q30 -> 0.04149850616 | I30: ='MPG-5'!H30 -> 3.58 | J30: 0.04103070867 | K30: 0.08252921484
A31: ='MPG-3'!A31 -> 19 | B31: ='MPG-3'!B31 -> POR | D31: ='MPG-3'!D31 -> Portland General Electric Company | F31: ='MPG-5'!F31 -> 41.43103077 | H31: ='MPG-7'!Q31 -> 0.03791394858 | I31: ='MPG-5'!H31 -> 2.1 | J31: 0.05260837714 | K31: 0.09052232572
A32: ='MPG-3'!A32 -> 20 | B32: ='MPG-3'!B32 -> SO | D32: ='MPG-3'!D32 -> The Southern Company | F32: ='MPG-5'!F32 -> 90.21650385 | H32: ='MPG-7'!Q32 -> 0.08689918807 | I32: ='MPG-5'!H32 -> 2.96 | J32: 0.0356611203 | K32: 0.1225603084
A33: ='MPG-3'!A33 -> 21 | B33: ='MPG-3'!B33 -> XEL | D33: ='MPG-3'!D33 -> Xcel Energy Inc. | F33: ='MPG-5'!F33 -> 69.06134231 | H33: ='MPG-7'!Q33 -> 0.05422418475 | I33: ='MPG-5'!H33 -> 2.28 | J33: 0.03480429226 | K33: 0.08902847701
A34: ='MPG-3'!A34 ->  | B34: ='MPG-3'!B34 ->  | D34: ='MPG-3'!D34 ->  | F34: ='MPG-5'!F34 ->  | H34: ='MPG-7'!Q34 ->  | I34: ='MPG-5'!H34 -> 
A35: ='MPG-3'!A35 ->  | B35: ='MPG-3'!B35 ->  | D35: ='MPG-3'!D35 ->  | F35: ='MPG-5'!F35 ->  | H35: ='MPG-7'!Q35 ->  | I35: ='MPG-5'!H35 -> 
A36: ='MPG-3'!A36 ->  | B36: ='MPG-3'!B36 ->  | D36: ='MPG-3'!D36 ->  | F36: ='MPG-5'!F36 ->  | H36: ='MPG-7'!Q36 ->  | I36: ='MPG-5'!H36 -> 
A37: ='MPG-3'!A37 ->  | B37: ='MPG-3'!B37 ->  | D37: ='MPG-3'!D37 ->  | F37: ='MPG-5'!F37 ->  | H37: ='MPG-7'!Q37 ->  | I37: ='MPG-5'!H37 -> 
A38: ='MPG-3'!A38 ->  | B38: ='MPG-3'!B38 ->  | D38: ='MPG-3'!D38 ->  | F38: ='MPG-5'!F38 ->  | H38: ='MPG-7'!Q38 ->  | I38: ='MPG-5'!H38 -> 
A39: ='MPG-3'!A39 ->  | B39: ='MPG-3'!B39 ->  | D39: ='MPG-3'!D39 ->  | F39: ='MPG-5'!F39 ->  | H39: ='MPG-7'!Q39 ->  | I39: ='MPG-5'!H39 -> 
A40: ='MPG-3'!A40 ->  | B40: ='MPG-3'!B40 ->  | D40: ='MPG-3'!D40 ->  | F40: ='MPG-5'!F40 ->  | H40: ='MPG-7'!Q40 ->  | I40: ='MPG-5'!H40 -> 
A41: ='MPG-3'!A41 ->  | B41: ='MPG-3'!B41 ->  | D41: ='MPG-3'!D41 ->  | F41: ='MPG-5'!F41 ->  | H41: ='MPG-7'!Q41 ->  | I41: ='MPG-5'!H41 -> 
A42: ='MPG-3'!A42 ->  | B42: ='MPG-3'!B42 ->  | D42: ='MPG-3'!D42 ->  | F42: ='MPG-5'!F42 ->  | H42: ='MPG-7'!Q42 ->  | I42: ='MPG-5'!H42 -> 
A43: ='MPG-3'!A43 ->  | B43: ='MPG-3'!B43 ->  | D43: ='MPG-3'!D43 ->  | F43: ='MPG-5'!F43 ->  | H43: ='MPG-7'!Q43 ->  | I43: ='MPG-5'!H43 -> 
A44: ='MPG-3'!A44 ->  | B44: ='MPG-3'!B44 ->  | D44: ='MPG-3'!D44 ->  | F44: ='MPG-5'!F44 ->  | H44: ='MPG-7'!Q44 ->  | I44: ='MPG-5'!H44 -> 
A45: ='MPG-3'!A45 ->  | B45: ='MPG-3'!B45 ->  | D45: ='MPG-3'!D45 ->  | F45: ='MPG-5'!F45 ->  | H45: ='MPG-7'!Q45 ->  | I45: ='MPG-5'!H45 -> 
A46: ='MPG-3'!A46 ->  | B46: ='MPG-3'!B46 ->  | D46: ='MPG-3'!D46 ->  | F46: ='MPG-5'!F46 ->  | H46: ='MPG-7'!Q46 ->  | I46: ='MPG-5'!H46 -> 
A47: ='MPG-3'!A47 ->  | B47: ='MPG-3'!B47 ->  | D47: ='MPG-3'!D47 ->  | F47: ='MPG-5'!F47 ->  | H47: ='MPG-7'!Q47 ->  | I47: ='MPG-5'!H47 -> 
A48: ='MPG-3'!A48 ->  | B48: ='MPG-3'!B48 ->  | D48: ='MPG-3'!D48 ->  | F48: ='MPG-5'!F48 ->  | H48: ='MPG-7'!Q48 ->  | I48: ='MPG-5'!H48 -> 
A49: ='MPG-3'!A49 ->  | B49: ='MPG-3'!B49 ->  | D49: ='MPG-3'!D49 ->  | F49: ='MPG-5'!F49 ->  | H49: ='MPG-7'!Q49 ->  | I49: ='MPG-5'!H49 -> 
A50: ='MPG-3'!A50 ->  | B50: ='MPG-3'!B50 ->  | D50: ='MPG-3'!D50 ->  | F50: ='MPG-5'!F50 ->  | H50: ='MPG-7'!Q50 ->  | I50: ='MPG-5'!H50 -> 
A51: ='MPG-3'!A51 ->  | B51: ='MPG-3'!B51 ->  | D51: ='MPG-3'!D51 ->  | F51: ='MPG-5'!F51 ->  | H51: ='MPG-7'!Q51 ->  | I51: ='MPG-5'!H51 -> 
A52: ='MPG-3'!A52 ->  | B52: ='MPG-3'!B52 ->  | D52: ='MPG-3'!D52 ->  | F52: ='MPG-5'!F52 ->  | H52: ='MPG-7'!Q52 ->  | I52: ='MPG-5'!H52 -> 
A53: ='MPG-3'!A53 ->  | B53: ='MPG-3'!B53 ->  | D53: ='MPG-3'!D53 ->  | F53: ='MPG-5'!F53 ->  | H53: ='MPG-7'!Q53 ->  | I53: ='MPG-5'!H53 -> 
A54: ='MPG-3'!A54 ->  | B54: ='MPG-3'!B54 ->  | D54: ='MPG-3'!D54 ->  | F54: ='MPG-5'!F54 ->  | H54: ='MPG-7'!Q54 ->  | I54: ='MPG-5'!H54 -> 
A55: ='MPG-3'!A55 ->  | B55: ='MPG-3'!B55 ->  | D55: ='MPG-3'!D55 ->  | F55: ='MPG-5'!F55 ->  | H55: ='MPG-7'!Q55 ->  | I55: ='MPG-5'!H55 -> 
A56: ='MPG-3'!A56 ->  | B56: ='MPG-3'!B56 ->  | D56: ='MPG-3'!D56 ->  | F56: ='MPG-5'!F56 ->  | H56: ='MPG-7'!Q56 ->  | I56: ='MPG-5'!H56 -> 
A57: ='MPG-3'!A57 ->  | B57: ='MPG-3'!B57 ->  | D57: ='MPG-3'!D57 ->  | F57: ='MPG-5'!F57 ->  | H57: ='MPG-7'!Q57 ->  | I57: ='MPG-5'!H57 -> 
A58: ='MPG-3'!A58 ->  | B58: ='MPG-3'!B58 ->  | D58: ='MPG-3'!D58 ->  | F58: ='MPG-5'!F58 ->  | H58: ='MPG-7'!Q58 ->  | I58: ='MPG-5'!H58 -> 
A59: ='MPG-3'!A59 ->  | B59: ='MPG-3'!B59 ->  | D59: ='MPG-3'!D59 ->  | F59: ='MPG-5'!F59 ->  | H59: ='MPG-7'!Q59 ->  | I59: ='MPG-5'!H59 -> 
A60: ='MPG-3'!A60 ->  | B60: ='MPG-3'!B60 ->  | D60: ='MPG-3'!D60 ->  | F60: ='MPG-5'!F60 ->  | H60: ='MPG-7'!Q60 ->  | I60: ='MPG-5'!H60 -> 
A61: ='MPG-3'!A61 ->  | B61: ='MPG-3'!B61 ->  | D61: ='MPG-3'!D61 ->  | F61: ='MPG-5'!F61 ->  | H61: ='MPG-7'!Q61 ->  | I61: ='MPG-5'!H61 ->  | J61: =IF($B61="","",IFERROR(I61*(1+H61)/F61,"N/A")) ->  | K61: =IF($B61="","",IFERROR(H61+J61,"N/A")) -> 
A62: ='MPG-3'!A62 ->  | B62: ='MPG-3'!B62 ->  | D62: ='MPG-3'!D62 ->  | F62: ='MPG-5'!F62 ->  | H62: ='MPG-7'!Q62 ->  | I62: ='MPG-5'!H62 -> 
A64: =MAX($A$13:A63)+1 -> 22 | D64: Average Gas | F64: =AVERAGE(F13:F19) -> 72.0178989 | H64: =AVERAGE(H13:H19) -> 0.05821679484 | I64: 2.38 | J64: 0.03763331368 | K64: 0.09585010852
A65: =MAX($A$13:A64)+1 -> 23 | D65: Median Gas | F65: =MEDIAN(F13:F19) -> 73.09840385 | H65: =MEDIAN(H13:H19) -> 0.05572205574 | I65: 2.48 | J65: 0.03799367965 | K65: 0.09371573538
A67: =MAX($A$13:A66)+1 -> 24 | D67: Average Electric | F67: =AVERAGE(F20:F60) -> 77.74053956 | H67: =AVERAGE(H20:H60) -> 0.05196437548 | I67: =AVERAGE(I20:I60) -> 2.837514286 | J67: 0.04016057961 | K67: 0.09212495509
A68: =MAX($A$13:A67)+1 -> 25 | D68: Median Electric | F68: =MEDIAN(F20:F60) -> 75.78192115 | H68: =MEDIAN(H20:H60) -> 0.04704613504 | I68: =MEDIAN(I20:I60) -> 2.755 | J68: 0.03757168106 | K68: 0.0867860045
A70: =MAX($A$13:A69)+1 -> 26 | D70: Average Combined | F70: =AVERAGE(F13:F63) -> 75.83299267 | H70: =AVERAGE(H13:H63) -> 0.05404851527 | I70: =AVERAGE(I13:I63) -> 2.685009524 | J70: =AVERAGE(J13:J63) -> 0.03931815763 | K70: =AVERAGE(K13:K63) -> 0.0933666729
A71: =MAX($A$13:A70)+1 -> 27 | D71: Median Combined | F71: =MEDIAN(F13:F63) -> 73.09840385 | H71: =MEDIAN(H13:H63) -> 0.04728819125 | I71: =MEDIAN(I13:I63) -> 2.67 | J71: =MEDIAN(J13:J63) -> 0.03799367965 | K71: =MEDIAN(K13:K63) -> 0.09052232572
C74: Sources:
C75: =+A75+1 -> 1 | D75: =+'MPG-7'!T72 -> S&P Global Intelligence, Downloaded on July 18, 2025.
C76: =+C75+1 -> 2 | D76: Exhibit MPG-7.
C77: =+C76+1 -> 3 | D77: The Value Line Investment Survey, May 9, June 6, and July 18, 2025.

Sheet MPG-9
A2: ='Proxy Group'!B1 -> Kentucky Utilities Company / Louisville Gas & Electric Company
A6: Electricity Sales Are Linked to U.S. Economic Growth
B30: Note: | C30: Note:
B31: 1988 represents the base year. Graph depicts increases or decreases from the base year. | C31: 1988 represents the base year. Graph depicts increases or decreases from the base year.
B33: Sources: | C33: Sources:
B34: U.S. Energy Information Administration | C34: U.S. Energy Information Administration
B35: Federal Reserve Bank of St. Louis | C35: Federal Reserve Bank of St. Louis

Sheet MPG-10
A1: =Utility -> Kentucky Utilities Company / Louisville Gas & Electric Company
A5: Multi-Stage Growth DCF Model
F9: 13-Week AVG | G9: Annualized | H9: First Stage | I9: Second Stage Growth | N9: Third Stage | O9: Multi-Stage | R9: First Stage | W9: Second Stage | AB9: Third Stage
A10: Line | D10: Company | F10: Stock Price1 | G10: Dividend2 | H10: Growth3 | I10: Year 6 | J10: Year 7 | K10: Year 8 | L10: Year 9 | M10: Year 10 | N10: Growth4 | O10: Growth DCF | Q10: Price | R10: Year1 | S10: Year2 | T10: Year3 | U10: Year4 | V10: Year5 | W10: Year6 | X10: Year7 | Y10: Year8 | Z10: Year9 | AA10: Year10 | AB10: Year11 | AC10: Year12 | AD10: Year13 | AE10: Year14 | AF10: Year15 | AG10: Year16 | AH10: Year17 | AI10: Year18 | AJ10: Year19 | AK10: Year20 | AL10: Year21 | AM10: Year22 | AN10: Year23 | AO10: Year24 | AP10: Year25 | AQ10: Year26 | AR10: Year27 | AS10: Year28 | AT10: Year29 | AU10: Year30 | AV10: Year31 | AW10: Year32 | AX10: Year33 | AY10: Year34 | AZ10: Year35 | BA10: Year36 | BB10: Year37 | BC10: Year38 | BD10: Year39 | BE10: Year40 | BF10: Year41 | BG10: Year42 | BH10: Year43 | BI10: Year44 | BJ10: Year45 | BK10: Year46 | BL10: Year47 | BM10: Year48 | BN10: Year49 | BO10: Year50 | BP10: Year51 | BQ10: Year52 | BR10: Year53 | BS10: Year54 | BT10: Year55 | BU10: Year56 | BV10: Year57 | BW10: Year58 | BX10: Year59 | BY10: Year60 | BZ10: Year61 | CA10: Year62 | CB10: Year63 | CC10: Year64 | CD10: Year65 | CE10: Year66 | CF10: Year67 | CG10: Year68 | CH10: Year69 | CI10: Year70 | CJ10: Year71 | CK10: Year72 | CL10: Year73 | CM10: Year74 | CN10: Year75 | CO10: Year76 | CP10: Year77 | CQ10: Year78 | CR10: Year79 | CS10: Year80 | CT10: Year81 | CU10: Year82 | CV10: Year83 | CW10: Year84 | CX10: Year85 | CY10: Year86 | CZ10: Year87 | DA10: Year88 | DB10: Year89 | DC10: Year90 | DD10: Year91 | DE10: Year92 | DF10: Year93 | DG10: Year94 | DH10: Year95 | DI10: Year96 | DJ10: Year97 | DK10: Year98 | DL10: Year99 | DM10: Year100 | DN10: Year101 | DO10: Year102 | DP10: Year103 | DQ10: Year104 | DR10: Year105 | DS10: Year106 | DT10: Year107 | DU10: Year108 | DV10: Year109 | DW10: Year110 | DX10: Year111 | DY10: Year112 | DZ10: Year113 | EA10: Year114 | EB10: Year115 | EC10: Year116 | ED10: Year117 | EE10: Year118 | EF10: Year119 | EG10: Year120 | EH10: Year121 | EI10: Year122 | EJ10: Year123 | EK10: Year124 | EL10: Year125 | EM10: Year126 | EN10: Year127 | EO10: Year128 | EP10: Year129 | EQ10: Year130 | ER10: Year131 | ES10: Year132 | ET10: Year133 | EU10: Year134 | EV10: Year135 | EW10: Year136 | EX10: Year137 | EY10: Year138 | EZ10: Year139 | FA10: Year140 | FB10: Year141 | FC10: Year142 | FD10: Year143 | FE10: Year144 | FF10: Year145 | FG10: Year146 | FH10: Year147 | FI10: Year148 | FJ10: Year149 | FK10: Year150 | FL10: Year151 | FM10: Year152 | FN10: Year153 | FO10: Year154 | FP10: Year155 | FQ10: Year156 | FR10: Year157 | FS10: Year158 | FT10: Year159 | FU10: Year160 | FV10: Year161 | FW10: Year162 | FX10: Year163 | FY10: Year164 | FZ10: Year165 | GA10: Year166 | GB10: Year167 | GC10: Year168 | GD10: Year169 | GE10: Year170 | GF10: Year171 | GG10: Year172 | GH10: Year173 | GI10: Year174 | GJ10: Year175 | GK10: Year176 | GL10: Year177 | GM10: Year178 | GN10: Year179 | GO10: Year180 | GP10: Year181 | GQ10: Year182 | GR10: Year183 | GS10: Year184 | GT10: Year185 | GU10: Year186 | GV10: Year187 | GW10: Year188 | GX10: Year189 | GY10: Year190 | GZ10: Year191 | HA10: Year192 | HB10: Year193 | HC10: Year194 | HD10: Year195 | HE10: Year196 | HF10: Year197 | HG10: Year198 | HH10: Year199 | HI10: Year200
F11: -1 | G11: -2 | H11: -3 | I11: -4 | J11: -5 | K11: -6 | L11: -7 | M11: -8 | N11: -9 | O11: -10
A13: ='MPG-3'!A13 -> 1 | B13: ='MPG-3'!B13 -> ATO | D13: ='MPG-3'!D13 -> Atmos Energy Corporation | F13: ='MPG-5'!F13 -> 155.3971615 | G13: ='MPG-5'!H13 -> 3.48 | H13: ='MPG-4'!O13 -> 0.07191283333 | I13: =IF($B13="","",IFERROR(H13-($H13-$N13)/6,"N/A")) -> 0.06676069444 | J13: =IF($B13="","",IFERROR(I13-($H13-$N13)/6,"N/A")) -> 0.06160855556 | K13: =IF($B13="","",IFERROR(J13-($H13-$N13)/6,"N/A")) -> 0.05645641667 | L13: =IF($B13="","",IFERROR(K13-($H13-$N13)/6,"N/A")) -> 0.05130427778 | M13: =IF($B13="","",IFERROR(L13-($H13-$N13)/6,"N/A")) -> 0.04615213889 | N13: =IF(B13="","",ROUND(IFERROR((((1+0.02)*(1+0.021)-1)+((1+0.019)*(1+0.021)-1))/2,"N/A"),3)) -> 0.041 | O13: =IF($B13="","",IFERROR(IRR(Q13:HI13),"N/A")) -> 0.06939358156 | Q13: =IF(F13="","",-F13) -> -155.3971615 | R13: =IF(Q13="","",G13*(1+$H13)) -> 3.73025666 | S13: =IF(R13="","",R13*(1+$H13)) -> 3.998509985 | T13: =IF(S13="","",S13*(1+$H13)) -> 4.286054168 | U13: =IF(T13="","",T13*(1+$H13)) -> 4.594276467 | V13: =IF(U13="","",U13*(1+$H13)) -> 4.924663904 | W13: =IF(V13="","",V13*(1+I13)) -> 5.253437887 | X13: =IF(W13="","",W13*(1+J13)) -> 5.577094607 | Y13: 5.891957383 | Z13: 6.194240002 | AA13: 6.480117427 | AB13: =IF(AA13="","",AA13*(1+$N13)) -> 6.745802241 | AC13: =IF(AB13="","",AB13*(1+$N13)) -> 7.022380133 | AD13: 7.310297718 | AE13: 7.610019925 | AF13: 7.922030742 | AG13: 8.246834002 | AH13: 8.584954196 | AI13: 8.936937318 | AJ13: 9.303351748 | AK13: 9.68478917 | AL13: 10.08186553 | AM13: 10.49522201 | AN13: 10.92552612 | AO13: 11.37347269 | AP13: 11.83978507 | AQ13: 12.32521625 | AR13: 12.83055012 | AS13: 13.35660268 | AT13: 13.90422338 | AU13: 14.47429654 | AV13: 15.0677427 | AW13: 15.68552015 | AX13: 16.32862648 | AY13: 16.99810016 | AZ13: 17.69502227 | BA13: 18.42051818 | BB13: 19.17575943 | BC13: 19.96196557 | BD13: 20.78040615 | BE13: 21.63240281 | BF13: 22.51933132 | BG13: 23.44262391 | BH13: 24.40377149 | BI13: 25.40432612 | BJ13: 26.44590349 | BK13: 27.53018553 | BL13: 28.65892314 | BM13: 29.83393899 | BN13: 31.05713049 | BO13: 32.33047283 | BP13: 33.65602222 | BQ13: 35.03591913 | BR13: 36.47239182 | BS13: 37.96775988 | BT13: 39.52443804 | BU13: 41.14494 | BV13: 42.83188254 | BW13: 44.58798972 | BX13: 46.4160973 | BY13: 48.31915729 | BZ13: 50.30024274 | CA13: 52.36255269 | CB13: 54.50941735 | CC13: 56.74430346 | CD13: 59.0708199 | CE13: 61.49272352 | CF13: 64.01392518 | CG13: 66.63849611 | CH13: 69.37067446 | CI13: 72.21487211 | CJ13: 75.17568186 | CK13: 78.25788482 | CL13: 81.4664581 | CM13: 84.80658288 | CN13: 88.28365278 | CO13: =IF(CN13="","",CN13*(1+$N13)) -> 91.90328254 | CP13: 95.67131713 | CQ13: 99.59384113 | CR13: 103.6771886 | CS13: 107.9279533 | CT13: 112.3529994 | CU13: 116.9594724 | CV13: 121.7548108 | CW13: 126.746758 | CX13: 131.9433751 | CY13: 137.3530535 | CZ13: 142.9845287 | DA13: 148.8468943 | DB13: 154.949617 | DC13: 161.3025513 | DD13: 167.9159559 | DE13: 174.8005101 | DF13: 181.967331 | DG13: 189.4279916 | DH13: 197.1945393 | DI13: 205.2795154 | DJ13: 213.6959755 | DK13: 222.4575105 | DL13: 231.5782684 | DM13: 241.0729774 | DN13: 250.9569695 | DO13: 261.2462052 | DP13: 271.9572997 | DQ13: 283.1075489 | DR13: 294.7149585 | DS13: 306.7982718 | DT13: 319.3770009 | DU13: 332.4714579 | DV13: 346.1027877 | DW13: 360.293002 | DX13: 375.0650151 | DY13: 390.4426807 | DZ13: 406.4508306 | EA13: 423.1153147 | EB13: 440.4630426 | EC13: 458.5220273 | ED13: 477.3214304 | EE13: 496.8916091 | EF13: 517.2641651 | EG13: 538.4719958 | EH13: 560.5493477 | EI13: 583.5318709 | EJ13: 607.4566776 | EK13: 632.3624014 | EL13: 658.2892599 | EM13: =IF(EL13="","",EL13*(1+$N13)) -> 685.2791195 | EN13: =IF(EM13="","",EM13*(1+$N13)) -> 713.3755634 | EO13: 742.6239615 | EP13: 773.0715439 | EQ13: 804.7674772 | ER13: 837.7629438 | ES13: 872.1112245 | ET13: 907.8677847 | EU13: 945.0903639 | EV13: 983.8390688 | EW13: 1024.176471 | EX13: 1066.167706 | EY13: 1109.880582 | EZ13: 1155.385686 | FA13: 1202.756499 | FB13: 1252.069515 | FC13: 1303.404365 | FD13: 1356.843944 | FE13: 1412.474546 | FF13: 1470.386002 | FG13: 1530.671829 | FH13: 1593.429374 | FI13: 1658.759978 | FJ13: 1726.769137 | FK13: 1797.566672 | FL13: 1871.266905 | FM13: 1947.988848 | FN13: 2027.856391 | FO13: 2110.998503 | FP13: 2197.549442 | FQ13: 2287.648969 | FR13: 2381.442576 | FS13: 2479.081722 | FT13: 2580.724073 | FU13: 2686.53376 | FV13: 2796.681644 | FW13: 2911.345591 | FX13: 3030.71076 | FY13: 3154.969902 | FZ13: 3284.323668 | GA13: 3418.980938 | GB13: 3559.159156 | GC13: 3705.084682 | GD13: 3856.993154 | GE13: 4015.129873 | GF13: 4179.750198 | GG13: 4351.119956 | GH13: 4529.515874 | GI13: 4715.226025 | GJ13: 4908.550292 | GK13: 5109.800854 | GL13: 5319.302689 | GM13: 5537.394099 | GN13: 5764.427257 | GO13: 6000.768775 | GP13: 6246.800295 | GQ13: 6502.919107 | GR13: 6769.53879 | GS13: 7047.089881 | GT13: 7336.020566 | GU13: 7636.797409 | GV13: 7949.906103 | GW13: 8275.852253 | GX13: 8615.162195 | GY13: 8968.383845 | GZ13: =IF(GY13="","",GY13*(1+$N13)) -> 9336.087583 | HA13: 9718.867174 | HB13: 10117.34073 | HC13: 10532.1517 | HD13: 10963.96992 | HE13: 11413.49268 | HF13: 11881.44588 | HG13: 12368.58517 | HH13: 12875.69716 | HI13: 13403.60074
A14: ='MPG-3'!A14 -> 2 | B14: ='MPG-3'!B14 -> NJR | D14: ='MPG-3'!D14 -> New Jersey Resources Corporation | F14: ='MPG-5'!F14 -> 46.21423077 | G14: ='MPG-5'!H14 -> 1.8 | H14: ='MPG-4'!O14 -> 0.079 | I14: =IF($B14="","",IFERROR(H14-($H14-$N14)/6,"N/A")) -> 0.07266666667 | J14: =IF($B14="","",IFERROR(I14-($H14-$N14)/6,"N/A")) -> 0.06633333333 | K14: =IF($B14="","",IFERROR(J14-($H14-$N14)/6,"N/A")) -> 0.06 | L14: =IF($B14="","",IFERROR(K14-($H14-$N14)/6,"N/A")) -> 0.05366666667 | M14: =IF($B14="","",IFERROR(L14-($H14-$N14)/6,"N/A")) -> 0.04733333333 | N14: =IF(B14="","",ROUND(IFERROR((((1+0.02)*(1+0.021)-1)+((1+0.019)*(1+0.021)-1))/2,"N/A"),3)) -> 0.041 | O14: 0.09214829271 | Q14: =IF(F14="","",-F14) -> -46.21423077 | R14: =IF(Q14="","",G14*(1+$H14)) -> 1.9422 | S14: =IF(R14="","",R14*(1+$H14)) -> 2.0956338 | T14: 2.26118887 | U14: 2.439822791 | V14: 2.632568791 | W14: =IF(V14="","",V14*(1+I14)) -> 2.82386879 | X14: =IF(W14="","",W14*(1+J14)) -> 3.01118542 | Y14: =IF(X14="","",X14*(1+K14)) -> 3.191856545 | Z14: =IF(Y14="","",Y14*(1+L14)) -> 3.363152846 | AA14: =IF(Z14="","",Z14*(1+M14)) -> 3.522342081 | AB14: =IF(AA14="","",AA14*(1+$N14)) -> 3.666758107 | AC14: 3.817095189 | AD14: 3.973596092 | AE14: 4.136513531 | AF14: 4.306110586 | AG14: 4.48266112 | AH14: 4.666450226 | AI14: 4.857774685 | AJ14: 5.056943448 | AK14: 5.264278129 | AL14: 5.480113532 | AM14: 5.704798187 | AN14: 5.938694913 | AO14: 6.182181404 | AP14: 6.435650842 | AQ14: 6.699512526 | AR14: 6.97419254 | AS14: 7.260134434 | AT14: 7.557799946 | AU14: 7.867669743 | AV14: 8.190244203 | AW14: 8.526044215 | AX14: 8.875612028 | AY14: 9.239512121 | AZ14: 9.618332118 | BA14: 10.01268374 | BB14: 10.42320377 | BC14: 10.85055512 | BD14: 11.29542788 | BE14: 11.75854043 | BF14: 12.24064058 | BG14: 12.74250685 | BH14: 13.26494963 | BI14: 13.80881256 | BJ14: 14.37497388 | BK14: 14.96434781 | BL14: 15.57788607 | BM14: 16.2165794 | BN14: 16.88145915 | BO14: 17.57359898 | BP14: 18.29411653 | BQ14: 19.04417531 | BR14: 19.8249865 | BS14: 20.63781095 | BT14: 21.4839612 | BU14: 22.3648036 | BV14: 23.28176055 | BW14: 24.23631273 | BX14: 25.23000156 | BY14: 26.26443162 | BZ14: 27.34127332 | CA14: 28.46226552 | CB14: 29.62921841 | CC14: 30.84401636 | CD14: 32.10862103 | CE14: 33.4250745 | CF14: 34.79550255 | CG14: 36.22211816 | CH14: 37.707225 | CI14: 39.25322123 | CJ14: 40.8626033 | CK14: 42.53797003 | CL14: 44.2820268 | CM14: 46.0975899 | CN14: 47.98759109 | CO14: 49.95508232 | CP14: 52.0032407 | CQ14: 54.13537357 | CR14: 56.35492388 | CS14: 58.66547576 | CT14: 61.07076027 | CU14: 63.57466144 | CV14: 66.18122256 | CW14: 68.89465268 | CX14: 71.71933344 | CY14: 74.65982611 | CZ14: 77.72087898 | DA14: 80.90743502 | DB14: 84.22463986 | DC14: 87.67785009 | DD14: 91.27264195 | DE14: 95.01482027 | DF14: 98.9104279 | DG14: 102.9657554 | DH14: 107.1873514 | DI14: 111.5820328 | DJ14: 116.1568962 | DK14: 120.9193289 | DL14: 125.8770214 | DM14: 131.0379793 | DN14: 136.4105364 | DO14: 142.0033684 | DP14: 147.8255065 | DQ14: 153.8863523 | DR14: 160.1956927 | DS14: 166.7637161 | DT14: 173.6010285 | DU14: 180.7186707 | DV14: 188.1281362 | DW14: 195.8413897 | DX14: 203.8708867 | DY14: 212.2295931 | DZ14: 220.9310064 | EA14: 229.9891777 | EB14: 239.4187339 | EC14: 249.234902 | ED14: 259.453533 | EE14: 270.0911279 | EF14: 281.1648641 | EG14: 292.6926235 | EH14: 304.6930211 | EI14: 317.185435 | EJ14: 330.1900378 | EK14: 343.7278294 | EL14: 357.8206704 | EM14: =IF(EL14="","",EL14*(1+$N14)) -> 372.4913178 | EN14: 387.7634619 | EO14: 403.6617638 | EP14: 420.2118961 | EQ14: 437.4405839 | ER14: 455.3756478 | ES14: 474.0460494 | ET14: 493.4819374 | EU14: 513.7146968 | EV14: 534.7769994 | EW14: 556.7028564 | EX14: 579.5276735 | EY14: 603.2883081 | EZ14: 628.0231287 | FA14: 653.772077 | FB14: 680.5767322 | FC14: 708.4803782 | FD14: 737.5280737 | FE14: 767.7667247 | FF14: 799.2451604 | FG14: 832.014212 | FH14: 866.1267947 | FI14: 901.6379933 | FJ14: 938.605151 | FK14: 977.0879622 | FL14: 1017.148569 | FM14: 1058.85166 | FN14: 1102.264578 | FO14: 1147.457426 | FP14: 1194.50318 | FQ14: 1243.477811 | FR14: 1294.460401 | FS14: 1347.533277 | FT14: 1402.782142 | FU14: 1460.296209 | FV14: 1520.168354 | FW14: 1582.495256 | FX14: 1647.377562 | FY14: 1714.920042 | FZ14: 1785.231764 | GA14: 1858.426266 | GB14: 1934.621743 | GC14: 2013.941234 | GD14: 2096.512825 | GE14: 2182.469851 | GF14: 2271.951115 | GG14: 2365.10111 | GH14: 2462.070256 | GI14: 2563.015137 | GJ14: 2668.098757 | GK14: 2777.490806 | GL14: 2891.367929 | GM14: 3009.914014 | GN14: 3133.320489 | GO14: 3261.786629 | GP14: 3395.519881 | GQ14: 3534.736196 | GR14: 3679.66038 | GS14: 3830.526455 | GT14: 3987.57804 | GU14: 4151.06874 | GV14: 4321.262558 | GW14: 4498.434323 | GX14: 4682.87013 | GY14: =IF(GX14="","",GX14*(1+$N14)) -> 4874.867806 | GZ14: 5074.737386 | HA14: 5282.801618 | HB14: 5499.396485 | HC14: 5724.871741 | HD14: 5959.591482 | HE14: 6203.934733 | HF14: 6458.296057 | HG14: 6723.086195 | HH14: 6998.732729 | HI14: 7285.680771
A15: ='MPG-3'!A15 -> 3 | B15: ='MPG-3'!B15 -> NI | D15: ='MPG-3'!D15 -> NiSource Inc. | F15: ='MPG-5'!F15 -> 39.37201538 | G15: ='MPG-5'!H15 -> 1.12 | H15: ='MPG-4'!O15 -> 0.07846143333 | I15: 0.07221786111 | J15: 0.06597428889 | K15: 0.05973071667 | L15: 0.05348714444 | M15: 0.04724357222 | N15: 0.041 | O15: 0.07853543336 | Q15: -39.37201538 | R15: 1.207876805 | S15: =IF(R15="","",R15*(1+$H15)) -> 1.302648551 | T15: 1.404856223 | U15: 1.515083256 | V15: 1.63395886 | W15: 1.751959874 | X15: 1.867544181 | Y15: 1.979093933 | Z15: 2.084950016 | AA15: 2.183450503 | AB15: 2.272971974 | AC15: =IF(AB15="","",AB15*(1+$N15)) -> 2.366163824 | AD15: 2.463176541 | AE15: 2.564166779 | AF15: 2.669297617 | AG15: 2.77873882 | AH15: 2.892667111 | AI15: 3.011266463 | AJ15: 3.134728388 | AK15: 3.263252252 | AL15: 3.397045594 | AM15: 3.536324463 | AN15: 3.681313766 | AO15: 3.832247631 | AP15: 3.989369784 | AQ15: 4.152933945 | AR15: 4.323204237 | AS15: 4.50045561 | AT15: 4.68497429 | AU15: 4.877058236 | AV15: 5.077017624 | AW15: 5.285175347 | AX15: 5.501867536 | AY15: 5.727444105 | AZ15: 5.962269313 | BA15: 6.206722355 | BB15: 6.461197971 | BC15: 6.726107088 | BD15: 7.001877479 | BE15: 7.288954455 | BF15: 7.587801588 | BG15: 7.898901453 | BH15: 8.222756413 | BI15: 8.559889426 | BJ15: 8.910844892 | BK15: 9.276189533 | BL15: 9.656513304 | BM15: 10.05243035 | BN15: 10.46457999 | BO15: 10.89362777 | BP15: 11.34026651 | BQ15: 11.80521744 | BR15: 12.28923135 | BS15: 12.79308984 | BT15: 13.31760652 | BU15: 13.86362839 | BV15: 14.43203715 | BW15: 15.02375068 | BX15: 15.63972446 | BY15: 16.28095316 | BZ15: 16.94847224 | CA15: 17.6433596 | CB15: 18.36673734 | CC15: 19.11977357 | CD15: 19.90368429 | CE15: 20.71973535 | CF15: 21.5692445 | CG15: 22.45358352 | CH15: 23.37418044 | CI15: 24.33252184 | CJ15: 25.33015524 | CK15: 26.3686916 | CL15: 27.44980796 | CM15: 28.57525008 | CN15: 29.74683534 | CO15: 30.96645559 | CP15: 32.23608027 | CQ15: 33.55775956 | CR15: 34.9336277 | CS15: 36.36590643 | CT15: 37.8569086 | CU15: 39.40904185 | CV15: 41.02481257 | CW15: 42.70682988 | CX15: 44.45780991 | CY15: 46.28058011 | CZ15: 48.1780839 | DA15: 50.15338534 | DB15: 52.20967414 | DC15: 54.35027078 | DD15: 56.57863188 | DE15: 58.89835578 | DF15: 61.31318837 | DG15: 63.82702909 | DH15: 66.44393729 | DI15: 69.16813872 | DJ15: 72.0040324 | DK15: 74.95619773 | DL15: 78.02940184 | DM15: 81.22860731 | DN15: 84.55898021 | DO15: 88.0258984 | DP15: 91.63496024 | DQ15: 95.39199361 | DR15: 99.30306535 | DS15: 103.374491 | DT15: 107.6128452 | DU15: 112.0249718 | DV15: 116.6179957 | DW15: 121.3993335 | DX15: 126.3767061 | DY15: 131.5581511 | DZ15: 136.9520353 | EA15: 142.5670687 | EB15: 148.4123186 | EC15: 154.4972236 | ED15: 160.8316098 | EE15: 167.4257058 | EF15: 174.2901597 | EG15: 181.4360563 | EH15: 188.8749346 | EI15: 196.6188069 | EJ15: 204.680178 | EK15: 213.0720653 | EL15: 221.80802 | EM15: =IF(EL15="","",EL15*(1+$N15)) -> 230.9021488 | EN15: 240.3691369 | EO15: 250.2242715 | EP15: 260.4834666 | EQ15: 271.1632888 | ER15: 282.2809836 | ES15: 293.8545039 | ET15: 305.9025386 | EU15: 318.4445427 | EV15: 331.5007689 | EW15: 345.0923004 | EX15: 359.2410848 | EY15: 373.9699692 | EZ15: 389.302738 | FA15: 405.2641502 | FB15: 421.8799804 | FC15: 439.1770596 | FD15: 457.183319 | FE15: 475.9278351 | FF15: 495.4408763 | FG15: 515.7539523 | FH15: 536.8998643 | FI15: 558.9127587 | FJ15: 581.8281819 | FK15: 605.6831373 | FL15: 630.5161459 | FM15: 656.3673079 | FN15: 683.2783675 | FO15: 711.2927806 | FP15: 740.4557846 | FQ15: 770.8144718 | FR15: 802.4178651 | FS15: 835.3169976 | FT15: 869.5649945 | FU15: 905.2171593 | FV15: 942.3310628 | FW15: 980.9666364 | FX15: 1021.186268 | FY15: 1063.054905 | FZ15: 1106.640157 | GA15: 1152.012403 | GB15: 1199.244912 | GC15: 1248.413953 | GD15: 1299.598925 | GE15: 1352.882481 | GF15: 1408.350663 | GG15: 1466.09304 | GH15: 1526.202854 | GI15: 1588.777171 | GJ15: 1653.917036 | GK15: 1721.727634 | GL15: 1792.318467 | GM15: 1865.803524 | GN15: 1942.301469 | GO15: 2021.935829 | GP15: 2104.835198 | GQ15: 2191.133441 | GR15: 2280.969912 | GS15: 2374.489678 | GT15: 2471.843755 | GU15: 2573.189349 | GV15: 2678.690112 | GW15: 2788.516407 | GX15: 2902.84558 | GY15: 3021.862249 | GZ15: 3145.758601 | HA15: 3274.734703 | HB15: 3408.998826 | HC15: 3548.767778 | HD15: 3694.267257 | HE15: 3845.732214 | HF15: 4003.407235 | HG15: 4167.546932 | HH15: 4338.416356 | HI15: 4516.291427
A16: ='MPG-3'!A16 -> 4 | B16: ='MPG-3'!B16 -> NWN | D16: ='MPG-3'!D16 -> Northwest Natural Holding Company | F16: ='MPG-5'!F16 -> 41.29269231 | G16: ='MPG-5'!H16 -> 1.96 | H16: ='MPG-4'!O16 -> 0.0575 | I16: 0.05475 | J16: 0.052 | K16: 0.04925 | L16: 0.0465 | M16: 0.04375 | N16: 0.041 | O16: 0.09562002501 | Q16: -41.29269231 | R16: 2.0727 | S16: =IF(R16="","",R16*(1+$H16)) -> 2.19188025 | T16: 2.317913364 | U16: 2.451193383 | V16: 2.592137002 | W16: 2.734056503 | X16: 2.876227441 | Y16: 3.017881643 | Z16: 3.158213139 | AA16: 3.296384964 | AB16: 3.431536748 | AC16: 3.572229754 | AD16: 3.718691174 | AE16: 3.871157512 | AF16: 4.02987497 | AG16: 4.195099844 | AH16: 4.367098938 | AI16: 4.546149994 | AJ16: 4.732542144 | AK16: 4.926576372 | AL16: 5.128566003 | AM16: 5.338837209 | AN16: 5.557729535 | AO16: 5.785596446 | AP16: 6.0228059 | AQ16: 6.269740942 | AR16: 6.526800321 | AS16: 6.794399134 | AT16: 7.072969498 | AU16: 7.362961248 | AV16: 7.664842659 | AW16: 7.979101208 | AX16: 8.306244357 | AY16: 8.646800376 | AZ16: 9.001319191 | BA16: 9.370373278 | BB16: 9.754558583 | BC16: 10.15449548 | BD16: 10.5708298 | BE16: 11.00423382 | BF16: 11.45540741 | BG16: 11.92507911 | BH16: 12.41400736 | BI16: 12.92298166 | BJ16: 13.4528239 | BK16: 14.00438968 | BL16: 14.57856966 | BM16: 15.17629102 | BN16: 15.79851895 | BO16: 16.44625823 | BP16: 17.12055481 | BQ16: 17.82249756 | BR16: 18.55321996 | BS16: 19.31390198 | BT16: 20.10577196 | BU16: 20.93010861 | BV16: 21.78824306 | BW16: 22.68156103 | BX16: 23.61150503 | BY16: 24.57957674 | BZ16: 25.58733938 | CA16: 26.6364203 | CB16: 27.72851353 | CC16: 28.86538259 | CD16: 30.04886327 | CE16: 31.28086667 | CF16: 32.5633822 | CG16: 33.89848087 | CH16: 35.28831859 | CI16: 36.73513965 | CJ16: 38.24128037 | CK16: 39.80917287 | CL16: 41.44134896 | CM16: 43.14044426 | CN16: 44.90920248 | CO16: 46.75047978 | CP16: 48.66724945 | CQ16: 50.66260668 | CR16: 52.73977355 | CS16: 54.90210427 | CT16: 57.15309054 | CU16: 59.49636726 | CV16: 61.93571831 | CW16: 64.47508276 | CX16: 67.11856116 | CY16: 69.87042216 | CZ16: 72.73510947 | DA16: 75.71724896 | DB16: 78.82165617 | DC16: 82.05334407 | DD16: 85.41753118 | DE16: 88.91964996 | DF16: 92.56535561 | DG16: 96.36053519 | DH16: 100.3113171 | DI16: 104.4240811 | DJ16: 108.7054685 | DK16: 113.1623927 | DL16: 117.8020508 | DM16: 122.6319348 | DN16: 127.6598442 | DO16: 132.8938978 | DP16: 138.3425476 | DQ16: 144.014592 | DR16: 149.9191903 | DS16: 156.0658771 | DT16: 162.4645781 | DU16: 169.1256258 | DV16: 176.0597764 | DW16: 183.2782273 | DX16: 190.7926346 | DY16: 198.6151326 | DZ16: 206.758353 | EA16: 215.2354455 | EB16: 224.0600988 | EC16: 233.2465628 | ED16: 242.8096719 | EE16: 252.7648685 | EF16: 263.1282281 | EG16: 273.9164854 | EH16: 285.1470613 | EI16: 296.8380908 | EJ16: 309.0084526 | EK16: 321.6777991 | EL16: 334.8665889 | EM16: =IF(EL16="","",EL16*(1+$N16)) -> 348.596119 | EN16: 362.8885599 | EO16: 377.7669909 | EP16: 393.2554375 | EQ16: 409.3789104 | ER16: 426.1634458 | ES16: 443.636147 | ET16: 461.8252291 | EU16: 480.7600634 | EV16: 500.4712261 | EW16: 520.9905463 | EX16: 542.3511587 | EY16: 564.5875562 | EZ16: 587.735646 | FA16: 611.8328075 | FB16: 636.9179526 | FC16: 663.0315887 | FD16: 690.2158838 | FE16: 718.5147351 | FF16: 747.9738392 | FG16: 778.6407666 | FH16: 810.565038 | FI16: 843.7982046 | FJ16: 878.393931 | FK16: 914.4080821 | FL16: 951.8988135 | FM16: 990.9266649 | FN16: 1031.554658 | FO16: 1073.848399 | FP16: 1117.876183 | FQ16: 1163.709107 | FR16: 1211.42118 | FS16: 1261.089449 | FT16: 1312.794116 | FU16: 1366.618675 | FV16: 1422.650041 | FW16: 1480.978692 | FX16: 1541.698819 | FY16: 1604.90847 | FZ16: 1670.709718 | GA16: 1739.208816 | GB16: 1810.516377 | GC16: 1884.747549 | GD16: 1962.022198 | GE16: 2042.465108 | GF16: 2126.206178 | GG16: 2213.380631 | GH16: 2304.129237 | GI16: 2398.598536 | GJ16: 2496.941076 | GK16: 2599.31566 | GL16: 2705.887602 | GM16: 2816.828994 | GN16: 2932.318982 | GO16: 3052.544061 | GP16: 3177.698367 | GQ16: 3307.984 | GR16: 3443.611344 | GS16: 3584.799409 | GT16: 3731.776185 | GU16: 3884.779009 | GV16: 4044.054948 | GW16: 4209.861201 | GX16: 4382.46551 | GY16: 4562.146596 | GZ16: 4749.194607 | HA16: 4943.911585 | HB16: 5146.61196 | HC16: 5357.623051 | HD16: 5577.285596 | HE16: 5805.954305 | HF16: 6043.998432 | HG16: 6291.802368 | HH16: 6549.766265 | HI16: 6818.306681
A17: ='MPG-3'!A17 -> 5 | B17: ='MPG-3'!B17 -> OGS | D17: ='MPG-3'!D17 -> ONE Gas, Inc. | F17: ='MPG-5'!F17 -> 74.46857308 | G17: ='MPG-5'!H17 -> 2.68 | H17: ='MPG-4'!O17 -> 0.05699205 | I17: 0.05432670833 | J17: 0.05166136667 | K17: 0.048996025 | L17: 0.04633068333 | M17: 0.04366534167 | N17: 0.041 | O17: 0.08242349903 | Q17: -74.46857308 | R17: 2.832738694 | S17: =IF(R17="","",R17*(1+$H17)) -> 2.994182279 | T17: 3.164826865 | U17: 3.345196836 | V17: 3.535846462 | W17: 3.727937361 | X17: 3.9205277 | Y17: 4.112617973 | Z17: 4.303158374 | AA17: 4.491057255 | AB17: 4.675190602 | AC17: 4.866873417 | AD17: 5.066415227 | AE17: 5.274138252 | AF17: 5.49037792 | AG17: 5.715483415 | AH17: 5.949818235 | AI17: 6.193760782 | AJ17: 6.447704974 | AK17: 6.712060878 | AL17: 6.987255374 | AM17: 7.273732845 | AN17: 7.571955891 | AO17: 7.882406083 | AP17: 8.205584732 | AQ17: 8.542013706 | AR17: 8.892236268 | AS17: 9.256817955 | AT17: 9.636347491 | AU17: 10.03143774 | AV17: 10.44272669 | AW17: 10.87087848 | AX17: 11.3165845 | AY17: 11.78056446 | AZ17: 12.2635676 | BA17: 12.76637388 | BB17: 13.28979521 | BC17: 13.83467681 | BD17: 14.40189856 | BE17: 14.9923764 | BF17: 15.60706383 | BG17: 16.24695345 | BH17: 16.91307854 | BI17: 17.60651476 | BJ17: 18.32838187 | BK17: 19.07984552 | BL17: 19.86211919 | BM17: 20.67646607 | BN17: 21.52420118 | BO17: 22.40669343 | BP17: 23.32536786 | BQ17: 24.28170795 | BR17: 25.27725797 | BS17: 26.31362555 | BT17: 27.3924842 | BU17: 28.51557605 | BV17: 29.68471467 | BW17: 30.90178797 | BX17: 32.16876127 | BY17: 33.48768049 | BZ17: 34.86067539 | CA17: 36.28996308 | CB17: 37.77785156 | CC17: 39.32674348 | CD17: 40.93913996 | CE17: 42.6176447 | CF17: 44.36496813 | CG17: 46.18393182 | CH17: 48.07747303 | CI17: 50.04864942 | CJ17: 52.10064405 | CK17: 54.23677045 | CL17: 56.46047804 | CM17: 58.77535764 | CN17: 61.18514731 | CO17: 63.69373835 | CP17: 66.30518162 | CQ17: 69.02369406 | CR17: 71.85366552 | CS17: 74.79966581 | CT17: 77.86645211 | CU17: 81.05897664 | CV17: 84.38239468 | CW17: 87.84207287 | CX17: 91.44359785 | CY17: 95.19278537 | CZ17: 99.09568957 | DA17: 103.1586128 | DB17: 107.388116 | DC17: 111.7910287 | DD17: 116.3744609 | DE17: 121.1458138 | DF17: 126.1127922 | DG17: 131.2834166 | DH17: 136.6660367 | DI17: 142.2693442 | DJ17: 148.1023873 | DK17: 154.1745852 | DL17: 160.4957432 | DM17: 167.0760687 | DN17: 173.9261875 | DO17: 181.0571612 | DP17: 188.4805048 | DQ17: 196.2082055 | DR17: 204.2527419 | DS17: 212.6271043 | DT17: 221.3448156 | DU17: 230.4199531 | DV17: 239.8671711 | DW17: 249.7017251 | DX17: 259.9394959 | DY17: 270.5970152 | DZ17: 281.6914928 | EA17: 293.240844 | EB17: 305.2637186 | EC17: 317.7795311 | ED17: 330.8084919 | EE17: 344.3716401 | EF17: 358.4908773 | EG17: 373.1890033 | EH17: 388.4897524 | EI17: 404.4178322 | EJ17: 420.9989634 | EK17: 438.2599209 | EL17: 456.2285776 | EM17: =IF(EL17="","",EL17*(1+$N17)) -> 474.9339493 | EN17: 494.4062412 | EO17: 514.6768971 | EP17: 535.7786499 | EQ17: 557.7455745 | ER17: 580.6131431 | ES17: 604.418282 | ET17: 629.1994315 | EU17: 654.9966082 | EV17: 681.8514692 | EW17: 709.8073794 | EX17: 738.9094819 | EY17: 769.2047707 | EZ17: 800.7421663 | FA17: 833.5725951 | FB17: 867.7490715 | FC17: 903.3267835 | FD17: 940.3631816 | FE17: 978.918072 | FF17: 1019.053713 | FG17: 1060.834915 | FH17: 1104.329147 | FI17: 1149.606642 | FJ17: 1196.740514 | FK17: 1245.806875 | FL17: 1296.884957 | FM17: 1350.05724 | FN17: 1405.409587 | FO17: 1463.03138 | FP17: 1523.015667 | FQ17: 1585.459309 | FR17: 1650.463141 | FS17: 1718.13213 | FT17: 1788.575547 | FU17: 1861.907144 | FV17: 1938.245337 | FW17: 2017.713396 | FX17: 2100.439645 | FY17: 2186.557671 | FZ17: 2276.206535 | GA17: 2369.531003 | GB17: 2466.681774 | GC17: 2567.815727 | GD17: 2673.096172 | GE17: 2782.693115 | GF17: 2896.783533 | GG17: 3015.551657 | GH17: 3139.189275 | GI17: 3267.896036 | GJ17: 3401.879773 | GK17: 3541.356844 | GL17: 3686.552474 | GM17: 3837.701126 | GN17: 3995.046872 | GO17: 4158.843794 | GP17: 4329.356389 | GQ17: 4506.860001 | GR17: 4691.641261 | GS17: 4883.998553 | GT17: 5084.242494 | GU17: 5292.696436 | GV17: 5509.69699 | GW17: 5735.594566 | GX17: 5970.753944 | GY17: 6215.554855 | GZ17: 6470.392604 | HA17: 6735.678701 | HB17: 7011.841528 | HC17: 7299.327031 | HD17: 7598.599439 | HE17: 7910.142016 | HF17: 8234.457838 | HG17: 8572.07061 | HH17: 8923.525505 | HI17: 9289.390051
A18: ='MPG-3'!A18 -> 6 | B18: ='MPG-3'!B18 -> SWX | D18: ='MPG-3'!D18 -> Southwest Gas Holdings, Inc. | F18: ='MPG-5'!F18 -> 73.09840385 | G18: ='MPG-5'!H18 -> 2.48 | H18: ='MPG-4'!O18 -> 0.1164852333 | I18: 0.1039043611 | J18: 0.09132348889 | K18: 0.07874261667 | L18: 0.06616174444 | M18: 0.05358087222 | N18: 0.041 | O18: 0.09658133179 | Q18: -73.09840385 | R18: 2.768883379 | S18: =IF(R18="","",R18*(1+$H18)) -> 3.091417405 | T18: 3.451521883 | U18: 3.853573215 | V18: 4.30245759 | W18: 4.749501697 | X18: 5.183242762 | Y18: 5.59138486 | Z18: 5.961320637 | AA18: 6.280733396 | AB18: 6.538243465 | AC18: 6.806311447 | AD18: 7.085370216 | AE18: 7.375870395 | AF18: 7.678281082 | AG18: 7.993090606 | AH18: 8.320807321 | AI18: 8.661960421 | AJ18: 9.017100798 | AK18: 9.386801931 | AL18: 9.77166081 | AM18: 10.1722989 | AN18: 10.58936316 | AO18: 11.02352705 | AP18: 11.47549166 | AQ18: 11.94598681 | AR18: 12.43577227 | AS18: 12.94563894 | AT18: 13.47641013 | AU18: 14.02894295 | AV18: 14.60412961 | AW18: 15.20289892 | AX18: 15.82621778 | AY18: 16.47509271 | AZ18: 17.15057151 | BA18: 17.85374494 | BB18: 18.58574848 | BC18: 19.34776417 | BD18: 20.1410225 | BE18: 20.96680443 | BF18: 21.82644341 | BG18: 22.72132759 | BH18: 23.65290202 | BI18: 24.622671 | BJ18: 25.63220051 | BK18: 26.68312073 | BL18: 27.77712868 | BM18: 28.91599096 | BN18: 30.10154659 | BO18: 31.33571 | BP18: 32.62047411 | BQ18: 33.95791355 | BR18: 35.350188 | BS18: 36.79954571 | BT18: 38.30832708 | BU18: 39.8789685 | BV18: 41.5140062 | BW18: 43.21608046 | BX18: 44.98793976 | BY18: 46.83244529 | BZ18: 48.75257554 | CA18: 50.75143114 | CB18: 52.83223982 | CC18: 54.99836165 | CD18: 57.25329448 | CE18: 59.60067955 | CF18: 62.04430741 | CG18: 64.58812402 | CH18: 67.2362371 | CI18: 69.99292282 | CJ18: 72.86263266 | CK18: 75.8500006 | CL18: 78.95985062 | CM18: 82.1972045 | CN18: =IF(CM18="","",CM18*(1+$N18)) -> 85.56728988 | CO18: 89.07554877 | CP18: 92.72764627 | CQ18: 96.52947976 | CR18: 100.4871884 | CS18: 104.6071632 | CT18: 108.8960568 | CU18: 113.3607952 | CV18: 118.0085878 | CW18: 122.8469399 | CX18: 127.8836644 | CY18: 133.1268947 | CZ18: 138.5850973 | DA18: 144.2670863 | DB18: 150.1820369 | DC18: 156.3395004 | DD18: 162.7494199 | DE18: 169.4221461 | DF18: 176.3684541 | DG18: 183.5995607 | DH18: 191.1271427 | DI18: 198.9633556 | DJ18: 207.1208531 | DK18: 215.6128081 | DL18: 224.4529333 | DM18: 233.6555035 | DN18: 243.2353792 | DO18: 253.2080297 | DP18: 263.5895589 | DQ18: 274.3967308 | DR18: 285.6469968 | DS18: 297.3585237 | DT18: 309.5502231 | DU18: 322.2417823 | DV18: 335.4536954 | DW18: 349.2072969 | DX18: 363.524796 | DY18: 378.4293127 | DZ18: 393.9449145 | EA18: 410.096656 | EB18: 426.9106189 | EC18: 444.4139543 | ED18: 462.6349264 | EE18: 481.6029584 | EF18: 501.3486797 | EG18: 521.9039755 | EH18: 543.3020385 | EI18: 565.5774221 | EJ18: 588.7660964 | EK18: 612.9055064 | EL18: 638.0346321 | EM18: =IF(EL18="","",EL18*(1+$N18)) -> 664.194052 | EN18: 691.4260082 | EO18: 719.7744745 | EP18: =IF(EO18="","",EO18*(1+$N18)) -> 749.285228 | EQ18: 780.0059223 | ER18: 811.9861651 | ES18: 845.2775979 | ET18: 879.9339794 | EU18: 916.0112726 | EV18: 953.5677348 | EW18: 992.6640119 | EX18: 1033.363236 | EY18: 1075.731129 | EZ18: 1119.836105 | FA18: 1165.749386 | FB18: 1213.54511 | FC18: 1263.30046 | FD18: 1315.095779 | FE18: 1369.014706 | FF18: 1425.144309 | FG18: 1483.575225 | FH18: 1544.40181 | FI18: 1607.722284 | FJ18: 1673.638897 | FK18: 1742.258092 | FL18: 1813.690674 | FM18: 1888.051992 | FN18: 1965.462123 | FO18: 2046.04607 | FP18: 2129.933959 | FQ18: 2217.261252 | FR18: 2308.168963 | FS18: 2402.80389 | FT18: 2501.31885 | FU18: 2603.872923 | FV18: 2710.631713 | FW18: 2821.767613 | FX18: 2937.460085 | FY18: 3057.895948 | FZ18: 3183.269682 | GA18: 3313.783739 | GB18: 3449.648873 | GC18: 3591.084476 | GD18: 3738.31894 | GE18: 3891.590016 | GF18: 4051.145207 | GG18: 4217.242161 | GH18: 4390.149089 | GI18: 4570.145202 | GJ18: 4757.521155 | GK18: 4952.579522 | GL18: 5155.635283 | GM18: 5367.01633 | GN18: 5587.063999 | GO18: 5816.133623 | GP18: 6054.595102 | GQ18: 6302.833501 | GR18: 6561.249674 | GS18: 6830.260911 | GT18: 7110.301608 | GU18: 7401.823974 | GV18: 7705.298757 | GW18: 8021.216006 | GX18: 8350.085862 | GY18: 8692.439383 | GZ18: 9048.829397 | HA18: 9419.831403 | HB18: =IF(HA18="","",HA18*(1+$N18)) -> 9806.04449 | HC18: 10208.09231 | HD18: 10626.6241 | HE18: 11062.31569 | HF18: 11515.87063 | HG18: 11988.02133 | HH18: 12479.5302 | HI18: 12991.19094
A19: ='MPG-3'!A19 -> 7 | B19: ='MPG-3'!B19 -> SR | D19: ='MPG-3'!D19 -> Spire Inc. | F19: ='MPG-5'!F19 -> 74.28221538 | G19: ='MPG-5'!H19 -> 3.14 | H19: ='MPG-4'!O19 -> 0.07310235 | I19: 0.06775195833 | J19: 0.06240156667 | K19: 0.057051175 | L19: 0.05170078333 | M19: 0.04635039167 | N19: 0.041 | O19: 0.09448820172 | Q19: -74.28221538 | R19: 3.369541379 | S19: =IF(R19="","",R19*(1+$H19)) -> 3.615862772 | T19: 3.880190838 | U19: 4.163841907 | V19: 4.468228535 | W19: 4.770959769 | X19: 5.068675133 | Y19: 5.357849005 | Z19: 5.634853995 | AA19: 5.896031685 | AB19: 6.137768984 | AC19: =IF(AB19="","",AB19*(1+$N19)) -> 6.389417513 | AD19: 6.651383631 | AE19: 6.924090359 | AF19: 7.207978064 | AG19: 7.503505165 | AH19: 7.811148877 | AI19: 8.131405981 | AJ19: 8.464793626 | AK19: 8.811850164 | AL19: 9.173136021 | AM19: 9.549234598 | AN19: 9.940753217 | AO19: 10.3483241 | AP19: 10.77260539 | AQ19: 11.21428221 | AR19: 11.67406778 | AS19: 12.15270456 | AT19: 12.65096544 | AU19: 13.16965503 | AV19: 13.70961088 | AW19: 14.27170493 | AX19: 14.85684483 | AY19: 15.46597547 | AZ19: 16.10008046 | BA19: 16.76018376 | BB19: 17.4473513 | BC19: 18.1626927 | BD19: 18.9073631 | BE19: 19.68256499 | BF19: 20.48955015 | BG19: 21.32962171 | BH19: 22.2041362 | BI19: 23.11450578 | BJ19: 24.06220052 | BK19: 25.04875074 | BL19: 26.07574952 | BM19: 27.14485525 | BN19: 28.25779432 | BO19: 29.41636388 | BP19: 30.6224348 | BQ19: 31.87795463 | BR19: 33.18495077 | BS19: 34.54553375 | BT19: 35.96190064 | BU19: 37.43633856 | BV19: 38.97122844 | BW19: 40.56904881 | BX19: 42.23237981 | BY19: 43.96390738 | BZ19: 45.76642758 | CA19: 47.64285112 | CB19: 49.59620801 | CC19: 51.62965254 | CD19: 53.74646829 | CE19: 55.95007349 | CF19: 58.24402651 | CG19: 60.63203159 | CH19: 63.11794489 | CI19: 65.70578063 | CJ19: 68.39971764 | CK19: 71.20410606 | CL19: 74.12347441 | CM19: 77.16253686 | CN19: 80.32620087 | CO19: 83.6195751 | CP19: 87.04797768 | CQ19: 90.61694477 | CR19: 94.3322395 | CS19: 98.19986132 | CT19: 102.2260556 | CU19: 106.4173239 | CV19: 110.7804342 | CW19: 115.322432 | CX19: 120.0506517 | CY19: 124.9727284 | CZ19: 130.0966103 | DA19: 135.4305713 | DB19: 140.9832247 | DC19: 146.763537 | DD19: 152.780842 | DE19: 159.0448565 | DF19: 165.5656956 | DG19: 172.3538891 | DH19: 179.4203986 | DI19: 186.7766349 | DJ19: 194.434477 | DK19: 202.4062905 | DL19: 210.7049484 | DM19: 219.3438513 | DN19: 228.3369492 | DO19: 237.6987641 | DP19: 247.4444135 | DQ19: 257.5896344 | DR19: 268.1508094 | DS19: 279.1449926 | DT19: 290.5899373 | DU19: 302.5041247 | DV19: 314.9067939 | DW19: 327.8179724 | DX19: 341.2585093 | DY19: 355.2501082 | DZ19: 369.8153626 | EA19: 384.9777925 | EB19: 400.7618819 | EC19: 417.1931191 | ED19: 434.298037 | EE19: 452.1042565 | EF19: 470.640531 | EG19: 489.9367928 | EH19: 510.0242013 | EI19: 530.9351936 | EJ19: 552.7035365 | EK19: 575.3643815 | EL19: 598.9543211 | EM19: =IF(EL19="","",EL19*(1+$N19)) -> 623.5114483 | EN19: 649.0754177 | EO19: 675.6875098 | EP19: 703.3906977 | EQ19: 732.2297163 | ER19: 762.2511347 | ES19: 793.5034312 | ET19: 826.0370719 | EU19: 859.9045918 | EV19: 895.1606801 | EW19: 931.862268 | EX19: 970.068621 | EY19: 1009.841434 | EZ19: 1051.244933 | FA19: 1094.345975 | FB19: 1139.21416 | FC19: 1185.921941 | FD19: 1234.544741 | FE19: 1285.161075 | FF19: 1337.852679 | FG19: 1392.704639 | FH19: 1449.805529 | FI19: 1509.247556 | FJ19: 1571.126706 | FK19: 1635.542901 | FL19: 1702.600159 | FM19: 1772.406766 | FN19: 1845.075443 | FO19: 1920.723537 | FP19: 1999.473202 | FQ19: 2081.451603 | FR19: 2166.791119 | FS19: 2255.629554 | FT19: 2348.110366 | FU19: 2444.382891 | FV19: 2544.60259 | FW19: 2648.931296 | FX19: 2757.537479 | FY19: 2870.596516 | FZ19: 2988.290973 | GA19: 3110.810903 | GB19: 3238.35415 | GC19: 3371.12667 | GD19: 3509.342863 | GE19: 3653.225921 | GF19: 3803.008183 | GG19: 3958.931519 | GH19: 4121.247711 | GI19: 4290.218867 | GJ19: 4466.117841 | GK19: 4649.228672 | GL19: 4839.847048 | GM19: 5038.280777 | GN19: 5244.850289 | GO19: 5459.889151 | GP19: 5683.744606 | GQ19: 5916.778135 | GR19: 6159.366038 | GS19: 6411.900046 | GT19: 6674.787948 | GU19: 6948.454254 | GV19: 7233.340878 | GW19: 7529.907854 | GX19: 7838.634076 | GY19: 8160.018073 | GZ19: 8494.578814 | HA19: 8842.856545 | HB19: =IF(HA19="","",HA19*(1+$N19)) -> 9205.413664 | HC19: 9582.835624 | HD19: 9975.731885 | HE19: 10384.73689 | HF19: 10810.5111 | HG19: 11253.74206 | HH19: 11715.14548 | HI19: 12195.46645
A20: ='MPG-3'!A20 -> 8 | B20: ='MPG-3'!B20 -> LNT | D20: ='MPG-3'!D20 -> Alliant Energy Corporation | F20: ='MPG-5'!F20 -> 61.26964615 | G20: ='MPG-5'!H20 -> 1.92 | H20: ='MPG-4'!O20 -> 0.06570186667 | I20: 0.06158488889 | J20: 0.05746791111 | K20: 0.05335093333 | L20: 0.04923395556 | M20: 0.04511697778 | N20: 0.041 | O20: 0.0791398121 | Q20: -61.26964615 | R20: 2.046147584 | S20: =IF(R20="","",R20*(1+$H20)) -> 2.1805833 | T20: 2.323851693 | U20: 2.476533087 | V20: 2.639245934 | W20: 2.801783601 | X20: 2.962796252 | Y20: 3.120864198 | Z20: 3.274516687 | AA20: 3.422252983 | AB20: 3.562565356 | AC20: 3.708630535 | AD20: 3.860684387 | AE20: 4.018972447 | AF20: 4.183750317 | AG20: 4.35528408 | AH20: 4.533850728 | AI20: 4.719738608 | AJ20: 4.91324789 | AK20: 5.114691054 | AL20: 5.324393387 | AM20: 5.542693516 | AN20: 5.76994395 | AO20: 6.006511652 | AP20: 6.25277863 | AQ20: 6.509142554 | AR20: 6.776017398 | AS20: 7.053834112 | AT20: 7.34304131 | AU20: 7.644106004 | AV20: 7.95751435 | AW20: 8.283772439 | AX20: 8.623407109 | AY20: 8.9769668 | AZ20: 9.345022439 | BA20: 9.728168359 | BB20: 10.12702326 | BC20: 10.54223122 | BD20: 10.9744627 | BE20: 11.42441567 | BF20: 11.89281671 | BG20: 12.38042219 | BH20: 12.8880195 | BI20: 13.4164283 | BJ20: 13.96650186 | BK20: 14.53912844 | BL20: 15.13523271 | BM20: 15.75577725 | BN20: 16.40176411 | BO20: 17.07423644 | BP20: 17.77428014 | BQ20: 18.50302562 | BR20: 19.26164967 | BS20: 20.05137731 | BT20: 20.87348378 | BU20: 21.72929661 | BV20: 22.62019777 | BW20: 23.54762588 | BX20: 24.51307854 | BY20: 25.51811476 | BZ20: 26.56435747 | CA20: 27.65349613 | CB20: 28.78728947 | CC20: 29.96756834 | CD20: 31.19623864 | CE20: 32.47528442 | CF20: 33.80677108 | CG20: 35.1928487 | CH20: 36.63575549 | CI20: 38.13782147 | CJ20: 39.70147215 | CK20: 41.32923251 | CL20: 43.02373104 | CM20: 44.78770401 | CN20: 46.62399988 | CO20: 48.53558387 | CP20: 50.52554281 | CQ20: 52.59709007 | CR20: 54.75357076 | CS20: 56.99846716 | CT20: 59.33540431 | CU20: 61.76815589 | CV20: 64.30065028 | CW20: 66.93697694 | CX20: 69.681393 | CY20: 72.53833011 | CZ20: 75.51240165 | DA20: 78.60841011 | DB20: 81.83135493 | DC20: 85.18644048 | DD20: 88.67908454 | DE20: 92.31492701 | DF20: 96.09983901 | DG20: 100.0399324 | DH20: 104.1415696 | DI20: 108.411374 | DJ20: 112.8562403 | DK20: 117.4833462 | DL20: 122.3001634 | DM20: 127.3144701 | DN20: 132.5343634 | DO20: 137.9682722 | DP20: 143.6249714 | DQ20: 149.5135952 | DR20: 155.6436526 | DS20: 162.0250424 | DT20: 168.6680691 | DU20: 175.58346 | DV20: 182.7823818 | DW20: 190.2764595 | DX20: 198.0777943 | DY20: 206.1989839 | DZ20: 214.6531422 | EA20: 223.4539211 | EB20: 232.6155318 | EC20: 242.1527686 | ED20: 252.0810321 | EE20: 262.4163545 | EF20: 273.175425 | EG20: 284.3756174 | EH20: 296.0350177 | EI20: 308.1724535 | EJ20: 320.8075241 | EK20: 333.9606325 | EL20: 347.6530185 | EM20: =IF(EL20="","",EL20*(1+$N20)) -> 361.9067922 | EN20: 376.7449707 | EO20: 392.1915145 | EP20: 408.2713666 | EQ20: 425.0104926 | ER20: 442.4359228 | ES20: 460.5757957 | ET20: 479.4594033 | EU20: 499.1172388 | EV20: 519.5810456 | EW20: 540.8838685 | EX20: 563.0601071 | EY20: 586.1455715 | EZ20: 610.1775399 | FA20: 635.1948191 | FB20: 661.2378066 | FC20: 688.3485567 | FD20: 716.5708475 | FE20: 745.9502523 | FF20: 776.5342126 | FG20: 808.3721154 | FH20: 841.5153721 | FI20: 876.0175023 | FJ20: 911.9342199 | FK20: 949.323523 | FL20: 988.2457874 | FM20: 1028.763865 | FN20: 1070.943183 | FO20: 1114.851854 | FP20: 1160.56078 | FQ20: 1208.143772 | FR20: 1257.677666 | FS20: 1309.242451 | FT20: 1362.921391 | FU20: 1418.801168 | FV20: 1476.972016 | FW20: 1537.527869 | FX20: 1600.566511 | FY20: 1666.189738 | FZ20: 1734.503517 | GA20: 1805.618162 | GB20: 1879.648506 | GC20: 1956.714095 | GD20: 2036.939373 | GE20: 2120.453887 | GF20: 2207.392497 | GG20: 2297.895589 | GH20: 2392.109308 | GI20: 2490.18579 | GJ20: 2592.283407 | GK20: 2698.567027 | GL20: 2809.208275 | GM20: 2924.385814 | GN20: 3044.285633 | GO20: 3169.101344 | GP20: 3299.034499 | GQ20: 3434.294913 | GR20: 3575.101004 | GS20: 3721.680146 | GT20: 3874.269032 | GU20: 4033.114062 | GV20: 4198.471738 | GW20: 4370.60908 | GX20: 4549.804052 | GY20: 4736.346018 | GZ20: 4930.536205 | HA20: 5132.688189 | HB20: =IF(HA20="","",HA20*(1+$N20)) -> 5343.128405 | HC20: 5562.19667 | HD20: 5790.246733 | HE20: 6027.646849 | HF20: 6274.78037 | HG20: 6532.046365 | HH20: 6799.860266 | HI20: 7078.654537
A21: ='MPG-3'!A21 -> 9 | B21: ='MPG-3'!B21 -> AEE | D21: ='MPG-3'!D21 -> Ameren Corporation | F21: ='MPG-5'!F21 -> 96.45411538 | G21: ='MPG-5'!H21 -> 2.84 | H21: ='MPG-4'!O21 -> 0.08119576667 | I21: 0.07449647222 | J21: 0.06779717778 | K21: 0.06109788333 | L21: 0.05439858889 | M21: 0.04769929444 | N21: 0.041 | O21: 0.08048160617 | Q21: -96.45411538 | R21: 3.070595977 | S21: =IF(R21="","",R21*(1+$H21)) -> 3.319915372 | T21: 3.589478446 | U21: 3.8809289 | V21: 4.196043897 | W21: 4.508634365 | X21: 4.814307051 | Y21: 5.108451021 | Z21: 5.386343548 | AA21: 5.643268335 | AB21: 5.874642337 | AC21: 6.115502673 | AD21: 6.366238282 | AE21: 6.627254052 | AF21: 6.898971468 | AG21: 7.181829298 | AH21: 7.476284299 | AI21: 7.782811956 | AJ21: 8.101907246 | AK21: 8.434085443 | AL21: 8.779882946 | AM21: 9.139858147 | AN21: 9.514592331 | AO21: 9.904690616 | AP21: 10.31078293 | AQ21: 10.73352503 | AR21: 11.17359956 | AS21: 11.63171714 | AT21: 12.10861754 | AU21: 12.60507086 | AV21: 13.12187877 | AW21: 13.6598758 | AX21: 14.2199307 | AY21: 14.80294786 | AZ21: 15.40986873 | BA21: 16.04167334 | BB21: 16.69938195 | BC21: 17.38405661 | BD21: 18.09680293 | BE21: 18.83877185 | BF21: 19.6111615 | BG21: 20.41521912 | BH21: 21.2522431 | BI21: 22.12358507 | BJ21: 23.03065206 | BK21: 23.97490879 | BL21: 24.95788005 | BM21: 25.98115314 | BN21: 27.04638041 | BO21: 28.15528201 | BP21: 29.30964857 | BQ21: 30.51134416 | BR21: 31.76230928 | BS21: 33.06456396 | BT21: 34.42021108 | BU21: 35.83143973 | BV21: 37.30052876 | BW21: 38.82985044 | BX21: 40.42187431 | BY21: 42.07917115 | BZ21: 43.80441717 | CA21: 45.60039828 | CB21: 47.47001461 | CC21: 49.4162852 | CD21: 51.4423529 | CE21: 53.55148937 | CF21: 55.74710043 | CG21: 58.03273155 | CH21: 60.41207354 | CI21: 62.88896856 | CJ21: 65.46741627 | CK21: 68.15158033 | CL21: 70.94579513 | CM21: 73.85457273 | CN21: 76.88261021 | CO21: 80.03479723 | CP21: 83.31622392 | CQ21: 86.7321891 | CR21: 90.28820885 | CS21: 93.99002541 | CT21: 97.84361645 | CU21: 101.8552047 | CV21: 106.0312681 | CW21: 110.3785501 | CX21: 114.9040707 | CY21: 119.6151376 | CZ21: 124.5193582 | DA21: 129.6246519 | DB21: 134.9392626 | DC21: 140.4717724 | DD21: 146.2311151 | DE21: 152.2265908 | DF21: 158.467881 | DG21: 164.9650641 | DH21: 171.7286317 | DI21: 178.7695056 | DJ21: 186.0990554 | DK21: 193.7291167 | DL21: 201.6720104 | DM21: 209.9405629 | DN21: 218.5481259 | DO21: 227.5085991 | DP21: 236.8364517 | DQ21: 246.5467462 | DR21: 256.6551628 | DS21: 267.1780245 | DT21: 278.1323235 | DU21: 289.5357487 | DV21: 301.4067144 | DW21: 313.7643897 | DX21: 326.6287297 | DY21: 340.0205076 | DZ21: 353.9613484 | EA21: 368.4737637 | EB21: 383.581188 | EC21: 399.3080167 | ED21: 415.6796454 | EE21: 432.7225109 | EF21: 450.4641338 | EG21: 468.9331633 | EH21: 488.159423 | EI21: 508.1739593 | EJ21: 529.0090917 | EK21: 550.6984644 | EL21: 573.2771015 | EM21: =IF(EL21="","",EL21*(1+$N21)) -> 596.7814626 | EN21: 621.2495026 | EO21: 646.7207322 | EP21: 673.2362822 | EQ21: 700.8389698 | ER21: 729.5733675 | ES21: 759.4858756 | ET21: 790.6247965 | EU21: 823.0404132 | EV21: 856.7850701 | EW21: 891.913258 | EX21: 928.4817016 | EY21: 966.5494513 | EZ21: 1006.177979 | FA21: 1047.431276 | FB21: 1090.375958 | FC21: 1135.081373 | FD21: 1181.619709 | FE21: 1230.066117 | FF21: 1280.498828 | FG21: 1332.99928 | FH21: 1387.65225 | FI21: 1444.545992 | FJ21: 1503.772378 | FK21: 1565.427046 | FL21: 1629.609554 | FM21: 1696.423546 | FN21: 1765.976912 | FO21: 1838.381965 | FP21: 1913.755625 | FQ21: 1992.219606 | FR21: 2073.90061 | FS21: 2158.930535 | FT21: 2247.446687 | FU21: 2339.592001 | FV21: 2435.515273 | FW21: 2535.371399 | FX21: 2639.321627 | FY21: 2747.533813 | FZ21: 2860.1827 | GA21: 2977.45019 | GB21: 3099.525648 | GC21: 3226.6062 | GD21: 3358.897054 | GE21: 3496.611833 | GF21: 3639.972918 | GG21: 3789.211808 | GH21: 3944.569492 | GI21: 4106.296841 | GJ21: 4274.655012 | GK21: 4449.915867 | GL21: 4632.362418 | GM21: 4822.289277 | GN21: 5020.003137 | GO21: 5225.823266 | GP21: 5440.08202 | GQ21: 5663.125383 | GR21: 5895.313523 | GS21: 6137.021378 | GT21: 6388.639254 | GU21: 6650.573464 | GV21: 6923.246976 | GW21: 7207.100102 | GX21: 7502.591206 | GY21: 7810.197445 | GZ21: 8130.415541 | HA21: 8463.762578 | HB21: =IF(HA21="","",HA21*(1+$N21)) -> 8810.776844 | HC21: 9172.018694 | HD21: 9548.071461 | HE21: 9939.54239 | HF21: 10347.06363 | HG21: 10771.29324 | HH21: 11212.91626 | HI21: 11672.64583
A22: ='MPG-3'!A22 -> 10 | B22: ='MPG-3'!B22 -> AEP | D22: ='MPG-3'!D22 -> American Electric Power Company, Inc. | F22: ='MPG-5'!F22 -> 103.7285885 | G22: ='MPG-5'!H22 -> 3.72 | H22: ='MPG-4'!O22 -> 0.06617533333 | I22: 0.06197944444 | J22: 0.05778355556 | K22: 0.05358766667 | L22: 0.04939177778 | M22: 0.04519588889 | N22: 0.041 | O22: 0.08469042766 | Q22: -103.7285885 | R22: 3.96617224 | S22: =IF(R22="","",R22*(1+$H22)) -> 4.22863501 | T22: 4.508466341 | U22: 4.806815604 | V22: 5.124908229 | W22: 5.442547194 | X22: 5.757036922 | Y22: 6.065543098 | Z22: 6.365131055 | AA22: 6.652808811 | AB22: 6.925573972 | AC22: 7.209522505 | AD22: 7.505112927 | AE22: 7.812822557 | AF22: 8.133148282 | AG22: 8.466607362 | AH22: 8.813738264 | AI22: 9.175101532 | AJ22: 9.551280695 | AK22: 9.942883204 | AL22: 10.35054142 | AM22: 10.77491361 | AN22: 11.21668507 | AO22: 11.67656916 | AP22: 12.15530849 | AQ22: 12.65367614 | AR22: 13.17247686 | AS22: 13.71254842 | AT22: 14.2747629 | AU22: 14.86002818 | AV22: 15.46928934 | AW22: 16.1035302 | AX22: 16.76377494 | AY22: 17.45108971 | AZ22: 18.16658439 | BA22: 18.91141435 | BB22: 19.68678234 | BC22: 20.49394041 | BD22: 21.33419197 | BE22: 22.20889384 | BF22: 23.11945849 | BG22: 24.06735628 | BH22: 25.05411789 | BI22: 26.08133672 | BJ22: 27.15067153 | BK22: 28.26384906 | BL22: 29.42266687 | BM22: 30.62899622 | BN22: 31.88478506 | BO22: 33.19206125 | BP22: 34.55293576 | BQ22: 35.96960613 | BR22: 37.44435998 | BS22: 38.97957874 | BT22: 40.57774147 | BU22: 42.24142887 | BV22: 43.97332745 | BW22: 45.77623387 | BX22: 47.65305946 | BY22: 49.6068349 | BZ22: 51.64071513 | CA22: 53.75798445 | CB22: 55.96206181 | CC22: 58.25650635 | CD22: 60.64502311 | CE22: 63.13146906 | CF22: 65.71985929 | CG22: 68.41437352 | CH22: 71.21936283 | CI22: 74.13935671 | CJ22: 77.17907033 | CK22: 80.34341222 | CL22: 83.63749212 | CM22: 87.0666293 | CN22: =IF(CM22="","",CM22*(1+$N22)) -> 90.6363611 | CO22: 94.3524519 | CP22: 98.22090243 | CQ22: 102.2479594 | CR22: 106.4401258 | CS22: 110.8041709 | CT22: 115.3471419 | CU22: 120.0763747 | CV22: 124.9995061 | CW22: 130.1244859 | CX22: 135.4595898 | CY22: 141.013433 | CZ22: 146.7949837 | DA22: 152.8135781 | DB22: 159.0789348 | DC22: 165.6011711 | DD22: 172.3908191 | DE22: 179.4588427 | DF22: 186.8166552 | DG22: 194.4761381 | DH22: 202.4496597 | DI22: 210.7500958 | DJ22: 219.3908497 | DK22: 228.3858746 | DL22: 237.7496954 | DM22: 247.4974329 | DN22: 257.6448277 | DO22: 268.2082656 | DP22: 279.2048045 | DQ22: 290.6522015 | DR22: 302.5689418 | DS22: 314.9742684 | DT22: 327.8882134 | DU22: 341.3316301 | DV22: 355.326227 | DW22: 369.8946023 | DX22: 385.060281 | DY22: 400.8477525 | DZ22: 417.2825103 | EA22: 434.3910932 | EB22: 452.2011281 | EC22: 470.7413743 | ED22: 490.0417707 | EE22: 510.1334833 | EF22: 531.0489561 | EG22: 552.8219633 | EH22: 575.4876638 | EI22: 599.082658 | EJ22: 623.645047 | EK22: 649.2144939 | EL22: 675.8322881 | EM22: =IF(EL22="","",EL22*(1+$N22)) -> 703.541412 | EN22: 732.3866098 | EO22: 762.4144608 | EP22: 793.6734537 | EQ22: 826.2140653 | ER22: 860.088842 | ES22: 895.3524845 | ET22: 932.0619364 | EU22: 970.2764758 | EV22: 1010.057811 | EW22: 1051.470182 | EX22: 1094.580459 | EY22: 1139.458258 | EZ22: 1186.176046 | FA22: 1234.809264 | FB22: 1285.436444 | FC22: 1338.139338 | FD22: 1393.003051 | FE22: 1450.116176 | FF22: 1509.57094 | FG22: 1571.463348 | FH22: 1635.893345 | FI22: 1702.964973 | FJ22: 1772.786536 | FK22: 1845.470784 | FL22: 1921.135087 | FM22: 1999.901625 | FN22: 2081.897592 | FO22: 2167.255393 | FP22: 2256.112864 | FQ22: 2348.613492 | FR22: 2444.906645 | FS22: 2545.147817 | FT22: 2649.498878 | FU22: 2758.128332 | FV22: 2871.211593 | FW22: 2988.931269 | FX22: 3111.477451 | FY22: 3239.048026 | FZ22: 3371.848995 | GA22: 3510.094804 | GB22: 3654.008691 | GC22: 3803.823047 | GD22: 3959.779792 | GE22: 4122.130764 | GF22: 4291.138125 | GG22: 4467.074788 | GH22: 4650.224854 | GI22: 4840.884073 | GJ22: 5039.36032 | GK22: 5245.974093 | GL22: 5461.059031 | GM22: 5684.962452 | GN22: 5918.045912 | GO22: 6160.685794 | GP22: 6413.273912 | GQ22: 6676.218142 | GR22: 6949.943086 | GS22: 7234.890753 | GT22: 7531.521274 | GU22: 7840.313646 | GV22: 8161.766505 | GW22: 8496.398932 | GX22: 8844.751288 | GY22: =IF(GX22="","",GX22*(1+$N22)) -> 9207.386091 | GZ22: 9584.888921 | HA22: 9977.869367 | HB22: 10386.96201 | HC22: 10812.82745 | HD22: 11256.15338 | HE22: 11717.65567 | HF22: 12198.07955 | HG22: 12698.20081 | HH22: 13218.82704 | HI22: 13760.79895
A23: ='MPG-3'!A23 -> 11 | B23: ='MPG-3'!B23 -> DUK | D23: ='MPG-3'!D23 -> Duke Energy Corporation | F23: ='MPG-5'!F23 -> 117.5577077 | G23: ='MPG-5'!H23 -> 4.18 | H23: ='MPG-4'!O23 -> 0.06363473333 | I23: 0.05986227778 | J23: 0.05608982222 | K23: 0.05231736667 | L23: 0.04854491111 | M23: 0.04477245556 | N23: 0.041 | O23: 0.08365297988 | Q23: -117.5577077 | R23: 4.445993185 | S23: =IF(R23="","",R23*(1+$H23)) -> 4.728912776 | T23: 5.02983588 | U23: 5.349908144 | V23: 5.690348123 | W23: 6.030985323 | X23: 6.369262217 | Y23: 6.702485244 | Z23: 7.027856794 | AA23: 7.3425112 | AB23: 7.643554159 | AC23: =IF(AB23="","",AB23*(1+$N23)) -> 7.95693988 | AD23: 8.283174415 | AE23: 8.622784566 | AF23: 8.976318733 | AG23: 9.344347801 | AH23: 9.727466061 | AI23: 10.12629217 | AJ23: 10.54147015 | AK23: 10.97367042 | AL23: 11.42359091 | AM23: 11.89195814 | AN23: 12.37952842 | AO23: 12.88708909 | AP23: 13.41545974 | AQ23: 13.96549359 | AR23: 14.53807883 | AS23: 15.13414006 | AT23: 15.7546398 | AU23: 16.40058003 | AV23: 17.07300382 | AW23: 17.77299697 | AX23: 18.50168985 | AY23: 19.26025913 | AZ23: 20.04992976 | BA23: 20.87197688 | BB23: 21.72772793 | BC23: 22.61856477 | BD23: 23.54592593 | BE23: 24.51130889 | BF23: 25.51627256 | BG23: 26.56243973 | BH23: 27.65149976 | BI23: 28.78521125 | BJ23: 29.96540491 | BK23: 31.19398651 | BL23: 32.47293996 | BM23: 33.8043305 | BN23: 35.19030805 | BO23: 36.63311068 | BP23: 38.13506822 | BQ23: 39.69860601 | BR23: 41.32624886 | BS23: 43.02062506 | BT23: 44.78447069 | BU23: 46.62063399 | BV23: 48.53207998 | BW23: 50.52189526 | BX23: 52.59329297 | BY23: 54.74961798 | BZ23: 56.99435232 | CA23: 59.33112076 | CB23: 61.76369671 | CC23: 64.29600828 | CD23: 66.93214462 | CE23: 69.67636255 | CF23: 72.53309341 | CG23: 75.50695024 | CH23: 78.6027352 | CI23: 81.82544734 | CJ23: 85.18029069 | CK23: 88.6726826 | CL23: 92.30826259 | CM23: 96.09290136 | CN23: 100.0327103 | CO23: 104.1340514 | CP23: 108.4035475 | CQ23: 112.848093 | CR23: 117.4748648 | CS23: 122.2913343 | CT23: 127.305279 | CU23: 132.5247954 | CV23: 137.958312 | CW23: 143.6146028 | CX23: 149.5028015 | CY23: 155.6324164 | CZ23: 162.0133455 | DA23: 168.6558926 | DB23: 175.5707842 | DC23: 182.7691864 | DD23: 190.262723 | DE23: 198.0634947 | DF23: 206.1840979 | DG23: 214.637646 | DH23: 223.4377894 | DI23: 232.5987388 | DJ23: 242.1352871 | DK23: 252.0628339 | DL23: 262.3974101 | DM23: 273.1557039 | DN23: 284.3550877 | DO23: 296.0136463 | DP23: 308.1502058 | DQ23: 320.7843643 | DR23: 333.9365232 | DS23: 347.6279207 | DT23: 361.8806654 | DU23: 376.7177727 | DV23: 392.1632014 | DW23: 408.2418926 | DX23: 424.9798102 | DY23: 442.4039824 | DZ23: 460.5425457 | EA23: 479.4247901 | EB23: 499.0812065 | EC23: 519.5435359 | ED23: 540.8448209 | EE23: 563.0194586 | EF23: 586.1032564 | EG23: 610.1334899 | EH23: 635.148963 | EI23: 661.1900705 | EJ23: 688.2988633 | EK23: 716.5191167 | EL23: 745.8964005 | EM23: =IF(EL23="","",EL23*(1+$N23)) -> 776.4781529 | EN23: 808.3137572 | EO23: 841.4546213 | EP23: =IF(EO23="","",EO23*(1+$N23)) -> 875.9542607 | EQ23: 911.8683854 | ER23: 949.2549892 | ES23: 988.1744438 | ET23: 1028.689596 | EU23: 1070.865869 | EV23: 1114.77137 | EW23: 1160.476996 | EX23: 1208.056553 | EY23: 1257.586872 | EZ23: 1309.147934 | FA23: 1362.822999 | FB23: 1418.698742 | FC23: 1476.86539 | FD23: 1537.416871 | FE23: 1600.450963 | FF23: 1666.069452 | FG23: 1734.3783 | FH23: 1805.48781 | FI23: 1879.51281 | FJ23: 1956.572836 | FK23: 2036.792322 | FL23: 2120.300807 | FM23: 2207.23314 | FN23: 2297.729699 | FO23: 2391.936617 | FP23: 2490.006018 | FQ23: 2592.096265 | FR23: 2698.372211 | FS23: 2809.005472 | FT23: 2924.174696 | FU23: 3044.065859 | FV23: 3168.872559 | FW23: 3298.796334 | FX23: 3434.046984 | FY23: 3574.84291 | FZ23: 3721.411469 | GA23: 3873.98934 | GB23: 4032.822903 | GC23: 4198.168642 | GD23: 4370.293556 | GE23: 4549.475592 | GF23: 4736.004091 | GG23: 4930.180259 | GH23: 5132.317649 | GI23: 5342.742673 | GJ23: 5561.795123 | GK23: 5789.828723 | GL23: 6027.2117 | GM23: 6274.32738 | GN23: 6531.574803 | GO23: 6799.369369 | GP23: 7078.143514 | GQ23: 7368.347398 | GR23: 7670.449641 | GS23: 7984.938076 | GT23: 8312.320537 | GU23: 8653.125679 | GV23: 9007.903832 | GW23: 9377.227889 | GX23: 9761.694233 | GY23: 10161.9237 | GZ23: 10578.56257 | HA23: 11012.28363 | HB23: =IF(HA23="","",HA23*(1+$N23)) -> 11463.78726 | HC23: 11933.80254 | HD23: 12423.08844 | HE23: 12932.43507 | HF23: 13462.66491 | HG23: 14014.63417 | HH23: 14589.23417 | HI23: 15187.39277
A24: ='MPG-3'!A24 -> 12 | B24: ='MPG-3'!B24 -> EIX | D24: ='MPG-3'!D24 -> Edison International | F24: ='MPG-5'!F24 -> 53.62657692 | G24: ='MPG-5'!H24 -> 3.31 | H24: ='MPG-4'!O24 -> 0.08766193333 | I24: 0.07988494444 | J24: 0.07210795556 | K24: 0.06433096667 | L24: 0.05655397778 | M24: 0.04877698889 | N24: 0.041 | O24: 0.1244863626 | Q24: -53.62657692 | R24: 3.600160999 | S24: =IF(R24="","",R24*(1+$H24)) -> 3.915758073 | T24: 4.259020996 | U24: 4.632375011 | V24: 5.03845796 | W24: 5.440954894 | X24: 5.833291028 | Y24: 6.208552279 | Z24: 6.559670606 | AA24: 6.879631586 | AB24: 7.161696481 | AC24: 7.455326037 | AD24: 7.760994405 | AE24: 8.079195175 | AF24: 8.410442177 | AG24: 8.755270307 | AH24: 9.114236389 | AI24: 9.487920081 | AJ24: 9.876924805 | AK24: 10.28187872 | AL24: 10.70343575 | AM24: 11.14227661 | AN24: 11.59910996 | AO24: 12.07467346 | AP24: 12.56973508 | AQ24: 13.08509421 | AR24: 13.62158308 | AS24: 14.18006798 | AT24: 14.76145077 | AU24: 15.36667025 | AV24: 15.99670373 | AW24: 16.65256859 | AX24: 17.3353239 | AY24: 18.04607218 | AZ24: 18.78596114 | BA24: 19.55618554 | BB24: 20.35798915 | BC24: 21.19266671 | BD24: 22.06156604 | BE24: 22.96609025 | BF24: 23.90769995 | BG24: 24.88791565 | BH24: 25.90832019 | BI24: 26.97056132 | BJ24: 28.07635433 | BK24: 29.22748486 | BL24: 30.42581174 | BM24: 31.67327002 | BN24: 32.97187409 | BO24: 34.32372093 | BP24: 35.73099348 | BQ24: 37.19596422 | BR24: 38.72099875 | BS24: 40.3085597 | BT24: 41.96121065 | BU24: 43.68162028 | BV24: 45.47256671 | BW24: 47.33694195 | BX24: 49.27775657 | BY24: 51.29814459 | BZ24: 53.40136852 | CA24: 55.59082463 | CB24: 57.87004844 | CC24: 60.24272042 | CD24: 62.71267196 | CE24: 65.28389151 | CF24: 67.96053106 | CG24: 70.74691283 | CH24: 73.64753626 | CI24: 76.66708525 | CJ24: 79.81043574 | CK24: 83.08266361 | CL24: 86.48905282 | CM24: 90.03510398 | CN24: 93.72654324 | CO24: 97.56933152 | CP24: 101.5696741 | CQ24: 105.7340307 | CR24: 110.069126 | CS24: 114.5819602 | CT24: 119.2798205 | CU24: 124.1702932 | CV24: 129.2612752 | CW24: 134.5609875 | CX24: 140.077988 | CY24: 145.8211855 | CZ24: 151.7998541 | DA24: 158.0236481 | DB24: 164.5026177 | DC24: 171.247225 | DD24: 178.2683612 | DE24: 185.577364 | DF24: 193.186036 | DG24: 201.1066634 | DH24: 209.3520366 | DI24: 217.9354701 | DJ24: 226.8708244 | DK24: 236.1725282 | DL24: 245.8556019 | DM24: 255.9356816 | DN24: 266.4290445 | DO24: 277.3526353 | DP24: 288.7240934 | DQ24: 300.5617812 | DR24: 312.8848142 | DS24: 325.7130916 | DT24: 339.0673284 | DU24: 352.9690888 | DV24: 367.4408215 | DW24: 382.5058951 | DX24: 398.1886369 | DY24: 414.514371 | DZ24: 431.5094602 | EA24: 449.201348 | EB24: 467.6186033 | EC24: 486.790966 | ED24: 506.7493957 | EE24: 527.5261209 | EF24: 549.1546918 | EG24: 571.6700342 | EH24: 595.1085056 | EI24: 619.5079543 | EJ24: 644.9077805 | EK24: 671.3489995 | EL24: 698.8743084 | EM24: =IF(EL24="","",EL24*(1+$N24)) -> 727.5281551 | EN24: 757.3568094 | EO24: 788.4084386 | EP24: 820.7331846 | EQ24: 854.3832452 | ER24: 889.4129582 | ES24: 925.8788895 | ET24: 963.839924 | EU24: 1003.357361 | EV24: 1044.495013 | EW24: 1087.319308 | EX24: 1131.8994 | EY24: 1178.307275 | EZ24: 1226.617873 | FA24: 1276.909206 | FB24: 1329.262484 | FC24: 1383.762246 | FD24: 1440.496498 | FE24: 1499.556854 | FF24: 1561.038685 | FG24: 1625.041271 | FH24: 1691.667963 | FI24: 1761.02635 | FJ24: 1833.22843 | FK24: 1908.390796 | FL24: 1986.634818 | FM24: 2068.086846 | FN24: 2152.878407 | FO24: 2241.146421 | FP24: 2333.033425 | FQ24: 2428.687795 | FR24: 2528.263995 | FS24: 2631.922818 | FT24: 2739.831654 | FU24: 2852.164752 | FV24: 2969.103507 | FW24: 3090.83675 | FX24: 3217.561057 | FY24: 3349.48106 | FZ24: 3486.809784 | GA24: 3629.768985 | GB24: 3778.589513 | GC24: 3933.511683 | GD24: 4094.785662 | GE24: 4262.671875 | GF24: 4437.441421 | GG24: 4619.37652 | GH24: 4808.770957 | GI24: 5005.930566 | GJ24: 5211.17372 | GK24: 5424.831842 | GL24: 5647.249948 | GM24: 5878.787195 | GN24: 6119.81747 | GO24: 6370.729987 | GP24: 6631.929916 | GQ24: 6903.839043 | GR24: 7186.896443 | GS24: 7481.559198 | GT24: 7788.303125 | GU24: 8107.623553 | GV24: 8440.036119 | GW24: 8786.077599 | GX24: 9146.306781 | GY24: 9521.305359 | GZ24: 9911.678879 | HA24: 10318.05771 | HB24: =IF(HA24="","",HA24*(1+$N24)) -> 10741.09808 | HC24: 11181.4831 | HD24: 11639.92391 | HE24: 12117.16079 | HF24: 12613.96438 | HG24: 13131.13692 | HH24: 13669.51353 | HI24: 14229.96359
A25: ='MPG-3'!A25 -> 13 | B25: ='MPG-3'!B25 -> ETR | D25: ='MPG-3'!D25 -> Entergy Corporation | F25: ='MPG-5'!F25 -> 82.5025 | G25: ='MPG-5'!H25 -> 2.4 | H25: ='MPG-4'!O25 -> 0.09328333333 | I25: 0.08456944444 | J25: 0.07585555556 | K25: 0.06714166667 | L25: 0.05842777778 | M25: 0.04971388889 | N25: 0.041 | O25: 0.08297984727 | Q25: -82.5025 | R25: 2.62388 | S25: =IF(R25="","",R25*(1+$H25)) -> 2.868644273 | T25: =IF(S25="","",S25*(1+$H25)) -> 3.136240973 | U25: 3.428799985 | V25: 3.748649877 | W25: 4.065671114 | X25: =IF(W25="","",W25*(1+J25)) -> 4.374074855 | Y25: 4.667757531 | Z25: 4.940484231 | AA25: 5.186094915 | AB25: 5.398724806 | AC25: 5.620072523 | AD25: 5.850495497 | AE25: 6.090365812 | AF25: 6.34007081 | AG25: 6.600013714 | AH25: 6.870614276 | AI25: 7.152309461 | AJ25: 7.445554149 | AK25: 7.750821869 | AL25: 8.068605566 | AM25: 8.399418394 | AN25: 8.743794548 | AO25: 9.102290125 | AP25: 9.47548402 | AQ25: 9.863978865 | AR25: 10.268402 | AS25: 10.68940648 | AT25: 11.12767215 | AU25: 11.5839067 | AV25: 12.05884688 | AW25: 12.5532596 | AX25: 13.06794324 | AY25: 13.60372892 | AZ25: 14.1614818 | BA25: 14.74210256 | BB25: 15.34652876 | BC25: 15.97573644 | BD25: 16.63074163 | BE25: 17.31260204 | BF25: 18.02241873 | BG25: 18.76133789 | BH25: 19.53055275 | BI25: 20.33130541 | BJ25: 21.16488893 | BK25: 22.03264938 | BL25: 22.935988 | BM25: 23.87636351 | BN25: 24.85529441 | BO25: 25.87436149 | BP25: 26.93521031 | BQ25: 28.03955393 | BR25: 29.18917564 | BS25: 30.38593184 | BT25: 31.63175505 | BU25: 32.928657 | BV25: 34.27873194 | BW25: 35.68415995 | BX25: 37.14721051 | BY25: 38.67024614 | BZ25: 40.25572623 | CA25: 41.90621101 | CB25: 43.62436566 | CC25: 45.41296465 | CD25: 47.2748962 | CE25: 49.21316694 | CF25: 51.23090679 | CG25: 53.33137397 | CH25: 55.5179603 | CI25: 57.79419667 | CJ25: 60.16375874 | CK25: 62.63047284 | CL25: 65.19832223 | CM25: 67.87145344 | CN25: 70.65418303 | CO25: 73.55100454 | CP25: 76.56659572 | CQ25: 79.70582615 | CR25: 82.97376502 | CS25: 86.37568939 | CT25: 89.91709265 | CU25: 93.60369345 | CV25: 97.44144488 | CW25: 101.4365441 | CX25: 105.5954424 | CY25: 109.9248556 | CZ25: 114.4317746 | DA25: 119.1234774 | DB25: 124.00754 | DC25: 129.0918491 | DD25: 134.3846149 | DE25: 139.8943841 | DF25: 145.6300539 | DG25: 151.6008861 | DH25: 157.8165224 | DI25: 164.2869999 | DJ25: 171.0227669 | DK25: 178.0347003 | DL25: 185.334123 | DM25: 192.932822 | DN25: 200.8430678 | DO25: 209.0776335 | DP25: 217.6498165 | DQ25: 226.573459 | DR25: 235.8629708 | DS25: 245.5333526 | DT25: 255.6002201 | DU25: 266.0798291 | DV25: 276.9891021 | DW25: 288.3456553 | DX25: 300.1678271 | DY25: 312.474708 | DZ25: 325.2861711 | EA25: 338.6229041 | EB25: 352.5064431 | EC25: 366.9592073 | ED25: 382.0045348 | EE25: 397.6667207 | EF25: 413.9710563 | EG25: 430.9438696 | EH25: 448.6125683 | EI25: 467.0056836 | EJ25: 486.1529166 | EK25: 506.0851862 | EL25: 526.8346788 | EM25: =IF(EL25="","",EL25*(1+$N25)) -> 548.4349006 | EN25: 570.9207315 | EO25: 594.3284815 | EP25: 618.6959493 | EQ25: 644.0624832 | ER25: 670.469045 | ES25: 697.9582759 | ET25: 726.5745652 | EU25: 756.3641223 | EV25: 787.3750514 | EW25: 819.6574285 | EX25: 853.263383 | EY25: 888.2471817 | EZ25: 924.6653162 | FA25: 962.5765942 | FB25: 1002.042235 | FC25: 1043.125966 | FD25: 1085.894131 | FE25: 1130.41579 | FF25: 1176.762837 | FG25: 1225.010114 | FH25: 1275.235528 | FI25: 1327.520185 | FJ25: 1381.948513 | FK25: 1438.608402 | FL25: 1497.591346 | FM25: 1558.992591 | FN25: 1622.911288 | FO25: 1689.45065 | FP25: 1758.718127 | FQ25: 1830.82557 | FR25: 1905.889419 | FS25: 1984.030885 | FT25: 2065.376151 | FU25: 2150.056573 | FV25: 2238.208893 | FW25: 2329.975458 | FX25: 2425.504451 | FY25: 2524.950134 | FZ25: 2628.473089 | GA25: 2736.240486 | GB25: 2848.426346 | GC25: 2965.211826 | GD25: 3086.785511 | GE25: 3213.343717 | GF25: 3345.090809 | GG25: 3482.239532 | GH25: 3625.011353 | GI25: 3773.636819 | GJ25: 3928.355928 | GK25: 4089.418521 | GL25: 4257.084681 | GM25: 4431.625153 | GN25: 4613.321784 | GO25: 4802.467977 | GP25: 4999.369164 | GQ25: 5204.3433 | GR25: 5417.721375 | GS25: 5639.847952 | GT25: 5871.081718 | GU25: 6111.796068 | GV25: 6362.379707 | GW25: 6623.237275 | GX25: 6894.790003 | GY25: 7177.476393 | GZ25: 7471.752925 | HA25: 7778.094795 | HB25: =IF(HA25="","",HA25*(1+$N25)) -> 8096.996682 | HC25: 8428.973546 | HD25: 8774.561461 | HE25: 9134.318481 | HF25: 9508.825539 | HG25: 9898.687386 | HH25: 10304.53357 | HI25: 10727.01944
A26: ='MPG-3'!A26 -> 14 | B26: ='MPG-3'!B26 -> EVRG | D26: ='MPG-3'!D26 -> Evergy, Inc. | F26: ='MPG-5'!F26 -> 67.43373462 | G26: ='MPG-5'!H26 -> 2.67 | H26: ='MPG-4'!O26 -> 0.05808886667 | I26: 0.05524072222 | J26: 0.05239257778 | K26: 0.04954443333 | L26: 0.04669628889 | M26: 0.04384814444 | N26: 0.041 | O26: 0.08683781552 | Q26: -67.43373462 | R26: 2.825097274 | S26: =IF(R26="","",R26*(1+$H26)) -> 2.989203973 | T26: 3.162843444 | U26: 3.346569435 | V26: 3.540967861 | W26: 3.736573483 | X26: 3.932342199 | Y26: 4.127167865 | Z26: 4.319891288 | AA26: 4.509310506 | AB26: 4.694192236 | AC26: 4.886654118 | AD26: 5.087006937 | AE26: 5.295574221 | AF26: 5.512692764 | AG26: 5.738713168 | AH26: 5.974000408 | AI26: 6.218934424 | AJ26: 6.473910736 | AK26: 6.739341076 | AL26: 7.01565406 | AM26: 7.303295876 | AN26: 7.602731007 | AO26: 7.914442979 | AP26: 8.238935141 | AQ26: 8.576731481 | AR26: 8.928377472 | AS26: 9.294440949 | AT26: 9.675513027 | AU26: 10.07220906 | AV26: 10.48516963 | AW26: 10.91506159 | AX26: 11.36257911 | AY26: 11.82844486 | AZ26: 12.3134111 | BA26: 12.81826095 | BB26: 13.34380965 | BC26: 13.89090585 | BD26: 14.46043299 | BE26: 15.05331074 | BF26: 15.67049648 | BG26: 16.31298683 | BH26: 16.98181929 | BI26: 17.67807388 | BJ26: 18.40287491 | BK26: 19.15739279 | BL26: 19.94284589 | BM26: 20.76050257 | BN26: 21.61168318 | BO26: 22.49776219 | BP26: 23.42017044 | BQ26: 24.38039742 | BR26: 25.37999372 | BS26: 26.42057346 | BT26: 27.50381697 | BU26: 28.63147347 | BV26: 29.80536388 | BW26: 31.0273838 | BX26: 32.29950654 | BY26: 33.6237863 | BZ26: 35.00236154 | CA26: 36.43745837 | CB26: 37.93139416 | CC26: 39.48658132 | CD26: 41.10553115 | CE26: 42.79085793 | CF26: 44.54528311 | CG26: 46.37163971 | CH26: 48.27287694 | CI26: 50.2520649 | CJ26: 52.31239956 | CK26: 54.45720794 | CL26: 56.68995346 | CM26: 59.01424156 | CN26: =IF(CM26="","",CM26*(1+$N26)) -> 61.43382546 | CO26: 63.9526123 | CP26: 66.57466941 | CQ26: 69.30423085 | CR26: 72.14570432 | CS26: 75.1036782 | CT26: 78.182929 | CU26: 81.38842909 | CV26: 84.72535468 | CW26: 88.19909423 | CX26: 91.81525709 | CY26: 95.57968263 | CZ26: 99.49844962 | DA26: 103.5778861 | DB26: 107.8245794 | DC26: 112.2453871 | DD26: 116.847448 | DE26: 121.6381934 | DF26: 126.6253593 | DG26: 131.816999 | DH26: 137.221496 | DI26: 142.8475773 | DJ26: 148.704328 | DK26: 154.8012054 | DL26: 161.1480549 | DM26: 167.7551251 | DN26: 174.6330853 | DO26: 181.7930417 | DP26: 189.2465565 | DQ26: 197.0056653 | DR26: 205.0828976 | DS26: 213.4912964 | DT26: 222.2444395 | DU26: 231.3564615 | DV26: 240.8420764 | DW26: 250.7166016 | DX26: 260.9959822 | DY26: 271.6968175 | DZ26: 282.836387 | EA26: 294.4326789 | EB26: 306.5044187 | EC26: 319.0710999 | ED26: 332.153015 | EE26: 345.7712886 | EF26: 359.9479114 | EG26: 374.7057758 | EH26: 390.0687126 | EI26: 406.0615298 | EJ26: 422.7100526 | EK26: 440.0411647 | EL26: 458.0828525 | EM26: =IF(EL26="","",EL26*(1+$N26)) -> 476.8642494 | EN26: 496.4156837 | EO26: 516.7687267 | EP26: 537.9562445 | EQ26: 560.0124505 | ER26: 582.972961 | ES26: 606.8748524 | ET26: 631.7567213 | EU26: 657.6587469 | EV26: 684.6227555 | EW26: 712.6922885 | EX26: 741.9126723 | EY26: 772.3310919 | EZ26: 803.9966667 | FA26: 836.96053 | FB26: 871.2759117 | FC26: 906.9982241 | FD26: 944.1851513 | FE26: 982.8967425 | FF26: 1023.195509 | FG26: 1065.146525 | FH26: 1108.817532 | FI26: 1154.279051 | FJ26: 1201.604492 | FK26: 1250.870276 | FL26: 1302.155958 | FM26: 1355.544352 | FN26: 1411.12167 | FO26: 1468.977659 | FP26: 1529.205743 | FQ26: 1591.903178 | FR26: 1657.171209 | FS26: 1725.115228 | FT26: 1795.844953 | FU26: 1869.474596 | FV26: 1946.123054 | FW26: 2025.914099 | FX26: 2108.976577 | FY26: 2195.444617 | FZ26: 2285.457846 | GA26: 2379.161618 | GB26: 2476.707244 | GC26: 2578.252241 | GD26: 2683.960583 | GE26: 2794.002967 | GF26: 2908.557089 | GG26: 3027.80793 | GH26: 3151.948055 | GI26: 3281.177925 | GJ26: 3415.70622 | GK26: 3555.750175 | GL26: 3701.535932 | GM26: 3853.298905 | GN26: 4011.28416 | GO26: 4175.746811 | GP26: 4346.95243 | GQ26: 4525.17748 | GR26: 4710.709757 | GS26: 4903.848857 | GT26: 5104.90666 | GU26: 5314.207833 | GV26: 5532.090354 | GW26: 5758.906058 | GX26: 5995.021207 | GY26: =IF(GX26="","",GX26*(1+$N26)) -> 6240.817076 | GZ26: 6496.690576 | HA26: 6763.05489 | HB26: 7040.34014 | HC26: 7328.994086 | HD26: 7629.482844 | HE26: 7942.29164 | HF26: 8267.925598 | HG26: 8606.910547 | HH26: 8959.79388 | HI26: 9327.145429
A27: ='MPG-3'!A27 -> 15 | B27: ='MPG-3'!B27 -> IDA | D27: ='MPG-3'!D27 -> IDACORP, Inc. | F27: ='MPG-5'!F27 -> 115.7440346 | G27: ='MPG-5'!H27 -> 3.44 | H27: ='MPG-4'!O27 -> 0.0819024 | I27: 0.07508533333 | J27: 0.06826826667 | K27: 0.0614512 | L27: 0.05463413333 | M27: 0.04781706667 | N27: 0.041 | O27: 0.08101612996 | Q27: -115.7440346 | R27: 3.721744256 | S27: =IF(R27="","",R27*(1+$H27)) -> 4.026564043 | T27: 4.356349302 | U27: 4.713144765 | V27: 5.099162632 | W27: 5.482034958 | X27: 5.856283983 | Y27: 6.216159661 | Z27: 6.555774157 | AA27: 6.869252047 | AB27: 7.150891381 | AC27: =IF(AB27="","",AB27*(1+$N27)) -> 7.444077927 | AD27: 7.749285122 | AE27: 8.067005812 | AF27: 8.397753051 | AG27: 8.742060926 | AH27: 9.100485424 | AI27: 9.473605326 | AJ27: 9.862023144 | AK27: 10.26636609 | AL27: 10.6872871 | AM27: 11.12546587 | AN27: 11.58160998 | AO27: 12.05645598 | AP27: 12.55077068 | AQ27: 13.06535228 | AR27: 13.60103172 | AS27: 14.15867402 | AT27: 14.73917966 | AU27: 15.34348602 | AV27: 15.97256895 | AW27: 16.62744428 | AX27: 17.30916949 | AY27: 18.01884544 | AZ27: 18.7576181 | BA27: 19.52668045 | BB27: 20.32727434 | BC27: 21.16069259 | BD27: 22.02828099 | BE27: 22.93144051 | BF27: 23.87162957 | BG27: 24.85036638 | BH27: 25.8692314 | BI27: 26.92986989 | BJ27: 28.03399456 | BK27: 29.18338833 | BL27: 30.37990726 | BM27: 31.62548345 | BN27: 32.92212827 | BO27: 34.27193553 | BP27: 35.67708489 | BQ27: 37.13984537 | BR27: 38.66257903 | BS27: 40.24774477 | BT27: 41.89790231 | BU27: 43.6157163 | BV27: 45.40396067 | BW27: 47.26552306 | BX27: 49.2034095 | BY27: 51.22074929 | BZ27: 53.32080001 | CA27: 55.50695281 | CB27: 57.78273788 | CC27: 60.15183013 | CD27: 62.61805517 | CE27: 65.18539543 | CF27: 67.85799664 | CG27: 70.6401745 | CH27: 73.53642166 | CI27: 76.55141495 | CJ27: 79.69002296 | CK27: 82.9573139 | CL27: 86.35856377 | CM27: 89.89926489 | CN27: 93.58513475 | CO27: 97.42212527 | CP27: 101.4164324 | CQ27: 105.5745061 | CR27: 109.9030609 | CS27: 114.4090864 | CT27: 119.0998589 | CU27: 123.9829531 | CV27: 129.0662542 | CW27: 134.3579706 | CX27: 139.8666474 | CY27: 145.60118 | CZ27: 151.5708284 | DA27: 157.7852323 | DB27: 164.2544269 | DC27: 170.9888584 | DD27: 177.9994015 | DE27: 185.297377 | DF27: 192.8945695 | DG27: 200.8032468 | DH27: 209.0361799 | DI27: 217.6066633 | DJ27: 226.5285365 | DK27: 235.8162065 | DL27: 245.484671 | DM27: 255.5495425 | DN27: 266.0270737 | DO27: 276.9341837 | DP27: 288.2884853 | DQ27: 300.1083132 | DR27: 312.412754 | DS27: 325.2216769 | DT27: 338.5557657 | DU27: 352.4365521 | DV27: 366.8864507 | DW27: 381.9287952 | DX27: 397.5878758 | DY27: 413.8889787 | DZ27: 430.8584268 | EA27: 448.5236223 | EB27: 466.9130908 | EC27: 486.0565276 | ED27: 505.9848452 | EE27: 526.7302239 | EF27: 548.326163 | EG27: 570.8075357 | EH27: 594.2106447 | EI27: 618.5732811 | EJ27: 643.9347856 | EK27: 670.3361118 | EL27: 697.8198924 | EM27: =IF(EL27="","",EL27*(1+$N27)) -> 726.430508 | EN27: 756.2141589 | EO27: 787.2189394 | EP27: 819.4949159 | EQ27: 853.0942074 | ER27: 888.0710699 | ES27: 924.4819838 | ET27: 962.3857451 | EU27: 1001.843561 | EV27: 1042.919147 | EW27: 1085.678832 | EX27: 1130.191664 | EY27: 1176.529522 | EZ27: 1224.767232 | FA27: 1274.982689 | FB27: 1327.256979 | FC27: 1381.674515 | FD27: 1438.32317 | FE27: 1497.29442 | FF27: 1558.683492 | FG27: 1622.589515 | FH27: 1689.115685 | FI27: 1758.369428 | FJ27: 1830.462575 | FK27: 1905.51154 | FL27: 1983.637513 | FM27: 2064.966651 | FN27: 2149.630284 | FO27: 2237.765126 | FP27: 2329.513496 | FQ27: 2425.023549 | FR27: 2524.449515 | FS27: 2627.951945 | FT27: 2735.697975 | FU27: 2847.861591 | FV27: 2964.623917 | FW27: 3086.173497 | FX27: 3212.706611 | FY27: 3344.427582 | FZ27: 3481.549113 | GA27: 3624.292626 | GB27: 3772.888624 | GC27: 3927.577057 | GD27: 4088.607717 | GE27: 4256.240633 | GF27: 4430.746499 | GG27: 4612.407106 | GH27: 4801.515797 | GI27: 4998.377945 | GJ27: 5203.31144 | GK27: 5416.647209 | GL27: 5638.729745 | GM27: 5869.917665 | GN27: 6110.584289 | GO27: 6361.118245 | GP27: 6621.924093 | GQ27: 6893.42298 | GR27: 7176.053323 | GS27: 7470.271509 | GT27: 7776.552641 | GU27: 8095.391299 | GV27: 8427.302342 | GW27: 8772.821738 | GX27: 9132.50743 | GY27: 9506.940234 | GZ27: 9896.724784 | HA27: 10302.4905 | HB27: 10724.89261 | HC27: 11164.61321 | HD27: 11622.36235 | HE27: 12098.87921 | HF27: 12594.93325 | HG27: 13111.32552 | HH27: 13648.88986 | HI27: 14208.49435
A28: ='MPG-3'!A28 -> 16 | B28: ='MPG-3'!B28 -> NWE | D28: ='MPG-3'!D28 -> NorthWestern Corporation | F28: ='MPG-5'!F28 -> 54.16827308 | G28: ='MPG-5'!H28 -> 2.64 | H28: ='MPG-4'!O28 -> 0.06501343333 | I28: 0.06101119444 | J28: 0.05700895556 | K28: 0.05300671667 | L28: 0.04900447778 | M28: 0.04500223889 | N28: 0.041 | O28: 0.09960089638 | Q28: -54.16827308 | R28: 2.811635464 | S28: =IF(R28="","",R28*(1+$H28)) -> 2.994429539 | T28: 3.189107684 | U28: 3.396442524 | V28: 3.617256913 | W28: 3.837950078 | X28: 4.056747604 | Y28: 4.271782475 | Z28: 4.481118944 | AA28: 4.682779329 | AB28: 4.874773282 | AC28: 5.074638986 | AD28: 5.282699185 | AE28: 5.499289851 | AF28: 5.724760735 | AG28: 5.959475925 | AH28: 6.203814438 | AI28: 6.45817083 | AJ28: 6.722955834 | AK28: 6.998597023 | AL28: 7.285539501 | AM28: 7.584246621 | AN28: 7.895200732 | AO28: 8.218903962 | AP28: 8.555879025 | AQ28: 8.906670065 | AR28: 9.271843537 | AS28: 9.651989122 | AT28: 10.04772068 | AU28: 10.45967722 | AV28: 10.88852399 | AW28: 11.33495347 | AX28: 11.79968657 | AY28: 12.28347372 | AZ28: 12.78709614 | BA28: 13.31136708 | BB28: 13.85713313 | BC28: 14.42527559 | BD28: 15.01671189 | BE28: 15.63239707 | BF28: 16.27332535 | BG28: 16.94053169 | BH28: 17.63509349 | BI28: 18.35813233 | BJ28: 19.11081575 | BK28: 19.8943592 | BL28: 20.71002793 | BM28: 21.55913907 | BN28: 22.44306377 | BO28: 23.36322939 | BP28: 24.32112179 | BQ28: 25.31828779 | BR28: 26.35633758 | BS28: 27.43694743 | BT28: 28.56186227 | BU28: 29.73289862 | BV28: 30.95194747 | BW28: 32.22097731 | BX28: 33.54203738 | BY28: 34.91726091 | BZ28: 36.34886861 | CA28: 37.83917223 | CB28: 39.39057829 | CC28: 41.005592 | CD28: 42.68682127 | CE28: 44.43698094 | CF28: 46.25889716 | CG28: 48.15551194 | CH28: 50.12988793 | CI28: 52.18521334 | CJ28: 54.32480708 | CK28: 56.55212417 | CL28: 58.87076127 | CM28: 61.28446248 | CN28: 63.79712544 | CO28: 66.41280758 | CP28: 69.13573269 | CQ28: 71.97029773 | CR28: 74.92107994 | CS28: 77.99284422 | CT28: 81.19055083 | CU28: 84.51936342 | CV28: 87.98465732 | CW28: 91.59202827 | CX28: 95.34730142 | CY28: 99.25654078 | CZ28: 103.326059 | DA28: 107.5624274 | DB28: 111.9724869 | DC28: 116.5633589 | DD28: 121.3424566 | DE28: 126.3174973 | DF28: 131.4965147 | DG28: 136.8878718 | DH28: 142.5002745 | DI28: 148.3427858 | DJ28: 154.42484 | DK28: 160.7562584 | DL28: 167.347265 | DM28: 174.2085029 | DN28: 181.3510515 | DO28: 188.7864446 | DP28: 196.5266889 | DQ28: 204.5842831 | DR28: 212.9722387 | DS28: 221.7041005 | DT28: 230.7939686 | DU28: 240.2565213 | DV28: 250.1070387 | DW28: 260.3614273 | DX28: 271.0362458 | DY28: 282.1487319 | DZ28: 293.7168299 | EA28: 305.7592199 | EB28: 318.2953479 | EC28: 331.3454572 | ED28: 344.9306209 | EE28: 359.0727764 | EF28: 373.7947602 | EG28: 389.1203454 | EH28: 405.0742796 | EI28: 421.682325 | EJ28: 438.9713004 | EK28: 456.9691237 | EL28: 475.7048577 | EM28: =IF(EL28="","",EL28*(1+$N28)) -> 495.2087569 | EN28: 515.5123159 | EO28: 536.6483209 | EP28: =IF(EO28="","",EO28*(1+$N28)) -> 558.6509021 | EQ28: 581.555589 | ER28: 605.3993682 | ES28: 630.2207423 | ET28: 656.0597927 | EU28: 682.9582442 | EV28: 710.9595322 | EW28: 740.1088731 | EX28: 770.4533369 | EY28: 802.0419237 | EZ28: 834.9256425 | FA28: 869.1575939 | FB28: 904.7930552 | FC28: 941.8895705 | FD28: 980.5070429 | FE28: 1020.707832 | FF28: 1062.556853 | FG28: 1106.121684 | FH28: 1151.472673 | FI28: 1198.683052 | FJ28: 1247.829057 | FK28: 1298.990049 | FL28: 1352.248641 | FM28: 1407.690835 | FN28: 1465.406159 | FO28: 1525.487812 | FP28: 1588.032812 | FQ28: 1653.142157 | FR28: 1720.920986 | FS28: 1791.478746 | FT28: 1864.929375 | FU28: 1941.391479 | FV28: 2020.98853 | FW28: 2103.84906 | FX28: 2190.106871 | FY28: 2279.901253 | FZ28: 2373.377204 | GA28: 2470.68567 | GB28: 2571.983782 | GC28: 2677.435117 | GD28: 2787.209957 | GE28: 2901.485565 | GF28: 3020.446473 | GG28: 3144.284779 | GH28: 3273.200455 | GI28: 3407.401673 | GJ28: 3547.105142 | GK28: 3692.536453 | GL28: 3843.930447 | GM28: 4001.531596 | GN28: 4165.594391 | GO28: 4336.383761 | GP28: 4514.175495 | GQ28: 4699.256691 | GR28: 4891.926215 | GS28: 5092.49519 | GT28: 5301.287492 | GU28: 5518.64028 | GV28: 5744.904531 | GW28: 5980.445617 | GX28: 6225.643887 | GY28: 6480.895287 | GZ28: 6746.611993 | HA28: 7023.223085 | HB28: =IF(HA28="","",HA28*(1+$N28)) -> 7311.175231 | HC28: 7610.933416 | HD28: 7922.981686 | HE28: 8247.823935 | HF28: 8585.984716 | HG28: 8938.01009 | HH28: 9304.468504 | HI28: =IF(HH28="","",HH28*(1+$N28)) -> 9685.951712
A29: ='MPG-3'!A29 -> 17 | B29: ='MPG-3'!B29 -> OGE | D29: ='MPG-3'!D29 -> OGE Energy Corp. | F29: ='MPG-5'!F29 -> 44.30096154 | G29: ='MPG-5'!H29 -> 1.6852 | H29: ='MPG-4'!O29 -> 0.06219266667 | I29: 0.05866055556 | J29: 0.05512844444 | K29: 0.05159633333 | L29: 0.04806422222 | M29: 0.04453211111 | N29: 0.041 | O29: 0.0861838729 | Q29: -44.30096154 | R29: 1.790007082 | S29: =IF(R29="","",R29*(1+$H29)) -> 1.901332396 | T29: 2.019581328 | U29: 2.145184476 | V29: 2.278599219 | W29: 2.412263115 | X29: 2.545247428 | Y29: 2.676572863 | Z29: 2.805220256 | AA29: 2.930142636 | AB29: 3.050278484 | AC29: 3.175339902 | AD29: 3.305528838 | AE29: 3.44105552 | AF29: 3.582138796 | AG29: 3.729006487 | AH29: 3.881895753 | AI29: 4.041053479 | AJ29: 4.206736671 | AK29: 4.379212875 | AL29: 4.558760603 | AM29: 4.745669788 | AN29: 4.940242249 | AO29: 5.142792181 | AP29: 5.35364666 | AQ29: 5.573146174 | AR29: 5.801645167 | AS29: 6.039512619 | AT29: 6.287132636 | AU29: 6.544905074 | AV29: 6.813246182 | AW29: 7.092589275 | AX29: 7.383385436 | AY29: 7.686104239 | AZ29: 8.001234512 | BA29: 8.329285127 | BB29: 8.670785818 | BC29: 9.026288036 | BD29: 9.396365846 | BE29: 9.781616845 | BF29: 10.18266314 | BG29: 10.60015232 | BH29: 11.03475857 | BI29: 11.48718367 | BJ29: 11.9581582 | BK29: 12.44844269 | BL29: 12.95882884 | BM29: 13.49014082 | BN29: 14.04323659 | BO29: 14.61900929 | BP29: 15.21838868 | BQ29: 15.84234261 | BR29: 16.49187866 | BS29: 17.16804568 | BT29: 17.87193556 | BU29: 18.60468491 | BV29: 19.367477 | BW29: 20.16154355 | BX29: 20.98816684 | BY29: 21.84868168 | BZ29: 22.74447763 | CA29: 23.67700121 | CB29: 24.64775826 | CC29: 25.65831635 | CD29: 26.71030732 | CE29: 27.80542992 | CF29: 28.94545255 | CG29: 30.1322161 | CH29: 31.36763696 | CI29: 32.65371008 | CJ29: 33.99251219 | CK29: 35.38620519 | CL29: 36.8370396 | CM29: 38.34735822 | CN29: 39.91959991 | CO29: 41.55630351 | CP29: 43.26011195 | CQ29: 45.03377654 | CR29: 46.88016138 | CS29: 48.802248 | CT29: 50.80314016 | CU29: 52.88606891 | CV29: 55.05439774 | CW29: 57.31162804 | CX29: 59.66140479 | CY29: 62.10752239 | CZ29: 64.65393081 | DA29: 67.30474197 | DB29: 70.06423639 | DC29: 72.93687008 | DD29: 75.92728176 | DE29: 79.04030031 | DF29: 82.28095262 | DG29: 85.65447168 | DH29: 89.16630502 | DI29: 92.82212352 | DJ29: 96.62783059 | DK29: 100.5895716 | DL29: 104.7137441 | DM29: 109.0070076 | DN29: 113.4762949 | DO29: 118.128823 | DP29: 122.9721047 | DQ29: 128.013961 | DR29: 133.2625334 | DS29: 138.7262973 | DT29: 144.4140755 | DU29: 150.3350526 | DV29: 156.4987897 | DW29: 162.9152401 | DX29: 169.594765 | DY29: 176.5481503 | DZ29: 183.7866245 | EA29: 191.3218761 | EB29: 199.166073 | EC29: 207.331882 | ED29: 215.8324892 | EE29: 224.6816212 | EF29: 233.8935677 | EG29: 243.483204 | EH29: 253.4660153 | EI29: 263.858122 | EJ29: 274.676305 | EK29: 285.9380335 | EL29: 297.6614928 | EM29: =IF(EL29="","",EL29*(1+$N29)) -> 309.865614 | EN29: 322.5701042 | EO29: 335.7954785 | EP29: 349.5630931 | EQ29: 363.8951799 | ER29: 378.8148823 | ES29: 394.3462925 | ET29: 410.5144905 | EU29: 427.3455846 | EV29: 444.8667536 | EW29: 463.1062904 | EX29: 482.0936484 | EY29: 501.8594879 | EZ29: 522.4357269 | FA29: 543.8555917 | FB29: 566.153671 | FC29: 589.3659715 | FD29: 613.5299764 | FE29: 638.6847054 | FF29: 664.8707783 | FG29: 692.1304802 | FH29: 720.5078299 | FI29: 750.0486509 | FJ29: 780.8006456 | FK29: 812.8134721 | FL29: 846.1388244 | FM29: 880.8305162 | FN29: 916.9445674 | FO29: 954.5392947 | FP29: 993.6754058 | FQ29: 1034.416097 | FR29: 1076.827157 | FS29: 1120.977071 | FT29: 1166.937131 | FU29: 1214.781553 | FV29: 1264.587597 | FW29: 1316.435688 | FX29: 1370.409551 | FY29: 1426.596343 | FZ29: 1485.086793 | GA29: 1545.975352 | GB29: 1609.360341 | GC29: 1675.344115 | GD29: 1744.033224 | GE29: 1815.538586 | GF29: 1889.975668 | GG29: 1967.46467 | GH29: 2048.130722 | GI29: 2132.104081 | GJ29: 2219.520349 | GK29: 2310.520683 | GL29: 2405.252031 | GM29: 2503.867364 | GN29: 2606.525926 | GO29: 2713.393489 | GP29: 2824.642622 | GQ29: 2940.45297 | GR29: 3061.011542 | GS29: 3186.513015 | GT29: 3317.160048 | GU29: 3453.16361 | GV29: 3594.743318 | GW29: 3742.127795 | GX29: 3895.555034 | GY29: 4055.27279 | GZ29: 4221.538975 | HA29: 4394.622073 | HB29: =IF(HA29="","",HA29*(1+$N29)) -> 4574.801578 | HC29: 4762.368443 | HD29: 4957.625549 | HE29: 5160.888196 | HF29: 5372.484612 | HG29: 5592.756481 | HH29: 5822.059497 | HI29: 6060.763936
A30: ='MPG-3'!A30 -> 18 | B30: ='MPG-3'!B30 -> PNW | D30: ='MPG-3'!D30 -> Pinnacle West Capital Corporation | F30: ='MPG-5'!F30 -> 90.87253846 | G30: ='MPG-5'!H30 -> 3.58 | H30: ='MPG-4'!O30 -> 0.03191473333 | I30: 0.03342894444 | J30: 0.03494315556 | K30: 0.03645736667 | L30: 0.03797157778 | M30: 0.03948578889 | N30: 0.041 | O30: 0.07967176158 | Q30: -90.87253846 | R30: 3.694254745 | S30: =IF(R30="","",R30*(1+$H30)) -> 3.8121559 | T30: 3.933819839 | U30: 4.059366651 | V30: 4.188920255 | W30: 4.328951437 | X30: 4.480218661 | Y30: 4.643555635 | Z30: 4.819878769 | AA30: 5.010195485 | AB30: 5.215613499 | AC30: 5.429453653 | AD30: 5.652061253 | AE30: 5.883795764 | AF30: 6.12503139 | AG30: 6.376157677 | AH30: 6.637580142 | AI30: 6.909720928 | AJ30: 7.193019486 | AK30: 7.487933285 | AL30: 7.79493855 | AM30: 8.11453103 | AN30: 8.447226802 | AO30: 8.793563101 | AP30: 9.154099189 | AQ30: 9.529417255 | AR30: 9.920123363 | AS30: 10.32684842 | AT30: 10.75024921 | AU30: 11.19100942 | AV30: 11.64984081 | AW30: 12.12748428 | AX30: 12.62471114 | AY30: 13.1423243 | AZ30: 13.68115959 | BA30: 14.24208713 | BB30: 14.82601271 | BC30: 15.43387923 | BD30: 16.06666828 | BE30: 16.72540168 | BF30: 17.41114314 | BG30: 18.12500001 | BH30: 18.86812501 | BI30: 19.64171814 | BJ30: 20.44702858 | BK30: 21.28535675 | BL30: 22.15805638 | BM30: 23.06653669 | BN30: 24.0122647 | BO30: 24.99676755 | BP30: 26.02163502 | BQ30: 27.08852206 | BR30: 28.19915146 | BS30: 29.35531667 | BT30: 30.55888465 | BU30: 31.81179892 | BV30: 33.11608268 | BW30: 34.47384207 | BX30: 35.8872696 | BY30: 37.35864765 | BZ30: 38.8903522 | CA30: 40.48485664 | CB30: 42.14473576 | CC30: 43.87266993 | CD30: 45.6714494 | CE30: 47.54397882 | CF30: 49.49328196 | CG30: 51.52250652 | CH30: 53.63492928 | CI30: 55.83396138 | CJ30: 58.1231538 | CK30: 60.50620311 | CL30: 62.98695743 | CM30: 65.56942269 | CN30: =IF(CM30="","",CM30*(1+$N30)) -> 68.25776902 | CO30: 71.05633755 | CP30: 73.96964739 | CQ30: 77.00240293 | CR30: 80.15950145 | CS30: 83.44604101 | CT30: 86.86732869 | CU30: 90.42888917 | CV30: 94.13647362 | CW30: 97.99606904 | CX30: 102.0139079 | CY30: 106.1964781 | CZ30: 110.5505337 | DA30: 115.0831056 | DB30: 119.8015129 | DC30: 124.7133749 | DD30: 129.8266233 | DE30: 135.1495149 | DF30: 140.690645 | DG30: 146.4589614 | DH30: 152.4637788 | DI30: 158.7147938 | DJ30: 165.2221003 | DK30: 171.9962064 | DL30: 179.0480509 | DM30: 186.389021 | DN30: 194.0309708 | DO30: 201.9862406 | DP30: 210.2676765 | DQ30: 218.8886512 | DR30: 227.8630859 | DS30: 237.2054725 | DT30: 246.9308968 | DU30: 257.0550636 | DV30: 267.5943212 | DW30: 278.5656884 | DX30: 289.9868816 | DY30: 301.8763438 | DZ30: 314.2532739 | EA30: 327.1376581 | EB30: 340.5503021 | EC30: 354.5128644 | ED30: 369.0478919 | EE30: 384.1788555 | EF30: 399.9301885 | EG30: 416.3273263 | EH30: 433.3967466 | EI30: 451.1660132 | EJ30: 469.6638198 | EK30: 488.9200364 | EL30: 508.9657579 | EM30: =IF(EL30="","",EL30*(1+$N30)) -> 529.833354 | EN30: 551.5565215 | EO30: 574.1703389 | EP30: 597.7113228 | EQ30: 622.217487 | ER30: 647.728404 | ES30: 674.2852685 | ET30: 701.9309645 | EU30: 730.7101341 | EV30: 760.6692496 | EW30: 791.8566888 | EX30: 824.322813 | EY30: 858.1200484 | EZ30: 893.3029704 | FA30: 929.9283921 | FB30: 968.0554562 | FC30: 1007.74573 | FD30: 1049.063305 | FE30: 1092.0749 | FF30: 1136.849971 | FG30: 1183.46082 | FH30: 1231.982714 | FI30: 1282.494005 | FJ30: 1335.076259 | FK30: 1389.814386 | FL30: 1446.796776 | FM30: 1506.115443 | FN30: 1567.866177 | FO30: 1632.14869 | FP30: 1699.066786 | FQ30: 1768.728524 | FR30: 1841.246394 | FS30: 1916.737496 | FT30: 1995.323733 | FU30: 2077.132006 | FV30: 2162.294419 | FW30: 2250.94849 | FX30: 2343.237378 | FY30: 2439.31011 | FZ30: 2539.321825 | GA30: 2643.43402 | GB30: 2751.814815 | GC30: 2864.639222 | GD30: 2982.08943 | GE30: 3104.355097 | GF30: 3231.633656 | GG30: 3364.130636 | GH30: 3502.059992 | GI30: 3645.644451 | GJ30: 3795.115874 | GK30: 3950.715625 | GL30: 4112.694965 | GM30: 4281.315459 | GN30: 4456.849393 | GO30: 4639.580218 | GP30: 4829.803007 | GQ30: 5027.82493 | GR30: 5233.965752 | GS30: 5448.558348 | GT30: 5671.94924 | GU30: 5904.499159 | GV30: 6146.583624 | GW30: 6398.593553 | GX30: 6660.935889 | GY30: =IF(GX30="","",GX30*(1+$N30)) -> 6934.03426 | GZ30: 7218.329665 | HA30: 7514.281181 | HB30: 7822.36671 | HC30: 8143.083745 | HD30: 8476.950178 | HE30: 8824.505135 | HF30: 9186.309846 | HG30: 9562.94855 | HH30: 9955.02944 | HI30: 10363.18565
A31: ='MPG-3'!A31 -> 19 | B31: ='MPG-3'!B31 -> POR | D31: ='MPG-3'!D31 -> Portland General Electric Company | F31: ='MPG-5'!F31 -> 41.43103077 | G31: ='MPG-5'!H31 -> 2.1 | H31: ='MPG-4'!O31 -> 0.03918176667 | I31: 0.03948480556 | J31: 0.03978784444 | K31: 0.04009088333 | L31: 0.04039392222 | M31: 0.04069696111 | N31: 0.041 | O31: 0.09317677754 | Q31: -41.43103077 | R31: 2.18228171 | S31: =IF(R31="","",R31*(1+$H31)) -> 2.267787363 | T31: 2.356643278 | U31: 2.448980725 | V31: 2.544936116 | W31: 2.645422424 | X31: 2.75067808 | Y31: 2.860955194 | Z31: 2.976520396 | AA31: 3.09765573 | AB31: 3.224659615 | AC31: =IF(AB31="","",AB31*(1+$N31)) -> 3.35687066 | AD31: 3.494502357 | AE31: 3.637776953 | AF31: 3.786925808 | AG31: 3.942189766 | AH31: 4.103819547 | AI31: 4.272076148 | AJ31: 4.44723127 | AK31: 4.629567753 | AL31: 4.81938003 | AM31: 5.016974612 | AN31: 5.222670571 | AO31: 5.436800064 | AP31: 5.659708867 | AQ31: 5.89175693 | AR31: 6.133318964 | AS31: 6.384785042 | AT31: 6.646561229 | AU31: 6.919070239 | AV31: 7.202752119 | AW31: 7.498064956 | AX31: 7.805485619 | AY31: 8.125510529 | AZ31: 8.458656461 | BA31: 8.805461376 | BB31: 9.166485292 | BC31: 9.542311189 | BD31: 9.933545948 | BE31: 10.34082133 | BF31: 10.76479501 | BG31: 11.2061516 | BH31: 11.66560382 | BI31: 12.14389357 | BJ31: 12.64179321 | BK31: 13.16010673 | BL31: 13.69967111 | BM31: 14.26135762 | BN31: 14.84607329 | BO31: 15.45476229 | BP31: 16.08840754 | BQ31: 16.74803225 | BR31: 17.43470158 | BS31: 18.14952434 | BT31: 18.89365484 | BU31: 19.66829469 | BV31: 20.47469477 | BW31: 21.31415726 | BX31: 22.1880377 | BY31: 23.09774725 | BZ31: 24.04475489 | CA31: 25.03058984 | CB31: 26.05684402 | CC31: 27.12517462 | CD31: 28.23730678 | CE31: 29.39503636 | CF31: 30.60023285 | CG31: 31.8548424 | CH31: 33.16089094 | CI31: 34.52048747 | CJ31: 35.93582745 | CK31: 37.40919638 | CL31: 38.94297343 | CM31: 40.53963534 | CN31: 42.20176039 | CO31: 43.93203257 | CP31: 45.7332459 | CQ31: 47.60830898 | CR31: 49.56024965 | CS31: 51.59221989 | CT31: 53.7075009 | CU31: 55.90950844 | CV31: 58.20179828 | CW31: 60.58807201 | CX31: 63.07218297 | CY31: 65.65814247 | CZ31: 68.35012631 | DA31: 71.15248149 | DB31: 74.06973323 | DC31: 77.10659229 | DD31: 80.26796258 | DE31: 83.55894904 | DF31: 86.98486595 | DG31: 90.55124546 | DH31: 94.26384652 | DI31: 98.12866423 | DJ31: 102.1519395 | DK31: 106.340169 | DL31: 110.7001159 | DM31: 115.2388207 | DN31: 119.9636123 | DO31: 124.8821204 | DP31: 130.0022873 | DQ31: 135.3323811 | DR31: 140.8810088 | DS31: 146.6571301 | DT31: 152.6700724 | DU31: 158.9295454 | DV31: 165.4456568 | DW31: 172.2289287 | DX31: 179.2903148 | DY31: 186.6412177 | DZ31: 194.2935076 | EA31: 202.2595414 | EB31: 210.5521826 | EC31: 219.1848221 | ED31: 228.1713998 | EE31: 237.5264272 | EF31: 247.2650107 | EG31: 257.4028762 | EH31: 267.9563941 | EI31: 278.9426063 | EJ31: 290.3792531 | EK31: 302.2848025 | EL31: 314.6784794 | EM31: =IF(EL31="","",EL31*(1+$N31)) -> 327.580297 | EN31: 341.0110892 | EO31: 354.9925439 | EP31: 369.5472382 | EQ31: 384.6986749 | ER31: 400.4713206 | ES31: 416.8906448 | ET31: 433.9831612 | EU31: 451.7764708 | EV31: 470.2993061 | EW31: 489.5815777 | EX31: 509.6544223 | EY31: 530.5502537 | EZ31: 552.3028141 | FA31: 574.9472294 | FB31: 598.5200658 | FC31: 623.0593885 | FD31: 648.6048235 | FE31: 675.1976212 | FF31: 702.8807237 | FG31: 731.6988334 | FH31: 761.6984855 | FI31: 792.9281235 | FJ31: 825.4381765 | FK31: 859.2811418 | FL31: 894.5116686 | FM31: 931.186647 | FN31: 969.3652995 | FO31: 1009.109277 | FP31: 1050.482757 | FQ31: 1093.55255 | FR31: 1138.388205 | FS31: 1185.062121 | FT31: 1233.649668 | FU31: 1284.229304 | FV31: 1336.882706 | FW31: 1391.694897 | FX31: 1448.754388 | FY31: 1508.153318 | FZ31: 1569.987604 | GA31: 1634.357095 | GB31: 1701.365736 | GC31: 1771.121731 | GD31: 1843.737722 | GE31: 1919.330969 | GF31: 1998.023539 | GG31: 2079.942504 | GH31: 2165.220147 | GI31: 2253.994173 | GJ31: 2346.407934 | GK31: 2442.610659 | GL31: 2542.757696 | GM31: 2647.010761 | GN31: 2755.538203 | GO31: 2868.515269 | GP31: 2986.124395 | GQ31: 3108.555495 | GR31: 3236.00627 | GS31: 3368.682528 | GT31: 3506.798511 | GU31: 3650.57725 | GV31: 3800.250917 | GW31: 3956.061205 | GX31: 4118.259714 | GY31: 4287.108363 | GZ31: 4462.879806 | HA31: 4645.857878 | HB31: 4836.338051 | HC31: 5034.627911 | HD31: 5241.047655 | HE31: 5455.930609 | HF31: 5679.623764 | HG31: 5912.488338 | HH31: 6154.90036 | HI31: 6407.251275
A32: ='MPG-3'!A32 -> 20 | B32: ='MPG-3'!B32 -> SO | D32: ='MPG-3'!D32 -> The Southern Company | F32: ='MPG-5'!F32 -> 90.21650385 | G32: ='MPG-5'!H32 -> 2.96 | H32: ='MPG-4'!O32 -> 0.068784 | I32: 0.06415333333 | J32: 0.05952266667 | K32: 0.054892 | L32: 0.05026133333 | M32: 0.04563066667 | N32: 0.041 | O32: 0.08167797305 | Q32: -90.21650385 | R32: 3.16360064 | S32: =IF(R32="","",R32*(1+$H32)) -> 3.381205746 | T32: 3.613778602 | U32: 3.86234875 | V32: 4.128016546 | W32: 4.392842568 | X32: 4.654316272 | Y32: 4.909801 | Z32: 5.156574145 | AA32: 5.391872061 | AB32: 5.612938816 | AC32: 5.843069307 | AD32: 6.082635149 | AE32: 6.33202319 | AF32: 6.591636141 | AG32: 6.861893222 | AH32: 7.143230844 | AI32: 7.436103309 | AJ32: 7.740983545 | AK32: 8.05836387 | AL32: 8.388756789 | AM32: 8.732695817 | AN32: 9.090736345 | AO32: 9.463456536 | AP32: 9.851458254 | AQ32: 10.25536804 | AR32: 10.67583813 | AS32: 11.1135475 | AT32: 11.56920294 | AU32: 12.04354026 | AV32: 12.53732541 | AW32: 13.05135576 | AX32: 13.58646134 | AY32: 14.14350626 | AZ32: 14.72339001 | BA32: 15.327049 | BB32: 15.95545801 | BC32: 16.60963179 | BD32: 17.2906267 | BE32: 17.99954239 | BF32: 18.73752363 | BG32: 19.5057621 | BH32: 20.30549834 | BI32: 21.13802377 | BJ32: 22.00468275 | BK32: 22.90687474 | BL32: 23.84605661 | BM32: 24.82374493 | BN32: 25.84151847 | BO32: 26.90102073 | BP32: 28.00396258 | BQ32: 29.15212504 | BR32: 30.34736217 | BS32: 31.59160402 | BT32: 32.88685978 | BU32: 34.23522103 | BV32: 35.6388651 | BW32: 37.10005856 | BX32: 38.62116097 | BY32: 40.20462856 | BZ32: 41.85301834 | CA32: 43.56899209 | CB32: 45.35532076 | CC32: 47.21488891 | CD32: 49.15069936 | CE32: 51.16587803 | CF32: 53.26367903 | CG32: 55.44748987 | CH32: 57.72083696 | CI32: 60.08739127 | CJ32: 62.55097432 | CK32: 65.11556426 | CL32: 67.7853024 | CM32: 70.5644998 | CN32: 73.45764429 | CO32: 76.4694077 | CP32: 79.60465342 | CQ32: 82.86844421 | CR32: 86.26605042 | CS32: 89.80295849 | CT32: 93.48487979 | CU32: 97.31775986 | CV32: 101.307788 | CW32: 105.4614073 | CX32: 109.785325 | CY32: 114.2865233 | CZ32: 118.9722708 | DA32: 123.8501339 | DB32: 128.9279894 | DC32: 134.214037 | DD32: 139.7168125 | DE32: 145.4452018 | DF32: 151.4084551 | DG32: 157.6162017 | DH32: 164.078466 | DI32: 170.8056831 | DJ32: 177.8087161 | DK32: 185.0988735 | DL32: 192.6879273 | DM32: 200.5881323 | DN32: 208.8122457 | DO32: 217.3735478 | DP32: 226.2858633 | DQ32: 235.5635836 | DR32: 245.2216906 | DS32: 255.2757799 | DT32: 265.7420869 | DU32: 276.6375124 | DV32: 287.9796504 | DW32: 299.7868161 | DX32: 312.0780756 | DY32: 324.8732767 | DZ32: 338.193081 | EA32: 352.0589973 | EB32: 366.4934162 | EC32: 381.5196463 | ED32: 397.1619518 | EE32: 413.4455918 | EF32: 430.3968611 | EG32: 448.0431324 | EH32: 466.4129008 | EI32: 485.5358297 | EJ32: 505.4427988 | EK32: 526.1659535 | EL32: 547.7387576 | EM32: =IF(EL32="","",EL32*(1+$N32)) -> 570.1960467 | EN32: 593.5740846 | EO32: 617.910622 | EP32: 643.2449575 | EQ32: 669.6180008 | ER32: 697.0723388 | ES32: 725.6523047 | ET32: 755.4040492 | EU32: 786.3756152 | EV32: 818.6170155 | EW32: 852.1803131 | EX32: 887.1197059 | EY32: 923.4916139 | EZ32: 961.35477 | FA32: 1000.770316 | FB32: 1041.801899 | FC32: 1084.515776 | FD32: 1128.980923 | FE32: 1175.269141 | FF32: 1223.455176 | FG32: 1273.616838 | FH32: 1325.835128 | FI32: 1380.194369 | FJ32: 1436.782338 | FK32: 1495.690414 | FL32: 1557.013721 | FM32: 1620.851283 | FN32: 1687.306186 | FO32: 1756.485739 | FP32: 1828.501655 | FQ32: 1903.470223 | FR32: 1981.512502 | FS32: 2062.754514 | FT32: 2147.327449 | FU32: 2235.367875 | FV32: 2327.017958 | FW32: 2422.425694 | FX32: 2521.745147 | FY32: 2625.136698 | FZ32: 2732.767303 | GA32: 2844.810762 | GB32: 2961.448004 | GC32: 3082.867372 | GD32: 3209.264934 | GE32: 3340.844796 | GF32: 3477.819433 | GG32: 3620.41003 | GH32: 3768.846841 | GI32: 3923.369562 | GJ32: 4084.227714 | GK32: 4251.68105 | GL32: 4425.999973 | GM32: 4607.465972 | GN32: 4796.372077 | GO32: 4993.023332 | GP32: 5197.737288 | GQ32: 5410.844517 | GR32: 5632.689142 | GS32: 5863.629397 | GT32: 6104.038202 | GU32: 6354.303769 | GV32: 6614.830223 | GW32: 6886.038262 | GX32: 7168.365831 | GY32: 7462.26883 | GZ32: 7768.221852 | HA32: 8086.718948 | HB32: 8418.274425 | HC32: 8763.423677 | HD32: 9122.724047 | HE32: 9496.755733 | HF32: 9886.122718 | HG32: 10291.45375 | HH32: 10713.40335 | HI32: 11152.65289
A33: ='MPG-3'!A33 -> 21 | B33: ='MPG-3'!B33 -> XEL | D33: ='MPG-3'!D33 -> Xcel Energy Inc. | F33: ='MPG-5'!F33 -> 69.06134231 | G33: ='MPG-5'!H33 -> 2.28 | H33: ='MPG-4'!O33 -> 0.0809135 | I33: 0.07426125 | J33: 0.067609 | K33: 0.06095675 | L33: 0.0543045 | M33: 0.04765225 | N33: 0.041 | O33: 0.08506450264 | Q33: -69.06134231 | R33: 2.46448278 | S33: =IF(R33="","",R33*(1+$H33)) -> 2.663892707 | T33: 2.87943759 | U33: 3.112422963 | V33: 3.364259999 | W33: 3.614094152 | X33: 3.858439443 | Y33: 4.093637372 | Z33: 4.315940302 | AA33: 4.521604569 | AB33: 4.706990356 | AC33: 4.899976961 | AD33: 5.100876016 | AE33: 5.310011933 | AF33: 5.527722422 | AG33: 5.754359041 | AH33: 5.990287762 | AI33: 6.23588956 | AJ33: 6.491561032 | AK33: 6.757715034 | AL33: 7.034781351 | AM33: 7.323207386 | AN33: 7.623458889 | AO33: 7.936020703 | AP33: 8.261397552 | AQ33: 8.600114852 | AR33: 8.952719561 | AS33: 9.319781063 | AT33: 9.701892086 | AU33: 10.09966966 | AV33: 10.51375612 | AW33: 10.94482012 | AX33: 11.39355774 | AY33: 11.86069361 | AZ33: 12.34698205 | BA33: 12.85320831 | BB33: 13.38018985 | BC33: 13.92877764 | BD33: 14.49985752 | BE33: 15.09435168 | BF33: 15.7132201 | BG33: 16.35746212 | BH33: 17.02811807 | BI33: 17.72627091 | BJ33: 18.45304802 | BK33: 19.20962299 | BL33: 19.99721753 | BM33: 20.81710345 | BN33: 21.67060469 | BO33: 22.55909948 | BP33: 23.48402256 | BQ33: 24.44686749 | BR33: 25.44918905 | BS33: 26.4926058 | BT33: 27.57880264 | BU33: 28.70953355 | BV33: 29.88662443 | BW33: 31.11197603 | BX33: 32.38756704 | BY33: 33.71545729 | BZ33: 35.09779104 | CA33: 36.53680047 | CB33: 38.03480929 | CC33: 39.59423647 | CD33: 41.21760017 | CE33: 42.90752178 | CF33: 44.66673017 | CG33: 46.49806611 | CH33: 48.40448682 | CI33: 50.38907078 | CJ33: 52.45502268 | CK33: 54.60567861 | CL33: 56.84451143 | CM33: 59.1751364 | CN33: 61.60131699 | CO33: 64.12697099 | CP33: 66.7561768 | CQ33: 69.49318005 | CR33: 72.34240043 | CS33: 75.30843885 | CT33: 78.39608484 | CU33: 81.61032432 | CV33: 84.95634762 | CW33: 88.43955787 | CX33: 92.06557974 | CY33: 95.84026851 | CZ33: 99.76971952 | DA33: 103.860278 | DB33: 108.1185494 | DC33: 112.5514099 | DD33: 117.1660178 | DE33: 121.9698245 | DF33: 126.9705873 | DG33: 132.1763814 | DH33: 137.595613 | DI33: 143.2370331 | DJ33: 149.1097515 | DK33: 155.2232513 | DL33: 161.5874046 | DM33: 168.2124882 | DN33: 175.1092002 | DO33: 182.2886774 | DP33: 189.7625132 | DQ33: 197.5427762 | DR33: 205.6420301 | DS33: 214.0733533 | DT33: 222.8503608 | DU33: 231.9872256 | DV33: 241.4987018 | DW33: 251.4001486 | DX33: 261.7075547 | DY33: 272.4375644 | DZ33: 283.6075046 | EA33: 295.2354123 | EB33: 307.3400642 | EC33: 319.9410068 | ED33: 333.0585881 | EE33: 346.7139902 | EF33: 360.9292638 | EG33: 375.7273636 | EH33: 391.1321855 | EI33: 407.1686051 | EJ33: 423.8625179 | EK33: 441.2408811 | EL33: 459.3317573 | EM33: =IF(EL33="","",EL33*(1+$N33)) -> 478.1643593 | EN33: 497.769098 | EO33: 518.1776311 | EP33: =IF(EO33="","",EO33*(1+$N33)) -> 539.4229139 | EQ33: 561.5392534 | ER33: 584.5623628 | ES33: 608.5294197 | ET33: 633.4791259 | EU33: 659.45177 | EV33: 686.4892926 | EW33: 714.6353536 | EX33: 743.9354031 | EY33: 774.4367546 | EZ33: 806.1886616 | FA33: 839.2423967 | FB33: 873.651335 | FC33: 909.4710397 | FD33: 946.7593523 | FE33: 985.5764858 | FF33: 1025.985122 | FG33: 1068.050512 | FH33: 1111.840583 | FI33: 1157.426047 | FJ33: 1204.880514 | FK33: 1254.280616 | FL33: 1305.706121 | FM33: 1359.240072 | FN33: 1414.968915 | FO33: 1472.98264 | FP33: 1533.374928 | FQ33: 1596.243301 | FR33: 1661.689276 | FS33: 1729.818536 | FT33: 1800.741096 | FU33: 1874.571481 | FV33: 1951.428912 | FW33: 2031.437497 | FX33: 2114.726435 | FY33: 2201.430218 | FZ33: 2291.688857 | GA33: 2385.6481 | GB33: 2483.459673 | GC33: 2585.281519 | GD33: 2691.278061 | GE33: 2801.620462 | GF33: 2916.486901 | GG33: 3036.062864 | GH33: 3160.541441 | GI33: 3290.12364 | GJ33: 3425.01871 | GK33: 3565.444477 | GL33: 3711.6277 | GM33: 3863.804436 | GN33: 4022.220418 | GO33: 4187.131455 | GP33: 4358.803845 | GQ33: 4537.514802 | GR33: 4723.552909 | GS33: 4917.218578 | GT33: 5118.82454 | GU33: 5328.696346 | GV33: 5547.172896 | GW33: 5774.606985 | GX33: 6011.365872 | GY33: 6257.831872 | GZ33: 6514.402979 | HA33: 6781.493501 | HB33: =IF(HA33="","",HA33*(1+$N33)) -> 7059.534735 | HC33: 7348.975659 | HD33: 7650.283661 | HE33: 7963.945291 | HF33: 8290.467048 | HG33: 8630.376197 | HH33: 8984.221621 | HI33: 9352.574708
A34: ='MPG-3'!A34 ->  | B34: ='MPG-3'!B34 ->  | D34: ='MPG-3'!D34 ->  | F34: ='MPG-5'!F34 ->  | G34: ='MPG-5'!H34 ->  | H34: ='MPG-4'!O34 ->  | S34: =IF(R34="","",R34*(1+$H34)) ->  | CN34: =IF(CM34="","",CM34*(1+$N34)) ->  | EM34: =IF(EL34="","",EL34*(1+$N34)) ->  | GY34: =IF(GX34="","",GX34*(1+$N34)) -> 
A35: ='MPG-3'!A35 ->  | B35: ='MPG-3'!B35 ->  | D35: ='MPG-3'!D35 ->  | F35: ='MPG-5'!F35 ->  | G35: ='MPG-5'!H35 ->  | H35: ='MPG-4'!O35 ->  | S35: =IF(R35="","",R35*(1+$H35)) ->  | AC35: =IF(AB35="","",AB35*(1+$N35)) ->  | EM35: =IF(EL35="","",EL35*(1+$N35)) -> 
A36: ='MPG-3'!A36 ->  | B36: ='MPG-3'!B36 ->  | D36: ='MPG-3'!D36 ->  | F36: ='MPG-5'!F36 ->  | G36: ='MPG-5'!H36 ->  | H36: ='MPG-4'!O36 ->  | S36: =IF(R36="","",R36*(1+$H36)) ->  | EM36: =IF(EL36="","",EL36*(1+$N36)) -> 
A37: ='MPG-3'!A37 ->  | B37: ='MPG-3'!B37 ->  | D37: ='MPG-3'!D37 ->  | F37: ='MPG-5'!F37 ->  | G37: ='MPG-5'!H37 ->  | H37: ='MPG-4'!O37 ->  | S37: =IF(R37="","",R37*(1+$H37)) ->  | W37: =IF(V37="","",V37*(1+I37)) ->  | X37: =IF(W37="","",W37*(1+J37)) ->  | Y37: =IF(X37="","",X37*(1+K37)) ->  | Z37: =IF(Y37="","",Y37*(1+L37)) ->  | AA37: =IF(Z37="","",Z37*(1+M37)) ->  | EM37: =IF(EL37="","",EL37*(1+$N37)) -> 
A38: ='MPG-3'!A38 ->  | B38: ='MPG-3'!B38 ->  | D38: ='MPG-3'!D38 ->  | F38: ='MPG-5'!F38 ->  | G38: ='MPG-5'!H38 ->  | H38: ='MPG-4'!O38 ->  | S38: =IF(R38="","",R38*(1+$H38)) ->  | CN38: =IF(CM38="","",CM38*(1+$N38)) ->  | EM38: =IF(EL38="","",EL38*(1+$N38)) ->  | EP38: =IF(EO38="","",EO38*(1+$N38)) ->  | HB38: =IF(HA38="","",HA38*(1+$N38)) -> 
A39: ='MPG-3'!A39 ->  | B39: ='MPG-3'!B39 ->  | D39: ='MPG-3'!D39 ->  | F39: ='MPG-5'!F39 ->  | G39: ='MPG-5'!H39 ->  | H39: ='MPG-4'!O39 ->  | S39: =IF(R39="","",R39*(1+$H39)) ->  | AC39: =IF(AB39="","",AB39*(1+$N39)) ->  | EM39: =IF(EL39="","",EL39*(1+$N39)) ->  | HB39: =IF(HA39="","",HA39*(1+$N39)) -> 
A40: ='MPG-3'!A40 ->  | B40: ='MPG-3'!B40 ->  | D40: ='MPG-3'!D40 ->  | F40: ='MPG-5'!F40 ->  | G40: ='MPG-5'!H40 ->  | H40: ='MPG-4'!O40 ->  | S40: =IF(R40="","",R40*(1+$H40)) ->  | EM40: =IF(EL40="","",EL40*(1+$N40)) ->  | HB40: =IF(HA40="","",HA40*(1+$N40)) -> 
A41: ='MPG-3'!A41 ->  | B41: ='MPG-3'!B41 ->  | D41: ='MPG-3'!D41 ->  | F41: ='MPG-5'!F41 ->  | G41: ='MPG-5'!H41 ->  | H41: ='MPG-4'!O41 ->  | S41: =IF(R41="","",R41*(1+$H41)) ->  | EM41: =IF(EL41="","",EL41*(1+$N41)) ->  | HB41: =IF(HA41="","",HA41*(1+$N41)) -> 
A42: ='MPG-3'!A42 ->  | B42: ='MPG-3'!B42 ->  | D42: ='MPG-3'!D42 ->  | F42: ='MPG-5'!F42 ->  | G42: ='MPG-5'!H42 ->  | H42: ='MPG-4'!O42 ->  | S42: =IF(R42="","",R42*(1+$H42)) ->  | CN42: =IF(CM42="","",CM42*(1+$N42)) ->  | EM42: =IF(EL42="","",EL42*(1+$N42)) ->  | GY42: =IF(GX42="","",GX42*(1+$N42)) -> 
A43: ='MPG-3'!A43 ->  | B43: ='MPG-3'!B43 ->  | D43: ='MPG-3'!D43 ->  | F43: ='MPG-5'!F43 ->  | G43: ='MPG-5'!H43 ->  | H43: ='MPG-4'!O43 ->  | S43: =IF(R43="","",R43*(1+$H43)) ->  | AC43: =IF(AB43="","",AB43*(1+$N43)) ->  | EM43: =IF(EL43="","",EL43*(1+$N43)) ->  | EP43: =IF(EO43="","",EO43*(1+$N43)) ->  | HB43: =IF(HA43="","",HA43*(1+$N43)) -> 
A44: ='MPG-3'!A44 ->  | B44: ='MPG-3'!B44 ->  | D44: ='MPG-3'!D44 ->  | F44: ='MPG-5'!F44 ->  | G44: ='MPG-5'!H44 ->  | H44: ='MPG-4'!O44 ->  | S44: =IF(R44="","",R44*(1+$H44)) ->  | EM44: =IF(EL44="","",EL44*(1+$N44)) ->  | HB44: =IF(HA44="","",HA44*(1+$N44)) -> 
A45: ='MPG-3'!A45 ->  | B45: ='MPG-3'!B45 ->  | D45: ='MPG-3'!D45 ->  | F45: ='MPG-5'!F45 ->  | G45: ='MPG-5'!H45 ->  | H45: ='MPG-4'!O45 ->  | S45: =IF(R45="","",R45*(1+$H45)) ->  | EM45: =IF(EL45="","",EL45*(1+$N45)) ->  | HB45: =IF(HA45="","",HA45*(1+$N45)) -> 
A46: ='MPG-3'!A46 ->  | B46: ='MPG-3'!B46 ->  | D46: ='MPG-3'!D46 ->  | F46: ='MPG-5'!F46 ->  | G46: ='MPG-5'!H46 ->  | H46: ='MPG-4'!O46 ->  | S46: =IF(R46="","",R46*(1+$H46)) ->  | CN46: =IF(CM46="","",CM46*(1+$N46)) ->  | EM46: =IF(EL46="","",EL46*(1+$N46)) ->  | GY46: =IF(GX46="","",GX46*(1+$N46)) -> 
A47: ='MPG-3'!A47 ->  | B47: ='MPG-3'!B47 ->  | D47: ='MPG-3'!D47 ->  | F47: ='MPG-5'!F47 ->  | G47: ='MPG-5'!H47 ->  | H47: ='MPG-4'!O47 ->  | S47: =IF(R47="","",R47*(1+$H47)) ->  | AC47: =IF(AB47="","",AB47*(1+$N47)) ->  | EM47: =IF(EL47="","",EL47*(1+$N47)) -> 
A48: ='MPG-3'!A48 ->  | B48: ='MPG-3'!B48 ->  | D48: ='MPG-3'!D48 ->  | F48: ='MPG-5'!F48 ->  | G48: ='MPG-5'!H48 ->  | H48: ='MPG-4'!O48 ->  | S48: =IF(R48="","",R48*(1+$H48)) ->  | EM48: =IF(EL48="","",EL48*(1+$N48)) ->  | EP48: =IF(EO48="","",EO48*(1+$N48)) ->  | HB48: =IF(HA48="","",HA48*(1+$N48)) -> 
A49: ='MPG-3'!A49 ->  | B49: ='MPG-3'!B49 ->  | D49: ='MPG-3'!D49 ->  | F49: ='MPG-5'!F49 ->  | G49: ='MPG-5'!H49 ->  | H49: ='MPG-4'!O49 ->  | S49: =IF(R49="","",R49*(1+$H49)) ->  | EM49: =IF(EL49="","",EL49*(1+$N49)) ->  | HB49: =IF(HA49="","",HA49*(1+$N49)) -> 
A50: ='MPG-3'!A50 ->  | B50: ='MPG-3'!B50 ->  | D50: ='MPG-3'!D50 ->  | F50: ='MPG-5'!F50 ->  | G50: ='MPG-5'!H50 ->  | H50: ='MPG-4'!O50 ->  | S50: =IF(R50="","",R50*(1+$H50)) ->  | CN50: =IF(CM50="","",CM50*(1+$N50)) ->  | EM50: =IF(EL50="","",EL50*(1+$N50)) ->  | GY50: =IF(GX50="","",GX50*(1+$N50)) -> 
A51: ='MPG-3'!A51 ->  | B51: ='MPG-3'!B51 ->  | D51: ='MPG-3'!D51 ->  | F51: ='MPG-5'!F51 ->  | G51: ='MPG-5'!H51 ->  | H51: ='MPG-4'!O51 ->  | S51: =IF(R51="","",R51*(1+$H51)) ->  | AC51: =IF(AB51="","",AB51*(1+$N51)) ->  | EM51: =IF(EL51="","",EL51*(1+$N51)) -> 
A52: ='MPG-3'!A52 ->  | B52: ='MPG-3'!B52 ->  | D52: ='MPG-3'!D52 ->  | F52: ='MPG-5'!F52 ->  | G52: ='MPG-5'!H52 ->  | H52: ='MPG-4'!O52 ->  | S52: =IF(R52="","",R52*(1+$H52)) ->  | EM52: =IF(EL52="","",EL52*(1+$N52)) -> 
A53: ='MPG-3'!A53 ->  | B53: ='MPG-3'!B53 ->  | D53: ='MPG-3'!D53 ->  | F53: ='MPG-5'!F53 ->  | G53: ='MPG-5'!H53 ->  | H53: ='MPG-4'!O53 ->  | S53: =IF(R53="","",R53*(1+$H53)) ->  | EM53: =IF(EL53="","",EL53*(1+$N53)) ->  | EP53: =IF(EO53="","",EO53*(1+$N53)) ->  | HB53: =IF(HA53="","",HA53*(1+$N53)) -> 
A54: ='MPG-3'!A54 ->  | B54: ='MPG-3'!B54 ->  | D54: ='MPG-3'!D54 ->  | F54: ='MPG-5'!F54 ->  | G54: ='MPG-5'!H54 ->  | H54: ='MPG-4'!O54 ->  | S54: =IF(R54="","",R54*(1+$H54)) ->  | CN54: =IF(CM54="","",CM54*(1+$N54)) ->  | EM54: =IF(EL54="","",EL54*(1+$N54)) ->  | GY54: =IF(GX54="","",GX54*(1+$N54)) -> 
A55: ='MPG-3'!A55 ->  | B55: ='MPG-3'!B55 ->  | D55: ='MPG-3'!D55 ->  | F55: ='MPG-5'!F55 ->  | G55: ='MPG-5'!H55 ->  | H55: ='MPG-4'!O55 ->  | S55: =IF(R55="","",R55*(1+$H55)) ->  | AC55: =IF(AB55="","",AB55*(1+$N55)) ->  | EM55: =IF(EL55="","",EL55*(1+$N55)) -> 
A56: ='MPG-3'!A56 ->  | B56: ='MPG-3'!B56 ->  | D56: ='MPG-3'!D56 ->  | F56: ='MPG-5'!F56 ->  | G56: ='MPG-5'!H56 ->  | H56: ='MPG-4'!O56 ->  | S56: =IF(R56="","",R56*(1+$H56)) ->  | EM56: =IF(EL56="","",EL56*(1+$N56)) -> 
A57: ='MPG-3'!A57 ->  | B57: ='MPG-3'!B57 ->  | D57: ='MPG-3'!D57 ->  | F57: ='MPG-5'!F57 ->  | G57: ='MPG-5'!H57 ->  | H57: ='MPG-4'!O57 ->  | S57: =IF(R57="","",R57*(1+$H57)) ->  | EM57: =IF(EL57="","",EL57*(1+$N57)) -> 
A58: ='MPG-3'!A58 ->  | B58: ='MPG-3'!B58 ->  | D58: ='MPG-3'!D58 ->  | F58: ='MPG-5'!F58 ->  | G58: ='MPG-5'!H58 ->  | H58: ='MPG-4'!O58 ->  | S58: =IF(R58="","",R58*(1+$H58)) ->  | CN58: =IF(CM58="","",CM58*(1+$N58)) ->  | EM58: =IF(EL58="","",EL58*(1+$N58)) ->  | EP58: =IF(EO58="","",EO58*(1+$N58)) ->  | HB58: =IF(HA58="","",HA58*(1+$N58)) -> 
A59: ='MPG-3'!A59 ->  | B59: ='MPG-3'!B59 ->  | D59: ='MPG-3'!D59 ->  | F59: ='MPG-5'!F59 ->  | G59: ='MPG-5'!H59 ->  | H59: ='MPG-4'!O59 ->  | S59: =IF(R59="","",R59*(1+$H59)) ->  | AC59: =IF(AB59="","",AB59*(1+$N59)) ->  | EM59: =IF(EL59="","",EL59*(1+$N59)) ->  | HB59: =IF(HA59="","",HA59*(1+$N59)) -> 
A60: ='MPG-3'!A60 ->  | B60: ='MPG-3'!B60 ->  | D60: ='MPG-3'!D60 ->  | F60: ='MPG-5'!F60 ->  | G60: ='MPG-5'!H60 ->  | H60: ='MPG-4'!O60 ->  | S60: =IF(R60="","",R60*(1+$H60)) ->  | EM60: =IF(EL60="","",EL60*(1+$N60)) ->  | HB60: =IF(HA60="","",HA60*(1+$N60)) -> 
A61: ='MPG-3'!A61 ->  | B61: ='MPG-3'!B61 ->  | D61: ='MPG-3'!D61 ->  | F61: ='MPG-5'!F61 ->  | G61: ='MPG-5'!H61 ->  | H61: ='MPG-4'!O61 ->  | S61: =IF(R61="","",R61*(1+$H61)) ->  | EM61: =IF(EL61="","",EL61*(1+$N61)) ->  | HB61: =IF(HA61="","",HA61*(1+$N61)) -> 
A62: ='MPG-3'!A62 ->  | B62: ='MPG-3'!B62 ->  | D62: ='MPG-3'!D62 ->  | F62: ='MPG-5'!F62 ->  | G62: ='MPG-5'!H62 ->  | H62: ='MPG-4'!O62 ->  | I62: =IF($B62="","",IFERROR(H62-($H62-$N62)/6,"N/A")) ->  | J62: =IF($B62="","",IFERROR(I62-($H62-$N62)/6,"N/A")) ->  | K62: =IF($B62="","",IFERROR(J62-($H62-$N62)/6,"N/A")) ->  | L62: =IF($B62="","",IFERROR(K62-($H62-$N62)/6,"N/A")) ->  | M62: =IF($B62="","",IFERROR(L62-($H62-$N62)/6,"N/A")) ->  | O62: =IF($B62="","",IFERROR(IRR(Q62:HI62),"N/A")) ->  | S62: =IF(R62="","",R62*(1+$H62)) ->  | CN62: =IF(CM62="","",CM62*(1+$N62)) ->  | GY62: =IF(GX62="","",GX62*(1+$N62)) -> 
A64: =MAX($A$13:A63)+1 -> 22 | D64: Average Gas | F64: =AVERAGE(F13:F19) -> 72.0178989 | G64: =AVERAGE(G13:G19) -> 2.38 | H64: 0.0762077 | I64: 0.07033975 | J64: 0.0644718 | K64: 0.05860385 | L64: 0.0527359 | M64: 0.04686795 | N64: 0.041 | O64: 0.08702719503
A65: =MAX($A$13:A64)+1 -> 23 | D65: Median Gas | F65: =MEDIAN(F13:F19) -> 73.09840385 | G65: =MEDIAN(G13:G19) -> 2.48 | H65: 0.07310235 | I65: 0.06775195833 | J65: 0.06240156667 | K65: =MEDIAN(K13:K19) -> 0.057051175 | L65: 0.05170078333 | M65: 0.04635039167 | N65: 0.041 | O65: 0.09214829271
A67: =MAX($A$13:A66)+1 -> 24 | D67: Average Electric | F67: =AVERAGE(F20:F60) -> 77.74053956 | G67: =AVERAGE(G20:G60) -> 2.837514286 | H67: 0.06754602381 | I67: 0.06312168651 | J67: 0.05869734921 | K67: 0.0542730119 | L67: 0.0498486746 | M67: 0.0454243373 | N67: 0.041 | O67: 0.08776148323
A68: =MAX($A$13:A67)+1 -> 25 | D68: Median Electric | F68: =MEDIAN(F20:F60) -> 75.78192115 | G68: =MEDIAN(G20:G60) -> 2.755 | H68: 0.0659386 | I68: 0.06178216667 | J68: 0.05762573333 | K68: 0.0534693 | L68: 0.04931286667 | M68: 0.04515643333 | N68: 0.041 | O68: 0.08417170377
A70: =MAX($A$13:A69)+1 -> 26 | D70: Average Combined | F70: =AVERAGE(F13:F63) -> 75.83299267 | G70: =AVERAGE(G13:G63) -> 2.685009524 | H70: 0.07043324921 | I70: 0.06552770767 | J70: 0.06062216614 | K70: 0.0557166246 | L70: 0.05081108307 | M70: 0.04590554153 | N70: 0.041 | O70: 0.0875167205
A71: =MAX($A$13:A70)+1 -> 27 | D71: Median Combined | F71: =MEDIAN(F13:F63) -> 73.09840385 | G71: =MEDIAN(G13:G63) -> 2.67 | H71: 0.068784 | I71: 0.06415333333 | J71: 0.05952266667 | K71: 0.054892 | L71: 0.05026133333 | M71: 0.04563066667 | N71: 0.041 | O71: 0.08469042766
C74: Sources:
C75: =+A75+1 -> 1 | D75: =+'MPG-8'!D75 -> S&P Global Intelligence, Downloaded on July 18, 2025.
C76: =+C75+1 -> 2 | D76: The Value Line Investment Survey, May 9, June 6, and July 18, 2025.
C77: =+C76+1 -> 3 | D77: Exhibit MPG-4.
C78: =+C77+1 -> 4 | D78: Blue Chip Financial Forecasts, June 2, 2025 at page 14.

Sheet MPG-16
A1: =Utility -> Kentucky Utilities Company / Louisville Gas & Electric Company
A4: Value Line Beta
H7: Calculated VL
B8: Line | E8: Company | G8: Beta1 | H8: Beta 5-Year3
G9: -1 | H9: -2
B11: ='MPG-3'!A13 -> 1 | C11: ='MPG-3'!B13 -> ATO | E11: ='MPG-3'!D13 -> Atmos Energy Corporation | G11: =IF($B11="","",VLOOKUP(C11,VLLU,5,FALSE)) -> 0.75 | H11: =IF(E11="","",('S&P Beta'!D10*0.67)+0.35) -> 0.7516113395
B12: ='MPG-3'!A14 -> 2 | C12: ='MPG-3'!B14 -> NJR | E12: ='MPG-3'!D14 -> New Jersey Resources Corporation | G12: 0.85 | H12: =IF(E12="","",('S&P Beta'!D11*0.67)+0.35) -> 0.8107081799
B13: ='MPG-3'!A15 -> 3 | C13: ='MPG-3'!B15 -> NI | E13: ='MPG-3'!D15 -> NiSource Inc. | G13: 0.85 | H13: =IF(E13="","",('S&P Beta'!D12*0.67)+0.35) -> 0.7744583032
B14: ='MPG-3'!A16 -> 4 | C14: ='MPG-3'!B16 -> NWN | E14: ='MPG-3'!D16 -> Northwest Natural Holding Company | G14: 0.8 | H14: =IF(E14="","",('S&P Beta'!D13*0.67)+0.35) -> 0.7178653379
B15: ='MPG-3'!A17 -> 5 | C15: ='MPG-3'!B17 -> OGS | E15: ='MPG-3'!D17 -> ONE Gas, Inc. | G15: 0.8 | H15: =IF(E15="","",('S&P Beta'!D14*0.67)+0.35) -> 0.7435292141
B16: ='MPG-3'!A18 -> 6 | C16: ='MPG-3'!B18 -> SWX | E16: ='MPG-3'!D18 -> Southwest Gas Holdings, Inc. | G16: 0.8 | H16: =IF(E16="","",('S&P Beta'!D15*0.67)+0.35) -> 0.7566462808
B17: ='MPG-3'!A19 -> 7 | C17: ='MPG-3'!B19 -> SR | E17: ='MPG-3'!D19 -> Spire Inc. | G17: 0.8 | H17: =IF(E17="","",('S&P Beta'!D16*0.67)+0.35) -> 0.7972089069
B18: ='MPG-3'!A20 -> 8 | C18: ='MPG-3'!B20 -> LNT | E18: ='MPG-3'!D20 -> Alliant Energy Corporation | G18: 0.8 | H18: =IF(E18="","",('S&P Beta'!D17*0.67)+0.35) -> 0.7137346158
B19: ='MPG-3'!A21 -> 9 | C19: ='MPG-3'!B21 -> AEE | E19: ='MPG-3'!D21 -> Ameren Corporation | G19: 0.8 | H19: =IF(E19="","",('S&P Beta'!D18*0.67)+0.35) -> 0.7292208131
B20: ='MPG-3'!A22 -> 10 | C20: ='MPG-3'!B22 -> AEP | E20: ='MPG-3'!D22 -> American Electric Power Company, Inc. | G20: 0.7 | H20: =IF(E20="","",('S&P Beta'!D19*0.67)+0.35) -> 0.651594916
B21: ='MPG-3'!A23 -> 11 | C21: ='MPG-3'!B23 -> DUK | E21: ='MPG-3'!D23 -> Duke Energy Corporation | G21: 0.7 | H21: =IF(E21="","",('S&P Beta'!D20*0.67)+0.35) -> 0.6089812825
B22: ='MPG-3'!A24 -> 12 | C22: ='MPG-3'!B24 -> EIX | E22: ='MPG-3'!D24 -> Edison International | G22: 0.9 | H22: =IF(E22="","",('S&P Beta'!D21*0.67)+0.35) -> 0.8585328386
B23: ='MPG-3'!A25 -> 13 | C23: ='MPG-3'!B25 -> ETR | E23: ='MPG-3'!D25 -> Entergy Corporation | G23: 0.8 | H23: =IF(E23="","",('S&P Beta'!D22*0.67)+0.35) -> 0.7753063276
B24: ='MPG-3'!A26 -> 14 | C24: ='MPG-3'!B26 -> EVRG | E24: ='MPG-3'!D26 -> Evergy, Inc. | G24: 0.75 | H24: =IF(E24="","",('S&P Beta'!D23*0.67)+0.35) -> 0.6922729242
B25: ='MPG-3'!A27 -> 15 | C25: ='MPG-3'!B27 -> IDA | E25: ='MPG-3'!D27 -> IDACORP, Inc. | G25: 0.7 | H25: =IF(E25="","",('S&P Beta'!D24*0.67)+0.35) -> 0.6617079157
B26: ='MPG-3'!A28 -> 16 | C26: ='MPG-3'!B28 -> NWE | E26: ='MPG-3'!D28 -> NorthWestern Corporation | G26: 0.75 | H26: =IF(E26="","",('S&P Beta'!D25*0.67)+0.35) -> 0.7478162709
B27: ='MPG-3'!A29 -> 17 | C27: ='MPG-3'!B29 -> OGE | E27: ='MPG-3'!D29 -> OGE Energy Corp. | G27: 0.85 | H27: =IF(E27="","",('S&P Beta'!D26*0.67)+0.35) -> 0.8184104157
B28: ='MPG-3'!A30 -> 18 | C28: ='MPG-3'!B30 -> PNW | E28: ='MPG-3'!D30 -> Pinnacle West Capital Corporation | G28: 0.75 | H28: =IF(E28="","",('S&P Beta'!D27*0.67)+0.35) -> 0.7624248914
B29: ='MPG-3'!A31 -> 19 | C29: ='MPG-3'!B31 -> POR | E29: ='MPG-3'!D31 -> Portland General Electric Company | G29: 0.75 | H29: =IF(E29="","",('S&P Beta'!D28*0.67)+0.35) -> 0.7046804833
B30: ='MPG-3'!A32 -> 20 | C30: ='MPG-3'!B32 -> SO | E30: ='MPG-3'!D32 -> The Southern Company | G30: 0.75 | H30: =IF(E30="","",('S&P Beta'!D29*0.67)+0.35) -> 0.6715683771
B31: ='MPG-3'!A33 -> 21 | C31: ='MPG-3'!B33 -> XEL | E31: ='MPG-3'!D33 -> Xcel Energy Inc. | G31: 0.7 | H31: =IF(E31="","",('S&P Beta'!D30*0.67)+0.35) -> 0.669121874
B32: ='MPG-3'!A34 ->  | C32: ='MPG-3'!B34 ->  | E32: ='MPG-3'!D34 ->  | H32: =IF(E32="","",('S&P Beta'!D31*0.67)+0.35) -> 
B33: ='MPG-3'!A35 ->  | C33: ='MPG-3'!B35 ->  | E33: ='MPG-3'!D35 ->  | H33: =IF(E33="","",('S&P Beta'!D32*0.67)+0.35) -> 
B34: ='MPG-3'!A36 ->  | C34: ='MPG-3'!B36 ->  | E34: ='MPG-3'!D36 ->  | G34: =IF($B34="","",VLOOKUP(C34,VLLU,5,FALSE)) ->  | H34: =IF(E34="","",('S&P Beta'!D33*0.67)+0.35) -> 
B35: ='MPG-3'!A37 ->  | C35: ='MPG-3'!B37 ->  | E35: ='MPG-3'!D37 ->  | H35: =IF(E35="","",('S&P Beta'!D34*0.67)+0.35) -> 
B36: ='MPG-3'!A38 ->  | C36: ='MPG-3'!B38 ->  | E36: ='MPG-3'!D38 ->  | H36: =IF(E36="","",('S&P Beta'!D35*0.67)+0.35) -> 
B37: ='MPG-3'!A39 ->  | C37: ='MPG-3'!B39 ->  | E37: ='MPG-3'!D39 ->  | H37: =IF(E37="","",('S&P Beta'!D36*0.67)+0.35) -> 
B38: ='MPG-3'!A40 ->  | C38: ='MPG-3'!B40 ->  | E38: ='MPG-3'!D40 ->  | H38: =IF(E38="","",('S&P Beta'!D37*0.67)+0.35) -> 
B39: ='MPG-3'!A41 ->  | C39: ='MPG-3'!B41 ->  | E39: ='MPG-3'!D41 ->  | H39: =IF(E39="","",('S&P Beta'!D38*0.67)+0.35) -> 
B40: ='MPG-3'!A42 ->  | C40: ='MPG-3'!B42 ->  | E40: ='MPG-3'!D42 ->  | H40: =IF(E40="","",('S&P Beta'!D39*0.67)+0.35) -> 
B41: ='MPG-3'!A43 ->  | C41: ='MPG-3'!B43 ->  | E41: ='MPG-3'!D43 ->  | H41: =IF(E41="","",('S&P Beta'!D40*0.67)+0.35) -> 
B42: ='MPG-3'!A44 ->  | C42: ='MPG-3'!B44 ->  | E42: ='MPG-3'!D44 ->  | H42: =IF(E42="","",('S&P Beta'!D41*0.67)+0.35) -> 
B43: ='MPG-3'!A45 ->  | C43: ='MPG-3'!B45 ->  | E43: ='MPG-3'!D45 ->  | H43: =IF(E43="","",('S&P Beta'!D42*0.67)+0.35) -> 
B44: ='MPG-3'!A46 ->  | C44: ='MPG-3'!B46 ->  | E44: ='MPG-3'!D46 ->  | H44: =IF(E44="","",('S&P Beta'!D43*0.67)+0.35) -> 
B45: ='MPG-3'!A47 ->  | C45: ='MPG-3'!B47 ->  | E45: ='MPG-3'!D47 ->  | H45: =IF(E45="","",('S&P Beta'!D44*0.67)+0.35) -> 
B46: ='MPG-3'!A48 ->  | C46: ='MPG-3'!B48 ->  | E46: ='MPG-3'!D48 ->  | H46: =IF(E46="","",('S&P Beta'!D45*0.67)+0.35) -> 
B47: ='MPG-3'!A49 ->  | C47: ='MPG-3'!B49 ->  | E47: ='MPG-3'!D49 ->  | H47: =IF(E47="","",('S&P Beta'!D46*0.67)+0.35) -> 
B48: ='MPG-3'!A50 ->  | C48: ='MPG-3'!B50 ->  | E48: ='MPG-3'!D50 ->  | H48: =IF(E48="","",('S&P Beta'!D47*0.67)+0.35) -> 
B49: ='MPG-3'!A51 ->  | C49: ='MPG-3'!B51 ->  | E49: ='MPG-3'!D51 ->  | H49: =IF(E49="","",('S&P Beta'!D48*0.67)+0.35) -> 
B50: ='MPG-3'!A52 ->  | C50: ='MPG-3'!B52 ->  | E50: ='MPG-3'!D52 ->  | H50: =IF(E50="","",('S&P Beta'!D49*0.67)+0.35) -> 
B51: ='MPG-3'!A53 ->  | C51: ='MPG-3'!B53 ->  | E51: ='MPG-3'!D53 ->  | H51: =IF(E51="","",('S&P Beta'!D50*0.67)+0.35) -> 
B52: ='MPG-3'!A54 ->  | C52: ='MPG-3'!B54 ->  | E52: ='MPG-3'!D54 ->  | H52: =IF(E52="","",('S&P Beta'!D51*0.67)+0.35) -> 
B53: ='MPG-3'!A55 ->  | C53: ='MPG-3'!B55 ->  | E53: ='MPG-3'!D55 ->  | H53: =IF(E53="","",('S&P Beta'!D52*0.67)+0.35) -> 
B54: ='MPG-3'!A56 ->  | C54: ='MPG-3'!B56 ->  | E54: ='MPG-3'!D56 ->  | H54: =IF(E54="","",('S&P Beta'!D53*0.67)+0.35) -> 
B55: ='MPG-3'!A57 ->  | C55: ='MPG-3'!B57 ->  | E55: ='MPG-3'!D57 ->  | H55: =IF(E55="","",('S&P Beta'!D54*0.67)+0.35) -> 
B56: ='MPG-3'!A58 ->  | C56: ='MPG-3'!B58 ->  | E56: ='MPG-3'!D58 ->  | H56: =IF(E56="","",('S&P Beta'!D55*0.67)+0.35) -> 
B57: ='MPG-3'!A59 ->  | C57: ='MPG-3'!B59 ->  | E57: ='MPG-3'!D59 ->  | H57: =IF(E57="","",('S&P Beta'!D56*0.67)+0.35) -> 
B58: ='MPG-3'!A60 ->  | C58: ='MPG-3'!B60 ->  | E58: ='MPG-3'!D60 ->  | H58: =IF(E58="","",('S&P Beta'!D57*0.67)+0.35) -> 
B59: ='MPG-3'!A61 ->  | C59: ='MPG-3'!B61 ->  | E59: ='MPG-3'!D61 ->  | H59: =IF(E59="","",('S&P Beta'!D58*0.67)+0.35) -> 
B60: ='MPG-3'!A62 ->  | C60: ='MPG-3'!B62 ->  | E60: ='MPG-3'!D62 ->  | H60: =IF(E60="","",('S&P Beta'!D59*0.67)+0.35) -> 
B62: =MAX($B$11:B61)+1 -> 22 | E62: Average Gas | G62: =AVERAGE(G11:G17) -> 0.8071428571
B64: =MAX($B$11:B63)+1 -> 23 | E64: Average Electric | G64: =AVERAGE(G18:G59) -> 0.7642857143 | H64: =AVERAGE(H18:H59) -> 0.7189552819
B66: =MAX($B$11:B65)+1 -> 24 | E66: Average Combined | G66: =AVERAGE(G11:G61) -> 0.7785714286 | H66: =AVERAGE(H11:H61) -> 0.7341619766
D69: Source:
B70: 1 | D70: The Value Line Investment Survey, May 9, June 6, and July 18, 2025.
B71: 2 | D71: ="S&P Global Market Intelligence, betas for the period "&TEXT('S&P Beta'!D6,"m/dd/yyyyy")&" - "&TEXT('S&P Beta'!D7,"m/dd/yyyyy"&".") -> S&P Global Market Intelligence, betas for the period 7/18/2020 - 7/18/2025.
D72: Adjusted using Value Line's Blume adjustment methodology.

Sheet MPG-16 Page 2
A1: =Utility -> Kentucky Utilities Company / Louisville Gas & Electric Company
A5: Value Line
A6: Historical Betas
E9: Long-Term | G9: 5-Year COVID Betas
A10: Line | D10: Company | E10: Average1 | F10: 2Q25 | G10: 1Q25 | H10: 4Q24 | I10: 3Q24 | J10: 2Q24 | K10: 1Q24 | L10: 4Q23 | M10: 3Q23 | N10: 2Q23 | O10: 1Q23 | P10: 4Q22 | Q10: 3Q22 | R10: 2Q22 | S10: 1Q22 | T10: 4Q21 | U10: 3Q21 | V10: 2Q21 | W10: 1Q21 | X10: 4Q20 | Y10: 3Q20 | Z10: 2Q20 | AA10: 1Q20
E11: -1 | F11: =E11-1 -> -2 | G11: -3 | H11: =G11-1 -> -4 | I11: =H11-1 -> -5 | J11: =I11-1 -> -6 | K11: -7 | L11: -8 | M11: -9 | N11: -10 | O11: -11 | P11: -12 | Q11: -13 | R11: -14 | S11: -15 | T11: -16 | U11: -17 | V11: -18 | W11: -19 | X11: -20 | Y11: -21 | Z11: -22 | AA11: -23
A13: ='MPG-3'!A13 -> 1 | B13: ='MPG-3'!B13 -> ATO | D13: ='MPG-3'!D13 -> Atmos Energy Corporation | E13: =IFERROR(AVERAGE(F13:AA13,'MPG-16 Page 3'!E13:Z13),"") -> 0.7647727273 | F13: =IF($B13="","",IFERROR(VLOOKUP($B13&"."&F$10,'NG Beta Data'!$A$2:$C$2500,3,FALSE),"N/A")) -> 0.75 | G13: =IF($B13="","",IFERROR(VLOOKUP($B13&"."&G$10,'NG Beta Data'!$A$2:$C$2500,3,FALSE),"N/A")) -> 0.9 | H13: =IF($B13="","",IFERROR(VLOOKUP($B13&"."&H$10,'NG Beta Data'!$A$2:$C$2500,3,FALSE),"N/A")) -> 0.9 | I13: =IF($B13="","",IFERROR(VLOOKUP($B13&"."&I$10,'NG Beta Data'!$A$2:$C$2500,3,FALSE),"N/A")) -> 0.85 | J13: =IF($B13="","",IFERROR(VLOOKUP($B13&"."&J$10,'NG Beta Data'!$A$2:$C$2500,3,FALSE),"N/A")) -> 0.85 | K13: =IF($B13="","",IFERROR(VLOOKUP($B13&"."&K$10,'NG Beta Data'!$A$2:$C$2500,3,FALSE),"N/A")) -> 0.85 | L13: =IF($B13="","",IFERROR(VLOOKUP($B13&"."&L$10,'NG Beta Data'!$A$2:$C$2500,3,FALSE),"N/A")) -> 0.85 | M13: =IF($B13="","",IFERROR(VLOOKUP($B13&"."&M$10,'NG Beta Data'!$A$2:$C$2500,3,FALSE),"N/A")) -> 0.85 | N13: =IF($B13="","",IFERROR(VLOOKUP($B13&"."&N$10,'NG Beta Data'!$A$2:$C$2500,3,FALSE),"N/A")) -> 0.85 | O13: =IF($B13="","",IFERROR(VLOOKUP($B13&"."&O$10,'NG Beta Data'!$A$2:$C$2500,3,FALSE),"N/A")) -> 0.85 | P13: =IF($B13="","",IFERROR(VLOOKUP($B13&"."&P$10,'NG Beta Data'!$A$2:$C$2500,3,FALSE),"N/A")) -> 0.8 | Q13: =IF($B13="","",IFERROR(VLOOKUP($B13&"."&Q$10,'NG Beta Data'!$A$2:$C$2500,3,FALSE),"N/A")) -> 0.8 | R13: =IF($B13="","",IFERROR(VLOOKUP($B13&"."&R$10,'NG Beta Data'!$A$2:$C$2500,3,FALSE),"N/A")) -> 0.8 | S13: =IF($B13="","",IFERROR(VLOOKUP($B13&"."&S$10,'NG Beta Data'!$A$2:$C$2500,3,FALSE),"N/A")) -> 0.8 | T13: =IF($B13="","",IFERROR(VLOOKUP($B13&"."&T$10,'NG Beta Data'!$A$2:$C$2500,3,FALSE),"N/A")) -> 0.8 | U13: =IF($B13="","",IFERROR(VLOOKUP($B13&"."&U$10,'NG Beta Data'!$A$2:$C$2500,3,FALSE),"N/A")) -> 0.8 | V13: =IF($B13="","",IFERROR(VLOOKUP($B13&"."&V$10,'NG Beta Data'!$A$2:$C$2500,3,FALSE),"N/A")) -> 0.8 | W13: =IF($B13="","",IFERROR(VLOOKUP($B13&"."&W$10,'NG Beta Data'!$A$2:$C$2500,3,FALSE),"N/A")) -> 0.8 | X13: =IF($B13="","",IFERROR(VLOOKUP($B13&"."&X$10,'NG Beta Data'!$A$2:$C$2500,3,FALSE),"N/A")) -> 0.8 | Y13: =IF($B13="","",IFERROR(VLOOKUP($B13&"."&Y$10,'NG Beta Data'!$A$2:$C$2500,3,FALSE),"N/A")) -> 0.8 | Z13: =IF($B13="","",IFERROR(VLOOKUP($B13&"."&Z$10,'NG Beta Data'!$A$2:$C$2500,3,FALSE),"N/A")) -> 0.8 | AA13: =IF($B13="","",IFERROR(VLOOKUP($B13&"."&AA$10,'NG Beta Data'!$A$2:$C$2500,3,FALSE),"N/A")) -> 0.55
A14: ='MPG-3'!A14 -> 2 | B14: ='MPG-3'!B14 -> NJR | D14: ='MPG-3'!D14 -> New Jersey Resources Corporation | E14: =IFERROR(AVERAGE(F14:AA14,'MPG-16 Page 3'!E14:Z14),"") -> 0.8590909091 | F14: =IF($B14="","",IFERROR(VLOOKUP($B14&"."&F$10,'NG Beta Data'!$A$2:$C$2500,3,FALSE),"N/A")) -> 0.85 | G14: =IF($B14="","",IFERROR(VLOOKUP($B14&"."&G$10,'NG Beta Data'!$A$2:$C$2500,3,FALSE),"N/A")) -> 1 | H14: =IF($B14="","",IFERROR(VLOOKUP($B14&"."&H$10,'NG Beta Data'!$A$2:$C$2500,3,FALSE),"N/A")) -> 1 | I14: =IF($B14="","",IFERROR(VLOOKUP($B14&"."&I$10,'NG Beta Data'!$A$2:$C$2500,3,FALSE),"N/A")) -> 1 | J14: =IF($B14="","",IFERROR(VLOOKUP($B14&"."&J$10,'NG Beta Data'!$A$2:$C$2500,3,FALSE),"N/A")) -> 1 | K14: =IF($B14="","",IFERROR(VLOOKUP($B14&"."&K$10,'NG Beta Data'!$A$2:$C$2500,3,FALSE),"N/A")) -> 0.95 | L14: =IF($B14="","",IFERROR(VLOOKUP($B14&"."&L$10,'NG Beta Data'!$A$2:$C$2500,3,FALSE),"N/A")) -> 0.95 | M14: =IF($B14="","",IFERROR(VLOOKUP($B14&"."&M$10,'NG Beta Data'!$A$2:$C$2500,3,FALSE),"N/A")) -> 0.95 | N14: =IF($B14="","",IFERROR(VLOOKUP($B14&"."&N$10,'NG Beta Data'!$A$2:$C$2500,3,FALSE),"N/A")) -> 0.95 | O14: =IF($B14="","",IFERROR(VLOOKUP($B14&"."&O$10,'NG Beta Data'!$A$2:$C$2500,3,FALSE),"N/A")) -> 0.95 | P14: =IF($B14="","",IFERROR(VLOOKUP($B14&"."&P$10,'NG Beta Data'!$A$2:$C$2500,3,FALSE),"N/A")) -> 0.95 | Q14: =IF($B14="","",IFERROR(VLOOKUP($B14&"."&Q$10,'NG Beta Data'!$A$2:$C$2500,3,FALSE),"N/A")) -> 0.95 | R14: =IF($B14="","",IFERROR(VLOOKUP($B14&"."&R$10,'NG Beta Data'!$A$2:$C$2500,3,FALSE),"N/A")) -> 0.95 | S14: =IF($B14="","",IFERROR(VLOOKUP($B14&"."&S$10,'NG Beta Data'!$A$2:$C$2500,3,FALSE),"N/A")) -> 1 | T14: =IF($B14="","",IFERROR(VLOOKUP($B14&"."&T$10,'NG Beta Data'!$A$2:$C$2500,3,FALSE),"N/A")) -> 1 | U14: =IF($B14="","",IFERROR(VLOOKUP($B14&"."&U$10,'NG Beta Data'!$A$2:$C$2500,3,FALSE),"N/A")) -> 1 | V14: =IF($B14="","",IFERROR(VLOOKUP($B14&"."&V$10,'NG Beta Data'!$A$2:$C$2500,3,FALSE),"N/A")) -> 1 | W14: =IF($B14="","",IFERROR(VLOOKUP($B14&"."&W$10,'NG Beta Data'!$A$2:$C$2500,3,FALSE),"N/A")) -> 0.95 | X14: =IF($B14="","",IFERROR(VLOOKUP($B14&"."&X$10,'NG Beta Data'!$A$2:$C$2500,3,FALSE),"N/A")) -> 0.95 | Y14: =IF($B14="","",IFERROR(VLOOKUP($B14&"."&Y$10,'NG Beta Data'!$A$2:$C$2500,3,FALSE),"N/A")) -> 0.9 | Z14: =IF($B14="","",IFERROR(VLOOKUP($B14&"."&Z$10,'NG Beta Data'!$A$2:$C$2500,3,FALSE),"N/A")) -> 0.9 | AA14: =IF($B14="","",IFERROR(VLOOKUP($B14&"."&AA$10,'NG Beta Data'!$A$2:$C$2500,3,FALSE),"N/A")) -> 0.65
A15: ='MPG-3'!A15 -> 3 | B15: ='MPG-3'!B15 -> NI | D15: ='MPG-3'!D15 -> NiSource Inc. | E15: =IFERROR(AVERAGE(F15:AA15,'MPG-16 Page 3'!E15:Z15),"") -> 0.7791666667 | F15: =IF($B15="","",IFERROR(VLOOKUP($B15&"."&F$10,'NG Beta Data'!$A$2:$C$2500,3,FALSE),"N/A")) -> 0.85 | G15: =IF($B15="","",IFERROR(VLOOKUP($B15&"."&G$10,'NG Beta Data'!$A$2:$C$2500,3,FALSE),"N/A")) -> 0.95 | H15: =IF($B15="","",IFERROR(VLOOKUP($B15&"."&H$10,'NG Beta Data'!$A$2:$C$2500,3,FALSE),"N/A")) -> 0.95 | I15: =IF($B15="","",IFERROR(VLOOKUP($B15&"."&I$10,'NG Beta Data'!$A$2:$C$2500,3,FALSE),"N/A")) -> 0.95 | J15: =IF($B15="","",IFERROR(VLOOKUP($B15&"."&J$10,'NG Beta Data'!$A$2:$C$2500,3,FALSE),"N/A")) -> 0.95 | K15: =IF($B15="","",IFERROR(VLOOKUP($B15&"."&K$10,'NG Beta Data'!$A$2:$C$2500,3,FALSE),"N/A")) -> 0.9 | L15: =IF($B15="","",IFERROR(VLOOKUP($B15&"."&L$10,'NG Beta Data'!$A$2:$C$2500,3,FALSE),"N/A")) -> 0.9 | M15: =IF($B15="","",IFERROR(VLOOKUP($B15&"."&M$10,'NG Beta Data'!$A$2:$C$2500,3,FALSE),"N/A")) -> 0.9 | N15: =IF($B15="","",IFERROR(VLOOKUP($B15&"."&N$10,'NG Beta Data'!$A$2:$C$2500,3,FALSE),"N/A")) -> 0.85 | O15: =IF($B15="","",IFERROR(VLOOKUP($B15&"."&O$10,'NG Beta Data'!$A$2:$C$2500,3,FALSE),"N/A")) -> 0.9 | P15: =IF($B15="","",IFERROR(VLOOKUP($B15&"."&P$10,'NG Beta Data'!$A$2:$C$2500,3,FALSE),"N/A")) -> 0.85 | Q15: =IF($B15="","",IFERROR(VLOOKUP($B15&"."&Q$10,'NG Beta Data'!$A$2:$C$2500,3,FALSE),"N/A")) -> 0.85 | R15: =IF($B15="","",IFERROR(VLOOKUP($B15&"."&R$10,'NG Beta Data'!$A$2:$C$2500,3,FALSE),"N/A")) -> 0.85 | S15: =IF($B15="","",IFERROR(VLOOKUP($B15&"."&S$10,'NG Beta Data'!$A$2:$C$2500,3,FALSE),"N/A")) -> 0.85 | T15: =IF($B15="","",IFERROR(VLOOKUP($B15&"."&T$10,'NG Beta Data'!$A$2:$C$2500,3,FALSE),"N/A")) -> 0.85 | U15: =IF($B15="","",IFERROR(VLOOKUP($B15&"."&U$10,'NG Beta Data'!$A$2:$C$2500,3,FALSE),"N/A")) -> 0.85 | V15: =IF($B15="","",IFERROR(VLOOKUP($B15&"."&V$10,'NG Beta Data'!$A$2:$C$2500,3,FALSE),"N/A")) -> 0.85 | W15: =IF($B15="","",IFERROR(VLOOKUP($B15&"."&W$10,'NG Beta Data'!$A$2:$C$2500,3,FALSE),"N/A")) -> 0.85 | X15: =IF($B15="","",IFERROR(VLOOKUP($B15&"."&X$10,'NG Beta Data'!$A$2:$C$2500,3,FALSE),"N/A")) -> 0.85 | Y15: =IF($B15="","",IFERROR(VLOOKUP($B15&"."&Y$10,'NG Beta Data'!$A$2:$C$2500,3,FALSE),"N/A")) -> 0.85 | Z15: =IF($B15="","",IFERROR(VLOOKUP($B15&"."&Z$10,'NG Beta Data'!$A$2:$C$2500,3,FALSE),"N/A")) -> 0.85 | AA15: =IF($B15="","",IFERROR(VLOOKUP($B15&"."&AA$10,'NG Beta Data'!$A$2:$C$2500,3,FALSE),"N/A")) -> 0.55
A16: ='MPG-3'!A16 -> 4 | B16: ='MPG-3'!B16 -> NWN | D16: ='MPG-3'!D16 -> Northwest Natural Holding Company | E16: =IFERROR(AVERAGE(F16:AA16,'MPG-16 Page 3'!E16:Z16),"") -> 0.7352272727 | F16: =IF($B16="","",IFERROR(VLOOKUP($B16&"."&F$10,'NG Beta Data'!$A$2:$C$2500,3,FALSE),"N/A")) -> 0.8 | G16: =IF($B16="","",IFERROR(VLOOKUP($B16&"."&G$10,'NG Beta Data'!$A$2:$C$2500,3,FALSE),"N/A")) -> 0.9 | H16: =IF($B16="","",IFERROR(VLOOKUP($B16&"."&H$10,'NG Beta Data'!$A$2:$C$2500,3,FALSE),"N/A")) -> 0.85 | I16: =IF($B16="","",IFERROR(VLOOKUP($B16&"."&I$10,'NG Beta Data'!$A$2:$C$2500,3,FALSE),"N/A")) -> 0.85 | J16: =IF($B16="","",IFERROR(VLOOKUP($B16&"."&J$10,'NG Beta Data'!$A$2:$C$2500,3,FALSE),"N/A")) -> 0.85 | K16: =IF($B16="","",IFERROR(VLOOKUP($B16&"."&K$10,'NG Beta Data'!$A$2:$C$2500,3,FALSE),"N/A")) -> 0.85 | L16: =IF($B16="","",IFERROR(VLOOKUP($B16&"."&L$10,'NG Beta Data'!$A$2:$C$2500,3,FALSE),"N/A")) -> 0.85 | M16: =IF($B16="","",IFERROR(VLOOKUP($B16&"."&M$10,'NG Beta Data'!$A$2:$C$2500,3,FALSE),"N/A")) -> 0.8 | N16: =IF($B16="","",IFERROR(VLOOKUP($B16&"."&N$10,'NG Beta Data'!$A$2:$C$2500,3,FALSE),"N/A")) -> 0.8 | O16: =IF($B16="","",IFERROR(VLOOKUP($B16&"."&O$10,'NG Beta Data'!$A$2:$C$2500,3,FALSE),"N/A")) -> 0.8 | P16: =IF($B16="","",IFERROR(VLOOKUP($B16&"."&P$10,'NG Beta Data'!$A$2:$C$2500,3,FALSE),"N/A")) -> 0.8 | Q16: =IF($B16="","",IFERROR(VLOOKUP($B16&"."&Q$10,'NG Beta Data'!$A$2:$C$2500,3,FALSE),"N/A")) -> 0.8 | R16: =IF($B16="","",IFERROR(VLOOKUP($B16&"."&R$10,'NG Beta Data'!$A$2:$C$2500,3,FALSE),"N/A")) -> 0.8 | S16: =IF($B16="","",IFERROR(VLOOKUP($B16&"."&S$10,'NG Beta Data'!$A$2:$C$2500,3,FALSE),"N/A")) -> 0.8 | T16: =IF($B16="","",IFERROR(VLOOKUP($B16&"."&T$10,'NG Beta Data'!$A$2:$C$2500,3,FALSE),"N/A")) -> 0.85 | U16: =IF($B16="","",IFERROR(VLOOKUP($B16&"."&U$10,'NG Beta Data'!$A$2:$C$2500,3,FALSE),"N/A")) -> 0.85 | V16: =IF($B16="","",IFERROR(VLOOKUP($B16&"."&V$10,'NG Beta Data'!$A$2:$C$2500,3,FALSE),"N/A")) -> 0.85 | W16: =IF($B16="","",IFERROR(VLOOKUP($B16&"."&W$10,'NG Beta Data'!$A$2:$C$2500,3,FALSE),"N/A")) -> 0.8 | X16: =IF($B16="","",IFERROR(VLOOKUP($B16&"."&X$10,'NG Beta Data'!$A$2:$C$2500,3,FALSE),"N/A")) -> 0.8 | Y16: =IF($B16="","",IFERROR(VLOOKUP($B16&"."&Y$10,'NG Beta Data'!$A$2:$C$2500,3,FALSE),"N/A")) -> 0.8 | Z16: =IF($B16="","",IFERROR(VLOOKUP($B16&"."&Z$10,'NG Beta Data'!$A$2:$C$2500,3,FALSE),"N/A")) -> 0.8 | AA16: =IF($B16="","",IFERROR(VLOOKUP($B16&"."&AA$10,'NG Beta Data'!$A$2:$C$2500,3,FALSE),"N/A")) -> 0.55
A17: ='MPG-3'!A17 -> 5 | B17: ='MPG-3'!B17 -> OGS | D17: ='MPG-3'!D17 -> ONE Gas, Inc. | E17: =IFERROR(AVERAGE(F17:AA17,'MPG-16 Page 3'!E17:Z17),"") -> 0.7606060606 | F17: =IF($B17="","",IFERROR(VLOOKUP($B17&"."&F$10,'NG Beta Data'!$A$2:$C$2500,3,FALSE),"N/A")) -> 0.8 | G17: =IF($B17="","",IFERROR(VLOOKUP($B17&"."&G$10,'NG Beta Data'!$A$2:$C$2500,3,FALSE),"N/A")) -> 0.85 | H17: =IF($B17="","",IFERROR(VLOOKUP($B17&"."&H$10,'NG Beta Data'!$A$2:$C$2500,3,FALSE),"N/A")) -> 0.85 | I17: =IF($B17="","",IFERROR(VLOOKUP($B17&"."&I$10,'NG Beta Data'!$A$2:$C$2500,3,FALSE),"N/A")) -> 0.85 | J17: =IF($B17="","",IFERROR(VLOOKUP($B17&"."&J$10,'NG Beta Data'!$A$2:$C$2500,3,FALSE),"N/A")) -> 0.85 | K17: =IF($B17="","",IFERROR(VLOOKUP($B17&"."&K$10,'NG Beta Data'!$A$2:$C$2500,3,FALSE),"N/A")) -> 0.85 | L17: =IF($B17="","",IFERROR(VLOOKUP($B17&"."&L$10,'NG Beta Data'!$A$2:$C$2500,3,FALSE),"N/A")) -> 0.85 | M17: =IF($B17="","",IFERROR(VLOOKUP($B17&"."&M$10,'NG Beta Data'!$A$2:$C$2500,3,FALSE),"N/A")) -> 0.8 | N17: =IF($B17="","",IFERROR(VLOOKUP($B17&"."&N$10,'NG Beta Data'!$A$2:$C$2500,3,FALSE),"N/A")) -> 0.8 | O17: =IF($B17="","",IFERROR(VLOOKUP($B17&"."&O$10,'NG Beta Data'!$A$2:$C$2500,3,FALSE),"N/A")) -> 0.8 | P17: =IF($B17="","",IFERROR(VLOOKUP($B17&"."&P$10,'NG Beta Data'!$A$2:$C$2500,3,FALSE),"N/A")) -> 0.8 | Q17: =IF($B17="","",IFERROR(VLOOKUP($B17&"."&Q$10,'NG Beta Data'!$A$2:$C$2500,3,FALSE),"N/A")) -> 0.8 | R17: =IF($B17="","",IFERROR(VLOOKUP($B17&"."&R$10,'NG Beta Data'!$A$2:$C$2500,3,FALSE),"N/A")) -> 0.8 | S17: =IF($B17="","",IFERROR(VLOOKUP($B17&"."&S$10,'NG Beta Data'!$A$2:$C$2500,3,FALSE),"N/A")) -> 0.8 | T17: =IF($B17="","",IFERROR(VLOOKUP($B17&"."&T$10,'NG Beta Data'!$A$2:$C$2500,3,FALSE),"N/A")) -> 0.8 | U17: =IF($B17="","",IFERROR(VLOOKUP($B17&"."&U$10,'NG Beta Data'!$A$2:$C$2500,3,FALSE),"N/A")) -> 0.8 | V17: =IF($B17="","",IFERROR(VLOOKUP($B17&"."&V$10,'NG Beta Data'!$A$2:$C$2500,3,FALSE),"N/A")) -> 0.8 | W17: =IF($B17="","",IFERROR(VLOOKUP($B17&"."&W$10,'NG Beta Data'!$A$2:$C$2500,3,FALSE),"N/A")) -> 0.8 | X17: =IF($B17="","",IFERROR(VLOOKUP($B17&"."&X$10,'NG Beta Data'!$A$2:$C$2500,3,FALSE),"N/A")) -> 0.8 | Y17: =IF($B17="","",IFERROR(VLOOKUP($B17&"."&Y$10,'NG Beta Data'!$A$2:$C$2500,3,FALSE),"N/A")) -> 0.8 | Z17: =IF($B17="","",IFERROR(VLOOKUP($B17&"."&Z$10,'NG Beta Data'!$A$2:$C$2500,3,FALSE),"N/A")) -> 0.8 | AA17: =IF($B17="","",IFERROR(VLOOKUP($B17&"."&AA$10,'NG Beta Data'!$A$2:$C$2500,3,FALSE),"N/A")) -> 0.6
A18: ='MPG-3'!A18 -> 6 | B18: ='MPG-3'!B18 -> SWX | D18: ='MPG-3'!D18 -> Southwest Gas Holdings, Inc. | E18: =IFERROR(AVERAGE(F18:AA18,'MPG-16 Page 3'!E18:Z18),"") -> 0.8352272727 | F18: =IF($B18="","",IFERROR(VLOOKUP($B18&"."&F$10,'NG Beta Data'!$A$2:$C$2500,3,FALSE),"N/A")) -> 0.8 | G18: =IF($B18="","",IFERROR(VLOOKUP($B18&"."&G$10,'NG Beta Data'!$A$2:$C$2500,3,FALSE),"N/A")) -> 0.95 | H18: =IF($B18="","",IFERROR(VLOOKUP($B18&"."&H$10,'NG Beta Data'!$A$2:$C$2500,3,FALSE),"N/A")) -> 0.95 | I18: =IF($B18="","",IFERROR(VLOOKUP($B18&"."&I$10,'NG Beta Data'!$A$2:$C$2500,3,FALSE),"N/A")) -> 0.9 | J18: =IF($B18="","",IFERROR(VLOOKUP($B18&"."&J$10,'NG Beta Data'!$A$2:$C$2500,3,FALSE),"N/A")) -> 0.9 | K18: =IF($B18="","",IFERROR(VLOOKUP($B18&"."&K$10,'NG Beta Data'!$A$2:$C$2500,3,FALSE),"N/A")) -> 0.9 | L18: =IF($B18="","",IFERROR(VLOOKUP($B18&"."&L$10,'NG Beta Data'!$A$2:$C$2500,3,FALSE),"N/A")) -> 0.9 | M18: =IF($B18="","",IFERROR(VLOOKUP($B18&"."&M$10,'NG Beta Data'!$A$2:$C$2500,3,FALSE),"N/A")) -> 0.9 | N18: =IF($B18="","",IFERROR(VLOOKUP($B18&"."&N$10,'NG Beta Data'!$A$2:$C$2500,3,FALSE),"N/A")) -> 0.85 | O18: =IF($B18="","",IFERROR(VLOOKUP($B18&"."&O$10,'NG Beta Data'!$A$2:$C$2500,3,FALSE),"N/A")) -> 0.9 | P18: =IF($B18="","",IFERROR(VLOOKUP($B18&"."&P$10,'NG Beta Data'!$A$2:$C$2500,3,FALSE),"N/A")) -> 0.9 | Q18: =IF($B18="","",IFERROR(VLOOKUP($B18&"."&Q$10,'NG Beta Data'!$A$2:$C$2500,3,FALSE),"N/A")) -> 0.9 | R18: =IF($B18="","",IFERROR(VLOOKUP($B18&"."&R$10,'NG Beta Data'!$A$2:$C$2500,3,FALSE),"N/A")) -> 0.9 | S18: =IF($B18="","",IFERROR(VLOOKUP($B18&"."&S$10,'NG Beta Data'!$A$2:$C$2500,3,FALSE),"N/A")) -> 0.95 | T18: =IF($B18="","",IFERROR(VLOOKUP($B18&"."&T$10,'NG Beta Data'!$A$2:$C$2500,3,FALSE),"N/A")) -> 0.95 | U18: =IF($B18="","",IFERROR(VLOOKUP($B18&"."&U$10,'NG Beta Data'!$A$2:$C$2500,3,FALSE),"N/A")) -> 0.95 | V18: =IF($B18="","",IFERROR(VLOOKUP($B18&"."&V$10,'NG Beta Data'!$A$2:$C$2500,3,FALSE),"N/A")) -> 0.95 | W18: =IF($B18="","",IFERROR(VLOOKUP($B18&"."&W$10,'NG Beta Data'!$A$2:$C$2500,3,FALSE),"N/A")) -> 0.95 | X18: =IF($B18="","",IFERROR(VLOOKUP($B18&"."&X$10,'NG Beta Data'!$A$2:$C$2500,3,FALSE),"N/A")) -> 0.95 | Y18: =IF($B18="","",IFERROR(VLOOKUP($B18&"."&Y$10,'NG Beta Data'!$A$2:$C$2500,3,FALSE),"N/A")) -> 0.9 | Z18: =IF($B18="","",IFERROR(VLOOKUP($B18&"."&Z$10,'NG Beta Data'!$A$2:$C$2500,3,FALSE),"N/A")) -> 0.9 | AA18: =IF($B18="","",IFERROR(VLOOKUP($B18&"."&AA$10,'NG Beta Data'!$A$2:$C$2500,3,FALSE),"N/A")) -> 0.65
A19: ='MPG-3'!A19 -> 7 | B19: ='MPG-3'!B19 -> SR | D19: ='MPG-3'!D19 -> Spire Inc. | E19: =IFERROR(AVERAGE(F19:AA19,'MPG-16 Page 3'!E19:Z19),"") -> 0.7602272727 | F19: =IF($B19="","",IFERROR(VLOOKUP($B19&"."&F$10,'NG Beta Data'!$A$2:$C$2500,3,FALSE),"N/A")) -> 0.8 | G19: =IF($B19="","",IFERROR(VLOOKUP($B19&"."&G$10,'NG Beta Data'!$A$2:$C$2500,3,FALSE),"N/A")) -> 0.9 | H19: =IF($B19="","",IFERROR(VLOOKUP($B19&"."&H$10,'NG Beta Data'!$A$2:$C$2500,3,FALSE),"N/A")) -> 0.9 | I19: =IF($B19="","",IFERROR(VLOOKUP($B19&"."&I$10,'NG Beta Data'!$A$2:$C$2500,3,FALSE),"N/A")) -> 0.85 | J19: =IF($B19="","",IFERROR(VLOOKUP($B19&"."&J$10,'NG Beta Data'!$A$2:$C$2500,3,FALSE),"N/A")) -> 0.85 | K19: =IF($B19="","",IFERROR(VLOOKUP($B19&"."&K$10,'NG Beta Data'!$A$2:$C$2500,3,FALSE),"N/A")) -> 0.85 | L19: =IF($B19="","",IFERROR(VLOOKUP($B19&"."&L$10,'NG Beta Data'!$A$2:$C$2500,3,FALSE),"N/A")) -> 0.85 | M19: =IF($B19="","",IFERROR(VLOOKUP($B19&"."&M$10,'NG Beta Data'!$A$2:$C$2500,3,FALSE),"N/A")) -> 0.85 | N19: =IF($B19="","",IFERROR(VLOOKUP($B19&"."&N$10,'NG Beta Data'!$A$2:$C$2500,3,FALSE),"N/A")) -> 0.8 | O19: =IF($B19="","",IFERROR(VLOOKUP($B19&"."&O$10,'NG Beta Data'!$A$2:$C$2500,3,FALSE),"N/A")) -> 0.85 | P19: =IF($B19="","",IFERROR(VLOOKUP($B19&"."&P$10,'NG Beta Data'!$A$2:$C$2500,3,FALSE),"N/A")) -> 0.85 | Q19: =IF($B19="","",IFERROR(VLOOKUP($B19&"."&Q$10,'NG Beta Data'!$A$2:$C$2500,3,FALSE),"N/A")) -> 0.8 | R19: =IF($B19="","",IFERROR(VLOOKUP($B19&"."&R$10,'NG Beta Data'!$A$2:$C$2500,3,FALSE),"N/A")) -> 0.8 | S19: =IF($B19="","",IFERROR(VLOOKUP($B19&"."&S$10,'NG Beta Data'!$A$2:$C$2500,3,FALSE),"N/A")) -> 0.85 | T19: =IF($B19="","",IFERROR(VLOOKUP($B19&"."&T$10,'NG Beta Data'!$A$2:$C$2500,3,FALSE),"N/A")) -> 0.85 | U19: =IF($B19="","",IFERROR(VLOOKUP($B19&"."&U$10,'NG Beta Data'!$A$2:$C$2500,3,FALSE),"N/A")) -> 0.85 | V19: =IF($B19="","",IFERROR(VLOOKUP($B19&"."&V$10,'NG Beta Data'!$A$2:$C$2500,3,FALSE),"N/A")) -> 0.85 | W19: =IF($B19="","",IFERROR(VLOOKUP($B19&"."&W$10,'NG Beta Data'!$A$2:$C$2500,3,FALSE),"N/A")) -> 0.85 | X19: =IF($B19="","",IFERROR(VLOOKUP($B19&"."&X$10,'NG Beta Data'!$A$2:$C$2500,3,FALSE),"N/A")) -> 1 | Y19: =IF($B19="","",IFERROR(VLOOKUP($B19&"."&Y$10,'NG Beta Data'!$A$2:$C$2500,3,FALSE),"N/A")) -> 0.8 | Z19: =IF($B19="","",IFERROR(VLOOKUP($B19&"."&Z$10,'NG Beta Data'!$A$2:$C$2500,3,FALSE),"N/A")) -> 0.8 | AA19: =IF($B19="","",IFERROR(VLOOKUP($B19&"."&AA$10,'NG Beta Data'!$A$2:$C$2500,3,FALSE),"N/A")) -> 0.6
A20: ='MPG-3'!A20 -> 8 | B20: ='MPG-3'!B20 -> LNT | D20: ='MPG-3'!D20 -> Alliant Energy Corporation | E20: =IFERROR(AVERAGE(F20:AA20,'MPG-16 Page 3'!E20:Z20),"") -> 0.7795454545 | F20: =IF($B20="","",IFERROR(VLOOKUP($B20&"."&F$10,'EL Beta Data'!$A$2:$C$2500,3,FALSE),"N/A")) -> 0.8 | G20: =IF($B20="","",IFERROR(VLOOKUP($B20&"."&G$10,'EL Beta Data'!$A$2:$C$2500,3,FALSE),"N/A")) -> 0.95 | H20: =IF($B20="","",IFERROR(VLOOKUP($B20&"."&H$10,'EL Beta Data'!$A$2:$C$2500,3,FALSE),"N/A")) -> 0.9 | I20: =IF($B20="","",IFERROR(VLOOKUP($B20&"."&I$10,'EL Beta Data'!$A$2:$C$2500,3,FALSE),"N/A")) -> 0.9 | J20: =IF($B20="","",IFERROR(VLOOKUP($B20&"."&J$10,'EL Beta Data'!$A$2:$C$2500,3,FALSE),"N/A")) -> 0.9 | K20: =IF($B20="","",IFERROR(VLOOKUP($B20&"."&K$10,'EL Beta Data'!$A$2:$C$2500,3,FALSE),"N/A")) -> 0.9 | L20: =IF($B20="","",IFERROR(VLOOKUP($B20&"."&L$10,'EL Beta Data'!$A$2:$C$2500,3,FALSE),"N/A")) -> 0.9 | M20: =IF($B20="","",IFERROR(VLOOKUP($B20&"."&M$10,'EL Beta Data'!$A$2:$C$2500,3,FALSE),"N/A")) -> 0.85 | N20: =IF($B20="","",IFERROR(VLOOKUP($B20&"."&N$10,'EL Beta Data'!$A$2:$C$2500,3,FALSE),"N/A")) -> 0.85 | O20: =IF($B20="","",IFERROR(VLOOKUP($B20&"."&O$10,'EL Beta Data'!$A$2:$C$2500,3,FALSE),"N/A")) -> 0.85 | P20: =IF($B20="","",IFERROR(VLOOKUP($B20&"."&P$10,'EL Beta Data'!$A$2:$C$2500,3,FALSE),"N/A")) -> 0.85 | Q20: =IF($B20="","",IFERROR(VLOOKUP($B20&"."&Q$10,'EL Beta Data'!$A$2:$C$2500,3,FALSE),"N/A")) -> 0.85 | R20: =IF($B20="","",IFERROR(VLOOKUP($B20&"."&R$10,'EL Beta Data'!$A$2:$C$2500,3,FALSE),"N/A")) -> 0.8 | S20: =IF($B20="","",IFERROR(VLOOKUP($B20&"."&S$10,'EL Beta Data'!$A$2:$C$2500,3,FALSE),"N/A")) -> 0.85 | T20: =IF($B20="","",IFERROR(VLOOKUP($B20&"."&T$10,'EL Beta Data'!$A$2:$C$2500,3,FALSE),"N/A")) -> 0.85 | U20: =IF($B20="","",IFERROR(VLOOKUP($B20&"."&U$10,'EL Beta Data'!$A$2:$C$2500,3,FALSE),"N/A")) -> 0.85 | V20: =IF($B20="","",IFERROR(VLOOKUP($B20&"."&V$10,'EL Beta Data'!$A$2:$C$2500,3,FALSE),"N/A")) -> 0.85 | W20: =IF($B20="","",IFERROR(VLOOKUP($B20&"."&W$10,'EL Beta Data'!$A$2:$C$2500,3,FALSE),"N/A")) -> 0.85 | X20: =IF($B20="","",IFERROR(VLOOKUP($B20&"."&X$10,'EL Beta Data'!$A$2:$C$2500,3,FALSE),"N/A")) -> 0.85 | Y20: =IF($B20="","",IFERROR(VLOOKUP($B20&"."&Y$10,'EL Beta Data'!$A$2:$C$2500,3,FALSE),"N/A")) -> 0.85 | Z20: =IF($B20="","",IFERROR(VLOOKUP($B20&"."&Z$10,'EL Beta Data'!$A$2:$C$2500,3,FALSE),"N/A")) -> 0.8 | AA20: =IF($B20="","",IFERROR(VLOOKUP($B20&"."&AA$10,'EL Beta Data'!$A$2:$C$2500,3,FALSE),"N/A")) -> 0.55
A21: ='MPG-3'!A21 -> 9 | B21: ='MPG-3'!B21 -> AEE | D21: ='MPG-3'!D21 -> Ameren Corporation | E21: =IFERROR(AVERAGE(F21:AA21,'MPG-16 Page 3'!E21:Z21),"") -> 0.7511363636 | F21: =IF($B21="","",IFERROR(VLOOKUP($B21&"."&F$10,'EL Beta Data'!$A$2:$C$2500,3,FALSE),"N/A")) -> 0.8 | G21: =IF($B21="","",IFERROR(VLOOKUP($B21&"."&G$10,'EL Beta Data'!$A$2:$C$2500,3,FALSE),"N/A")) -> 0.9 | H21: =IF($B21="","",IFERROR(VLOOKUP($B21&"."&H$10,'EL Beta Data'!$A$2:$C$2500,3,FALSE),"N/A")) -> 0.9 | I21: =IF($B21="","",IFERROR(VLOOKUP($B21&"."&I$10,'EL Beta Data'!$A$2:$C$2500,3,FALSE),"N/A")) -> 0.9 | J21: =IF($B21="","",IFERROR(VLOOKUP($B21&"."&J$10,'EL Beta Data'!$A$2:$C$2500,3,FALSE),"N/A")) -> 0.9 | K21: =IF($B21="","",IFERROR(VLOOKUP($B21&"."&K$10,'EL Beta Data'!$A$2:$C$2500,3,FALSE),"N/A")) -> 0.9 | L21: =IF($B21="","",IFERROR(VLOOKUP($B21&"."&L$10,'EL Beta Data'!$A$2:$C$2500,3,FALSE),"N/A")) -> 0.9 | M21: =IF($B21="","",IFERROR(VLOOKUP($B21&"."&M$10,'EL Beta Data'!$A$2:$C$2500,3,FALSE),"N/A")) -> 0.85 | N21: =IF($B21="","",IFERROR(VLOOKUP($B21&"."&N$10,'EL Beta Data'!$A$2:$C$2500,3,FALSE),"N/A")) -> 0.85 | O21: =IF($B21="","",IFERROR(VLOOKUP($B21&"."&O$10,'EL Beta Data'!$A$2:$C$2500,3,FALSE),"N/A")) -> 0.85 | P21: =IF($B21="","",IFERROR(VLOOKUP($B21&"."&P$10,'EL Beta Data'!$A$2:$C$2500,3,FALSE),"N/A")) -> 0.85 | Q21: =IF($B21="","",IFERROR(VLOOKUP($B21&"."&Q$10,'EL Beta Data'!$A$2:$C$2500,3,FALSE),"N/A")) -> 0.85 | R21: =IF($B21="","",IFERROR(VLOOKUP($B21&"."&R$10,'EL Beta Data'!$A$2:$C$2500,3,FALSE),"N/A")) -> 0.8 | S21: =IF($B21="","",IFERROR(VLOOKUP($B21&"."&S$10,'EL Beta Data'!$A$2:$C$2500,3,FALSE),"N/A")) -> 0.8 | T21: =IF($B21="","",IFERROR(VLOOKUP($B21&"."&T$10,'EL Beta Data'!$A$2:$C$2500,3,FALSE),"N/A")) -> 0.8 | U21: =IF($B21="","",IFERROR(VLOOKUP($B21&"."&U$10,'EL Beta Data'!$A$2:$C$2500,3,FALSE),"N/A")) -> 0.85 | V21: =IF($B21="","",IFERROR(VLOOKUP($B21&"."&V$10,'EL Beta Data'!$A$2:$C$2500,3,FALSE),"N/A")) -> 0.8 | W21: =IF($B21="","",IFERROR(VLOOKUP($B21&"."&W$10,'EL Beta Data'!$A$2:$C$2500,3,FALSE),"N/A")) -> 0.8 | X21: =IF($B21="","",IFERROR(VLOOKUP($B21&"."&X$10,'EL Beta Data'!$A$2:$C$2500,3,FALSE),"N/A")) -> 0.85 | Y21: =IF($B21="","",IFERROR(VLOOKUP($B21&"."&Y$10,'EL Beta Data'!$A$2:$C$2500,3,FALSE),"N/A")) -> 0.8 | Z21: =IF($B21="","",IFERROR(VLOOKUP($B21&"."&Z$10,'EL Beta Data'!$A$2:$C$2500,3,FALSE),"N/A")) -> 0.8 | AA21: =IF($B21="","",IFERROR(VLOOKUP($B21&"."&AA$10,'EL Beta Data'!$A$2:$C$2500,3,FALSE),"N/A")) -> 0.5
A22: ='MPG-3'!A22 -> 10 | B22: ='MPG-3'!B22 -> AEP | D22: ='MPG-3'!D22 -> American Electric Power Company, Inc. | E22: =IFERROR(AVERAGE(F22:AA22,'MPG-16 Page 3'!E22:Z22),"") -> 0.7022727273 | F22: =IF($B22="","",IFERROR(VLOOKUP($B22&"."&F$10,'EL Beta Data'!$A$2:$C$2500,3,FALSE),"N/A")) -> 0.7 | G22: =IF($B22="","",IFERROR(VLOOKUP($B22&"."&G$10,'EL Beta Data'!$A$2:$C$2500,3,FALSE),"N/A")) -> 0.85 | H22: =IF($B22="","",IFERROR(VLOOKUP($B22&"."&H$10,'EL Beta Data'!$A$2:$C$2500,3,FALSE),"N/A")) -> 0.85 | I22: =IF($B22="","",IFERROR(VLOOKUP($B22&"."&I$10,'EL Beta Data'!$A$2:$C$2500,3,FALSE),"N/A")) -> 0.85 | J22: =IF($B22="","",IFERROR(VLOOKUP($B22&"."&J$10,'EL Beta Data'!$A$2:$C$2500,3,FALSE),"N/A")) -> 0.85 | K22: =IF($B22="","",IFERROR(VLOOKUP($B22&"."&K$10,'EL Beta Data'!$A$2:$C$2500,3,FALSE),"N/A")) -> 0.8 | L22: =IF($B22="","",IFERROR(VLOOKUP($B22&"."&L$10,'EL Beta Data'!$A$2:$C$2500,3,FALSE),"N/A")) -> 0.8 | M22: =IF($B22="","",IFERROR(VLOOKUP($B22&"."&M$10,'EL Beta Data'!$A$2:$C$2500,3,FALSE),"N/A")) -> 0.8 | N22: =IF($B22="","",IFERROR(VLOOKUP($B22&"."&N$10,'EL Beta Data'!$A$2:$C$2500,3,FALSE),"N/A")) -> 0.75 | O22: =IF($B22="","",IFERROR(VLOOKUP($B22&"."&O$10,'EL Beta Data'!$A$2:$C$2500,3,FALSE),"N/A")) -> 0.75 | P22: =IF($B22="","",IFERROR(VLOOKUP($B22&"."&P$10,'EL Beta Data'!$A$2:$C$2500,3,FALSE),"N/A")) -> 0.75 | Q22: =IF($B22="","",IFERROR(VLOOKUP($B22&"."&Q$10,'EL Beta Data'!$A$2:$C$2500,3,FALSE),"N/A")) -> 0.75 | R22: =IF($B22="","",IFERROR(VLOOKUP($B22&"."&R$10,'EL Beta Data'!$A$2:$C$2500,3,FALSE),"N/A")) -> 0.75 | S22: =IF($B22="","",IFERROR(VLOOKUP($B22&"."&S$10,'EL Beta Data'!$A$2:$C$2500,3,FALSE),"N/A")) -> 0.75 | T22: =IF($B22="","",IFERROR(VLOOKUP($B22&"."&T$10,'EL Beta Data'!$A$2:$C$2500,3,FALSE),"N/A")) -> 0.75 | U22: =IF($B22="","",IFERROR(VLOOKUP($B22&"."&U$10,'EL Beta Data'!$A$2:$C$2500,3,FALSE),"N/A")) -> 0.75 | V22: =IF($B22="","",IFERROR(VLOOKUP($B22&"."&V$10,'EL Beta Data'!$A$2:$C$2500,3,FALSE),"N/A")) -> 0.75 | W22: =IF($B22="","",IFERROR(VLOOKUP($B22&"."&W$10,'EL Beta Data'!$A$2:$C$2500,3,FALSE),"N/A")) -> 0.75 | X22: =IF($B22="","",IFERROR(VLOOKUP($B22&"."&X$10,'EL Beta Data'!$A$2:$C$2500,3,FALSE),"N/A")) -> 0.75 | Y22: =IF($B22="","",IFERROR(VLOOKUP($B22&"."&Y$10,'EL Beta Data'!$A$2:$C$2500,3,FALSE),"N/A")) -> 0.75 | Z22: =IF($B22="","",IFERROR(VLOOKUP($B22&"."&Z$10,'EL Beta Data'!$A$2:$C$2500,3,FALSE),"N/A")) -> 0.75 | AA22: =IF($B22="","",IFERROR(VLOOKUP($B22&"."&AA$10,'EL Beta Data'!$A$2:$C$2500,3,FALSE),"N/A")) -> 0.5
A23: ='MPG-3'!A23 -> 11 | B23: ='MPG-3'!B23 -> DUK | D23: ='MPG-3'!D23 -> Duke Energy Corporation | E23: =IFERROR(AVERAGE(F23:AA23,'MPG-16 Page 3'!E23:Z23),"") -> 0.7068181818 | F23: =IF($B23="","",IFERROR(VLOOKUP($B23&"."&F$10,'EL Beta Data'!$A$2:$C$2500,3,FALSE),"N/A")) -> 0.7 | G23: =IF($B23="","",IFERROR(VLOOKUP($B23&"."&G$10,'EL Beta Data'!$A$2:$C$2500,3,FALSE),"N/A")) -> 0.9 | H23: =IF($B23="","",IFERROR(VLOOKUP($B23&"."&H$10,'EL Beta Data'!$A$2:$C$2500,3,FALSE),"N/A")) -> 0.9 | I23: =IF($B23="","",IFERROR(VLOOKUP($B23&"."&I$10,'EL Beta Data'!$A$2:$C$2500,3,FALSE),"N/A")) -> 0.9 | J23: =IF($B23="","",IFERROR(VLOOKUP($B23&"."&J$10,'EL Beta Data'!$A$2:$C$2500,3,FALSE),"N/A")) -> 0.9 | K23: =IF($B23="","",IFERROR(VLOOKUP($B23&"."&K$10,'EL Beta Data'!$A$2:$C$2500,3,FALSE),"N/A")) -> 0.9 | L23: =IF($B23="","",IFERROR(VLOOKUP($B23&"."&L$10,'EL Beta Data'!$A$2:$C$2500,3,FALSE),"N/A")) -> 0.85 | M23: =IF($B23="","",IFERROR(VLOOKUP($B23&"."&M$10,'EL Beta Data'!$A$2:$C$2500,3,FALSE),"N/A")) -> 0.85 | N23: =IF($B23="","",IFERROR(VLOOKUP($B23&"."&N$10,'EL Beta Data'!$A$2:$C$2500,3,FALSE),"N/A")) -> 0.85 | O23: =IF($B23="","",IFERROR(VLOOKUP($B23&"."&O$10,'EL Beta Data'!$A$2:$C$2500,3,FALSE),"N/A")) -> 0.85 | P23: =IF($B23="","",IFERROR(VLOOKUP($B23&"."&P$10,'EL Beta Data'!$A$2:$C$2500,3,FALSE),"N/A")) -> 0.85 | Q23: =IF($B23="","",IFERROR(VLOOKUP($B23&"."&Q$10,'EL Beta Data'!$A$2:$C$2500,3,FALSE),"N/A")) -> 0.85 | R23: =IF($B23="","",IFERROR(VLOOKUP($B23&"."&R$10,'EL Beta Data'!$A$2:$C$2500,3,FALSE),"N/A")) -> 0.85 | S23: =IF($B23="","",IFERROR(VLOOKUP($B23&"."&S$10,'EL Beta Data'!$A$2:$C$2500,3,FALSE),"N/A")) -> 0.85 | T23: =IF($B23="","",IFERROR(VLOOKUP($B23&"."&T$10,'EL Beta Data'!$A$2:$C$2500,3,FALSE),"N/A")) -> 0.85 | U23: =IF($B23="","",IFERROR(VLOOKUP($B23&"."&U$10,'EL Beta Data'!$A$2:$C$2500,3,FALSE),"N/A")) -> 0.9 | V23: =IF($B23="","",IFERROR(VLOOKUP($B23&"."&V$10,'EL Beta Data'!$A$2:$C$2500,3,FALSE),"N/A")) -> 0.85 | W23: =IF($B23="","",IFERROR(VLOOKUP($B23&"."&W$10,'EL Beta Data'!$A$2:$C$2500,3,FALSE),"N/A")) -> 0.85 | X23: =IF($B23="","",IFERROR(VLOOKUP($B23&"."&X$10,'EL Beta Data'!$A$2:$C$2500,3,FALSE),"N/A")) -> 0.85 | Y23: =IF($B23="","",IFERROR(VLOOKUP($B23&"."&Y$10,'EL Beta Data'!$A$2:$C$2500,3,FALSE),"N/A")) -> 0.85 | Z23: =IF($B23="","",IFERROR(VLOOKUP($B23&"."&Z$10,'EL Beta Data'!$A$2:$C$2500,3,FALSE),"N/A")) -> 0.85 | AA23: =IF($B23="","",IFERROR(VLOOKUP($B23&"."&AA$10,'EL Beta Data'!$A$2:$C$2500,3,FALSE),"N/A")) -> 0.45
A24: ='MPG-3'!A24 -> 12 | B24: ='MPG-3'!B24 -> EIX | D24: ='MPG-3'!D24 -> Edison International | E24: =IFERROR(AVERAGE(F24:AA24,'MPG-16 Page 3'!E24:Z24),"") -> 0.7931818182 | F24: =IF($B24="","",IFERROR(VLOOKUP($B24&"."&F$10,'EL Beta Data'!$A$2:$C$2500,3,FALSE),"N/A")) -> 0.9 | G24: =IF($B24="","",IFERROR(VLOOKUP($B24&"."&G$10,'EL Beta Data'!$A$2:$C$2500,3,FALSE),"N/A")) -> 1.05 | H24: =IF($B24="","",IFERROR(VLOOKUP($B24&"."&H$10,'EL Beta Data'!$A$2:$C$2500,3,FALSE),"N/A")) -> 1 | I24: =IF($B24="","",IFERROR(VLOOKUP($B24&"."&I$10,'EL Beta Data'!$A$2:$C$2500,3,FALSE),"N/A")) -> 1 | J24: =IF($B24="","",IFERROR(VLOOKUP($B24&"."&J$10,'EL Beta Data'!$A$2:$C$2500,3,FALSE),"N/A")) -> 1 | K24: =IF($B24="","",IFERROR(VLOOKUP($B24&"."&K$10,'EL Beta Data'!$A$2:$C$2500,3,FALSE),"N/A")) -> 1 | L24: =IF($B24="","",IFERROR(VLOOKUP($B24&"."&L$10,'EL Beta Data'!$A$2:$C$2500,3,FALSE),"N/A")) -> 1 | M24: =IF($B24="","",IFERROR(VLOOKUP($B24&"."&M$10,'EL Beta Data'!$A$2:$C$2500,3,FALSE),"N/A")) -> 1 | N24: =IF($B24="","",IFERROR(VLOOKUP($B24&"."&N$10,'EL Beta Data'!$A$2:$C$2500,3,FALSE),"N/A")) -> 0.95 | O24: =IF($B24="","",IFERROR(VLOOKUP($B24&"."&O$10,'EL Beta Data'!$A$2:$C$2500,3,FALSE),"N/A")) -> 0.95 | P24: =IF($B24="","",IFERROR(VLOOKUP($B24&"."&P$10,'EL Beta Data'!$A$2:$C$2500,3,FALSE),"N/A")) -> 0.95 | Q24: =IF($B24="","",IFERROR(VLOOKUP($B24&"."&Q$10,'EL Beta Data'!$A$2:$C$2500,3,FALSE),"N/A")) -> 0.95 | R24: =IF($B24="","",IFERROR(VLOOKUP($B24&"."&R$10,'EL Beta Data'!$A$2:$C$2500,3,FALSE),"N/A")) -> 0.95 | S24: =IF($B24="","",IFERROR(VLOOKUP($B24&"."&S$10,'EL Beta Data'!$A$2:$C$2500,3,FALSE),"N/A")) -> 0.95 | T24: =IF($B24="","",IFERROR(VLOOKUP($B24&"."&T$10,'EL Beta Data'!$A$2:$C$2500,3,FALSE),"N/A")) -> 1 | U24: =IF($B24="","",IFERROR(VLOOKUP($B24&"."&U$10,'EL Beta Data'!$A$2:$C$2500,3,FALSE),"N/A")) -> 0.95 | V24: =IF($B24="","",IFERROR(VLOOKUP($B24&"."&V$10,'EL Beta Data'!$A$2:$C$2500,3,FALSE),"N/A")) -> 0.95 | W24: =IF($B24="","",IFERROR(VLOOKUP($B24&"."&W$10,'EL Beta Data'!$A$2:$C$2500,3,FALSE),"N/A")) -> 0.95 | X24: =IF($B24="","",IFERROR(VLOOKUP($B24&"."&X$10,'EL Beta Data'!$A$2:$C$2500,3,FALSE),"N/A")) -> 0.9 | Y24: =IF($B24="","",IFERROR(VLOOKUP($B24&"."&Y$10,'EL Beta Data'!$A$2:$C$2500,3,FALSE),"N/A")) -> 0.9 | Z24: =IF($B24="","",IFERROR(VLOOKUP($B24&"."&Z$10,'EL Beta Data'!$A$2:$C$2500,3,FALSE),"N/A")) -> 0.55 | AA24: =IF($B24="","",IFERROR(VLOOKUP($B24&"."&AA$10,'EL Beta Data'!$A$2:$C$2500,3,FALSE),"N/A")) -> 0.55
A25: ='MPG-3'!A25 -> 13 | B25: ='MPG-3'!B25 -> ETR | D25: ='MPG-3'!D25 -> Entergy Corporation | E25: =IFERROR(AVERAGE(F25:AA25,'MPG-16 Page 3'!E25:Z25),"") -> 0.7920454545 | F25: =IF($B25="","",IFERROR(VLOOKUP($B25&"."&F$10,'EL Beta Data'!$A$2:$C$2500,3,FALSE),"N/A")) -> 0.8 | G25: =IF($B25="","",IFERROR(VLOOKUP($B25&"."&G$10,'EL Beta Data'!$A$2:$C$2500,3,FALSE),"N/A")) -> 1 | H25: =IF($B25="","",IFERROR(VLOOKUP($B25&"."&H$10,'EL Beta Data'!$A$2:$C$2500,3,FALSE),"N/A")) -> 1 | I25: =IF($B25="","",IFERROR(VLOOKUP($B25&"."&I$10,'EL Beta Data'!$A$2:$C$2500,3,FALSE),"N/A")) -> 1 | J25: =IF($B25="","",IFERROR(VLOOKUP($B25&"."&J$10,'EL Beta Data'!$A$2:$C$2500,3,FALSE),"N/A")) -> 1 | K25: =IF($B25="","",IFERROR(VLOOKUP($B25&"."&K$10,'EL Beta Data'!$A$2:$C$2500,3,FALSE),"N/A")) -> 0.95 | L25: =IF($B25="","",IFERROR(VLOOKUP($B25&"."&L$10,'EL Beta Data'!$A$2:$C$2500,3,FALSE),"N/A")) -> 0.95 | M25: =IF($B25="","",IFERROR(VLOOKUP($B25&"."&M$10,'EL Beta Data'!$A$2:$C$2500,3,FALSE),"N/A")) -> 0.95 | N25: =IF($B25="","",IFERROR(VLOOKUP($B25&"."&N$10,'EL Beta Data'!$A$2:$C$2500,3,FALSE),"N/A")) -> 0.9 | O25: =IF($B25="","",IFERROR(VLOOKUP($B25&"."&O$10,'EL Beta Data'!$A$2:$C$2500,3,FALSE),"N/A")) -> 0.95 | P25: =IF($B25="","",IFERROR(VLOOKUP($B25&"."&P$10,'EL Beta Data'!$A$2:$C$2500,3,FALSE),"N/A")) -> 0.95 | Q25: =IF($B25="","",IFERROR(VLOOKUP($B25&"."&Q$10,'EL Beta Data'!$A$2:$C$2500,3,FALSE),"N/A")) -> 0.95 | R25: =IF($B25="","",IFERROR(VLOOKUP($B25&"."&R$10,'EL Beta Data'!$A$2:$C$2500,3,FALSE),"N/A")) -> 0.9 | S25: =IF($B25="","",IFERROR(VLOOKUP($B25&"."&S$10,'EL Beta Data'!$A$2:$C$2500,3,FALSE),"N/A")) -> 0.95 | T25: =IF($B25="","",IFERROR(VLOOKUP($B25&"."&T$10,'EL Beta Data'!$A$2:$C$2500,3,FALSE),"N/A")) -> 0.95 | U25: =IF($B25="","",IFERROR(VLOOKUP($B25&"."&U$10,'EL Beta Data'!$A$2:$C$2500,3,FALSE),"N/A")) -> 0.95 | V25: =IF($B25="","",IFERROR(VLOOKUP($B25&"."&V$10,'EL Beta Data'!$A$2:$C$2500,3,FALSE),"N/A")) -> 0.95 | W25: =IF($B25="","",IFERROR(VLOOKUP($B25&"."&W$10,'EL Beta Data'!$A$2:$C$2500,3,FALSE),"N/A")) -> 0.95 | X25: =IF($B25="","",IFERROR(VLOOKUP($B25&"."&X$10,'EL Beta Data'!$A$2:$C$2500,3,FALSE),"N/A")) -> 0.95 | Y25: =IF($B25="","",IFERROR(VLOOKUP($B25&"."&Y$10,'EL Beta Data'!$A$2:$C$2500,3,FALSE),"N/A")) -> 0.95 | Z25: =IF($B25="","",IFERROR(VLOOKUP($B25&"."&Z$10,'EL Beta Data'!$A$2:$C$2500,3,FALSE),"N/A")) -> 0.95 | AA25: =IF($B25="","",IFERROR(VLOOKUP($B25&"."&AA$10,'EL Beta Data'!$A$2:$C$2500,3,FALSE),"N/A")) -> 0.6
A26: ='MPG-3'!A26 -> 14 | B26: ='MPG-3'!B26 -> EVRG | D26: ='MPG-3'!D26 -> Evergy, Inc. | E26: =IFERROR(AVERAGE(F26:AA26,'MPG-16 Page 3'!E26:Z26),"") -> 0.9357142857 | F26: =IF($B26="","",IFERROR(VLOOKUP($B26&"."&F$10,'EL Beta Data'!$A$2:$C$2500,3,FALSE),"N/A")) -> 0.75 | G26: =IF($B26="","",IFERROR(VLOOKUP($B26&"."&G$10,'EL Beta Data'!$A$2:$C$2500,3,FALSE),"N/A")) -> 0.95 | H26: =IF($B26="","",IFERROR(VLOOKUP($B26&"."&H$10,'EL Beta Data'!$A$2:$C$2500,3,FALSE),"N/A")) -> 0.95 | I26: =IF($B26="","",IFERROR(VLOOKUP($B26&"."&I$10,'EL Beta Data'!$A$2:$C$2500,3,FALSE),"N/A")) -> 0.95 | J26: =IF($B26="","",IFERROR(VLOOKUP($B26&"."&J$10,'EL Beta Data'!$A$2:$C$2500,3,FALSE),"N/A")) -> 0.95 | K26: =IF($B26="","",IFERROR(VLOOKUP($B26&"."&K$10,'EL Beta Data'!$A$2:$C$2500,3,FALSE),"N/A")) -> 0.95 | L26: =IF($B26="","",IFERROR(VLOOKUP($B26&"."&L$10,'EL Beta Data'!$A$2:$C$2500,3,FALSE),"N/A")) -> 0.95 | M26: =IF($B26="","",IFERROR(VLOOKUP($B26&"."&M$10,'EL Beta Data'!$A$2:$C$2500,3,FALSE),"N/A")) -> 0.9 | N26: =IF($B26="","",IFERROR(VLOOKUP($B26&"."&N$10,'EL Beta Data'!$A$2:$C$2500,3,FALSE),"N/A")) -> 0.9 | O26: =IF($B26="","",IFERROR(VLOOKUP($B26&"."&O$10,'EL Beta Data'!$A$2:$C$2500,3,FALSE),"N/A")) -> 0.9 | P26: =IF($B26="","",IFERROR(VLOOKUP($B26&"."&P$10,'EL Beta Data'!$A$2:$C$2500,3,FALSE),"N/A")) -> 0.9 | Q26: =IF($B26="","",IFERROR(VLOOKUP($B26&"."&Q$10,'EL Beta Data'!$A$2:$C$2500,3,FALSE),"N/A")) -> 0.9 | R26: =IF($B26="","",IFERROR(VLOOKUP($B26&"."&R$10,'EL Beta Data'!$A$2:$C$2500,3,FALSE),"N/A")) -> 0.9 | S26: =IF($B26="","",IFERROR(VLOOKUP($B26&"."&S$10,'EL Beta Data'!$A$2:$C$2500,3,FALSE),"N/A")) -> 0.95 | T26: =IF($B26="","",IFERROR(VLOOKUP($B26&"."&T$10,'EL Beta Data'!$A$2:$C$2500,3,FALSE),"N/A")) -> 0.95 | U26: =IF($B26="","",IFERROR(VLOOKUP($B26&"."&U$10,'EL Beta Data'!$A$2:$C$2500,3,FALSE),"N/A")) -> 0.95 | V26: =IF($B26="","",IFERROR(VLOOKUP($B26&"."&V$10,'EL Beta Data'!$A$2:$C$2500,3,FALSE),"N/A")) -> 0.95 | W26: =IF($B26="","",IFERROR(VLOOKUP($B26&"."&W$10,'EL Beta Data'!$A$2:$C$2500,3,FALSE),"N/A")) -> 0.95 | X26: =IF($B26="","",IFERROR(VLOOKUP($B26&"."&X$10,'EL Beta Data'!$A$2:$C$2500,3,FALSE),"N/A")) -> 1 | Y26: =IF($B26="","",IFERROR(VLOOKUP($B26&"."&Y$10,'EL Beta Data'!$A$2:$C$2500,3,FALSE),"N/A")) -> 1 | Z26: =IF($B26="","",IFERROR(VLOOKUP($B26&"."&Z$10,'EL Beta Data'!$A$2:$C$2500,3,FALSE),"N/A")) -> 1.05 | AA26: =IF($B26="","",IFERROR(VLOOKUP($B26&"."&AA$10,'EL Beta Data'!$A$2:$C$2500,3,FALSE),"N/A")) -> NMF
A27: ='MPG-3'!A27 -> 15 | B27: ='MPG-3'!B27 -> IDA | D27: ='MPG-3'!D27 -> IDACORP, Inc. | E27: =IFERROR(AVERAGE(F27:AA27,'MPG-16 Page 3'!E27:Z27),"") -> 0.7534090909 | F27: =IF($B27="","",IFERROR(VLOOKUP($B27&"."&F$10,'EL Beta Data'!$A$2:$C$2500,3,FALSE),"N/A")) -> 0.75 | G27: =IF($B27="","",IFERROR(VLOOKUP($B27&"."&G$10,'EL Beta Data'!$A$2:$C$2500,3,FALSE),"N/A")) -> 0.85 | H27: =IF($B27="","",IFERROR(VLOOKUP($B27&"."&H$10,'EL Beta Data'!$A$2:$C$2500,3,FALSE),"N/A")) -> 0.85 | I27: =IF($B27="","",IFERROR(VLOOKUP($B27&"."&I$10,'EL Beta Data'!$A$2:$C$2500,3,FALSE),"N/A")) -> 0.85 | J27: =IF($B27="","",IFERROR(VLOOKUP($B27&"."&J$10,'EL Beta Data'!$A$2:$C$2500,3,FALSE),"N/A")) -> 0.85 | K27: =IF($B27="","",IFERROR(VLOOKUP($B27&"."&K$10,'EL Beta Data'!$A$2:$C$2500,3,FALSE),"N/A")) -> 0.85 | L27: =IF($B27="","",IFERROR(VLOOKUP($B27&"."&L$10,'EL Beta Data'!$A$2:$C$2500,3,FALSE),"N/A")) -> 0.85 | M27: =IF($B27="","",IFERROR(VLOOKUP($B27&"."&M$10,'EL Beta Data'!$A$2:$C$2500,3,FALSE),"N/A")) -> 0.8 | N27: =IF($B27="","",IFERROR(VLOOKUP($B27&"."&N$10,'EL Beta Data'!$A$2:$C$2500,3,FALSE),"N/A")) -> 0.8 | O27: =IF($B27="","",IFERROR(VLOOKUP($B27&"."&O$10,'EL Beta Data'!$A$2:$C$2500,3,FALSE),"N/A")) -> 0.8 | P27: =IF($B27="","",IFERROR(VLOOKUP($B27&"."&P$10,'EL Beta Data'!$A$2:$C$2500,3,FALSE),"N/A")) -> 0.8 | Q27: =IF($B27="","",IFERROR(VLOOKUP($B27&"."&Q$10,'EL Beta Data'!$A$2:$C$2500,3,FALSE),"N/A")) -> 0.8 | R27: =IF($B27="","",IFERROR(VLOOKUP($B27&"."&R$10,'EL Beta Data'!$A$2:$C$2500,3,FALSE),"N/A")) -> 0.8 | S27: =IF($B27="","",IFERROR(VLOOKUP($B27&"."&S$10,'EL Beta Data'!$A$2:$C$2500,3,FALSE),"N/A")) -> 0.8 | T27: =IF($B27="","",IFERROR(VLOOKUP($B27&"."&T$10,'EL Beta Data'!$A$2:$C$2500,3,FALSE),"N/A")) -> 0.85 | U27: =IF($B27="","",IFERROR(VLOOKUP($B27&"."&U$10,'EL Beta Data'!$A$2:$C$2500,3,FALSE),"N/A")) -> 0.85 | V27: =IF($B27="","",IFERROR(VLOOKUP($B27&"."&V$10,'EL Beta Data'!$A$2:$C$2500,3,FALSE),"N/A")) -> 0.8 | W27: =IF($B27="","",IFERROR(VLOOKUP($B27&"."&W$10,'EL Beta Data'!$A$2:$C$2500,3,FALSE),"N/A")) -> 0.8 | X27: =IF($B27="","",IFERROR(VLOOKUP($B27&"."&X$10,'EL Beta Data'!$A$2:$C$2500,3,FALSE),"N/A")) -> 0.8 | Y27: =IF($B27="","",IFERROR(VLOOKUP($B27&"."&Y$10,'EL Beta Data'!$A$2:$C$2500,3,FALSE),"N/A")) -> 0.8 | Z27: =IF($B27="","",IFERROR(VLOOKUP($B27&"."&Z$10,'EL Beta Data'!$A$2:$C$2500,3,FALSE),"N/A")) -> 0.5 | AA27: =IF($B27="","",IFERROR(VLOOKUP($B27&"."&AA$10,'EL Beta Data'!$A$2:$C$2500,3,FALSE),"N/A")) -> 0.55
A28: ='MPG-3'!A28 -> 16 | B28: ='MPG-3'!B28 -> NWE | D28: ='MPG-3'!D28 -> NorthWestern Corporation | E28: =IFERROR(AVERAGE(F28:AA28,'MPG-16 Page 3'!E28:Z28),"") -> 0.7852272727 | F28: =IF($B28="","",IFERROR(VLOOKUP($B28&"."&F$10,'EL Beta Data'!$A$2:$C$2500,3,FALSE),"N/A")) -> 0.8 | G28: =IF($B28="","",IFERROR(VLOOKUP($B28&"."&G$10,'EL Beta Data'!$A$2:$C$2500,3,FALSE),"N/A")) -> 1 | H28: =IF($B28="","",IFERROR(VLOOKUP($B28&"."&H$10,'EL Beta Data'!$A$2:$C$2500,3,FALSE),"N/A")) -> 1 | I28: =IF($B28="","",IFERROR(VLOOKUP($B28&"."&I$10,'EL Beta Data'!$A$2:$C$2500,3,FALSE),"N/A")) -> 0.95 | J28: =IF($B28="","",IFERROR(VLOOKUP($B28&"."&J$10,'EL Beta Data'!$A$2:$C$2500,3,FALSE),"N/A")) -> 0.95 | K28: =IF($B28="","",IFERROR(VLOOKUP($B28&"."&K$10,'EL Beta Data'!$A$2:$C$2500,3,FALSE),"N/A")) -> 0.95 | L28: =IF($B28="","",IFERROR(VLOOKUP($B28&"."&L$10,'EL Beta Data'!$A$2:$C$2500,3,FALSE),"N/A")) -> 0.95 | M28: =IF($B28="","",IFERROR(VLOOKUP($B28&"."&M$10,'EL Beta Data'!$A$2:$C$2500,3,FALSE),"N/A")) -> 0.95 | N28: =IF($B28="","",IFERROR(VLOOKUP($B28&"."&N$10,'EL Beta Data'!$A$2:$C$2500,3,FALSE),"N/A")) -> 0.9 | O28: =IF($B28="","",IFERROR(VLOOKUP($B28&"."&O$10,'EL Beta Data'!$A$2:$C$2500,3,FALSE),"N/A")) -> 0.9 | P28: =IF($B28="","",IFERROR(VLOOKUP($B28&"."&P$10,'EL Beta Data'!$A$2:$C$2500,3,FALSE),"N/A")) -> 0.9 | Q28: =IF($B28="","",IFERROR(VLOOKUP($B28&"."&Q$10,'EL Beta Data'!$A$2:$C$2500,3,FALSE),"N/A")) -> 0.95 | R28: =IF($B28="","",IFERROR(VLOOKUP($B28&"."&R$10,'EL Beta Data'!$A$2:$C$2500,3,FALSE),"N/A")) -> 0.95 | S28: =IF($B28="","",IFERROR(VLOOKUP($B28&"."&S$10,'EL Beta Data'!$A$2:$C$2500,3,FALSE),"N/A")) -> 0.95 | T28: =IF($B28="","",IFERROR(VLOOKUP($B28&"."&T$10,'EL Beta Data'!$A$2:$C$2500,3,FALSE),"N/A")) -> 0.95 | U28: =IF($B28="","",IFERROR(VLOOKUP($B28&"."&U$10,'EL Beta Data'!$A$2:$C$2500,3,FALSE),"N/A")) -> 0.95 | V28: =IF($B28="","",IFERROR(VLOOKUP($B28&"."&V$10,'EL Beta Data'!$A$2:$C$2500,3,FALSE),"N/A")) -> 0.95 | W28: =IF($B28="","",IFERROR(VLOOKUP($B28&"."&W$10,'EL Beta Data'!$A$2:$C$2500,3,FALSE),"N/A")) -> 0.95 | X28: =IF($B28="","",IFERROR(VLOOKUP($B28&"."&X$10,'EL Beta Data'!$A$2:$C$2500,3,FALSE),"N/A")) -> 0.9 | Y28: =IF($B28="","",IFERROR(VLOOKUP($B28&"."&Y$10,'EL Beta Data'!$A$2:$C$2500,3,FALSE),"N/A")) -> 0.9 | Z28: =IF($B28="","",IFERROR(VLOOKUP($B28&"."&Z$10,'EL Beta Data'!$A$2:$C$2500,3,FALSE),"N/A")) -> 0.55 | AA28: =IF($B28="","",IFERROR(VLOOKUP($B28&"."&AA$10,'EL Beta Data'!$A$2:$C$2500,3,FALSE),"N/A")) -> 0.6
A29: ='MPG-3'!A29 -> 17 | B29: ='MPG-3'!B29 -> OGE | D29: ='MPG-3'!D29 -> OGE Energy Corp. | E29: =IFERROR(AVERAGE(F29:AA29,'MPG-16 Page 3'!E29:Z29),"") -> 0.9568181818 | F29: =IF($B29="","",IFERROR(VLOOKUP($B29&"."&F$10,'EL Beta Data'!$A$2:$C$2500,3,FALSE),"N/A")) -> 0.85 | G29: =IF($B29="","",IFERROR(VLOOKUP($B29&"."&G$10,'EL Beta Data'!$A$2:$C$2500,3,FALSE),"N/A")) -> 1.05 | H29: =IF($B29="","",IFERROR(VLOOKUP($B29&"."&H$10,'EL Beta Data'!$A$2:$C$2500,3,FALSE),"N/A")) -> 1.05 | I29: =IF($B29="","",IFERROR(VLOOKUP($B29&"."&I$10,'EL Beta Data'!$A$2:$C$2500,3,FALSE),"N/A")) -> 1.05 | J29: =IF($B29="","",IFERROR(VLOOKUP($B29&"."&J$10,'EL Beta Data'!$A$2:$C$2500,3,FALSE),"N/A")) -> 1.05 | K29: =IF($B29="","",IFERROR(VLOOKUP($B29&"."&K$10,'EL Beta Data'!$A$2:$C$2500,3,FALSE),"N/A")) -> 1.05 | L29: =IF($B29="","",IFERROR(VLOOKUP($B29&"."&L$10,'EL Beta Data'!$A$2:$C$2500,3,FALSE),"N/A")) -> 1.05 | M29: =IF($B29="","",IFERROR(VLOOKUP($B29&"."&M$10,'EL Beta Data'!$A$2:$C$2500,3,FALSE),"N/A")) -> 1.05 | N29: =IF($B29="","",IFERROR(VLOOKUP($B29&"."&N$10,'EL Beta Data'!$A$2:$C$2500,3,FALSE),"N/A")) -> 1 | O29: =IF($B29="","",IFERROR(VLOOKUP($B29&"."&O$10,'EL Beta Data'!$A$2:$C$2500,3,FALSE),"N/A")) -> 1 | P29: =IF($B29="","",IFERROR(VLOOKUP($B29&"."&P$10,'EL Beta Data'!$A$2:$C$2500,3,FALSE),"N/A")) -> 1 | Q29: =IF($B29="","",IFERROR(VLOOKUP($B29&"."&Q$10,'EL Beta Data'!$A$2:$C$2500,3,FALSE),"N/A")) -> 1 | R29: =IF($B29="","",IFERROR(VLOOKUP($B29&"."&R$10,'EL Beta Data'!$A$2:$C$2500,3,FALSE),"N/A")) -> 1 | S29: =IF($B29="","",IFERROR(VLOOKUP($B29&"."&S$10,'EL Beta Data'!$A$2:$C$2500,3,FALSE),"N/A")) -> 1.05 | T29: =IF($B29="","",IFERROR(VLOOKUP($B29&"."&T$10,'EL Beta Data'!$A$2:$C$2500,3,FALSE),"N/A")) -> 1.05 | U29: =IF($B29="","",IFERROR(VLOOKUP($B29&"."&U$10,'EL Beta Data'!$A$2:$C$2500,3,FALSE),"N/A")) -> 1.05 | V29: =IF($B29="","",IFERROR(VLOOKUP($B29&"."&V$10,'EL Beta Data'!$A$2:$C$2500,3,FALSE),"N/A")) -> 1.05 | W29: =IF($B29="","",IFERROR(VLOOKUP($B29&"."&W$10,'EL Beta Data'!$A$2:$C$2500,3,FALSE),"N/A")) -> 1.05 | X29: =IF($B29="","",IFERROR(VLOOKUP($B29&"."&X$10,'EL Beta Data'!$A$2:$C$2500,3,FALSE),"N/A")) -> 1.1 | Y29: =IF($B29="","",IFERROR(VLOOKUP($B29&"."&Y$10,'EL Beta Data'!$A$2:$C$2500,3,FALSE),"N/A")) -> 1.05 | Z29: =IF($B29="","",IFERROR(VLOOKUP($B29&"."&Z$10,'EL Beta Data'!$A$2:$C$2500,3,FALSE),"N/A")) -> 1.05 | AA29: =IF($B29="","",IFERROR(VLOOKUP($B29&"."&AA$10,'EL Beta Data'!$A$2:$C$2500,3,FALSE),"N/A")) -> 0.7
A30: ='MPG-3'!A30 -> 18 | B30: ='MPG-3'!B30 -> PNW | D30: ='MPG-3'!D30 -> Pinnacle West Capital Corporation | E30: =IFERROR(AVERAGE(F30:AA30,'MPG-16 Page 3'!E30:Z30),"") -> 0.7681818182 | F30: =IF($B30="","",IFERROR(VLOOKUP($B30&"."&F$10,'EL Beta Data'!$A$2:$C$2500,3,FALSE),"N/A")) -> 0.8 | G30: =IF($B30="","",IFERROR(VLOOKUP($B30&"."&G$10,'EL Beta Data'!$A$2:$C$2500,3,FALSE),"N/A")) -> 0.95 | H30: =IF($B30="","",IFERROR(VLOOKUP($B30&"."&H$10,'EL Beta Data'!$A$2:$C$2500,3,FALSE),"N/A")) -> 0.95 | I30: =IF($B30="","",IFERROR(VLOOKUP($B30&"."&I$10,'EL Beta Data'!$A$2:$C$2500,3,FALSE),"N/A")) -> 0.95 | J30: =IF($B30="","",IFERROR(VLOOKUP($B30&"."&J$10,'EL Beta Data'!$A$2:$C$2500,3,FALSE),"N/A")) -> 0.95 | K30: =IF($B30="","",IFERROR(VLOOKUP($B30&"."&K$10,'EL Beta Data'!$A$2:$C$2500,3,FALSE),"N/A")) -> 0.95 | L30: =IF($B30="","",IFERROR(VLOOKUP($B30&"."&L$10,'EL Beta Data'!$A$2:$C$2500,3,FALSE),"N/A")) -> 0.95 | M30: =IF($B30="","",IFERROR(VLOOKUP($B30&"."&M$10,'EL Beta Data'!$A$2:$C$2500,3,FALSE),"N/A")) -> 0.9 | N30: =IF($B30="","",IFERROR(VLOOKUP($B30&"."&N$10,'EL Beta Data'!$A$2:$C$2500,3,FALSE),"N/A")) -> 0.9 | O30: =IF($B30="","",IFERROR(VLOOKUP($B30&"."&O$10,'EL Beta Data'!$A$2:$C$2500,3,FALSE),"N/A")) -> 0.9 | P30: =IF($B30="","",IFERROR(VLOOKUP($B30&"."&P$10,'EL Beta Data'!$A$2:$C$2500,3,FALSE),"N/A")) -> 0.9 | Q30: =IF($B30="","",IFERROR(VLOOKUP($B30&"."&Q$10,'EL Beta Data'!$A$2:$C$2500,3,FALSE),"N/A")) -> 0.9 | R30: =IF($B30="","",IFERROR(VLOOKUP($B30&"."&R$10,'EL Beta Data'!$A$2:$C$2500,3,FALSE),"N/A")) -> 0.9 | S30: =IF($B30="","",IFERROR(VLOOKUP($B30&"."&S$10,'EL Beta Data'!$A$2:$C$2500,3,FALSE),"N/A")) -> 0.9 | T30: =IF($B30="","",IFERROR(VLOOKUP($B30&"."&T$10,'EL Beta Data'!$A$2:$C$2500,3,FALSE),"N/A")) -> 0.95 | U30: =IF($B30="","",IFERROR(VLOOKUP($B30&"."&U$10,'EL Beta Data'!$A$2:$C$2500,3,FALSE),"N/A")) -> 0.9 | V30: =IF($B30="","",IFERROR(VLOOKUP($B30&"."&V$10,'EL Beta Data'!$A$2:$C$2500,3,FALSE),"N/A")) -> 0.9 | W30: =IF($B30="","",IFERROR(VLOOKUP($B30&"."&W$10,'EL Beta Data'!$A$2:$C$2500,3,FALSE),"N/A")) -> 0.9 | X30: =IF($B30="","",IFERROR(VLOOKUP($B30&"."&X$10,'EL Beta Data'!$A$2:$C$2500,3,FALSE),"N/A")) -> 0.85 | Y30: =IF($B30="","",IFERROR(VLOOKUP($B30&"."&Y$10,'EL Beta Data'!$A$2:$C$2500,3,FALSE),"N/A")) -> 0.85 | Z30: =IF($B30="","",IFERROR(VLOOKUP($B30&"."&Z$10,'EL Beta Data'!$A$2:$C$2500,3,FALSE),"N/A")) -> 0.45 | AA30: =IF($B30="","",IFERROR(VLOOKUP($B30&"."&AA$10,'EL Beta Data'!$A$2:$C$2500,3,FALSE),"N/A")) -> 0.5
A31: ='MPG-3'!A31 -> 19 | B31: ='MPG-3'!B31 -> POR | D31: ='MPG-3'!D31 -> Portland General Electric Company | E31: =IFERROR(AVERAGE(F31:AA31,'MPG-16 Page 3'!E31:Z31),"") -> 0.7806818182 | F31: =IF($B31="","",IFERROR(VLOOKUP($B31&"."&F$10,'EL Beta Data'!$A$2:$C$2500,3,FALSE),"N/A")) -> 0.8 | G31: =IF($B31="","",IFERROR(VLOOKUP($B31&"."&G$10,'EL Beta Data'!$A$2:$C$2500,3,FALSE),"N/A")) -> 0.95 | H31: =IF($B31="","",IFERROR(VLOOKUP($B31&"."&H$10,'EL Beta Data'!$A$2:$C$2500,3,FALSE),"N/A")) -> 0.95 | I31: =IF($B31="","",IFERROR(VLOOKUP($B31&"."&I$10,'EL Beta Data'!$A$2:$C$2500,3,FALSE),"N/A")) -> 0.95 | J31: =IF($B31="","",IFERROR(VLOOKUP($B31&"."&J$10,'EL Beta Data'!$A$2:$C$2500,3,FALSE),"N/A")) -> 0.9 | K31: =IF($B31="","",IFERROR(VLOOKUP($B31&"."&K$10,'EL Beta Data'!$A$2:$C$2500,3,FALSE),"N/A")) -> 0.9 | L31: =IF($B31="","",IFERROR(VLOOKUP($B31&"."&L$10,'EL Beta Data'!$A$2:$C$2500,3,FALSE),"N/A")) -> 0.9 | M31: =IF($B31="","",IFERROR(VLOOKUP($B31&"."&M$10,'EL Beta Data'!$A$2:$C$2500,3,FALSE),"N/A")) -> 0.9 | N31: =IF($B31="","",IFERROR(VLOOKUP($B31&"."&N$10,'EL Beta Data'!$A$2:$C$2500,3,FALSE),"N/A")) -> 0.85 | O31: =IF($B31="","",IFERROR(VLOOKUP($B31&"."&O$10,'EL Beta Data'!$A$2:$C$2500,3,FALSE),"N/A")) -> 0.85 | P31: =IF($B31="","",IFERROR(VLOOKUP($B31&"."&P$10,'EL Beta Data'!$A$2:$C$2500,3,FALSE),"N/A")) -> 0.85 | Q31: =IF($B31="","",IFERROR(VLOOKUP($B31&"."&Q$10,'EL Beta Data'!$A$2:$C$2500,3,FALSE),"N/A")) -> 0.85 | R31: =IF($B31="","",IFERROR(VLOOKUP($B31&"."&R$10,'EL Beta Data'!$A$2:$C$2500,3,FALSE),"N/A")) -> 0.85 | S31: =IF($B31="","",IFERROR(VLOOKUP($B31&"."&S$10,'EL Beta Data'!$A$2:$C$2500,3,FALSE),"N/A")) -> 0.9 | T31: =IF($B31="","",IFERROR(VLOOKUP($B31&"."&T$10,'EL Beta Data'!$A$2:$C$2500,3,FALSE),"N/A")) -> 0.9 | U31: =IF($B31="","",IFERROR(VLOOKUP($B31&"."&U$10,'EL Beta Data'!$A$2:$C$2500,3,FALSE),"N/A")) -> 0.9 | V31: =IF($B31="","",IFERROR(VLOOKUP($B31&"."&V$10,'EL Beta Data'!$A$2:$C$2500,3,FALSE),"N/A")) -> 0.9 | W31: =IF($B31="","",IFERROR(VLOOKUP($B31&"."&W$10,'EL Beta Data'!$A$2:$C$2500,3,FALSE),"N/A")) -> 0.85 | X31: =IF($B31="","",IFERROR(VLOOKUP($B31&"."&X$10,'EL Beta Data'!$A$2:$C$2500,3,FALSE),"N/A")) -> 0.85 | Y31: =IF($B31="","",IFERROR(VLOOKUP($B31&"."&Y$10,'EL Beta Data'!$A$2:$C$2500,3,FALSE),"N/A")) -> 0.85 | Z31: =IF($B31="","",IFERROR(VLOOKUP($B31&"."&Z$10,'EL Beta Data'!$A$2:$C$2500,3,FALSE),"N/A")) -> 0.55 | AA31: =IF($B31="","",IFERROR(VLOOKUP($B31&"."&AA$10,'EL Beta Data'!$A$2:$C$2500,3,FALSE),"N/A")) -> 0.55
A32: ='MPG-3'!A32 -> 20 | B32: ='MPG-3'!B32 -> SO | D32: ='MPG-3'!D32 -> The Southern Company | E32: =IFERROR(AVERAGE(F32:AA32,'MPG-16 Page 3'!E32:Z32),"") -> 0.725 | F32: =IF($B32="","",IFERROR(VLOOKUP($B32&"."&F$10,'EL Beta Data'!$A$2:$C$2500,3,FALSE),"N/A")) -> 0.75 | G32: =IF($B32="","",IFERROR(VLOOKUP($B32&"."&G$10,'EL Beta Data'!$A$2:$C$2500,3,FALSE),"N/A")) -> 0.95 | H32: =IF($B32="","",IFERROR(VLOOKUP($B32&"."&H$10,'EL Beta Data'!$A$2:$C$2500,3,FALSE),"N/A")) -> 0.95 | I32: =IF($B32="","",IFERROR(VLOOKUP($B32&"."&I$10,'EL Beta Data'!$A$2:$C$2500,3,FALSE),"N/A")) -> 0.95 | J32: =IF($B32="","",IFERROR(VLOOKUP($B32&"."&J$10,'EL Beta Data'!$A$2:$C$2500,3,FALSE),"N/A")) -> 0.95 | K32: =IF($B32="","",IFERROR(VLOOKUP($B32&"."&K$10,'EL Beta Data'!$A$2:$C$2500,3,FALSE),"N/A")) -> 0.95 | L32: =IF($B32="","",IFERROR(VLOOKUP($B32&"."&L$10,'EL Beta Data'!$A$2:$C$2500,3,FALSE),"N/A")) -> 0.9 | M32: =IF($B32="","",IFERROR(VLOOKUP($B32&"."&M$10,'EL Beta Data'!$A$2:$C$2500,3,FALSE),"N/A")) -> 0.9 | N32: =IF($B32="","",IFERROR(VLOOKUP($B32&"."&N$10,'EL Beta Data'!$A$2:$C$2500,3,FALSE),"N/A")) -> 0.9 | O32: =IF($B32="","",IFERROR(VLOOKUP($B32&"."&O$10,'EL Beta Data'!$A$2:$C$2500,3,FALSE),"N/A")) -> 0.9 | P32: =IF($B32="","",IFERROR(VLOOKUP($B32&"."&P$10,'EL Beta Data'!$A$2:$C$2500,3,FALSE),"N/A")) -> 0.95 | Q32: =IF($B32="","",IFERROR(VLOOKUP($B32&"."&Q$10,'EL Beta Data'!$A$2:$C$2500,3,FALSE),"N/A")) -> 0.9 | R32: =IF($B32="","",IFERROR(VLOOKUP($B32&"."&R$10,'EL Beta Data'!$A$2:$C$2500,3,FALSE),"N/A")) -> 0.9 | S32: =IF($B32="","",IFERROR(VLOOKUP($B32&"."&S$10,'EL Beta Data'!$A$2:$C$2500,3,FALSE),"N/A")) -> 0.95 | T32: =IF($B32="","",IFERROR(VLOOKUP($B32&"."&T$10,'EL Beta Data'!$A$2:$C$2500,3,FALSE),"N/A")) -> 0.95 | U32: =IF($B32="","",IFERROR(VLOOKUP($B32&"."&U$10,'EL Beta Data'!$A$2:$C$2500,3,FALSE),"N/A")) -> 0.95 | V32: =IF($B32="","",IFERROR(VLOOKUP($B32&"."&V$10,'EL Beta Data'!$A$2:$C$2500,3,FALSE),"N/A")) -> 0.95 | W32: =IF($B32="","",IFERROR(VLOOKUP($B32&"."&W$10,'EL Beta Data'!$A$2:$C$2500,3,FALSE),"N/A")) -> 0.95 | X32: =IF($B32="","",IFERROR(VLOOKUP($B32&"."&X$10,'EL Beta Data'!$A$2:$C$2500,3,FALSE),"N/A")) -> 0.9 | Y32: =IF($B32="","",IFERROR(VLOOKUP($B32&"."&Y$10,'EL Beta Data'!$A$2:$C$2500,3,FALSE),"N/A")) -> 0.9 | Z32: =IF($B32="","",IFERROR(VLOOKUP($B32&"."&Z$10,'EL Beta Data'!$A$2:$C$2500,3,FALSE),"N/A")) -> 0.9 | AA32: =IF($B32="","",IFERROR(VLOOKUP($B32&"."&AA$10,'EL Beta Data'!$A$2:$C$2500,3,FALSE),"N/A")) -> 0.5
A33: ='MPG-3'!A33 -> 21 | B33: ='MPG-3'!B33 -> XEL | D33: ='MPG-3'!D33 -> Xcel Energy Inc. | E33: =IFERROR(AVERAGE(F33:AA33,'MPG-16 Page 3'!E33:Z33),"") -> 0.6920454545 | F33: =IF($B33="","",IFERROR(VLOOKUP($B33&"."&F$10,'EL Beta Data'!$A$2:$C$2500,3,FALSE),"N/A")) -> 0.75 | G33: =IF($B33="","",IFERROR(VLOOKUP($B33&"."&G$10,'EL Beta Data'!$A$2:$C$2500,3,FALSE),"N/A")) -> 0.85 | H33: =IF($B33="","",IFERROR(VLOOKUP($B33&"."&H$10,'EL Beta Data'!$A$2:$C$2500,3,FALSE),"N/A")) -> 0.85 | I33: =IF($B33="","",IFERROR(VLOOKUP($B33&"."&I$10,'EL Beta Data'!$A$2:$C$2500,3,FALSE),"N/A")) -> 0.85 | J33: =IF($B33="","",IFERROR(VLOOKUP($B33&"."&J$10,'EL Beta Data'!$A$2:$C$2500,3,FALSE),"N/A")) -> 0.85 | K33: =IF($B33="","",IFERROR(VLOOKUP($B33&"."&K$10,'EL Beta Data'!$A$2:$C$2500,3,FALSE),"N/A")) -> 0.85 | L33: =IF($B33="","",IFERROR(VLOOKUP($B33&"."&L$10,'EL Beta Data'!$A$2:$C$2500,3,FALSE),"N/A")) -> 0.85 | M33: =IF($B33="","",IFERROR(VLOOKUP($B33&"."&M$10,'EL Beta Data'!$A$2:$C$2500,3,FALSE),"N/A")) -> 0.85 | N33: =IF($B33="","",IFERROR(VLOOKUP($B33&"."&N$10,'EL Beta Data'!$A$2:$C$2500,3,FALSE),"N/A")) -> 0.8 | O33: =IF($B33="","",IFERROR(VLOOKUP($B33&"."&O$10,'EL Beta Data'!$A$2:$C$2500,3,FALSE),"N/A")) -> 0.8 | P33: =IF($B33="","",IFERROR(VLOOKUP($B33&"."&P$10,'EL Beta Data'!$A$2:$C$2500,3,FALSE),"N/A")) -> 0.8 | Q33: =IF($B33="","",IFERROR(VLOOKUP($B33&"."&Q$10,'EL Beta Data'!$A$2:$C$2500,3,FALSE),"N/A")) -> 0.8 | R33: =IF($B33="","",IFERROR(VLOOKUP($B33&"."&R$10,'EL Beta Data'!$A$2:$C$2500,3,FALSE),"N/A")) -> 0.8 | S33: =IF($B33="","",IFERROR(VLOOKUP($B33&"."&S$10,'EL Beta Data'!$A$2:$C$2500,3,FALSE),"N/A")) -> 0.8 | T33: =IF($B33="","",IFERROR(VLOOKUP($B33&"."&T$10,'EL Beta Data'!$A$2:$C$2500,3,FALSE),"N/A")) -> 0.8 | U33: =IF($B33="","",IFERROR(VLOOKUP($B33&"."&U$10,'EL Beta Data'!$A$2:$C$2500,3,FALSE),"N/A")) -> 0.8 | V33: =IF($B33="","",IFERROR(VLOOKUP($B33&"."&V$10,'EL Beta Data'!$A$2:$C$2500,3,FALSE),"N/A")) -> 0.8 | W33: =IF($B33="","",IFERROR(VLOOKUP($B33&"."&W$10,'EL Beta Data'!$A$2:$C$2500,3,FALSE),"N/A")) -> 0.8 | X33: =IF($B33="","",IFERROR(VLOOKUP($B33&"."&X$10,'EL Beta Data'!$A$2:$C$2500,3,FALSE),"N/A")) -> 0.8 | Y33: =IF($B33="","",IFERROR(VLOOKUP($B33&"."&Y$10,'EL Beta Data'!$A$2:$C$2500,3,FALSE),"N/A")) -> 0.75 | Z33: =IF($B33="","",IFERROR(VLOOKUP($B33&"."&Z$10,'EL Beta Data'!$A$2:$C$2500,3,FALSE),"N/A")) -> 0.45 | AA33: =IF($B33="","",IFERROR(VLOOKUP($B33&"."&AA$10,'EL Beta Data'!$A$2:$C$2500,3,FALSE),"N/A")) -> 0.5
A34: ='MPG-3'!A34 ->  | B34: ='MPG-3'!B34 ->  | D34: ='MPG-3'!D34 ->  | E34: =IFERROR(AVERAGE(F34:AA34,'MPG-16 Page 3'!E34:Z34),"") ->  | F34: =IF($B34="","",IFERROR(VLOOKUP($B34&"."&F$10,'EL Beta Data'!$A$2:$C$2500,3,FALSE),"N/A")) ->  | G34: =IF($B34="","",IFERROR(VLOOKUP($B34&"."&G$10,'EL Beta Data'!$A$2:$C$2500,3,FALSE),"N/A")) ->  | H34: =IF($B34="","",IFERROR(VLOOKUP($B34&"."&H$10,'EL Beta Data'!$A$2:$C$2500,3,FALSE),"N/A")) ->  | I34: =IF($B34="","",IFERROR(VLOOKUP($B34&"."&I$10,'EL Beta Data'!$A$2:$C$2500,3,FALSE),"N/A")) ->  | J34: =IF($B34="","",IFERROR(VLOOKUP($B34&"."&J$10,'EL Beta Data'!$A$2:$C$2500,3,FALSE),"N/A")) ->  | K34: =IF($B34="","",IFERROR(VLOOKUP($B34&"."&K$10,'EL Beta Data'!$A$2:$C$2500,3,FALSE),"N/A")) ->  | L34: =IF($B34="","",IFERROR(VLOOKUP($B34&"."&L$10,'EL Beta Data'!$A$2:$C$2500,3,FALSE),"N/A")) ->  | M34: =IF($B34="","",IFERROR(VLOOKUP($B34&"."&M$10,'EL Beta Data'!$A$2:$C$2500,3,FALSE),"N/A")) ->  | N34: =IF($B34="","",IFERROR(VLOOKUP($B34&"."&N$10,'EL Beta Data'!$A$2:$C$2500,3,FALSE),"N/A")) ->  | O34: =IF($B34="","",IFERROR(VLOOKUP($B34&"."&O$10,'EL Beta Data'!$A$2:$C$2500,3,FALSE),"N/A")) ->  | P34: =IF($B34="","",IFERROR(VLOOKUP($B34&"."&P$10,'EL Beta Data'!$A$2:$C$2500,3,FALSE),"N/A")) ->  | Q34: =IF($B34="","",IFERROR(VLOOKUP($B34&"."&Q$10,'EL Beta Data'!$A$2:$C$2500,3,FALSE),"N/A")) ->  | R34: =IF($B34="","",IFERROR(VLOOKUP($B34&"."&R$10,'EL Beta Data'!$A$2:$C$2500,3,FALSE),"N/A")) ->  | S34: =IF($B34="","",IFERROR(VLOOKUP($B34&"."&S$10,'EL Beta Data'!$A$2:$C$2500,3,FALSE),"N/A")) ->  | T34: =IF($B34="","",IFERROR(VLOOKUP($B34&"."&T$10,'EL Beta Data'!$A$2:$C$2500,3,FALSE),"N/A")) ->  | U34: =IF($B34="","",IFERROR(VLOOKUP($B34&"."&U$10,'EL Beta Data'!$A$2:$C$2500,3,FALSE),"N/A")) ->  | V34: =IF($B34="","",IFERROR(VLOOKUP($B34&"."&V$10,'EL Beta Data'!$A$2:$C$2500,3,FALSE),"N/A")) ->  | W34: =IF($B34="","",IFERROR(VLOOKUP($B34&"."&W$10,'EL Beta Data'!$A$2:$C$2500,3,FALSE),"N/A")) ->  | X34: =IF($B34="","",IFERROR(VLOOKUP($B34&"."&X$10,'EL Beta Data'!$A$2:$C$2500,3,FALSE),"N/A")) ->  | Y34: =IF($B34="","",IFERROR(VLOOKUP($B34&"."&Y$10,'EL Beta Data'!$A$2:$C$2500,3,FALSE),"N/A")) ->  | Z34: =IF($B34="","",IFERROR(VLOOKUP($B34&"."&Z$10,'EL Beta Data'!$A$2:$C$2500,3,FALSE),"N/A")) ->  | AA34: =IF($B34="","",IFERROR(VLOOKUP($B34&"."&AA$10,'EL Beta Data'!$A$2:$C$2500,3,FALSE),"N/A")) -> 
A35: ='MPG-3'!A35 ->  | B35: ='MPG-3'!B35 ->  | D35: ='MPG-3'!D35 ->  | E35: =IFERROR(AVERAGE(F35:AA35,'MPG-16 Page 3'!E35:Z35),"") ->  | F35: =IF($B35="","",IFERROR(VLOOKUP($B35&"."&F$10,'EL Beta Data'!$A$2:$C$2500,3,FALSE),"N/A")) ->  | G35: =IF($B35="","",IFERROR(VLOOKUP($B35&"."&G$10,'EL Beta Data'!$A$2:$C$2500,3,FALSE),"N/A")) ->  | H35: =IF($B35="","",IFERROR(VLOOKUP($B35&"."&H$10,'EL Beta Data'!$A$2:$C$2500,3,FALSE),"N/A")) ->  | I35: =IF($B35="","",IFERROR(VLOOKUP($B35&"."&I$10,'EL Beta Data'!$A$2:$C$2500,3,FALSE),"N/A")) ->  | J35: =IF($B35="","",IFERROR(VLOOKUP($B35&"."&J$10,'EL Beta Data'!$A$2:$C$2500,3,FALSE),"N/A")) ->  | K35: =IF($B35="","",IFERROR(VLOOKUP($B35&"."&K$10,'EL Beta Data'!$A$2:$C$2500,3,FALSE),"N/A")) ->  | L35: =IF($B35="","",IFERROR(VLOOKUP($B35&"."&L$10,'EL Beta Data'!$A$2:$C$2500,3,FALSE),"N/A")) ->  | M35: =IF($B35="","",IFERROR(VLOOKUP($B35&"."&M$10,'EL Beta Data'!$A$2:$C$2500,3,FALSE),"N/A")) ->  | N35: =IF($B35="","",IFERROR(VLOOKUP($B35&"."&N$10,'EL Beta Data'!$A$2:$C$2500,3,FALSE),"N/A")) ->  | O35: =IF($B35="","",IFERROR(VLOOKUP($B35&"."&O$10,'EL Beta Data'!$A$2:$C$2500,3,FALSE),"N/A")) ->  | P35: =IF($B35="","",IFERROR(VLOOKUP($B35&"."&P$10,'EL Beta Data'!$A$2:$C$2500,3,FALSE),"N/A")) ->  | Q35: =IF($B35="","",IFERROR(VLOOKUP($B35&"."&Q$10,'EL Beta Data'!$A$2:$C$2500,3,FALSE),"N/A")) ->  | R35: =IF($B35="","",IFERROR(VLOOKUP($B35&"."&R$10,'EL Beta Data'!$A$2:$C$2500,3,FALSE),"N/A")) ->  | S35: =IF($B35="","",IFERROR(VLOOKUP($B35&"."&S$10,'EL Beta Data'!$A$2:$C$2500,3,FALSE),"N/A")) ->  | T35: =IF($B35="","",IFERROR(VLOOKUP($B35&"."&T$10,'EL Beta Data'!$A$2:$C$2500,3,FALSE),"N/A")) ->  | U35: =IF($B35="","",IFERROR(VLOOKUP($B35&"."&U$10,'EL Beta Data'!$A$2:$C$2500,3,FALSE),"N/A")) ->  | V35: =IF($B35="","",IFERROR(VLOOKUP($B35&"."&V$10,'EL Beta Data'!$A$2:$C$2500,3,FALSE),"N/A")) ->  | W35: =IF($B35="","",IFERROR(VLOOKUP($B35&"."&W$10,'EL Beta Data'!$A$2:$C$2500,3,FALSE),"N/A")) ->  | X35: =IF($B35="","",IFERROR(VLOOKUP($B35&"."&X$10,'EL Beta Data'!$A$2:$C$2500,3,FALSE),"N/A")) ->  | Y35: =IF($B35="","",IFERROR(VLOOKUP($B35&"."&Y$10,'EL Beta Data'!$A$2:$C$2500,3,FALSE),"N/A")) ->  | Z35: =IF($B35="","",IFERROR(VLOOKUP($B35&"."&Z$10,'EL Beta Data'!$A$2:$C$2500,3,FALSE),"N/A")) ->  | AA35: =IF($B35="","",IFERROR(VLOOKUP($B35&"."&AA$10,'EL Beta Data'!$A$2:$C$2500,3,FALSE),"N/A")) -> 
A36: ='MPG-3'!A36 ->  | B36: ='MPG-3'!B36 ->  | D36: ='MPG-3'!D36 ->  | E36: =IFERROR(AVERAGE(F36:AA36,'MPG-16 Page 3'!E36:Z36),"") ->  | F36: =IF($B36="","",IFERROR(VLOOKUP($B36&"."&F$10,'EL Beta Data'!$A$2:$C$2500,3,FALSE),"N/A")) ->  | G36: =IF($B36="","",IFERROR(VLOOKUP($B36&"."&G$10,'EL Beta Data'!$A$2:$C$2500,3,FALSE),"N/A")) ->  | H36: =IF($B36="","",IFERROR(VLOOKUP($B36&"."&H$10,'EL Beta Data'!$A$2:$C$2500,3,FALSE),"N/A")) ->  | I36: =IF($B36="","",IFERROR(VLOOKUP($B36&"."&I$10,'EL Beta Data'!$A$2:$C$2500,3,FALSE),"N/A")) ->  | J36: =IF($B36="","",IFERROR(VLOOKUP($B36&"."&J$10,'EL Beta Data'!$A$2:$C$2500,3,FALSE),"N/A")) ->  | K36: =IF($B36="","",IFERROR(VLOOKUP($B36&"."&K$10,'EL Beta Data'!$A$2:$C$2500,3,FALSE),"N/A")) ->  | L36: =IF($B36="","",IFERROR(VLOOKUP($B36&"."&L$10,'EL Beta Data'!$A$2:$C$2500,3,FALSE),"N/A")) ->  | M36: =IF($B36="","",IFERROR(VLOOKUP($B36&"."&M$10,'EL Beta Data'!$A$2:$C$2500,3,FALSE),"N/A")) ->  | N36: =IF($B36="","",IFERROR(VLOOKUP($B36&"."&N$10,'EL Beta Data'!$A$2:$C$2500,3,FALSE),"N/A")) ->  | O36: =IF($B36="","",IFERROR(VLOOKUP($B36&"."&O$10,'EL Beta Data'!$A$2:$C$2500,3,FALSE),"N/A")) ->  | P36: =IF($B36="","",IFERROR(VLOOKUP($B36&"."&P$10,'EL Beta Data'!$A$2:$C$2500,3,FALSE),"N/A")) ->  | Q36: =IF($B36="","",IFERROR(VLOOKUP($B36&"."&Q$10,'EL Beta Data'!$A$2:$C$2500,3,FALSE),"N/A")) ->  | R36: =IF($B36="","",IFERROR(VLOOKUP($B36&"."&R$10,'EL Beta Data'!$A$2:$C$2500,3,FALSE),"N/A")) ->  | S36: =IF($B36="","",IFERROR(VLOOKUP($B36&"."&S$10,'EL Beta Data'!$A$2:$C$2500,3,FALSE),"N/A")) ->  | T36: =IF($B36="","",IFERROR(VLOOKUP($B36&"."&T$10,'EL Beta Data'!$A$2:$C$2500,3,FALSE),"N/A")) ->  | U36: =IF($B36="","",IFERROR(VLOOKUP($B36&"."&U$10,'EL Beta Data'!$A$2:$C$2500,3,FALSE),"N/A")) ->  | V36: =IF($B36="","",IFERROR(VLOOKUP($B36&"."&V$10,'EL Beta Data'!$A$2:$C$2500,3,FALSE),"N/A")) ->  | W36: =IF($B36="","",IFERROR(VLOOKUP($B36&"."&W$10,'EL Beta Data'!$A$2:$C$2500,3,FALSE),"N/A")) ->  | X36: =IF($B36="","",IFERROR(VLOOKUP($B36&"."&X$10,'EL Beta Data'!$A$2:$C$2500,3,FALSE),"N/A")) ->  | Y36: =IF($B36="","",IFERROR(VLOOKUP($B36&"."&Y$10,'EL Beta Data'!$A$2:$C$2500,3,FALSE),"N/A")) ->  | Z36: =IF($B36="","",IFERROR(VLOOKUP($B36&"."&Z$10,'EL Beta Data'!$A$2:$C$2500,3,FALSE),"N/A")) ->  | AA36: =IF($B36="","",IFERROR(VLOOKUP($B36&"."&AA$10,'EL Beta Data'!$A$2:$C$2500,3,FALSE),"N/A")) -> 
A37: ='MPG-3'!A37 ->  | B37: ='MPG-3'!B37 ->  | D37: ='MPG-3'!D37 ->  | E37: =IFERROR(AVERAGE(F37:AA37,'MPG-16 Page 3'!E37:Z37),"") ->  | F37: =IF($B37="","",IFERROR(VLOOKUP($B37&"."&F$10,'EL Beta Data'!$A$2:$C$2500,3,FALSE),"N/A")) ->  | G37: =IF($B37="","",IFERROR(VLOOKUP($B37&"."&G$10,'EL Beta Data'!$A$2:$C$2500,3,FALSE),"N/A")) ->  | H37: =IF($B37="","",IFERROR(VLOOKUP($B37&"."&H$10,'EL Beta Data'!$A$2:$C$2500,3,FALSE),"N/A")) ->  | I37: =IF($B37="","",IFERROR(VLOOKUP($B37&"."&I$10,'EL Beta Data'!$A$2:$C$2500,3,FALSE),"N/A")) ->  | J37: =IF($B37="","",IFERROR(VLOOKUP($B37&"."&J$10,'EL Beta Data'!$A$2:$C$2500,3,FALSE),"N/A")) ->  | K37: =IF($B37="","",IFERROR(VLOOKUP($B37&"."&K$10,'EL Beta Data'!$A$2:$C$2500,3,FALSE),"N/A")) ->  | L37: =IF($B37="","",IFERROR(VLOOKUP($B37&"."&L$10,'EL Beta Data'!$A$2:$C$2500,3,FALSE),"N/A")) ->  | M37: =IF($B37="","",IFERROR(VLOOKUP($B37&"."&M$10,'EL Beta Data'!$A$2:$C$2500,3,FALSE),"N/A")) ->  | N37: =IF($B37="","",IFERROR(VLOOKUP($B37&"."&N$10,'EL Beta Data'!$A$2:$C$2500,3,FALSE),"N/A")) ->  | O37: =IF($B37="","",IFERROR(VLOOKUP($B37&"."&O$10,'EL Beta Data'!$A$2:$C$2500,3,FALSE),"N/A")) ->  | P37: =IF($B37="","",IFERROR(VLOOKUP($B37&"."&P$10,'EL Beta Data'!$A$2:$C$2500,3,FALSE),"N/A")) ->  | Q37: =IF($B37="","",IFERROR(VLOOKUP($B37&"."&Q$10,'EL Beta Data'!$A$2:$C$2500,3,FALSE),"N/A")) ->  | R37: =IF($B37="","",IFERROR(VLOOKUP($B37&"."&R$10,'EL Beta Data'!$A$2:$C$2500,3,FALSE),"N/A")) ->  | S37: =IF($B37="","",IFERROR(VLOOKUP($B37&"."&S$10,'EL Beta Data'!$A$2:$C$2500,3,FALSE),"N/A")) ->  | T37: =IF($B37="","",IFERROR(VLOOKUP($B37&"."&T$10,'EL Beta Data'!$A$2:$C$2500,3,FALSE),"N/A")) ->  | U37: =IF($B37="","",IFERROR(VLOOKUP($B37&"."&U$10,'EL Beta Data'!$A$2:$C$2500,3,FALSE),"N/A")) ->  | V37: =IF($B37="","",IFERROR(VLOOKUP($B37&"."&V$10,'EL Beta Data'!$A$2:$C$2500,3,FALSE),"N/A")) ->  | W37: =IF($B37="","",IFERROR(VLOOKUP($B37&"."&W$10,'EL Beta Data'!$A$2:$C$2500,3,FALSE),"N/A")) ->  | X37: =IF($B37="","",IFERROR(VLOOKUP($B37&"."&X$10,'EL Beta Data'!$A$2:$C$2500,3,FALSE),"N/A")) ->  | Y37: =IF($B37="","",IFERROR(VLOOKUP($B37&"."&Y$10,'EL Beta Data'!$A$2:$C$2500,3,FALSE),"N/A")) ->  | Z37: =IF($B37="","",IFERROR(VLOOKUP($B37&"."&Z$10,'EL Beta Data'!$A$2:$C$2500,3,FALSE),"N/A")) ->  | AA37: =IF($B37="","",IFERROR(VLOOKUP($B37&"."&AA$10,'EL Beta Data'!$A$2:$C$2500,3,FALSE),"N/A")) -> 
A38: ='MPG-3'!A38 ->  | B38: ='MPG-3'!B38 ->  | D38: ='MPG-3'!D38 ->  | E38: =IFERROR(AVERAGE(F38:AA38,'MPG-16 Page 3'!E38:Z38),"") ->  | F38: =IF($B38="","",IFERROR(VLOOKUP($B38&"."&F$10,'EL Beta Data'!$A$2:$C$2500,3,FALSE),"N/A")) ->  | G38: =IF($B38="","",IFERROR(VLOOKUP($B38&"."&G$10,'EL Beta Data'!$A$2:$C$2500,3,FALSE),"N/A")) ->  | H38: =IF($B38="","",IFERROR(VLOOKUP($B38&"."&H$10,'EL Beta Data'!$A$2:$C$2500,3,FALSE),"N/A")) ->  | I38: =IF($B38="","",IFERROR(VLOOKUP($B38&"."&I$10,'EL Beta Data'!$A$2:$C$2500,3,FALSE),"N/A")) ->  | J38: =IF($B38="","",IFERROR(VLOOKUP($B38&"."&J$10,'EL Beta Data'!$A$2:$C$2500,3,FALSE),"N/A")) ->  | K38: =IF($B38="","",IFERROR(VLOOKUP($B38&"."&K$10,'EL Beta Data'!$A$2:$C$2500,3,FALSE),"N/A")) ->  | L38: =IF($B38="","",IFERROR(VLOOKUP($B38&"."&L$10,'EL Beta Data'!$A$2:$C$2500,3,FALSE),"N/A")) ->  | M38: =IF($B38="","",IFERROR(VLOOKUP($B38&"."&M$10,'EL Beta Data'!$A$2:$C$2500,3,FALSE),"N/A")) ->  | N38: =IF($B38="","",IFERROR(VLOOKUP($B38&"."&N$10,'EL Beta Data'!$A$2:$C$2500,3,FALSE),"N/A")) ->  | O38: =IF($B38="","",IFERROR(VLOOKUP($B38&"."&O$10,'EL Beta Data'!$A$2:$C$2500,3,FALSE),"N/A")) ->  | P38: =IF($B38="","",IFERROR(VLOOKUP($B38&"."&P$10,'EL Beta Data'!$A$2:$C$2500,3,FALSE),"N/A")) ->  | Q38: =IF($B38="","",IFERROR(VLOOKUP($B38&"."&Q$10,'EL Beta Data'!$A$2:$C$2500,3,FALSE),"N/A")) ->  | R38: =IF($B38="","",IFERROR(VLOOKUP($B38&"."&R$10,'EL Beta Data'!$A$2:$C$2500,3,FALSE),"N/A")) ->  | S38: =IF($B38="","",IFERROR(VLOOKUP($B38&"."&S$10,'EL Beta Data'!$A$2:$C$2500,3,FALSE),"N/A")) ->  | T38: =IF($B38="","",IFERROR(VLOOKUP($B38&"."&T$10,'EL Beta Data'!$A$2:$C$2500,3,FALSE),"N/A")) ->  | U38: =IF($B38="","",IFERROR(VLOOKUP($B38&"."&U$10,'EL Beta Data'!$A$2:$C$2500,3,FALSE),"N/A")) ->  | V38: =IF($B38="","",IFERROR(VLOOKUP($B38&"."&V$10,'EL Beta Data'!$A$2:$C$2500,3,FALSE),"N/A")) ->  | W38: =IF($B38="","",IFERROR(VLOOKUP($B38&"."&W$10,'EL Beta Data'!$A$2:$C$2500,3,FALSE),"N/A")) ->  | X38: =IF($B38="","",IFERROR(VLOOKUP($B38&"."&X$10,'EL Beta Data'!$A$2:$C$2500,3,FALSE),"N/A")) ->  | Y38: =IF($B38="","",IFERROR(VLOOKUP($B38&"."&Y$10,'EL Beta Data'!$A$2:$C$2500,3,FALSE),"N/A")) ->  | Z38: =IF($B38="","",IFERROR(VLOOKUP($B38&"."&Z$10,'EL Beta Data'!$A$2:$C$2500,3,FALSE),"N/A")) ->  | AA38: =IF($B38="","",IFERROR(VLOOKUP($B38&"."&AA$10,'EL Beta Data'!$A$2:$C$2500,3,FALSE),"N/A")) -> 
A39: ='MPG-3'!A39 ->  | B39: ='MPG-3'!B39 ->  | D39: ='MPG-3'!D39 ->  | E39: =IFERROR(AVERAGE(F39:AA39,'MPG-16 Page 3'!E39:Z39),"") ->  | F39: =IF($B39="","",IFERROR(VLOOKUP($B39&"."&F$10,'EL Beta Data'!$A$2:$C$2500,3,FALSE),"N/A")) ->  | G39: =IF($B39="","",IFERROR(VLOOKUP($B39&"."&G$10,'NG Beta Data'!$A$2:$C$2500,3,FALSE),"N/A")) ->  | H39: =IF($B39="","",IFERROR(VLOOKUP($B39&"."&H$10,'NG Beta Data'!$A$2:$C$2500,3,FALSE),"N/A")) ->  | I39: =IF($B39="","",IFERROR(VLOOKUP($B39&"."&I$10,'NG Beta Data'!$A$2:$C$2500,3,FALSE),"N/A")) ->  | J39: =IF($B39="","",IFERROR(VLOOKUP($B39&"."&J$10,'NG Beta Data'!$A$2:$C$2500,3,FALSE),"N/A")) ->  | K39: =IF($B39="","",IFERROR(VLOOKUP($B39&"."&K$10,'NG Beta Data'!$A$2:$C$2500,3,FALSE),"N/A")) ->  | L39: =IF($B39="","",IFERROR(VLOOKUP($B39&"."&L$10,'NG Beta Data'!$A$2:$C$2500,3,FALSE),"N/A")) ->  | M39: =IF($B39="","",IFERROR(VLOOKUP($B39&"."&M$10,'NG Beta Data'!$A$2:$C$2500,3,FALSE),"N/A")) ->  | N39: =IF($B39="","",IFERROR(VLOOKUP($B39&"."&N$10,'NG Beta Data'!$A$2:$C$2500,3,FALSE),"N/A")) ->  | O39: =IF($B39="","",IFERROR(VLOOKUP($B39&"."&O$10,'NG Beta Data'!$A$2:$C$2500,3,FALSE),"N/A")) ->  | P39: =IF($B39="","",IFERROR(VLOOKUP($B39&"."&P$10,'NG Beta Data'!$A$2:$C$2500,3,FALSE),"N/A")) ->  | Q39: =IF($B39="","",IFERROR(VLOOKUP($B39&"."&Q$10,'NG Beta Data'!$A$2:$C$2500,3,FALSE),"N/A")) ->  | R39: =IF($B39="","",IFERROR(VLOOKUP($B39&"."&R$10,'NG Beta Data'!$A$2:$C$2500,3,FALSE),"N/A")) ->  | S39: =IF($B39="","",IFERROR(VLOOKUP($B39&"."&S$10,'NG Beta Data'!$A$2:$C$2500,3,FALSE),"N/A")) ->  | T39: =IF($B39="","",IFERROR(VLOOKUP($B39&"."&T$10,'NG Beta Data'!$A$2:$C$2500,3,FALSE),"N/A")) ->  | U39: =IF($B39="","",IFERROR(VLOOKUP($B39&"."&U$10,'NG Beta Data'!$A$2:$C$2500,3,FALSE),"N/A")) ->  | V39: =IF($B39="","",IFERROR(VLOOKUP($B39&"."&V$10,'NG Beta Data'!$A$2:$C$2500,3,FALSE),"N/A")) ->  | W39: =IF($B39="","",IFERROR(VLOOKUP($B39&"."&W$10,'NG Beta Data'!$A$2:$C$2500,3,FALSE),"N/A")) ->  | X39: =IF($B39="","",IFERROR(VLOOKUP($B39&"."&X$10,'NG Beta Data'!$A$2:$C$2500,3,FALSE),"N/A")) ->  | Y39: =IF($B39="","",IFERROR(VLOOKUP($B39&"."&Y$10,'NG Beta Data'!$A$2:$C$2500,3,FALSE),"N/A")) ->  | Z39: =IF($B39="","",IFERROR(VLOOKUP($B39&"."&Z$10,'NG Beta Data'!$A$2:$C$2500,3,FALSE),"N/A")) ->  | AA39: =IF($B39="","",IFERROR(VLOOKUP($B39&"."&AA$10,'NG Beta Data'!$A$2:$C$2500,3,FALSE),"N/A")) -> 
A40: ='MPG-3'!A40 ->  | B40: ='MPG-3'!B40 ->  | D40: ='MPG-3'!D40 ->  | E40: =IFERROR(AVERAGE(F40:AA40,'MPG-16 Page 3'!E40:Z40),"") ->  | F40: =IF($B40="","",IFERROR(VLOOKUP($B40&"."&F$10,'EL Beta Data'!$A$2:$C$2500,3,FALSE),"N/A")) ->  | G40: =IF($B40="","",IFERROR(VLOOKUP($B40&"."&G$10,'NG Beta Data'!$A$2:$C$2500,3,FALSE),"N/A")) ->  | H40: =IF($B40="","",IFERROR(VLOOKUP($B40&"."&H$10,'NG Beta Data'!$A$2:$C$2500,3,FALSE),"N/A")) ->  | I40: =IF($B40="","",IFERROR(VLOOKUP($B40&"."&I$10,'NG Beta Data'!$A$2:$C$2500,3,FALSE),"N/A")) ->  | J40: =IF($B40="","",IFERROR(VLOOKUP($B40&"."&J$10,'NG Beta Data'!$A$2:$C$2500,3,FALSE),"N/A")) ->  | K40: =IF($B40="","",IFERROR(VLOOKUP($B40&"."&K$10,'NG Beta Data'!$A$2:$C$2500,3,FALSE),"N/A")) ->  | L40: =IF($B40="","",IFERROR(VLOOKUP($B40&"."&L$10,'NG Beta Data'!$A$2:$C$2500,3,FALSE),"N/A")) ->  | M40: =IF($B40="","",IFERROR(VLOOKUP($B40&"."&M$10,'NG Beta Data'!$A$2:$C$2500,3,FALSE),"N/A")) ->  | N40: =IF($B40="","",IFERROR(VLOOKUP($B40&"."&N$10,'NG Beta Data'!$A$2:$C$2500,3,FALSE),"N/A")) ->  | O40: =IF($B40="","",IFERROR(VLOOKUP($B40&"."&O$10,'NG Beta Data'!$A$2:$C$2500,3,FALSE),"N/A")) ->  | P40: =IF($B40="","",IFERROR(VLOOKUP($B40&"."&P$10,'NG Beta Data'!$A$2:$C$2500,3,FALSE),"N/A")) ->  | Q40: =IF($B40="","",IFERROR(VLOOKUP($B40&"."&Q$10,'NG Beta Data'!$A$2:$C$2500,3,FALSE),"N/A")) ->  | R40: =IF($B40="","",IFERROR(VLOOKUP($B40&"."&R$10,'NG Beta Data'!$A$2:$C$2500,3,FALSE),"N/A")) ->  | S40: =IF($B40="","",IFERROR(VLOOKUP($B40&"."&S$10,'NG Beta Data'!$A$2:$C$2500,3,FALSE),"N/A")) ->  | T40: =IF($B40="","",IFERROR(VLOOKUP($B40&"."&T$10,'NG Beta Data'!$A$2:$C$2500,3,FALSE),"N/A")) ->  | U40: =IF($B40="","",IFERROR(VLOOKUP($B40&"."&U$10,'NG Beta Data'!$A$2:$C$2500,3,FALSE),"N/A")) ->  | V40: =IF($B40="","",IFERROR(VLOOKUP($B40&"."&V$10,'NG Beta Data'!$A$2:$C$2500,3,FALSE),"N/A")) ->  | W40: =IF($B40="","",IFERROR(VLOOKUP($B40&"."&W$10,'NG Beta Data'!$A$2:$C$2500,3,FALSE),"N/A")) ->  | X40: =IF($B40="","",IFERROR(VLOOKUP($B40&"."&X$10,'NG Beta Data'!$A$2:$C$2500,3,FALSE),"N/A")) ->  | Y40: =IF($B40="","",IFERROR(VLOOKUP($B40&"."&Y$10,'NG Beta Data'!$A$2:$C$2500,3,FALSE),"N/A")) ->  | Z40: =IF($B40="","",IFERROR(VLOOKUP($B40&"."&Z$10,'NG Beta Data'!$A$2:$C$2500,3,FALSE),"N/A")) ->  | AA40: =IF($B40="","",IFERROR(VLOOKUP($B40&"."&AA$10,'NG Beta Data'!$A$2:$C$2500,3,FALSE),"N/A")) -> 
